Workbook

Sheet Sample Report (hidden)
A2: Date
A3: Hen
A4: Program
A5: Start at 999999
A6: Sequence component 1 | B6: Time 1 | C6: Seqeunce Component 2 | D6: Time 2 | E6: Seqeunce Component 3 | F6: Time 3 | G6: Correct 0 = No 1=Yes | J6: Seqeunce | K6: Time
A7: 12 | B7: 7 | C7: 12 | D7: 42 | E7: 13 | F7: 18 | G7: if 77 new line, if 31 or 41 = yes new line on 77, | J7: =string of Seqeunce compponent 1, 2 & 3 | K7: =time 3
A8: This continues until ther is a 1 on its own to indicate start of summary data
J9: 10-19 =1
A10: Summary Data | J10: 20-29 =2
A11: Correct | B11: Incorrect | C11: Rft | D11: total | E11: Av Correct | F11: Av Incorrect | G11: Percent correct | H11: Time | J11: in this example the seqeunce would be 111
A12: 40 | B12: 33 | C12: 40 | D12: 73 | E12: 23.95 | F12: 15 | G12: 54 | H12: 806

Sheet Summary
A2: Day | B2: Date | C2: Average Response Rate | D2: Target % | E2: RF for non correct sequence | F2: U Value | K2: Block 1 | L2: Block 2 | M2: Block 3 | N2: Block 4 | O2: Block 5 | P2: Block 6
A3: 1 | B3: ='!L807930.052'!B2:C2 -> <date> | C3: =('!L807930.052'!D7/60)/'!L807930.052'!Q3 -> 0.001449275362 | D3: ='!L807930.052'!N20/'!L807930.052'!Q3 -> 0 | E3: =SUM('!L807930.052'!L20:Q20)/'!L807930.052'!Q3 -> 0.4347826087 | F3: ='!L807930.052'!Q16 -> 0.1026237637 | J3: Average Response Rate | K3: =AVERAGE(C3:C7) -> 0.003362570052 | L3: =AVERAGE(C8:C12) -> 0.005446922051 | M3: =AVERAGE(C13:C17) -> 0.006349680008 | N3: =AVERAGE(C18:C22) -> 0.0065243573 | O3: =AVERAGE(C23:C27) -> 0.00747089647 | P3: =AVERAGE(C28:C32) -> 0.005277972703
A4: 2 | B4: ='!L808920.052'!B2:C2 -> <date> | C4: =('!L808920.052'!D7/60)/'!L808920.052'!Q3 -> 0.002450980392 | D4: ='!L808920.052'!N20/'!L808920.052'!Q3 -> 0 | E4: =SUM('!L808920.052'!L20:Q20)/'!L808920.052'!Q3 -> 0.4647058824 | F4: ='!L808920.052'!Q16 -> 0.06577727849 | J4: Target % | K4: =AVERAGE(D3:D7) -> 0.2484479685 | L4: =AVERAGE(D8:D12) -> 0.8374464709 | M4: =AVERAGE(D13:D17) -> 0.8465789119 | N4: =AVERAGE(D18:D22) -> 0.9534628351 | O4: =AVERAGE(D23:D27) -> 0.9481673554 | P4: =AVERAGE(D28:D32) -> 0.9320216394
A5: 3 | B5: ='!L809A00.052'!B2:C2 -> <date> | C5: =('!L809A00.052'!D7/60)/'!L809A00.052'!Q3 -> 0.001470588235 | D5: ='!L809A00.052'!N20/'!L809A00.052'!Q3 -> 0.09803921569 | E5: =SUM('!L809A00.052'!L20:Q20)/'!L809A00.052'!Q3 -> 0.5392156863 | F5: ='!L809A00.052'!Q16 -> 0.156367221 | J5: CCRF | K5: =AVERAGE(E3:E7) -> 0.7371138762 | L5: =AVERAGE(E8:E12) -> 1.424684076 | M5: =AVERAGE(E13:E17) -> 1.474858583 | N5: =AVERAGE(E18:E22) -> 1.572759133 | O5: =AVERAGE(E23:E27) -> 1.564476136 | P5: =AVERAGE(E28:E32) -> 1.590207246
A6: 4 | B6: ='!L810A50.052'!B2:C2 -> <date> | C6: =('!L810A50.052'!D7/60)/'!L810A50.052'!Q3 -> 0.004545454545 | D6: ='!L810A50.052'!N20/'!L810A50.052'!Q3 -> 0.4545454545 | E6: =SUM('!L810A50.052'!L20:Q20)/'!L810A50.052'!Q3 -> 1.022727273 | F6: ='!L810A50.052'!Q16 -> 0.2467081301 | J6: U Value | K6: =AVERAGE(F3:F7) -> 0.1597987551 | L6: =AVERAGE(F8:F12) -> 0.1431604049 | M6: =AVERAGE(F13:F17) -> 0.144296913 | N6: =AVERAGE(F18:F22) -> 0.05338112803 | O6: =AVERAGE(F23:F27) -> 0.05946751232 | P6: =AVERAGE(F28:F32) -> 0.07387668081
A7: 5 | B7: ='!L811940.052'!B2:C2 -> <date> | C7: =('!L811940.052'!D7/60)/'!L811940.052'!Q3 -> 0.006896551724 | D7: ='!L811940.052'!N20/'!L811940.052'!Q3 -> 0.6896551724 | E7: =SUM('!L811940.052'!L20:Q20)/'!L811940.052'!Q3 -> 1.224137931 | F7: ='!L811940.052'!Q16 -> 0.227517382
A8: 6 | B8: ='!L812910.052'!B2:C2 -> <date> | C8: =('!L812910.052'!D7/60)/'!L812910.052'!Q3 -> 0.005660377358 | D8: ='!L812910.052'!N20/'!L812910.052'!Q3 -> 0.7547169811 | E8: =SUM('!L812910.052'!L20:Q20)/'!L812910.052'!Q3 -> 1.320754717 | F8: ='!L812910.052'!Q16 -> 0.2078301097
A9: 7 | B9: ='!L813900.052'!B2:C2 -> <date> | C9: =('!L813900.052'!D7/60)/'!L813900.052'!Q3 -> 0.006349206349 | D9: ='!L813900.052'!N20/'!L813900.052'!Q3 -> 0.9523809524 | E9: =SUM('!L813900.052'!L20:Q20)/'!L813900.052'!Q3 -> 1.571428571 | F9: ='!L813900.052'!Q16 -> 0.06005107821 | G9: =K3 -> 0.003362570052 | H9: 0.005446922051 | I9: 0.006349680008 | J9: 0.0065243573 | K9: 0.00747089647 | L9: 0.005277972703 | M9: =K4 -> 0.2484479685 | N9: 0.8374464709 | O9: 0.8465789119 | P9: 0.9534628351 | Q9: 0.9481673554 | R9: 0.9320216394 | S9: =K6 -> 0.1597987551 | T9: 0.1431604049 | U9: 0.144296913 | V9: 0.05338112803 | W9: 0.05946751232 | X9: 0.07387668081
A10: 8 | B10: ='!L814930.052'!B2:C2 -> <date> | C10: =('!L814930.052'!D7/60)/'!L814930.052'!Q3 -> 0.006060606061 | D10: ='!L814930.052'!N20/'!L814930.052'!Q3 -> 0.9090909091 | E10: =SUM('!L814930.052'!L20:Q20)/'!L814930.052'!Q3 -> 1.522727273 | F10: ='!L814930.052'!Q16 -> 0.09715408396
A11: 9 | B11: ='!L815A00.052'!B2:C2 -> <date> | C11: =('!L815A00.052'!D7/60)/'!L815A00.052'!Q3 -> 0.004761904762 | D11: ='!L815A00.052'!N20/'!L815A00.052'!Q3 -> 0.8163265306 | E11: =SUM('!L815A00.052'!L20:Q20)/'!L815A00.052'!Q3 -> 1.387755102 | F11: ='!L815A00.052'!Q16 -> 0.1549647312
A12: 10 | B12: ='!L816850.052'!B2:C2 -> <date> | C12: =('!L816850.052'!D7/60)/'!L816850.052'!Q3 -> 0.004402515723 | D12: ='!L816850.052'!N20/'!L816850.052'!Q3 -> 0.7547169811 | E12: =SUM('!L816850.052'!L20:Q20)/'!L816850.052'!Q3 -> 1.320754717 | F12: ='!L816850.052'!Q16 -> 0.1958020214
A13: 11 | B13: ='!L817920.052'!B2:C2 -> <date> | C13: =('!L817920.052'!D7/60)/'!L817920.052'!Q3 -> 0.004814814815 | D13: ='!L817920.052'!N20/'!L817920.052'!Q3 -> 0.8888888889 | E13: =SUM('!L817920.052'!L20:Q20)/'!L817920.052'!Q3 -> 1.488888889 | F13: ='!L817920.052'!Q16 -> 0.1193743108
A14: 12 | B14: ='!L818B20.052'!B2:C2 -> <date> | C14: =('!L818B20.052'!D7/60)/'!L818B20.052'!Q3 -> 0.01011904762 | D14: ='!L818B20.052'!N20/'!L818B20.052'!Q3 -> 0.7142857143 | E14: =SUM('!L818B20.052'!L20:Q20)/'!L818B20.052'!Q3 -> 1.267857143 | F14: ='!L818B20.052'!Q16 -> 0.2177810287
A15: 13 | B15: ='!L819910.052'!B2:C2 -> <date> | C15: =('!L819910.052'!D7/60)/'!L819910.052'!Q3 -> 0.005319148936 | D15: ='!L819910.052'!N20/'!L819910.052'!Q3 -> 0.8510638298 | E15: =SUM('!L819910.052'!L20:Q20)/'!L819910.052'!Q3 -> 1.638297872 | F15: ='!L819910.052'!Q16 -> 0.1481572676
A16: 14 | B16: ='!L820920.052'!B2:C2 -> <date> | C16: =('!L820920.052'!D7/60)/'!L820920.052'!Q3 -> 0.006060606061 | D16: ='!L820920.052'!N20/'!L820920.052'!Q3 -> 0.9090909091 | E16: =SUM('!L820920.052'!L20:Q20)/'!L820920.052'!Q3 -> 1.522727273 | F16: ='!L820920.052'!Q16 -> 0.105479959
A17: 15 | B17: ='!L821A30.052'!B2:C2 -> <date> | C17: =('!L821A30.052'!D7/60)/'!L821A30.052'!Q3 -> 0.005434782609 | D17: ='!L821A30.052'!N20/'!L821A30.052'!Q3 -> 0.8695652174 | E17: =SUM('!L821A30.052'!L20:Q20)/'!L821A30.052'!Q3 -> 1.456521739 | F17: ='!L821A30.052'!Q16 -> 0.1306919987
A18: 16 | B18: ='!L822950.052'!B2:C2 -> <date> | C18: =('!L822950.052'!D7/60)/'!L822950.052'!Q3 -> 0.006060606061 | D18: ='!L822950.052'!N20/'!L822950.052'!Q3 -> 0.9090909091 | E18: =SUM('!L822950.052'!L20:Q20)/'!L822950.052'!Q3 -> 1.522727273 | F18: ='!L822950.052'!Q16 -> 0.09715408396
A19: 17 | B19: ='!L823910.052'!B2:C2 -> <date> | C19: =('!L823910.052'!D7/60)/'!L823910.052'!Q3 -> 0.005416666667 | D19: ='!L823910.052'!N20/'!L823910.052'!Q3 -> 1 | E19: =SUM('!L823910.052'!L20:Q20)/'!L823910.052'!Q3 -> 1.625 | F19: ='!L823910.052'!Q16 -> 0
A20: 18 | B20: ='!L824920.052'!B2:C2 -> <date> | C20: =('!L824920.052'!D7/60)/'!L824920.052'!Q3 -> 0.005555555556 | D20: ='!L824920.052'!N20/'!L824920.052'!Q3 -> 0.9523809524 | E20: =SUM('!L824920.052'!L20:Q20)/'!L824920.052'!Q3 -> 1.571428571 | F20: ='!L824920.052'!Q16 -> 0.05122017233
A21: 19 | B21: ='!L826830.052'!B2:C2 -> <date> | C21: =('!L826830.052'!D7/60)/'!L826830.052'!Q3 -> 0.01016260163 | D21: ='!L826830.052'!N20/'!L826830.052'!Q3 -> 0.9756097561 | E21: =SUM('!L826830.052'!L20:Q20)/'!L826830.052'!Q3 -> 1.609756098 | F21: ='!L826830.052'!Q16 -> 0.03087735478
A22: 20 | B22: ='!L829A10.052'!B2:C2 -> <date> | C22: =('!L829A10.052'!D7/60)/'!L829A10.052'!Q3 -> 0.005426356589 | D22: ='!L829A10.052'!N20/'!L829A10.052'!Q3 -> 0.9302325581 | E22: =SUM('!L829A10.052'!L20:Q20)/'!L829A10.052'!Q3 -> 1.534883721 | F22: ='!L829A10.052'!Q16 -> 0.08765402911
A23: 21 | B23: ='!L830910.052'!B2:C2 -> <date> | C23: =('!L830910.052'!D7/60)/'!L830910.052'!Q3 -> 0.006097560976 | D23: ='!L830910.052'!N20/'!L830910.052'!Q3 -> 0.9756097561 | E23: =SUM('!L830910.052'!L20:Q20)/'!L830910.052'!Q3 -> 1.609756098 | F23: ='!L830910.052'!Q16 -> 0.03087735478
A24: 22 | B24: ='!L831A10.052'!B2:C2 -> <date> | C24: =('!L831A10.052'!D7/60)/'!L831A10.052'!Q3 -> 0.01550387597 | D24: ='!L831A10.052'!N20/'!L831A10.052'!Q3 -> 0.9302325581 | E24: =SUM('!L831A10.052'!L20:Q20)/'!L831A10.052'!Q3 -> 1.534883721 | F24: ='!L831A10.052'!Q16 -> 0.07908245547
A25: 23 | B25: ='!L901910.052'!B2:C2 -> <date> | C25: =('!L901910.052'!D7/60)/'!L901910.052'!Q3 -> 0.004365079365 | D25: ='!L901910.052'!N20/'!L901910.052'!Q3 -> 0.9523809524 | E25: =SUM('!L901910.052'!L20:Q20)/'!L901910.052'!Q3 -> 1.571428571 | F25: ='!L901910.052'!Q16 -> 0.06005107821
A26: 24 | B26: ='!L902930.052'!B2:C2 -> <date> | C26: =('!L902930.052'!D7/60)/'!L902930.052'!Q3 -> 0.00503875969 | D26: ='!L902930.052'!N20/'!L902930.052'!Q3 -> 0.9302325581 | E26: =SUM('!L902930.052'!L20:Q20)/'!L902930.052'!Q3 -> 1.534883721 | F26: ='!L902930.052'!Q16 -> 0.06727559493
A27: 25 | B27: ='!L903900.052'!B2:C2 -> <date> | C27: =('!L903900.052'!D7/60)/'!L903900.052'!Q3 -> 0.006349206349 | D27: ='!L903900.052'!N20/'!L903900.052'!Q3 -> 0.9523809524 | E27: =SUM('!L903900.052'!L20:Q20)/'!L903900.052'!Q3 -> 1.571428571 | F27: ='!L903900.052'!Q16 -> 0.06005107821
A28: 26 | B28: ='!L904A20.052'!B2:C2 -> <date> | C28: =('!L904A20.052'!D7/60)/'!L904A20.052'!Q3 -> 0.005284552846 | D28: ='!L904A20.052'!N20/'!L904A20.052'!Q3 -> 0.9756097561 | E28: =SUM('!L904A20.052'!L20:Q20)/'!L904A20.052'!Q3 -> 1.609756098 | F28: ='!L904A20.052'!Q16 -> 0.03087735478
A29: 27 | B29: ='!L905950.052'!B2:C2 -> <date> | C29: =('!L905950.052'!D7/60)/'!L905950.052'!Q3 -> 0.005072463768 | D29: ='!L905950.052'!N20/'!L905950.052'!Q3 -> 0.8695652174 | E29: =SUM('!L905950.052'!L20:Q20)/'!L905950.052'!Q3 -> 1.673913043 | F29: ='!L905950.052'!Q16 -> 0.1228205814
A30: 28 | B30: ='!L906920.052'!B2:C2 -> <date> | C30: =('!L906920.052'!D7/60)/'!L906920.052'!Q3 -> 0.005303030303 | D30: ='!L906920.052'!N20/'!L906920.052'!Q3 -> 0.9090909091 | E30: =SUM('!L906920.052'!L20:Q20)/'!L906920.052'!Q3 -> 1.522727273 | F30: ='!L906920.052'!Q16 -> 0.09715408396
A31: 29 | B31: ='!L907940.052'!B2:C2 -> <date> | C31: =('!L907940.052'!D7/60)/'!L907940.052'!Q3 -> 0.005691056911 | D31: ='!L907940.052'!N20/'!L907940.052'!Q3 -> 0.9756097561 | E31: =SUM('!L907940.052'!L20:Q20)/'!L907940.052'!Q3 -> 1.609756098 | F31: ='!L907940.052'!Q16 -> 0.03087735478
A32: 30 | B32: ='!L908840.052'!B2:C2 -> <date> | C32: =('!L908840.052'!D7/60)/'!L908840.052'!Q3 -> 0.00503875969 | D32: ='!L908840.052'!N20/'!L908840.052'!Q3 -> 0.9302325581 | E32: =SUM('!L908840.052'!L20:Q20)/'!L908840.052'!Q3 -> 1.534883721 | F32: ='!L908840.052'!Q16 -> 0.08765402911
B33: ='!L909910.052'!B2:C2 -> <date> | C33: =('!L909910.052'!D7/60)/'!L909910.052'!Q3 -> 0.004651162791 | D33: ='!L909910.052'!N20/'!L909910.052'!Q3 -> 0.9302325581 | E33: =SUM('!L909910.052'!L20:Q20)/'!L909910.052'!Q3 -> 1.534883721 | F33: ='!L909910.052'!Q16 -> 0.07908245547

Sheet Start
F1: Use Folder 51 | H1: Auto Clean Up | J1: Correct sequence
F2: FALSE | H2: TRUE | J2: 12
A4: Working with Folder | G4: Process All/Or Pick A number: ALL or an integer
A5: E:\Hen Data\Raw Data\52\Phase 4 con LR\ | G5: ALL
A6: Filenames:
A7: !L807930.052 | G7: Paint Cells
A8: !L808920.052 | G8: FALSE
A9: !L809A00.052
A10: !L810A50.052
A11: !L811940.052
A12: !L812910.052
A13: !L813900.052
A14: !L814930.052
A15: !L815A00.052
A16: !L816850.052
A17: !L817920.052
A18: !L818B20.052
A19: !L819910.052
A20: !L820920.052
A21: !L821A30.052
A22: !L822950.052
A23: !L823910.052
A24: !L824920.052
A25: !L826830.052
A26: !L829A10.052
A27: !L830910.052
A28: !L831A10.052
A29: !L901910.052
A30: !L902930.052
A31: !L903900.052
A32: !L904A20.052
A33: !L905950.052
A34: !L906920.052
A35: !L907940.052
A36: !L908840.052
A37: !L909910.052

Sheet !L807930.052
A1: Report for:!L807930.052
A2: Date: | B2: <date>
A3: Hen: | B3: <hen> | F3: Correct Sequence | G3: =Start!J2 -> 12 | P3: Total Sequences in Data | Q3: =4994-COUNTBLANK(L7:L5000) -> 207 | V3: Total Sequences in Block Data | W3: =COUNTA(L7:L41) -> 35 | AA3: Total Sequences in Block Data | AB3: =COUNTA(L42:L75) -> 34 | AF3: Total Sequences in Block Data | AG3: =COUNTA(L76:L110) -> 35 | AK3: Total Sequences in Block Data | AL3: =COUNTA(L111:L144) -> 34 | AP3: Total Sequences in Block Data | AQ3: =COUNTA(L145:L179) -> 35 | AU3: Total Sequences in Block Data | AV3: =COUNTA(L180:L213) -> 34
P4: Total Sequences in Summary | Q4: =SUM(O7:O14) -> 207 | V4: Total Sequences in Block Summary | W4: =SUM(U7:U14) -> 35 | AA4: Total Sequences in Block Summary | AB4: =SUM(Z7:Z14) -> 34 | AF4: Total Sequences in Block Summary | AG4: =SUM(AE7:AE14) -> 35 | AK4: Total Sequences in Block Summary | AL4: =SUM(AJ7:AJ14) -> 34 | AP4: Total Sequences in Block Summary | AQ4: =SUM(AO7:AO14) -> 35 | AU4: Total Sequences in Block Summary | AV4: =SUM(AT7:AT14) -> 34
T5: Block 1 | Y5: Block 2 | AD5: Block 3 | AI5: Block 4 | AN5: Block 5 | AS5: Block 6
A6: Sequence Component 1 | B6: Time 1 | C6: Sequence Component 2 | D6: Time 2 | E6: Sequence Component 3 | F6: Time 3 | G6: Sequence Component 4 | H6: Time 4 | I6: Sequence Component 5 | J6: Time 5 | K6: Correct? 0=No 1=Yes | L6: Sequence | N6: Frequency | P6: Relative Frequency | Q6: Variability | T6: Frequency | V6: Relative Frequency | W6: Variability | Y6: Frequency | AA6: Relative Frequency | AB6: Variability | AD6: Frequency | AF6: Relative Frequency | AG6: Variability | AI6: Frequency | AK6: Relative Frequency | AL6: Variability | AN6: Frequency | AP6: Relative Frequency | AQ6: Variability | AS6: Frequency | AU6: Relative Frequency | AV6: Variability
A7: 22 | B7: 9 | C7: 14 | D7: 18 | K7: 0 | L7: 21 | N7: 11 | O7: =COUNTIF($L$7:$L$500,N7) -> 0 | P7: =O7/$Q$4 -> 0 | Q7: =IF(P7=0,0,(P7*((LOG(P7))/LOG(2)))) -> 0 | T7: =N7 -> 11 | U7: =COUNTIF(L7:L41,T7) -> 0 | V7: =U7/(W4-U8) -> 0 | W7: =IF(V7=0,0,(V7*((LOG(V7))/LOG(2)))) -> 0 | Y7: =N7 -> 11 | Z7: =COUNTIF(L42:L75,Y7) -> 0 | AA7: =Z7/(AB4-Z8) -> 0 | AB7: =IF(AA7=0,0,(AA7*((LOG(AA7))/LOG(2)))) -> 0 | AD7: =N7 -> 11 | AE7: =COUNTIF(L76:L110,AD7) -> 0 | AF7: =AE7/(AG4-AE8) -> 0 | AG7: =IF(AF7=0,0,(AF7*((LOG(AF7))/LOG(2)))) -> 0 | AI7: =N7 -> 11 | AJ7: =COUNTIF(L111:L144,AI7) -> 0 | AK7: =AJ7/(AL4-AJ8) -> 0 | AL7: =IF(AK7=0,0,(AK7*((LOG(AK7))/LOG(2)))) -> 0 | AN7: =N7 -> 11 | AO7: =COUNTIF(L145:L179,AN7) -> 0 | AP7: =AO7/(AQ4-AO8) -> 0 | AQ7: =IF(AP7=0,0,(AP7*((LOG(AP7))/LOG(2)))) -> 0 | AS7: =N7 -> 11 | AT7: =COUNTIF(L180:L213,AS7) -> 0 | AU7: =AT7/(AV4-AT8) -> 0 | AV7: =IF(AU7=0,0,(AU7*((LOG(AU7))/LOG(2)))) -> 0
A8: 22 | B8: 119 | C8: 14 | D8: 127 | K8: 0 | L8: 21 | N8: 12 | O8: =COUNTIF($L$7:$L$500,N8) -> 0 | P8: =O8/$Q$4 -> 0 | Q8: =IF(P8=0,0,(P8*((LOG(P8))/LOG(2)))) -> 0 | T8: =N8 -> 12 | U8: =COUNTIF(L7:L41,T8) -> 0 | Y8: =N8 -> 12 | Z8: =COUNTIF(L42:L75,Y8) -> 0 | AD8: =N8 -> 12 | AE8: =COUNTIF(L76:L110,AD8) -> 0 | AI8: =N8 -> 12 | AJ8: =COUNTIF(L111:L144,AI8) -> 0 | AN8: =N8 -> 12 | AO8: =COUNTIF(L145:L179,AN8) -> 0 | AS8: =N8 -> 12 | AT8: =COUNTIF(L180:L213,AS8) -> 0
A9: 22 | B9: 219 | C9: 23 | D9: 226 | K9: 0 | L9: 22 | N9: 21 | O9: =COUNTIF($L$7:$L$500,N9) -> 49 | P9: =O9/$Q$4 -> 0.2367149758 | Q9: =IF(P9=0,0,(P9*((LOG(P9))/LOG(2)))) -> -0.4920776742 | T9: =N9 -> 21 | U9: =COUNTIF(L7:L41,T9) -> 14 | V9: =U9/(W4-U8) -> 0.4 | W9: =IF(V9=0,0,(V9*((LOG(V9))/LOG(2)))) -> -0.528771238 | Y9: =N9 -> 21 | Z9: =COUNTIF(L42:L75,Y9) -> 10 | AA9: =Z9/(AB4-Z8) -> 0.2941176471 | AB9: =IF(AA9=0,0,(AA9*((LOG(AA9))/LOG(2)))) -> -0.5192749254 | AD9: =N9 -> 21 | AE9: =COUNTIF(L76:L110,AD9) -> 4 | AF9: =AE9/(AG4-AE8) -> 0.1142857143 | AG9: =IF(AF9=0,0,(AF9*((LOG(AF9))/LOG(2)))) -> -0.3576323448 | AI9: =N9 -> 21 | AJ9: =COUNTIF(L111:L144,AI9) -> 5 | AK9: =AJ9/(AL4-AJ8) -> 0.1470588235 | AL9: =IF(AK9=0,0,(AK9*((LOG(AK9))/LOG(2)))) -> -0.4066962862 | AN9: =N9 -> 21 | AO9: =COUNTIF(L145:L179,AN9) -> 11 | AP9: =AO9/(AQ4-AO8) -> 0.3142857143 | AQ9: =IF(AP9=0,0,(AP9*((LOG(AP9))/LOG(2)))) -> -0.5248104395 | AS9: =N9 -> 21 | AT9: =COUNTIF(L180:L213,AS9) -> 5 | AU9: =AT9/(AV4-AT8) -> 0.1470588235 | AV9: =IF(AU9=0,0,(AU9*((LOG(AU9))/LOG(2)))) -> -0.4066962862
A10: 22 | B10: 323 | C10: 14 | D10: 331 | K10: 0 | L10: 21 | N10: 22 | O10: =COUNTIF($L$7:$L$500,N10) -> 158 | P10: =O10/$Q$4 -> 0.7632850242 | Q10: =IF(P10=0,0,(P10*((LOG(P10))/LOG(2)))) -> -0.2974569134 | T10: =N10 -> 22 | U10: =COUNTIF(L7:L41,T10) -> 21 | V10: =U10/(W4-U8) -> 0.6 | W10: =IF(V10=0,0,(V10*((LOG(V10))/LOG(2)))) -> -0.4421793565 | Y10: =N10 -> 22 | Z10: =COUNTIF(L42:L75,Y10) -> 24 | AA10: =Z10/(AB4-Z8) -> 0.7058823529 | AB10: =IF(AA10=0,0,(AA10*((LOG(AA10))/LOG(2)))) -> -0.3547061227 | AD10: =N10 -> 22 | AE10: =COUNTIF(L76:L110,AD10) -> 31 | AF10: =AE10/(AG4-AE8) -> 0.8857142857 | AG10: =IF(AF10=0,0,(AF10*((LOG(AF10))/LOG(2)))) -> -0.1550767972 | AI10: =N10 -> 22 | AJ10: =COUNTIF(L111:L144,AI10) -> 29 | AK10: =AJ10/(AL4-AJ8) -> 0.8529411765 | AL10: =IF(AK10=0,0,(AK10*((LOG(AK10))/LOG(2)))) -> -0.1957345158 | AN10: =N10 -> 22 | AO10: =COUNTIF(L145:L179,AN10) -> 24 | AP10: =AO10/(AQ4-AO8) -> 0.6857142857 | AQ10: =IF(AP10=0,0,(AP10*((LOG(AP10))/LOG(2)))) -> -0.373248354 | AS10: =N10 -> 22 | AT10: =COUNTIF(L180:L213,AS10) -> 29 | AU10: =AT10/(AV4-AT8) -> 0.8529411765 | AV10: =IF(AU10=0,0,(AU10*((LOG(AU10))/LOG(2)))) -> -0.1957345158
A11: 22 | B11: 435 | C11: 23 | D11: 443 | K11: 0 | L11: 22 | T11: =N11 -> 0 | U11: =COUNTIF(L7:L41,T11) -> 0 | V11: =U11/(W4-U8) -> 0 | W11: =IF(V11=0,0,(V11*((LOG(V11))/LOG(2)))) -> 0 | Y11: =N11 -> 0 | Z11: =COUNTIF(L42:L75,Y11) -> 0 | AA11: =Z11/(AB4-Z8) -> 0 | AB11: =IF(AA11=0,0,(AA11*((LOG(AA11))/LOG(2)))) -> 0 | AD11: =N11 -> 0 | AE11: =COUNTIF(L76:L110,AD11) -> 0 | AF11: =AE11/(AG4-AE8) -> 0 | AG11: =IF(AF11=0,0,(AF11*((LOG(AF11))/LOG(2)))) -> 0 | AI11: =N11 -> 0 | AJ11: =COUNTIF(L111:L144,AI11) -> 0 | AK11: =AJ11/(AL4-AJ8) -> 0 | AL11: =IF(AK11=0,0,(AK11*((LOG(AK11))/LOG(2)))) -> 0 | AN11: =N11 -> 0 | AO11: =COUNTIF(L145:L179,AN11) -> 0 | AP11: =AO11/(AQ4-AO8) -> 0 | AQ11: =IF(AP11=0,0,(AP11*((LOG(AP11))/LOG(2)))) -> 0 | AS11: =N11 -> 0 | AT11: =COUNTIF(L180:L213,AS11) -> 0 | AU11: =AT11/(AV4-AT8) -> 0 | AV11: =IF(AU11=0,0,(AU11*((LOG(AU11))/LOG(2)))) -> 0
A12: 22 | B12: 538 | C12: 23 | D12: 545 | K12: 0 | L12: 22 | T12: =N12 -> 0 | U12: =COUNTIF(L7:L41,T12) -> 0 | V12: =U12/(W4-U8) -> 0 | W12: =IF(V12=0,0,(V12*((LOG(V12))/LOG(2)))) -> 0 | Y12: =N12 -> 0 | Z12: =COUNTIF(L42:L75,Y12) -> 0 | AA12: =Z12/(AB4-Z8) -> 0 | AB12: =IF(AA12=0,0,(AA12*((LOG(AA12))/LOG(2)))) -> 0 | AD12: =N12 -> 0 | AE12: =COUNTIF(L76:L110,AD12) -> 0 | AF12: =AE12/(AG4-AE8) -> 0 | AG12: =IF(AF12=0,0,(AF12*((LOG(AF12))/LOG(2)))) -> 0 | AI12: =N12 -> 0 | AJ12: =COUNTIF(L111:L144,AI12) -> 0 | AK12: =AJ12/(AL4-AJ8) -> 0 | AL12: =IF(AK12=0,0,(AK12*((LOG(AK12))/LOG(2)))) -> 0 | AN12: =N12 -> 0 | AO12: =COUNTIF(L145:L179,AN12) -> 0 | AP12: =AO12/(AQ4-AO8) -> 0 | AQ12: =IF(AP12=0,0,(AP12*((LOG(AP12))/LOG(2)))) -> 0 | AS12: =N12 -> 0 | AT12: =COUNTIF(L180:L213,AS12) -> 0 | AU12: =AT12/(AV4-AT8) -> 0 | AV12: =IF(AU12=0,0,(AU12*((LOG(AU12))/LOG(2)))) -> 0
A13: 22 | B13: 647 | C13: 23 | D13: 664 | K13: 0 | L13: 22 | T13: =N13 -> 0 | U13: =COUNTIF(L7:L41,T13) -> 0 | V13: =U13/(W4-U8) -> 0 | W13: =IF(V13=0,0,(V13*((LOG(V13))/LOG(2)))) -> 0 | Y13: =N13 -> 0 | Z13: =COUNTIF(L42:L75,Y13) -> 0 | AA13: =Z13/(AB4-Z8) -> 0 | AB13: =IF(AA13=0,0,(AA13*((LOG(AA13))/LOG(2)))) -> 0 | AD13: =N13 -> 0 | AE13: =COUNTIF(L76:L110,AD13) -> 0 | AF13: =AE13/(AG4-AE8) -> 0 | AG13: =IF(AF13=0,0,(AF13*((LOG(AF13))/LOG(2)))) -> 0 | AI13: =N13 -> 0 | AJ13: =COUNTIF(L111:L144,AI13) -> 0 | AK13: =AJ13/(AL4-AJ8) -> 0 | AL13: =IF(AK13=0,0,(AK13*((LOG(AK13))/LOG(2)))) -> 0 | AN13: =N13 -> 0 | AO13: =COUNTIF(L145:L179,AN13) -> 0 | AP13: =AO13/(AQ4-AO8) -> 0 | AQ13: =IF(AP13=0,0,(AP13*((LOG(AP13))/LOG(2)))) -> 0 | AS13: =N13 -> 0 | AT13: =COUNTIF(L180:L213,AS13) -> 0 | AU13: =AT13/(AV4-AT8) -> 0 | AV13: =IF(AU13=0,0,(AU13*((LOG(AU13))/LOG(2)))) -> 0
A14: 22 | B14: 761 | C14: 14 | D14: 769 | K14: 0 | L14: 21 | T14: =N14 -> 0 | U14: =COUNTIF(L7:L41,T14) -> 0 | V14: =U14/(W4-U8) -> 0 | W14: =IF(V14=0,0,(V14*((LOG(V14))/LOG(2)))) -> 0 | Y14: =N14 -> 0 | Z14: =COUNTIF(L42:L75,Y14) -> 0 | AA14: =Z14/(AB4-Z8) -> 0 | AB14: =IF(AA14=0,0,(AA14*((LOG(AA14))/LOG(2)))) -> 0 | AD14: =N14 -> 0 | AE14: =COUNTIF(L76:L110,AD14) -> 0 | AF14: =AE14/(AG4-AE8) -> 0 | AG14: =IF(AF14=0,0,(AF14*((LOG(AF14))/LOG(2)))) -> 0 | AI14: =N14 -> 0 | AJ14: =COUNTIF(L111:L144,AI14) -> 0 | AK14: =AJ14/(AL4-AJ8) -> 0 | AL14: =IF(AK14=0,0,(AK14*((LOG(AK14))/LOG(2)))) -> 0 | AN14: =N14 -> 0 | AO14: =COUNTIF(L145:L179,AN14) -> 0 | AP14: =AO14/(AQ4-AO8) -> 0 | AQ14: =IF(AP14=0,0,(AP14*((LOG(AP14))/LOG(2)))) -> 0 | AS14: =N14 -> 0 | AT14: =COUNTIF(L180:L213,AS14) -> 0 | AU14: =AT14/(AV4-AT8) -> 0 | AV14: =IF(AU14=0,0,(AU14*((LOG(AU14))/LOG(2)))) -> 0
A15: 22 | B15: 867 | C15: 14 | D15: 876 | K15: 0 | L15: 21 | P15: =SUM(P7:P14) -> 1 | Q15: =-SUM(Q7:Q14) -> 0.7895345876 | V15: =SUM(V7:V14) -> 1 | W15: =-SUM(W7:W14) -> 0.9709505945 | AA15: =SUM(AA7:AA14) -> 1 | AB15: =-SUM(AB7:AB14) -> 0.8739810481 | AF15: =SUM(AF7:AF14) -> 1 | AG15: =-SUM(AG7:AG14) -> 0.512709142 | AK15: =SUM(AK7:AK14) -> 1 | AL15: =-SUM(AL7:AL14) -> 0.602430802 | AP15: =SUM(AP7:AP14) -> 1 | AQ15: =-SUM(AQ7:AQ14) -> 0.8980587935 | AU15: =SUM(AU7:AU14) -> 1 | AV15: =-SUM(AV7:AV14) -> 0.602430802
A16: 22 | B16: 971 | C16: 23 | D16: 975 | K16: 0 | L16: 22 | P16: U= | Q16: =Q15/(LOG(Q4)/LOG(2)) -> 0.1026237637 | V16: U1= | W16: =W15/(LOG(W4)/LOG(2)) -> 0.1892955782 | AA16: U2= | AB16: =AB15/(LOG(AB4)/LOG(2)) -> 0.1717911414 | AF16: U3= | AG16: =AG15/(LOG(AG4)/LOG(2)) -> 0.09995727285 | AK16: U4= | AL16: =AL15/(LOG(AL4)/LOG(2)) -> 0.1184147818 | AP16: U5= | AQ16: =AQ15/(LOG(AQ4)/LOG(2)) -> 0.175084664 | AU16: U6= | AV16: =AV15/(LOG(AV4)/LOG(2)) -> 0.1184147818
A17: 22 | B17: 1079 | C17: 23 | D17: 1086 | K17: 0 | L17: 22
A18: 22 | B18: 1184 | C18: 23 | D18: 1191 | K18: 0 | L18: 22
A19: 22 | B19: 1322 | C19: 23 | D19: 1333 | K19: 0 | L19: 22 | N19: Total Target Seq
A20: 22 | B20: 1429 | C20: 14 | D20: 1437 | K20: 0 | L20: 21 | N20: =COUNTIF(L7:L213,G3) -> 0 | P20: 35 | Q20: 34 | R20: 35 | S20: 34 | T20: 35 | U20: 34
A21: 22 | B21: 1531 | C21: 14 | D21: 1539 | K21: 0 | L21: 21 | P21: % of reinforcement given in 6 equal intervals based on number of trials
A22: 22 | B22: 1639 | C22: 23 | D22: 1646 | K22: 0 | L22: 22 | P22: %_1 | Q22: %_2 | R22: %_3 | S22: %_4 | T22: %_5 | U22: %_6
A23: 22 | B23: 1743 | C23: 23 | D23: 1747 | K23: 0 | L23: 22 | O23: target sequence | P23: =$G$3 -> 12 | Q23: =$G$3 -> 12 | R23: =$G$3 -> 12 | S23: =$G$3 -> 12 | T23: =$G$3 -> 12 | U23: =$G$3 -> 12
A24: 22 | B24: 1852 | C24: 23 | D24: 1858 | K24: 0 | L24: 22 | O24: total reinforcement | P24: =U8 -> 0 | Q24: =Z8 -> 0 | R24: =AE8 -> 0 | S24: =AJ8 -> 0 | T24: =AO8 -> 0 | U24: =AT8 -> 0
A25: 22 | B25: 1956 | C25: 23 | D25: 1961 | K25: 0 | L25: 22 | O25: % target
A26: 22 | B26: 2067 | C26: 23 | D26: 2081 | K26: 0 | L26: 22 | O26: CCRF
A27: 22 | B27: 2191 | C27: 14 | D27: 2199 | K27: 0 | L27: 21 | O27: % CCRf
A28: 22 | B28: 2300 | C28: 14 | D28: 2309 | K28: 0 | L28: 21 | O28: average response rate | P28: =D41/P20 -> 107.4857143 | Q28: =(D75-D41)/Q20 -> 112.7058824 | R28: =(D110-D75)/R20 -> 111.9714286 | S28: =(D144-D110)/S20 -> 111.2352941 | T28: =(D179-D144)/T20 -> 118.5142857 | U28: =(D213-D179)/U20 -> 133.3529412
A29: 22 | B29: 2418 | C29: 23 | D29: 2426 | K29: 0 | L29: 22
A30: 22 | B30: 2524 | C30: 14 | D30: 2532 | K30: 0 | L30: 21
A31: 22 | B31: 2634 | C31: 14 | D31: 2645 | K31: 0 | L31: 21
A32: 22 | B32: 2753 | C32: 14 | D32: 2762 | K32: 0 | L32: 21
A33: 22 | B33: 2858 | C33: 23 | D33: 2865 | K33: 0 | L33: 22
A34: 22 | B34: 2982 | C34: 23 | D34: 2993 | K34: 0 | L34: 22
A35: 22 | B35: 3090 | C35: 23 | D35: 3095 | K35: 0 | L35: 22
A36: 22 | B36: 3196 | C36: 23 | D36: 3213 | K36: 0 | L36: 22
A37: 22 | B37: 3311 | C37: 23 | D37: 3316 | K37: 0 | L37: 22
A38: 22 | B38: 3417 | C38: 14 | D38: 3425 | K38: 0 | L38: 21
A39: 22 | B39: 3521 | C39: 23 | D39: 3534 | K39: 0 | L39: 22
A40: 22 | B40: 3630 | C40: 23 | D40: 3638 | K40: 0 | L40: 22
A41: 22 | B41: 3751 | C41: 14 | D41: 3762 | K41: 0 | L41: 21
A42: 22 | B42: 3872 | C42: 23 | D42: 3884 | K42: 0 | L42: 22
A43: 22 | B43: 4002 | C43: 23 | D43: 4025 | K43: 0 | L43: 22
A44: 22 | B44: 4118 | C44: 23 | D44: 4122 | K44: 0 | L44: 22
A45: 22 | B45: 4219 | C45: 23 | D45: 4236 | K45: 0 | L45: 22
A46: 22 | B46: 4339 | C46: 23 | D46: 4347 | K46: 0 | L46: 22
A47: 22 | B47: 4445 | C47: 23 | D47: 4453 | K47: 0 | L47: 22
A48: 22 | B48: 4576 | C48: 14 | D48: 4586 | K48: 0 | L48: 21
A49: 22 | B49: 4681 | C49: 23 | D49: 4685 | K49: 0 | L49: 22
A50: 22 | B50: 4784 | C50: 14 | D50: 4794 | K50: 0 | L50: 21
A51: 22 | B51: 4913 | C51: 14 | D51: 4922 | K51: 0 | L51: 21
A52: 22 | B52: 5018 | C52: 23 | D52: 5022 | K52: 0 | L52: 22
A53: 22 | B53: 5114 | C53: 23 | D53: 5119 | K53: 0 | L53: 22
A54: 22 | B54: 5245 | C54: 14 | D54: 5255 | K54: 0 | L54: 21
A55: 22 | B55: 5357 | C55: 23 | D55: 5366 | K55: 0 | L55: 22
A56: 22 | B56: 5465 | C56: 23 | D56: 5472 | K56: 0 | L56: 22
A57: 22 | B57: 5571 | C57: 23 | D57: 5590 | K57: 0 | L57: 22
A58: 22 | B58: 5687 | C58: 23 | D58: 5691 | K58: 0 | L58: 22
A59: 22 | B59: 5789 | C59: 23 | D59: 5796 | K59: 0 | L59: 22
A60: 22 | B60: 5899 | C60: 23 | D60: 5912 | K60: 0 | L60: 22
A61: 22 | B61: 6008 | C61: 23 | D61: 6026 | K61: 0 | L61: 22
A62: 22 | B62: 6121 | C62: 23 | D62: 6132 | K62: 0 | L62: 22
A63: 22 | B63: 6251 | C63: 23 | D63: 6260 | K63: 0 | L63: 22
A64: 22 | B64: 6358 | C64: 14 | D64: 6367 | K64: 0 | L64: 21
A65: 22 | B65: 6464 | C65: 14 | D65: 6474 | K65: 0 | L65: 21
A66: 22 | B66: 6573 | C66: 23 | D66: 6580 | K66: 0 | L66: 22
A67: 22 | B67: 6677 | C67: 23 | D67: 6682 | K67: 0 | L67: 22
A68: 22 | B68: 6784 | C68: 23 | D68: 6797 | K68: 0 | L68: 22
A69: 22 | B69: 6902 | C69: 14 | D69: 6923 | K69: 0 | L69: 21
A70: 22 | B70: 7043 | C70: 23 | D70: 7056 | K70: 0 | L70: 22
A71: 22 | B71: 7151 | C71: 23 | D71: 7155 | K71: 0 | L71: 22
A72: 22 | B72: 7254 | C72: 14 | D72: 7262 | K72: 0 | L72: 21
A73: 22 | B73: 7366 | C73: 14 | D73: 7375 | K73: 0 | L73: 21
A74: 22 | B74: 7473 | C74: 14 | D74: 7485 | K74: 0 | L74: 21
A75: 22 | B75: 7582 | C75: 23 | D75: 7594 | K75: 0 | L75: 22
A76: 22 | B76: 7696 | C76: 23 | D76: 7704 | K76: 0 | L76: 22
A77: 22 | B77: 7798 | C77: 23 | D77: 7803 | K77: 0 | L77: 22
A78: 22 | B78: 7902 | C78: 23 | D78: 7909 | K78: 0 | L78: 22
A79: 22 | B79: 8006 | C79: 23 | D79: 8011 | K79: 0 | L79: 22
A80: 22 | B80: 8115 | C80: 23 | D80: 8122 | K80: 0 | L80: 22
A81: 22 | B81: 8222 | C81: 23 | D81: 8226 | K81: 0 | L81: 22
A82: 22 | B82: 8323 | C82: 23 | D82: 8329 | K82: 0 | L82: 22
A83: 22 | B83: 8438 | C83: 23 | D83: 8445 | K83: 0 | L83: 22
A84: 22 | B84: 8549 | C84: 23 | D84: 8556 | K84: 0 | L84: 22
A85: 22 | B85: 8659 | C85: 23 | D85: 8670 | K85: 0 | L85: 22
A86: 22 | B86: 8773 | C86: 23 | D86: 8781 | K86: 0 | L86: 22
A87: 22 | B87: 8896 | C87: 14 | D87: 8905 | K87: 0 | L87: 21
A88: 22 | B88: 9002 | C88: 23 | D88: 9019 | K88: 0 | L88: 22
A89: 22 | B89: 9132 | C89: 23 | D89: 9142 | K89: 0 | L89: 22
A90: 22 | B90: 9247 | C90: 23 | D90: 9255 | K90: 0 | L90: 22
A91: 22 | B91: 9352 | C91: 23 | D91: 9356 | K91: 0 | L91: 22
A92: 22 | B92: 9453 | C92: 23 | D92: 9458 | K92: 0 | L92: 22
A93: 22 | B93: 9557 | C93: 23 | D93: 9572 | K93: 0 | L93: 22
A94: 22 | B94: 9685 | C94: 23 | D94: 9692 | K94: 0 | L94: 22
A95: 22 | B95: 9789 | C95: 23 | D95: 9796 | K95: 0 | L95: 22
A96: 22 | B96: 9900 | C96: 23 | D96: 9906 | K96: 0 | L96: 22
A97: 22 | B97: 10006 | C97: 23 | D97: 10014 | K97: 0 | L97: 22
A98: 22 | B98: 10129 | C98: 23 | D98: 10136 | K98: 0 | L98: 22
A99: 22 | B99: 10236 | C99: 23 | D99: 10243 | K99: 0 | L99: 22
A100: 22 | B100: 10339 | C100: 23 | D100: 10355 | K100: 0 | L100: 22
A101: 22 | B101: 10459 | C101: 23 | D101: 10473 | K101: 0 | L101: 22
A102: 22 | B102: 10576 | C102: 23 | D102: 10584 | K102: 0 | L102: 22
A103: 22 | B103: 10691 | C103: 23 | D103: 10698 | K103: 0 | L103: 22
A104: 22 | B104: 10800 | C104: 23 | D104: 10807 | K104: 0 | L104: 22
A105: 22 | B105: 10924 | C105: 23 | D105: 10947 | K105: 0 | L105: 22
A106: 22 | B106: 11044 | C106: 23 | D106: 11057 | K106: 0 | L106: 22
A107: 22 | B107: 11162 | C107: 14 | D107: 11172 | K107: 0 | L107: 21
A108: 22 | B108: 11274 | C108: 14 | D108: 11282 | K108: 0 | L108: 21
A109: 22 | B109: 11385 | C109: 14 | D109: 11397 | K109: 0 | L109: 21
A110: 22 | B110: 11505 | C110: 23 | D110: 11513 | K110: 0 | L110: 22
A111: 22 | B111: 11610 | C111: 23 | D111: 11616 | K111: 0 | L111: 22
A112: 22 | B112: 11713 | C112: 23 | D112: 11719 | K112: 0 | L112: 22
A113: 22 | B113: 11821 | C113: 23 | D113: 11829 | K113: 0 | L113: 22
A114: 22 | B114: 11942 | C114: 23 | D114: 11949 | K114: 0 | L114: 22
A115: 22 | B115: 12049 | C115: 23 | D115: 12061 | K115: 0 | L115: 22
A116: 22 | B116: 12163 | C116: 23 | D116: 12169 | K116: 0 | L116: 22
A117: 22 | B117: 12269 | C117: 23 | D117: 12281 | K117: 0 | L117: 22
A118: 22 | B118: 12384 | C118: 23 | D118: 12392 | K118: 0 | L118: 22
A119: 22 | B119: 12492 | C119: 23 | D119: 12499 | K119: 0 | L119: 22
A120: 22 | B120: 12599 | C120: 23 | D120: 12606 | K120: 0 | L120: 22
A121: 22 | B121: 12720 | C121: 14 | D121: 12729 | K121: 0 | L121: 21
A122: 22 | B122: 12826 | C122: 23 | D122: 12839 | K122: 0 | L122: 22
A123: 22 | B123: 12949 | C123: 23 | D123: 12963 | K123: 0 | L123: 22
A124: 22 | B124: 13064 | C124: 14 | D124: 13074 | K124: 0 | L124: 21
A125: 22 | B125: 13179 | C125: 14 | D125: 13189 | K125: 0 | L125: 21
A126: 22 | B126: 13292 | C126: 14 | D126: 13303 | K126: 0 | L126: 21
A127: 22 | B127: 13406 | C127: 23 | D127: 13413 | K127: 0 | L127: 22
A128: 22 | B128: 13511 | C128: 23 | D128: 13518 | K128: 0 | L128: 22
A129: 22 | B129: 13623 | C129: 23 | D129: 13630 | K129: 0 | L129: 22
A130: 22 | B130: 13729 | C130: 23 | D130: 13736 | K130: 0 | L130: 22
A131: 22 | B131: 13833 | C131: 23 | D131: 13840 | K131: 0 | L131: 22
A132: 22 | B132: 13955 | C132: 23 | D132: 13974 | K132: 0 | L132: 22
A133: 22 | B133: 14070 | C133: 23 | D133: 14074 | K133: 0 | L133: 22
A134: 22 | B134: 14186 | C134: 23 | D134: 14193 | K134: 0 | L134: 22
A135: 22 | B135: 14291 | C135: 23 | D135: 14302 | K135: 0 | L135: 22
A136: 22 | B136: 14399 | C136: 23 | D136: 14403 | K136: 0 | L136: 22
A137: 22 | B137: 14503 | C137: 23 | D137: 14509 | K137: 0 | L137: 22
A138: 22 | B138: 14613 | C138: 14 | D138: 14624 | K138: 0 | L138: 21
A139: 22 | B139: 14739 | C139: 23 | D139: 14747 | K139: 0 | L139: 22
A140: 22 | B140: 14843 | C140: 23 | D140: 14850 | K140: 0 | L140: 22
A141: 22 | B141: 14948 | C141: 23 | D141: 14952 | K141: 0 | L141: 22
A142: 22 | B142: 15050 | C142: 23 | D142: 15057 | K142: 0 | L142: 22
A143: 22 | B143: 15166 | C143: 23 | D143: 15186 | K143: 0 | L143: 22
A144: 22 | B144: 15282 | C144: 23 | D144: 15295 | K144: 0 | L144: 22
A145: 22 | B145: 15410 | C145: 23 | D145: 15421 | K145: 0 | L145: 22
A146: 22 | B146: 15547 | C146: 23 | D146: 15555 | K146: 0 | L146: 22
A147: 22 | B147: 15674 | C147: 23 | D147: 15682 | K147: 0 | L147: 22
A148: 22 | B148: 15778 | C148: 23 | D148: 15785 | K148: 0 | L148: 22
A149: 22 | B149: 15921 | C149: 14 | D149: 15934 | K149: 0 | L149: 21
A150: 22 | B150: 16031 | C150: 23 | D150: 16037 | K150: 0 | L150: 22
A151: 22 | B151: 16146 | C151: 14 | D151: 16155 | K151: 0 | L151: 21
A152: 22 | B152: 16266 | C152: 23 | D152: 16278 | K152: 0 | L152: 22
A153: 22 | B153: 16378 | C153: 23 | D153: 16385 | K153: 0 | L153: 22
A154: 22 | B154: 16493 | C154: 14 | D154: 16502 | K154: 0 | L154: 21
A155: 22 | B155: 16611 | C155: 23 | D155: 16623 | K155: 0 | L155: 22
A156: 22 | B156: 16732 | C156: 14 | D156: 16742 | K156: 0 | L156: 21
A157: 22 | B157: 16846 | C157: 14 | D157: 16855 | K157: 0 | L157: 21
A158: 22 | B158: 16968 | C158: 14 | D158: 16977 | K158: 0 | L158: 21
A159: 22 | B159: 17082 | C159: 14 | D159: 17096 | K159: 0 | L159: 21
A160: 22 | B160: 17205 | C160: 23 | D160: 17220 | K160: 0 | L160: 22
A161: 22 | B161: 17322 | C161: 23 | D161: 17329 | K161: 0 | L161: 22
A162: 22 | B162: 17433 | C162: 23 | D162: 17440 | K162: 0 | L162: 22
A163: 22 | B163: 17546 | C163: 23 | D163: 17554 | K163: 0 | L163: 22
A164: 22 | B164: 17659 | C164: 14 | D164: 17675 | K164: 0 | L164: 21
A165: 22 | B165: 17791 | C165: 23 | D165: 17805 | K165: 0 | L165: 22
A166: 22 | B166: 17905 | C166: 23 | D166: 17912 | K166: 0 | L166: 22
A167: 22 | B167: 18010 | C167: 23 | D167: 18016 | K167: 0 | L167: 22
A168: 22 | B168: 18138 | C168: 14 | D168: 18158 | K168: 0 | L168: 21
A169: 22 | B169: 18265 | C169: 23 | D169: 18276 | K169: 0 | L169: 22
A170: 22 | B170: 18385 | C170: 23 | D170: 18396 | K170: 0 | L170: 22
A171: 22 | B171: 18504 | C171: 23 | D171: 18524 | K171: 0 | L171: 22
A172: 22 | B172: 18629 | C172: 23 | D172: 18636 | K172: 0 | L172: 22
A173: 22 | B173: 18739 | C173: 23 | D173: 18760 | K173: 0 | L173: 22
A174: 22 | B174: 18858 | C174: 23 | D174: 18865 | K174: 0 | L174: 22
A175: 22 | B175: 18967 | C175: 23 | D175: 18977 | K175: 0 | L175: 22
A176: 22 | B176: 19092 | C176: 14 | D176: 19104 | K176: 0 | L176: 21
A177: 22 | B177: 19208 | C177: 14 | D177: 19223 | K177: 0 | L177: 21
A178: 22 | B178: 19328 | C178: 23 | D178: 19335 | K178: 0 | L178: 22
A179: 22 | B179: 19437 | C179: 23 | D179: 19443 | K179: 0 | L179: 22
A180: 22 | B180: 19543 | C180: 23 | D180: 19548 | K180: 0 | L180: 22
A181: 22 | B181: 19645 | C181: 23 | D181: 19657 | K181: 0 | L181: 22
A182: 22 | B182: 19770 | C182: 14 | D182: 19783 | K182: 0 | L182: 21
A183: 22 | B183: 19895 | C183: 23 | D183: 19911 | K183: 0 | L183: 22
A184: 22 | B184: 20025 | C184: 23 | D184: 20038 | K184: 0 | L184: 22
A185: 22 | B185: 20137 | C185: 23 | D185: 20148 | K185: 0 | L185: 22
A186: 22 | B186: 20248 | C186: 23 | D186: 20255 | K186: 0 | L186: 22
A187: 22 | B187: 20364 | C187: 23 | D187: 20375 | K187: 0 | L187: 22
A188: 22 | B188: 20477 | C188: 23 | D188: 20489 | K188: 0 | L188: 22
A189: 22 | B189: 20589 | C189: 23 | D189: 20595 | K189: 0 | L189: 22
A190: 22 | B190: 20699 | C190: 23 | D190: 20709 | K190: 0 | L190: 22
A191: 22 | B191: 20856 | C191: 23 | D191: 20870 | K191: 0 | L191: 22
A192: 22 | B192: 20987 | C192: 14 | D192: 20998 | K192: 0 | L192: 21
A193: 22 | B193: 21106 | C193: 23 | D193: 21113 | K193: 0 | L193: 22
A194: 22 | B194: 21255 | C194: 23 | D194: 21275 | K194: 0 | L194: 22
A195: 22 | B195: 21380 | C195: 23 | D195: 21390 | K195: 0 | L195: 22
A196: 22 | B196: 21492 | C196: 23 | D196: 21502 | K196: 0 | L196: 22
A197: 22 | B197: 21607 | C197: 23 | D197: 21614 | K197: 0 | L197: 22
A198: 22 | B198: 21719 | C198: 23 | D198: 21729 | K198: 0 | L198: 22
A199: 22 | B199: 21832 | C199: 23 | D199: 21844 | K199: 0 | L199: 22
A200: 22 | B200: 21951 | C200: 23 | D200: 21958 | K200: 0 | L200: 22
... 13 more rows

Sheet !L808920.052
A1: Report for:!L808920.052
A2: Date: | B2: <date>
A3: Hen: | B3: <hen> | F3: Correct Sequence | G3: =Start!J2 -> 12 | P3: Total Sequences in Data | Q3: =4994-COUNTBLANK(L7:L5000) -> 170 | V3: Total Sequences in Block Data | W3: =COUNTA(L7:L34) -> 28 | AA3: Total Sequences in Block Data | AB3: =COUNTA(L35:L63) -> 29 | AF3: Total Sequences in Block Data | AG3: =COUNTA(L64:L91) -> 28 | AK3: Total Sequences in Block Data | AL3: =COUNTA(L92:L119) -> 28 | AP3: Total Sequences in Block Data | AQ3: =COUNTA(L120:L148) -> 29 | AU3: Total Sequences in Block Data | AV3: =COUNTA(L149:L176) -> 28
P4: Total Sequences in Summary | Q4: =SUM(O7:O14) -> 170 | V4: Total Sequences in Block Summary | W4: =SUM(U7:U14) -> 28 | AA4: Total Sequences in Block Summary | AB4: =SUM(Z7:Z14) -> 29 | AF4: Total Sequences in Block Summary | AG4: =SUM(AE7:AE14) -> 28 | AK4: Total Sequences in Block Summary | AL4: =SUM(AJ7:AJ14) -> 28 | AP4: Total Sequences in Block Summary | AQ4: =SUM(AO7:AO14) -> 29 | AU4: Total Sequences in Block Summary | AV4: =SUM(AT7:AT14) -> 28
T5: Block 1 | Y5: Block 2 | AD5: Block 3 | AI5: Block 4 | AN5: Block 5 | AS5: Block 6
A6: Sequence Component 1 | B6: Time 1 | C6: Sequence Component 2 | D6: Time 2 | E6: Sequence Component 3 | F6: Time 3 | G6: Sequence Component 4 | H6: Time 4 | I6: Sequence Component 5 | J6: Time 5 | K6: Correct? 0=No 1=Yes | L6: Sequence | N6: Frequency | P6: Relative Frequency | Q6: Variability | T6: Frequency | V6: Relative Frequency | W6: Variability | Y6: Frequency | AA6: Relative Frequency | AB6: Variability | AD6: Frequency | AF6: Relative Frequency | AG6: Variability | AI6: Frequency | AK6: Relative Frequency | AL6: Variability | AN6: Frequency | AP6: Relative Frequency | AQ6: Variability | AS6: Frequency | AU6: Relative Frequency | AV6: Variability
A7: 22 | B7: 9 | C7: 23 | D7: 25 | K7: 0 | L7: 22 | N7: 11 | O7: =COUNTIF($L$7:$L$500,N7) -> 0 | P7: =O7/$Q$4 -> 0 | Q7: =IF(P7=0,0,(P7*((LOG(P7))/LOG(2)))) -> 0 | T7: =N7 -> 11 | U7: =COUNTIF(L7:L34,T7) -> 0 | V7: =U7/(W4-U8) -> 0 | W7: =IF(V7=0,0,(V7*((LOG(V7))/LOG(2)))) -> 0 | Y7: =N7 -> 11 | Z7: =COUNTIF(L35:L63,Y7) -> 0 | AA7: =Z7/(AB4-Z8) -> 0 | AB7: =IF(AA7=0,0,(AA7*((LOG(AA7))/LOG(2)))) -> 0 | AD7: =N7 -> 11 | AE7: =COUNTIF(L64:L91,AD7) -> 0 | AF7: =AE7/(AG4-AE8) -> 0 | AG7: =IF(AF7=0,0,(AF7*((LOG(AF7))/LOG(2)))) -> 0 | AI7: =N7 -> 11 | AJ7: =COUNTIF(L92:L119,AI7) -> 0 | AK7: =AJ7/(AL4-AJ8) -> 0 | AL7: =IF(AK7=0,0,(AK7*((LOG(AK7))/LOG(2)))) -> 0 | AN7: =N7 -> 11 | AO7: =COUNTIF(L120:L148,AN7) -> 0 | AP7: =AO7/(AQ4-AO8) -> 0 | AQ7: =IF(AP7=0,0,(AP7*((LOG(AP7))/LOG(2)))) -> 0 | AS7: =N7 -> 11 | AT7: =COUNTIF(L149:L176,AS7) -> 0 | AU7: =AT7/(AV4-AT8) -> 0 | AV7: =IF(AU7=0,0,(AU7*((LOG(AU7))/LOG(2)))) -> 0
A8: 22 | B8: 127 | C8: 23 | D8: 140 | K8: 0 | L8: 22 | N8: 12 | O8: =COUNTIF($L$7:$L$500,N8) -> 0 | P8: =O8/$Q$4 -> 0 | Q8: =IF(P8=0,0,(P8*((LOG(P8))/LOG(2)))) -> 0 | T8: =N8 -> 12 | U8: =COUNTIF(L7:L34,T8) -> 0 | Y8: =N8 -> 12 | Z8: =COUNTIF(L35:L63,Y8) -> 0 | AD8: =N8 -> 12 | AE8: =COUNTIF(L64:L91,AD8) -> 0 | AI8: =N8 -> 12 | AJ8: =COUNTIF(L92:L119,AI8) -> 0 | AN8: =N8 -> 12 | AO8: =COUNTIF(L120:L148,AN8) -> 0 | AS8: =N8 -> 12 | AT8: =COUNTIF(L149:L176,AS8) -> 0
A9: 22 | B9: 240 | C9: 23 | D9: 248 | K9: 0 | L9: 22 | N9: 21 | O9: =COUNTIF($L$7:$L$500,N9) -> 18 | P9: =O9/$Q$4 -> 0.1058823529 | Q9: =IF(P9=0,0,(P9*((LOG(P9))/LOG(2)))) -> -0.3430022754 | T9: =N9 -> 21 | U9: =COUNTIF(L7:L34,T9) -> 6 | V9: =U9/(W4-U8) -> 0.2142857143 | W9: =IF(V9=0,0,(V9*((LOG(V9))/LOG(2)))) -> -0.4762269474 | Y9: =N9 -> 21 | Z9: =COUNTIF(L35:L63,Y9) -> 4 | AA9: =Z9/(AB4-Z8) -> 0.1379310345 | AB9: =IF(AA9=0,0,(AA9*((LOG(AA9))/LOG(2)))) -> -0.3942042752 | AD9: =N9 -> 21 | AE9: =COUNTIF(L64:L91,AD9) -> 1 | AF9: =AE9/(AG4-AE8) -> 0.03571428571 | AG9: =IF(AF9=0,0,(AF9*((LOG(AF9))/LOG(2)))) -> -0.1716912472 | AI9: =N9 -> 21 | AJ9: =COUNTIF(L92:L119,AI9) -> 3 | AK9: =AJ9/(AL4-AJ8) -> 0.1071428571 | AL9: =IF(AK9=0,0,(AK9*((LOG(AK9))/LOG(2)))) -> -0.3452563309 | AN9: =N9 -> 21 | AO9: =COUNTIF(L120:L148,AN9) -> 1 | AP9: =AO9/(AQ4-AO8) -> 0.03448275862 | AQ9: =IF(AP9=0,0,(AP9*((LOG(AP9))/LOG(2)))) -> -0.167516586 | AS9: =N9 -> 21 | AT9: =COUNTIF(L149:L176,AS9) -> 3 | AU9: =AT9/(AV4-AT8) -> 0.1071428571 | AV9: =IF(AU9=0,0,(AU9*((LOG(AU9))/LOG(2)))) -> -0.3452563309
A10: 22 | B10: 346 | C10: 14 | D10: 354 | K10: 0 | L10: 21 | N10: 22 | O10: =COUNTIF($L$7:$L$500,N10) -> 152 | P10: =O10/$Q$4 -> 0.8941176471 | Q10: =IF(P10=0,0,(P10*((LOG(P10))/LOG(2)))) -> -0.1443672956 | T10: =N10 -> 22 | U10: =COUNTIF(L7:L34,T10) -> 22 | V10: =U10/(W4-U8) -> 0.7857142857 | W10: =IF(V10=0,0,(V10*((LOG(V10))/LOG(2)))) -> -0.2733683098 | Y10: =N10 -> 22 | Z10: =COUNTIF(L35:L63,Y10) -> 25 | AA10: =Z10/(AB4-Z8) -> 0.8620689655 | AB10: =IF(AA10=0,0,(AA10*((LOG(AA10))/LOG(2)))) -> -0.1845903494 | AD10: =N10 -> 22 | AE10: =COUNTIF(L64:L91,AD10) -> 27 | AF10: =AE10/(AG4-AE8) -> 0.9642857143 | AG10: =IF(AF10=0,0,(AF10*((LOG(AF10))/LOG(2)))) -> -0.05059358347 | AI10: =N10 -> 22 | AJ10: =COUNTIF(L92:L119,AI10) -> 25 | AK10: =AJ10/(AL4-AJ8) -> 0.8928571429 | AL10: =IF(AK10=0,0,(AK10*((LOG(AK10))/LOG(2)))) -> -0.145981011 | AN10: =N10 -> 22 | AO10: =COUNTIF(L120:L148,AN10) -> 28 | AP10: =AO10/(AQ4-AO8) -> 0.9655172414 | AQ10: =IF(AP10=0,0,(AP10*((LOG(AP10))/LOG(2)))) -> -0.04888034641 | AS10: =N10 -> 22 | AT10: =COUNTIF(L149:L176,AS10) -> 25 | AU10: =AT10/(AV4-AT8) -> 0.8928571429 | AV10: =IF(AU10=0,0,(AU10*((LOG(AU10))/LOG(2)))) -> -0.145981011
A11: 22 | B11: 454 | C11: 14 | D11: 463 | K11: 0 | L11: 21 | T11: =N11 -> 0 | U11: =COUNTIF(L7:L34,T11) -> 0 | V11: =U11/(W4-U8) -> 0 | W11: =IF(V11=0,0,(V11*((LOG(V11))/LOG(2)))) -> 0 | Y11: =N11 -> 0 | Z11: =COUNTIF(L35:L63,Y11) -> 0 | AA11: =Z11/(AB4-Z8) -> 0 | AB11: =IF(AA11=0,0,(AA11*((LOG(AA11))/LOG(2)))) -> 0 | AD11: =N11 -> 0 | AE11: =COUNTIF(L64:L91,AD11) -> 0 | AF11: =AE11/(AG4-AE8) -> 0 | AG11: =IF(AF11=0,0,(AF11*((LOG(AF11))/LOG(2)))) -> 0 | AI11: =N11 -> 0 | AJ11: =COUNTIF(L92:L119,AI11) -> 0 | AK11: =AJ11/(AL4-AJ8) -> 0 | AL11: =IF(AK11=0,0,(AK11*((LOG(AK11))/LOG(2)))) -> 0 | AN11: =N11 -> 0 | AO11: =COUNTIF(L120:L148,AN11) -> 0 | AP11: =AO11/(AQ4-AO8) -> 0 | AQ11: =IF(AP11=0,0,(AP11*((LOG(AP11))/LOG(2)))) -> 0 | AS11: =N11 -> 0 | AT11: =COUNTIF(L149:L176,AS11) -> 0 | AU11: =AT11/(AV4-AT8) -> 0 | AV11: =IF(AU11=0,0,(AU11*((LOG(AU11))/LOG(2)))) -> 0
A12: 22 | B12: 575 | C12: 23 | D12: 587 | K12: 0 | L12: 22 | T12: =N12 -> 0 | U12: =COUNTIF(L7:L34,T12) -> 0 | V12: =U12/(W4-U8) -> 0 | W12: =IF(V12=0,0,(V12*((LOG(V12))/LOG(2)))) -> 0 | Y12: =N12 -> 0 | Z12: =COUNTIF(L35:L63,Y12) -> 0 | AA12: =Z12/(AB4-Z8) -> 0 | AB12: =IF(AA12=0,0,(AA12*((LOG(AA12))/LOG(2)))) -> 0 | AD12: =N12 -> 0 | AE12: =COUNTIF(L64:L91,AD12) -> 0 | AF12: =AE12/(AG4-AE8) -> 0 | AG12: =IF(AF12=0,0,(AF12*((LOG(AF12))/LOG(2)))) -> 0 | AI12: =N12 -> 0 | AJ12: =COUNTIF(L92:L119,AI12) -> 0 | AK12: =AJ12/(AL4-AJ8) -> 0 | AL12: =IF(AK12=0,0,(AK12*((LOG(AK12))/LOG(2)))) -> 0 | AN12: =N12 -> 0 | AO12: =COUNTIF(L120:L148,AN12) -> 0 | AP12: =AO12/(AQ4-AO8) -> 0 | AQ12: =IF(AP12=0,0,(AP12*((LOG(AP12))/LOG(2)))) -> 0 | AS12: =N12 -> 0 | AT12: =COUNTIF(L149:L176,AS12) -> 0 | AU12: =AT12/(AV4-AT8) -> 0 | AV12: =IF(AU12=0,0,(AU12*((LOG(AU12))/LOG(2)))) -> 0
A13: 22 | B13: 689 | C13: 23 | D13: 697 | K13: 0 | L13: 22 | T13: =N13 -> 0 | U13: =COUNTIF(L7:L34,T13) -> 0 | V13: =U13/(W4-U8) -> 0 | W13: =IF(V13=0,0,(V13*((LOG(V13))/LOG(2)))) -> 0 | Y13: =N13 -> 0 | Z13: =COUNTIF(L35:L63,Y13) -> 0 | AA13: =Z13/(AB4-Z8) -> 0 | AB13: =IF(AA13=0,0,(AA13*((LOG(AA13))/LOG(2)))) -> 0 | AD13: =N13 -> 0 | AE13: =COUNTIF(L64:L91,AD13) -> 0 | AF13: =AE13/(AG4-AE8) -> 0 | AG13: =IF(AF13=0,0,(AF13*((LOG(AF13))/LOG(2)))) -> 0 | AI13: =N13 -> 0 | AJ13: =COUNTIF(L92:L119,AI13) -> 0 | AK13: =AJ13/(AL4-AJ8) -> 0 | AL13: =IF(AK13=0,0,(AK13*((LOG(AK13))/LOG(2)))) -> 0 | AN13: =N13 -> 0 | AO13: =COUNTIF(L120:L148,AN13) -> 0 | AP13: =AO13/(AQ4-AO8) -> 0 | AQ13: =IF(AP13=0,0,(AP13*((LOG(AP13))/LOG(2)))) -> 0 | AS13: =N13 -> 0 | AT13: =COUNTIF(L149:L176,AS13) -> 0 | AU13: =AT13/(AV4-AT8) -> 0 | AV13: =IF(AU13=0,0,(AU13*((LOG(AU13))/LOG(2)))) -> 0
A14: 22 | B14: 803 | C14: 23 | D14: 810 | K14: 0 | L14: 22 | T14: =N14 -> 0 | U14: =COUNTIF(L7:L34,T14) -> 0 | V14: =U14/(W4-U8) -> 0 | W14: =IF(V14=0,0,(V14*((LOG(V14))/LOG(2)))) -> 0 | Y14: =N14 -> 0 | Z14: =COUNTIF(L35:L63,Y14) -> 0 | AA14: =Z14/(AB4-Z8) -> 0 | AB14: =IF(AA14=0,0,(AA14*((LOG(AA14))/LOG(2)))) -> 0 | AD14: =N14 -> 0 | AE14: =COUNTIF(L64:L91,AD14) -> 0 | AF14: =AE14/(AG4-AE8) -> 0 | AG14: =IF(AF14=0,0,(AF14*((LOG(AF14))/LOG(2)))) -> 0 | AI14: =N14 -> 0 | AJ14: =COUNTIF(L92:L119,AI14) -> 0 | AK14: =AJ14/(AL4-AJ8) -> 0 | AL14: =IF(AK14=0,0,(AK14*((LOG(AK14))/LOG(2)))) -> 0 | AN14: =N14 -> 0 | AO14: =COUNTIF(L120:L148,AN14) -> 0 | AP14: =AO14/(AQ4-AO8) -> 0 | AQ14: =IF(AP14=0,0,(AP14*((LOG(AP14))/LOG(2)))) -> 0 | AS14: =N14 -> 0 | AT14: =COUNTIF(L149:L176,AS14) -> 0 | AU14: =AT14/(AV4-AT8) -> 0 | AV14: =IF(AU14=0,0,(AU14*((LOG(AU14))/LOG(2)))) -> 0
A15: 22 | B15: 918 | C15: 23 | D15: 925 | K15: 0 | L15: 22 | P15: =SUM(P7:P14) -> 1 | Q15: =-SUM(Q7:Q14) -> 0.487369571 | V15: =SUM(V7:V14) -> 1 | W15: =-SUM(W7:W14) -> 0.7495952573 | AA15: =SUM(AA7:AA14) -> 1 | AB15: =-SUM(AB7:AB14) -> 0.5787946246 | AF15: =SUM(AF7:AF14) -> 1 | AG15: =-SUM(AG7:AG14) -> 0.2222848307 | AK15: =SUM(AK7:AK14) -> 1 | AL15: =-SUM(AL7:AL14) -> 0.4912373418 | AP15: =SUM(AP7:AP14) -> 1 | AQ15: =-SUM(AQ7:AQ14) -> 0.2163969325 | AU15: =SUM(AU7:AU14) -> 1 | AV15: =-SUM(AV7:AV14) -> 0.4912373418
A16: 22 | B16: 1032 | C16: 23 | D16: 1048 | K16: 0 | L16: 22 | P16: U= | Q16: =Q15/(LOG(Q4)/LOG(2)) -> 0.06577727849 | V16: U1= | W16: =W15/(LOG(W4)/LOG(2)) -> 0.1559267559 | AA16: U2= | AB16: =AB15/(LOG(AB4)/LOG(2)) -> 0.1191430401 | AF16: U3= | AG16: =AG15/(LOG(AG4)/LOG(2)) -> 0.04623848962 | AK16: U4= | AL16: =AL15/(LOG(AL4)/LOG(2)) -> 0.102184538 | AP16: U5= | AQ16: =AQ15/(LOG(AQ4)/LOG(2)) -> 0.0445446231 | AU16: U6= | AV16: =AV15/(LOG(AV4)/LOG(2)) -> 0.102184538
A17: 22 | B17: 1154 | C17: 23 | D17: 1167 | K17: 0 | L17: 22
A18: 22 | B18: 1266 | C18: 23 | D18: 1272 | K18: 0 | L18: 22
A19: 22 | B19: 1389 | C19: 23 | D19: 1398 | K19: 0 | L19: 22 | N19: Total Target Seq
A20: 22 | B20: 1503 | C20: 23 | D20: 1511 | K20: 0 | L20: 22 | N20: =COUNTIF(L7:L176,G3) -> 0 | P20: 28 | Q20: 29 | R20: 28 | S20: 28 | T20: 29 | U20: 28
A21: 22 | B21: 1614 | C21: 23 | D21: 1626 | K21: 0 | L21: 22 | P21: % of reinforcement given in 6 equal intervals based on number of trials
A22: 22 | B22: 1724 | C22: 23 | D22: 1729 | K22: 0 | L22: 22 | P22: %_1 | Q22: %_2 | R22: %_3 | S22: %_4 | T22: %_5 | U22: %_6
A23: 22 | B23: 1835 | C23: 23 | D23: 1843 | K23: 0 | L23: 22 | O23: target sequence | P23: =$G$3 -> 12 | Q23: =$G$3 -> 12 | R23: =$G$3 -> 12 | S23: =$G$3 -> 12 | T23: =$G$3 -> 12 | U23: =$G$3 -> 12
A24: 22 | B24: 1949 | C24: 23 | D24: 1953 | K24: 0 | L24: 22 | O24: total reinforcement | P24: =U8 -> 0 | Q24: =Z8 -> 0 | R24: =AE8 -> 0 | S24: =AJ8 -> 0 | T24: =AO8 -> 0 | U24: =AT8 -> 0
A25: 22 | B25: 2087 | C25: 14 | D25: 2098 | K25: 0 | L25: 21 | O25: % target
A26: 22 | B26: 2203 | C26: 23 | D26: 2211 | K26: 0 | L26: 22 | O26: CCRF
A27: 22 | B27: 2319 | C27: 23 | D27: 2327 | K27: 0 | L27: 22 | O27: % CCRf
A28: 22 | B28: 2444 | C28: 23 | D28: 2451 | K28: 0 | L28: 22 | O28: average response rate | P28: =D34/P20 -> 113.3928571 | Q28: =(D63-D34)/Q20 -> 121.7931034 | R28: =(D91-D63)/R20 -> 121.8571429 | S28: =(D119-D91)/S20 -> 130.8571429 | T28: =(D148-D119)/T20 -> 186.2758621 | U28: =(D176-D148)/U20 -> 168.0714286
A29: 22 | B29: 2564 | C29: 14 | D29: 2576 | K29: 0 | L29: 21
A30: 22 | B30: 2688 | C30: 23 | D30: 2697 | K30: 0 | L30: 22
A31: 22 | B31: 2822 | C31: 23 | D31: 2829 | K31: 0 | L31: 22
A32: 22 | B32: 2952 | C32: 14 | D32: 2961 | K32: 0 | L32: 21
A33: 22 | B33: 3063 | C33: 14 | D33: 3073 | K33: 0 | L33: 21
A34: 22 | B34: 3170 | C34: 23 | D34: 3175 | K34: 0 | L34: 22
A35: 22 | B35: 3283 | C35: 23 | D35: 3291 | K35: 0 | L35: 22
A36: 22 | B36: 3401 | C36: 23 | D36: 3408 | K36: 0 | L36: 22
A37: 22 | B37: 3537 | C37: 23 | D37: 3551 | K37: 0 | L37: 22
A38: 22 | B38: 3681 | C38: 23 | D38: 3689 | K38: 0 | L38: 22
A39: 22 | B39: 3813 | C39: 23 | D39: 3820 | K39: 0 | L39: 22
A40: 22 | B40: 3930 | C40: 23 | D40: 3936 | K40: 0 | L40: 22
A41: 22 | B41: 4046 | C41: 14 | D41: 4057 | K41: 0 | L41: 21
A42: 22 | B42: 4158 | C42: 23 | D42: 4165 | K42: 0 | L42: 22
A43: 22 | B43: 4266 | C43: 23 | D43: 4274 | K43: 0 | L43: 22
A44: 22 | B44: 4382 | C44: 23 | D44: 4389 | K44: 0 | L44: 22
A45: 22 | B45: 4506 | C45: 23 | D45: 4510 | K45: 0 | L45: 22
A46: 22 | B46: 4620 | C46: 23 | D46: 4633 | K46: 0 | L46: 22
A47: 22 | B47: 4748 | C47: 23 | D47: 4755 | K47: 0 | L47: 22
A48: 22 | B48: 4864 | C48: 23 | D48: 4871 | K48: 0 | L48: 22
A49: 22 | B49: 4988 | C49: 23 | D49: 4995 | K49: 0 | L49: 22
A50: 22 | B50: 5109 | C50: 23 | D50: 5130 | K50: 0 | L50: 22
A51: 22 | B51: 5227 | C51: 23 | D51: 5240 | K51: 0 | L51: 22
A52: 22 | B52: 5365 | C52: 23 | D52: 5380 | K52: 0 | L52: 22
A53: 22 | B53: 5479 | C53: 23 | D53: 5484 | K53: 0 | L53: 22
A54: 22 | B54: 5583 | C54: 23 | D54: 5598 | K54: 0 | L54: 22
A55: 22 | B55: 5710 | C55: 14 | D55: 5721 | K55: 0 | L55: 21
A56: 22 | B56: 5842 | C56: 14 | D56: 5851 | K56: 0 | L56: 21
A57: 22 | B57: 5959 | C57: 23 | D57: 5981 | K57: 0 | L57: 22
A58: 22 | B58: 6104 | C58: 23 | D58: 6111 | K58: 0 | L58: 22
A59: 22 | B59: 6233 | C59: 23 | D59: 6251 | K59: 0 | L59: 22
A60: 22 | B60: 6350 | C60: 23 | D60: 6355 | K60: 0 | L60: 22
A61: 22 | B61: 6459 | C61: 14 | D61: 6471 | K61: 0 | L61: 21
A62: 22 | B62: 6577 | C62: 23 | D62: 6585 | K62: 0 | L62: 22
A63: 22 | B63: 6702 | C63: 23 | D63: 6707 | K63: 0 | L63: 22
A64: 22 | B64: 6806 | C64: 23 | D64: 6811 | K64: 0 | L64: 22
A65: 22 | B65: 6916 | C65: 23 | D65: 6924 | K65: 0 | L65: 22
A66: 22 | B66: 7031 | C66: 23 | D66: 7039 | K66: 0 | L66: 22
A67: 22 | B67: 7139 | C67: 23 | D67: 7152 | K67: 0 | L67: 22
A68: 22 | B68: 7260 | C68: 23 | D68: 7267 | K68: 0 | L68: 22
A69: 22 | B69: 7374 | C69: 23 | D69: 7381 | K69: 0 | L69: 22
A70: 22 | B70: 7482 | C70: 23 | D70: 7487 | K70: 0 | L70: 22
A71: 22 | B71: 7597 | C71: 23 | D71: 7604 | K71: 0 | L71: 22
A72: 22 | B72: 7728 | C72: 23 | D72: 7737 | K72: 0 | L72: 22
A73: 22 | B73: 7848 | C73: 23 | D73: 7856 | K73: 0 | L73: 22
A74: 22 | B74: 8006 | C74: 14 | D74: 8018 | K74: 0 | L74: 21
A75: 22 | B75: 8135 | C75: 23 | D75: 8143 | K75: 0 | L75: 22
A76: 22 | B76: 8254 | C76: 23 | D76: 8262 | K76: 0 | L76: 22
A77: 22 | B77: 8368 | C77: 23 | D77: 8386 | K77: 0 | L77: 22
A78: 22 | B78: 8493 | C78: 23 | D78: 8509 | K78: 0 | L78: 22
A79: 22 | B79: 8615 | C79: 23 | D79: 8622 | K79: 0 | L79: 22
A80: 22 | B80: 8725 | C80: 23 | D80: 8739 | K80: 0 | L80: 22
A81: 22 | B81: 8854 | C81: 23 | D81: 8868 | K81: 0 | L81: 22
A82: 22 | B82: 9008 | C82: 23 | D82: 9016 | K82: 0 | L82: 22
A83: 22 | B83: 9122 | C83: 23 | D83: 9129 | K83: 0 | L83: 22
A84: 22 | B84: 9235 | C84: 23 | D84: 9246 | K84: 0 | L84: 22
A85: 22 | B85: 9358 | C85: 23 | D85: 9365 | K85: 0 | L85: 22
A86: 22 | B86: 9478 | C86: 23 | D86: 9491 | K86: 0 | L86: 22
A87: 22 | B87: 9611 | C87: 23 | D87: 9618 | K87: 0 | L87: 22
A88: 22 | B88: 9720 | C88: 23 | D88: 9727 | K88: 0 | L88: 22
A89: 22 | B89: 9860 | C89: 23 | D89: 9873 | K89: 0 | L89: 22
A90: 22 | B90: 9986 | C90: 23 | D90: 9995 | K90: 0 | L90: 22
A91: 22 | B91: 10111 | C91: 23 | D91: 10119 | K91: 0 | L91: 22
A92: 22 | B92: 10226 | C92: 23 | D92: 10233 | K92: 0 | L92: 22
A93: 22 | B93: 10346 | C93: 23 | D93: 10353 | K93: 0 | L93: 22
A94: 22 | B94: 10482 | C94: 23 | D94: 10498 | K94: 0 | L94: 22
A95: 22 | B95: 10618 | C95: 23 | D95: 10632 | K95: 0 | L95: 22
A96: 22 | B96: 10772 | C96: 23 | D96: 10787 | K96: 0 | L96: 22
A97: 22 | B97: 10914 | C97: 23 | D97: 10921 | K97: 0 | L97: 22
A98: 22 | B98: 11034 | C98: 23 | D98: 11042 | K98: 0 | L98: 22
A99: 22 | B99: 11174 | C99: 14 | D99: 11187 | K99: 0 | L99: 21
A100: 22 | B100: 11295 | C100: 23 | D100: 11303 | K100: 0 | L100: 22
A101: 22 | B101: 11410 | C101: 23 | D101: 11418 | K101: 0 | L101: 22
A102: 22 | B102: 11528 | C102: 23 | D102: 11535 | K102: 0 | L102: 22
A103: 22 | B103: 11666 | C103: 23 | D103: 11675 | K103: 0 | L103: 22
A104: 22 | B104: 11797 | C104: 23 | D104: 11809 | K104: 0 | L104: 22
A105: 22 | B105: 11920 | C105: 23 | D105: 11930 | K105: 0 | L105: 22
A106: 22 | B106: 12057 | C106: 23 | D106: 12070 | K106: 0 | L106: 22
A107: 22 | B107: 12175 | C107: 14 | D107: 12187 | K107: 0 | L107: 21
A108: 22 | B108: 12299 | C108: 23 | D108: 12306 | K108: 0 | L108: 22
A109: 22 | B109: 12419 | C109: 23 | D109: 12426 | K109: 0 | L109: 22
A110: 22 | B110: 12530 | C110: 23 | D110: 12542 | K110: 0 | L110: 22
A111: 22 | B111: 12653 | C111: 14 | D111: 12664 | K111: 0 | L111: 21
A112: 22 | B112: 12783 | C112: 23 | D112: 12796 | K112: 0 | L112: 22
A113: 22 | B113: 12933 | C113: 23 | D113: 12943 | K113: 0 | L113: 22
A114: 22 | B114: 13105 | C114: 23 | D114: 13113 | K114: 0 | L114: 22
A115: 22 | B115: 13220 | C115: 23 | D115: 13228 | K115: 0 | L115: 22
A116: 22 | B116: 13334 | C116: 23 | D116: 13341 | K116: 0 | L116: 22
A117: 22 | B117: 13481 | C117: 23 | D117: 13493 | K117: 0 | L117: 22
A118: 22 | B118: 13621 | C118: 23 | D118: 13628 | K118: 0 | L118: 22
A119: 22 | B119: 13777 | C119: 23 | D119: 13783 | K119: 0 | L119: 22
A120: 22 | B120: 13989 | C120: 23 | D120: 13996 | K120: 0 | L120: 22
A121: 22 | B121: 14128 | C121: 23 | D121: 14135 | K121: 0 | L121: 22
A122: 22 | B122: 14284 | C122: 23 | D122: 14301 | K122: 0 | L122: 22
A123: 22 | B123: 14525 | C123: 23 | D123: 14543 | K123: 0 | L123: 22
A124: 22 | B124: 14721 | C124: 23 | D124: 14733 | K124: 0 | L124: 22
A125: 22 | B125: 15051 | C125: 23 | D125: 15058 | K125: 0 | L125: 22
A126: 22 | B126: 15267 | C126: 23 | D126: 15282 | K126: 0 | L126: 22
A127: 22 | B127: 15445 | C127: 14 | D127: 15457 | K127: 0 | L127: 21
A128: 22 | B128: 15601 | C128: 23 | D128: 15607 | K128: 0 | L128: 22
A129: 22 | B129: 15832 | C129: 23 | D129: 15848 | K129: 0 | L129: 22
A130: 22 | B130: 15986 | C130: 23 | D130: 15998 | K130: 0 | L130: 22
A131: 22 | B131: 16131 | C131: 23 | D131: 16144 | K131: 0 | L131: 22
A132: 22 | B132: 16283 | C132: 23 | D132: 16288 | K132: 0 | L132: 22
A133: 22 | B133: 16421 | C133: 23 | D133: 16423 | K133: 0 | L133: 22
A134: 22 | B134: 16609 | C134: 23 | D134: 16616 | K134: 0 | L134: 22
A135: 22 | B135: 16740 | C135: 23 | D135: 16749 | K135: 0 | L135: 22
A136: 22 | B136: 16929 | C136: 23 | D136: 16936 | K136: 0 | L136: 22
A137: 22 | B137: 17092 | C137: 23 | D137: 17100 | K137: 0 | L137: 22
A138: 22 | B138: 17252 | C138: 23 | D138: 17268 | K138: 0 | L138: 22
A139: 22 | B139: 17402 | C139: 23 | D139: 17418 | K139: 0 | L139: 22
A140: 22 | B140: 17666 | C140: 23 | D140: 17678 | K140: 0 | L140: 22
A141: 22 | B141: 17797 | C141: 23 | D141: 17802 | K141: 0 | L141: 22
A142: 22 | B142: 17912 | C142: 23 | D142: 17918 | K142: 0 | L142: 22
A143: 22 | B143: 18034 | C143: 23 | D143: 18039 | K143: 0 | L143: 22
A144: 22 | B144: 18496 | C144: 23 | D144: 18504 | K144: 0 | L144: 22
A145: 22 | B145: 18667 | C145: 23 | D145: 18674 | K145: 0 | L145: 22
A146: 22 | B146: 18944 | C146: 23 | D146: 18948 | K146: 0 | L146: 22
A147: 22 | B147: 19062 | C147: 23 | D147: 19070 | K147: 0 | L147: 22
A148: 22 | B148: 19178 | C148: 23 | D148: 19185 | K148: 0 | L148: 22
A149: 22 | B149: 19600 | C149: 14 | D149: 19612 | K149: 0 | L149: 21
A150: 22 | B150: 19898 | C150: 23 | D150: 19918 | K150: 0 | L150: 22
A151: 22 | B151: 20086 | C151: 23 | D151: 20100 | K151: 0 | L151: 22
A152: 22 | B152: 20250 | C152: 14 | D152: 20262 | K152: 0 | L152: 21
A153: 22 | B153: 20446 | C153: 23 | D153: 20459 | K153: 0 | L153: 22
A154: 22 | B154: 20647 | C154: 14 | D154: 20659 | K154: 0 | L154: 21
A155: 22 | B155: 20816 | C155: 23 | D155: 20828 | K155: 0 | L155: 22
A156: 22 | B156: 21027 | C156: 23 | D156: 21040 | K156: 0 | L156: 22
A157: 22 | B157: 21160 | C157: 23 | D157: 21167 | K157: 0 | L157: 22
A158: 22 | B158: 21291 | C158: 23 | D158: 21298 | K158: 0 | L158: 22
A159: 22 | B159: 21449 | C159: 23 | D159: 21458 | K159: 0 | L159: 22
A160: 22 | B160: 21577 | C160: 23 | D160: 21591 | K160: 0 | L160: 22
A161: 22 | B161: 21714 | C161: 23 | D161: 21722 | K161: 0 | L161: 22
A162: 22 | B162: 21848 | C162: 23 | D162: 21857 | K162: 0 | L162: 22
A163: 22 | B163: 22093 | C163: 23 | D163: 22106 | K163: 0 | L163: 22
A164: 22 | B164: 22242 | C164: 23 | D164: 22256 | K164: 0 | L164: 22
A165: 22 | B165: 22429 | C165: 23 | D165: 22436 | K165: 0 | L165: 22
A166: 22 | B166: 22559 | C166: 23 | D166: 22566 | K166: 0 | L166: 22
A167: 22 | B167: 22680 | C167: 23 | D167: 22690 | K167: 0 | L167: 22
A168: 22 | B168: 22796 | C168: 23 | D168: 22805 | K168: 0 | L168: 22
A169: 22 | B169: 22913 | C169: 23 | D169: 22920 | K169: 0 | L169: 22
A170: 22 | B170: 23033 | C170: 23 | D170: 23040 | K170: 0 | L170: 22
A171: 22 | B171: 23153 | C171: 23 | D171: 23159 | K171: 0 | L171: 22
A172: 22 | B172: 23267 | C172: 23 | D172: 23275 | K172: 0 | L172: 22
A173: 22 | B173: 23394 | C173: 23 | D173: 23401 | K173: 0 | L173: 22
A174: 22 | B174: 23510 | C174: 23 | D174: 23517 | K174: 0 | L174: 22
A175: 22 | B175: 23632 | C175: 23 | D175: 23639 | K175: 0 | L175: 22
A176: 22 | B176: 23883 | C176: 23 | D176: 23891 | K176: 0 | L176: 22

Sheet !L809A00.052
A1: Report for:!L809A00.052
A2: Date: | B2: <date>
A3: Hen: | B3: <hen> | F3: Correct Sequence | G3: =Start!J2 -> 12 | P3: Total Sequences in Data | Q3: =4994-COUNTBLANK(L7:L5000) -> 204 | V3: Total Sequences in Block Data | W3: =COUNTA(L7:L40) -> 34 | AA3: Total Sequences in Block Data | AB3: =COUNTA(L41:L74) -> 34 | AF3: Total Sequences in Block Data | AG3: =COUNTA(L75:L108) -> 34 | AK3: Total Sequences in Block Data | AL3: =COUNTA(L109:L142) -> 34 | AP3: Total Sequences in Block Data | AQ3: =COUNTA(L143:L176) -> 34 | AU3: Total Sequences in Block Data | AV3: =COUNTA(L177:L210) -> 34
P4: Total Sequences in Summary | Q4: =SUM(O7:O14) -> 204 | V4: Total Sequences in Block Summary | W4: =SUM(U7:U14) -> 34 | AA4: Total Sequences in Block Summary | AB4: =SUM(Z7:Z14) -> 34 | AF4: Total Sequences in Block Summary | AG4: =SUM(AE7:AE14) -> 34 | AK4: Total Sequences in Block Summary | AL4: =SUM(AJ7:AJ14) -> 34 | AP4: Total Sequences in Block Summary | AQ4: =SUM(AO7:AO14) -> 34 | AU4: Total Sequences in Block Summary | AV4: =SUM(AT7:AT14) -> 34
T5: Block 1 | Y5: Block 2 | AD5: Block 3 | AI5: Block 4 | AN5: Block 5 | AS5: Block 6
A6: Sequence Component 1 | B6: Time 1 | C6: Sequence Component 2 | D6: Time 2 | E6: Sequence Component 3 | F6: Time 3 | G6: Sequence Component 4 | H6: Time 4 | I6: Sequence Component 5 | J6: Time 5 | K6: Correct? 0=No 1=Yes | L6: Sequence | N6: Frequency | P6: Relative Frequency | Q6: Variability | T6: Frequency | V6: Relative Frequency | W6: Variability | Y6: Frequency | AA6: Relative Frequency | AB6: Variability | AD6: Frequency | AF6: Relative Frequency | AG6: Variability | AI6: Frequency | AK6: Relative Frequency | AL6: Variability | AN6: Frequency | AP6: Relative Frequency | AQ6: Variability | AS6: Frequency | AU6: Relative Frequency | AV6: Variability
A7: 22 | B7: 10 | C7: 23 | D7: 18 | K7: 0 | L7: 22 | N7: 11 | O7: =COUNTIF($L$7:$L$500,N7) -> 3 | P7: =O7/$Q$4 -> 0.01470588235 | Q7: =IF(P7=0,0,(P7*((LOG(P7))/LOG(2)))) -> -0.08952151237 | T7: =N7 -> 11 | U7: =COUNTIF(L7:L40,T7) -> 0 | V7: =U7/(W4-U8) -> 0 | W7: =IF(V7=0,0,(V7*((LOG(V7))/LOG(2)))) -> 0 | Y7: =N7 -> 11 | Z7: =COUNTIF(L41:L74,Y7) -> 0 | AA7: =Z7/(AB4-Z8) -> 0 | AB7: =IF(AA7=0,0,(AA7*((LOG(AA7))/LOG(2)))) -> 0 | AD7: =N7 -> 11 | AE7: =COUNTIF(L75:L108,AD7) -> 0 | AF7: =AE7/(AG4-AE8) -> 0 | AG7: =IF(AF7=0,0,(AF7*((LOG(AF7))/LOG(2)))) -> 0 | AI7: =N7 -> 11 | AJ7: =COUNTIF(L109:L142,AI7) -> 0 | AK7: =AJ7/(AL4-AJ8) -> 0 | AL7: =IF(AK7=0,0,(AK7*((LOG(AK7))/LOG(2)))) -> 0 | AN7: =N7 -> 11 | AO7: =COUNTIF(L143:L176,AN7) -> 0 | AP7: =AO7/(AQ4-AO8) -> 0 | AQ7: =IF(AP7=0,0,(AP7*((LOG(AP7))/LOG(2)))) -> 0 | AS7: =N7 -> 11 | AT7: =COUNTIF(L177:L210,AS7) -> 3 | AU7: =AT7/(AV4-AT8) -> 0.12 | AV7: =IF(AU7=0,0,(AU7*((LOG(AU7))/LOG(2)))) -> -0.3670672427
A8: 22 | B8: 119 | C8: 23 | D8: 125 | K8: 0 | L8: 22 | N8: 12 | O8: =COUNTIF($L$7:$L$500,N8) -> 20 | P8: =O8/$Q$4 -> 0.09803921569 | Q8: =IF(P8=0,0,(P8*((LOG(P8))/LOG(2)))) -> -0.3284801223 | T8: =N8 -> 12 | U8: =COUNTIF(L7:L40,T8) -> 0 | Y8: =N8 -> 12 | Z8: =COUNTIF(L41:L74,Y8) -> 0 | AD8: =N8 -> 12 | AE8: =COUNTIF(L75:L108,AD8) -> 1 | AI8: =N8 -> 12 | AJ8: =COUNTIF(L109:L142,AI8) -> 1 | AN8: =N8 -> 12 | AO8: =COUNTIF(L143:L176,AN8) -> 9 | AS8: =N8 -> 12 | AT8: =COUNTIF(L177:L210,AS8) -> 9
A9: 22 | B9: 226 | C9: 14 | D9: 237 | K9: 0 | L9: 21 | N9: 21 | O9: =COUNTIF($L$7:$L$500,N9) -> 35 | P9: =O9/$Q$4 -> 0.1715686275 | Q9: =IF(P9=0,0,(P9*((LOG(P9))/LOG(2)))) -> -0.4363234381 | T9: =N9 -> 21 | U9: =COUNTIF(L7:L40,T9) -> 5 | V9: =U9/(W4-U8) -> 0.1470588235 | W9: =IF(V9=0,0,(V9*((LOG(V9))/LOG(2)))) -> -0.4066962862 | Y9: =N9 -> 21 | Z9: =COUNTIF(L41:L74,Y9) -> 7 | AA9: =Z9/(AB4-Z8) -> 0.2058823529 | AB9: =IF(AA9=0,0,(AA9*((LOG(AA9))/LOG(2)))) -> -0.4694339834 | AD9: =N9 -> 21 | AE9: =COUNTIF(L75:L108,AD9) -> 3 | AF9: =AE9/(AG4-AE8) -> 0.09090909091 | AG9: =IF(AF9=0,0,(AF9*((LOG(AF9))/LOG(2)))) -> -0.3144937835 | AI9: =N9 -> 21 | AJ9: =COUNTIF(L109:L142,AI9) -> 2 | AK9: =AJ9/(AL4-AJ8) -> 0.06060606061 | AL9: =IF(AK9=0,0,(AK9*((LOG(AK9))/LOG(2)))) -> -0.2451147951 | AN9: =N9 -> 21 | AO9: =COUNTIF(L143:L176,AN9) -> 4 | AP9: =AO9/(AQ4-AO8) -> 0.16 | AQ9: =IF(AP9=0,0,(AP9*((LOG(AP9))/LOG(2)))) -> -0.4230169904 | AS9: =N9 -> 21 | AT9: =COUNTIF(L177:L210,AS9) -> 14 | AU9: =AT9/(AV4-AT8) -> 0.56 | AV9: =IF(AU9=0,0,(AU9*((LOG(AU9))/LOG(2)))) -> -0.4684407099
A10: 22 | B10: 340 | C10: 23 | D10: 355 | K10: 0 | L10: 22 | N10: 22 | O10: =COUNTIF($L$7:$L$500,N10) -> 146 | P10: =O10/$Q$4 -> 0.7156862745 | Q10: =IF(P10=0,0,(P10*((LOG(P10))/LOG(2)))) -> -0.3453907565 | T10: =N10 -> 22 | U10: =COUNTIF(L7:L40,T10) -> 29 | V10: =U10/(W4-U8) -> 0.8529411765 | W10: =IF(V10=0,0,(V10*((LOG(V10))/LOG(2)))) -> -0.1957345158 | Y10: =N10 -> 22 | Z10: =COUNTIF(L41:L74,Y10) -> 27 | AA10: =Z10/(AB4-Z8) -> 0.7941176471 | AB10: =IF(AA10=0,0,(AA10*((LOG(AA10))/LOG(2)))) -> -0.2641039457 | AD10: =N10 -> 22 | AE10: =COUNTIF(L75:L108,AD10) -> 30 | AF10: =AE10/(AG4-AE8) -> 0.9090909091 | AG10: =IF(AF10=0,0,(AF10*((LOG(AF10))/LOG(2)))) -> -0.1250032034 | AI10: =N10 -> 22 | AJ10: =COUNTIF(L109:L142,AI10) -> 31 | AK10: =AJ10/(AL4-AJ8) -> 0.9393939394 | AL10: =IF(AK10=0,0,(AK10*((LOG(AK10))/LOG(2)))) -> -0.08473127509 | AN10: =N10 -> 22 | AO10: =COUNTIF(L143:L176,AN10) -> 21 | AP10: =AO10/(AQ4-AO8) -> 0.84 | AQ10: =IF(AP10=0,0,(AP10*((LOG(AP10))/LOG(2)))) -> -0.2112925643 | AS10: =N10 -> 22 | AT10: =COUNTIF(L177:L210,AS10) -> 8 | AU10: =AT10/(AV4-AT8) -> 0.32 | AV10: =IF(AU10=0,0,(AU10*((LOG(AU10))/LOG(2)))) -> -0.5260339807
A11: 22 | B11: 450 | C11: 23 | D11: 462 | K11: 0 | L11: 22 | T11: =N11 -> 0 | U11: =COUNTIF(L7:L40,T11) -> 0 | V11: =U11/(W4-U8) -> 0 | W11: =IF(V11=0,0,(V11*((LOG(V11))/LOG(2)))) -> 0 | Y11: =N11 -> 0 | Z11: =COUNTIF(L41:L74,Y11) -> 0 | AA11: =Z11/(AB4-Z8) -> 0 | AB11: =IF(AA11=0,0,(AA11*((LOG(AA11))/LOG(2)))) -> 0 | AD11: =N11 -> 0 | AE11: =COUNTIF(L75:L108,AD11) -> 0 | AF11: =AE11/(AG4-AE8) -> 0 | AG11: =IF(AF11=0,0,(AF11*((LOG(AF11))/LOG(2)))) -> 0 | AI11: =N11 -> 0 | AJ11: =COUNTIF(L109:L142,AI11) -> 0 | AK11: =AJ11/(AL4-AJ8) -> 0 | AL11: =IF(AK11=0,0,(AK11*((LOG(AK11))/LOG(2)))) -> 0 | AN11: =N11 -> 0 | AO11: =COUNTIF(L143:L176,AN11) -> 0 | AP11: =AO11/(AQ4-AO8) -> 0 | AQ11: =IF(AP11=0,0,(AP11*((LOG(AP11))/LOG(2)))) -> 0 | AS11: =N11 -> 0 | AT11: =COUNTIF(L177:L210,AS11) -> 0 | AU11: =AT11/(AV4-AT8) -> 0 | AV11: =IF(AU11=0,0,(AU11*((LOG(AU11))/LOG(2)))) -> 0
A12: 22 | B12: 570 | C12: 14 | D12: 578 | K12: 0 | L12: 21 | T12: =N12 -> 0 | U12: =COUNTIF(L7:L40,T12) -> 0 | V12: =U12/(W4-U8) -> 0 | W12: =IF(V12=0,0,(V12*((LOG(V12))/LOG(2)))) -> 0 | Y12: =N12 -> 0 | Z12: =COUNTIF(L41:L74,Y12) -> 0 | AA12: =Z12/(AB4-Z8) -> 0 | AB12: =IF(AA12=0,0,(AA12*((LOG(AA12))/LOG(2)))) -> 0 | AD12: =N12 -> 0 | AE12: =COUNTIF(L75:L108,AD12) -> 0 | AF12: =AE12/(AG4-AE8) -> 0 | AG12: =IF(AF12=0,0,(AF12*((LOG(AF12))/LOG(2)))) -> 0 | AI12: =N12 -> 0 | AJ12: =COUNTIF(L109:L142,AI12) -> 0 | AK12: =AJ12/(AL4-AJ8) -> 0 | AL12: =IF(AK12=0,0,(AK12*((LOG(AK12))/LOG(2)))) -> 0 | AN12: =N12 -> 0 | AO12: =COUNTIF(L143:L176,AN12) -> 0 | AP12: =AO12/(AQ4-AO8) -> 0 | AQ12: =IF(AP12=0,0,(AP12*((LOG(AP12))/LOG(2)))) -> 0 | AS12: =N12 -> 0 | AT12: =COUNTIF(L177:L210,AS12) -> 0 | AU12: =AT12/(AV4-AT8) -> 0 | AV12: =IF(AU12=0,0,(AU12*((LOG(AU12))/LOG(2)))) -> 0
A13: 22 | B13: 676 | C13: 23 | D13: 681 | K13: 0 | L13: 22 | T13: =N13 -> 0 | U13: =COUNTIF(L7:L40,T13) -> 0 | V13: =U13/(W4-U8) -> 0 | W13: =IF(V13=0,0,(V13*((LOG(V13))/LOG(2)))) -> 0 | Y13: =N13 -> 0 | Z13: =COUNTIF(L41:L74,Y13) -> 0 | AA13: =Z13/(AB4-Z8) -> 0 | AB13: =IF(AA13=0,0,(AA13*((LOG(AA13))/LOG(2)))) -> 0 | AD13: =N13 -> 0 | AE13: =COUNTIF(L75:L108,AD13) -> 0 | AF13: =AE13/(AG4-AE8) -> 0 | AG13: =IF(AF13=0,0,(AF13*((LOG(AF13))/LOG(2)))) -> 0 | AI13: =N13 -> 0 | AJ13: =COUNTIF(L109:L142,AI13) -> 0 | AK13: =AJ13/(AL4-AJ8) -> 0 | AL13: =IF(AK13=0,0,(AK13*((LOG(AK13))/LOG(2)))) -> 0 | AN13: =N13 -> 0 | AO13: =COUNTIF(L143:L176,AN13) -> 0 | AP13: =AO13/(AQ4-AO8) -> 0 | AQ13: =IF(AP13=0,0,(AP13*((LOG(AP13))/LOG(2)))) -> 0 | AS13: =N13 -> 0 | AT13: =COUNTIF(L177:L210,AS13) -> 0 | AU13: =AT13/(AV4-AT8) -> 0 | AV13: =IF(AU13=0,0,(AU13*((LOG(AU13))/LOG(2)))) -> 0
A14: 22 | B14: 790 | C14: 23 | D14: 810 | K14: 0 | L14: 22 | T14: =N14 -> 0 | U14: =COUNTIF(L7:L40,T14) -> 0 | V14: =U14/(W4-U8) -> 0 | W14: =IF(V14=0,0,(V14*((LOG(V14))/LOG(2)))) -> 0 | Y14: =N14 -> 0 | Z14: =COUNTIF(L41:L74,Y14) -> 0 | AA14: =Z14/(AB4-Z8) -> 0 | AB14: =IF(AA14=0,0,(AA14*((LOG(AA14))/LOG(2)))) -> 0 | AD14: =N14 -> 0 | AE14: =COUNTIF(L75:L108,AD14) -> 0 | AF14: =AE14/(AG4-AE8) -> 0 | AG14: =IF(AF14=0,0,(AF14*((LOG(AF14))/LOG(2)))) -> 0 | AI14: =N14 -> 0 | AJ14: =COUNTIF(L109:L142,AI14) -> 0 | AK14: =AJ14/(AL4-AJ8) -> 0 | AL14: =IF(AK14=0,0,(AK14*((LOG(AK14))/LOG(2)))) -> 0 | AN14: =N14 -> 0 | AO14: =COUNTIF(L143:L176,AN14) -> 0 | AP14: =AO14/(AQ4-AO8) -> 0 | AQ14: =IF(AP14=0,0,(AP14*((LOG(AP14))/LOG(2)))) -> 0 | AS14: =N14 -> 0 | AT14: =COUNTIF(L177:L210,AS14) -> 0 | AU14: =AT14/(AV4-AT8) -> 0 | AV14: =IF(AU14=0,0,(AU14*((LOG(AU14))/LOG(2)))) -> 0
A15: 22 | B15: 921 | C15: 23 | D15: 926 | K15: 0 | L15: 22 | P15: =SUM(P7:P14) -> 1 | Q15: =-SUM(Q7:Q14) -> 1.199715829 | V15: =SUM(V7:V14) -> 1 | W15: =-SUM(W7:W14) -> 0.602430802 | AA15: =SUM(AA7:AA14) -> 1 | AB15: =-SUM(AB7:AB14) -> 0.7335379291 | AF15: =SUM(AF7:AF14) -> 1 | AG15: =-SUM(AG7:AG14) -> 0.4394969869 | AK15: =SUM(AK7:AK14) -> 1 | AL15: =-SUM(AL7:AL14) -> 0.3298460702 | AP15: =SUM(AP7:AP14) -> 1 | AQ15: =-SUM(AQ7:AQ14) -> 0.6343095546 | AU15: =SUM(AU7:AU14) -> 1 | AV15: =-SUM(AV7:AV14) -> 1.361541933
A16: 22 | B16: 1028 | C16: 23 | D16: 1034 | K16: 0 | L16: 22 | P16: U= | Q16: =Q15/(LOG(Q4)/LOG(2)) -> 0.156367221 | V16: U1= | W16: =W15/(LOG(W4)/LOG(2)) -> 0.1184147818 | AA16: U2= | AB16: =AB15/(LOG(AB4)/LOG(2)) -> 0.1441854127 | AF16: U3= | AG16: =AG15/(LOG(AG4)/LOG(2)) -> 0.08638824511 | AK16: U4= | AL16: =AL15/(LOG(AL4)/LOG(2)) -> 0.06483508195 | AP16: U5= | AQ16: =AQ15/(LOG(AQ4)/LOG(2)) -> 0.1246809214 | AU16: U6= | AV16: =AV15/(LOG(AV4)/LOG(2)) -> 0.2676269048
A17: 22 | B17: 1145 | C17: 23 | D17: 1152 | K17: 0 | L17: 22
A18: 22 | B18: 1253 | C18: 23 | D18: 1260 | K18: 0 | L18: 22
A19: 22 | B19: 1363 | C19: 23 | D19: 1368 | K19: 0 | L19: 22 | N19: Total Target Seq
A20: 22 | B20: 1485 | C20: 23 | D20: 1501 | K20: 0 | L20: 22 | N20: =COUNTIF(L7:L210,G3) -> 20 | P20: 34 | Q20: 34 | R20: 34 | S20: 34 | T20: 34 | U20: 34
A21: 22 | B21: 1613 | C21: 23 | D21: 1620 | K21: 0 | L21: 22 | P21: % of reinforcement given in 6 equal intervals based on number of trials
A22: 22 | B22: 1723 | C22: 23 | D22: 1730 | K22: 0 | L22: 22 | P22: %_1 | Q22: %_2 | R22: %_3 | S22: %_4 | T22: %_5 | U22: %_6
A23: 22 | B23: 1859 | C23: 14 | D23: 1869 | K23: 0 | L23: 21 | O23: target sequence | P23: =$G$3 -> 12 | Q23: =$G$3 -> 12 | R23: =$G$3 -> 12 | S23: =$G$3 -> 12 | T23: =$G$3 -> 12 | U23: =$G$3 -> 12
A24: 22 | B24: 1971 | C24: 23 | D24: 1977 | K24: 0 | L24: 22 | O24: total reinforcement | P24: =U8 -> 0 | Q24: =Z8 -> 0 | R24: =AE8 -> 1 | S24: =AJ8 -> 1 | T24: =AO8 -> 9 | U24: =AT8 -> 9
A25: 22 | B25: 2092 | C25: 23 | D25: 2098 | K25: 0 | L25: 22 | O25: % target
A26: 22 | B26: 2201 | C26: 23 | D26: 2208 | K26: 0 | L26: 22 | O26: CCRF
A27: 22 | B27: 2308 | C27: 23 | D27: 2313 | K27: 0 | L27: 22 | O27: % CCRf
A28: 22 | B28: 2424 | C28: 23 | D28: 2436 | K28: 0 | L28: 22 | O28: average response rate | P28: =D40/P20 -> 116.6176471 | Q28: =(D74-D40)/Q20 -> 127.2352941 | R28: =(D108-D74)/R20 -> 121.9705882 | S28: =(D142-D108)/S20 -> 119.4117647 | T28: =(D176-D142)/T20 -> 111.6470588 | U28: =(D210-D176)/U20 -> 107.7058824
A29: 22 | B29: 2543 | C29: 23 | D29: 2548 | K29: 0 | L29: 22
A30: 22 | B30: 2674 | C30: 23 | D30: 2696 | K30: 0 | L30: 22
A31: 22 | B31: 2798 | C31: 23 | D31: 2805 | K31: 0 | L31: 22
A32: 22 | B32: 2981 | C32: 14 | D32: 2992 | K32: 0 | L32: 21
A33: 22 | B33: 3106 | C33: 23 | D33: 3114 | K33: 0 | L33: 22
A34: 22 | B34: 3220 | C34: 23 | D34: 3228 | K34: 0 | L34: 22
A35: 22 | B35: 3332 | C35: 23 | D35: 3337 | K35: 0 | L35: 22
A36: 22 | B36: 3450 | C36: 23 | D36: 3457 | K36: 0 | L36: 22
A37: 22 | B37: 3572 | C37: 23 | D37: 3588 | K37: 0 | L37: 22
A38: 22 | B38: 3701 | C38: 23 | D38: 3716 | K38: 0 | L38: 22
A39: 22 | B39: 3839 | C39: 14 | D39: 3850 | K39: 0 | L39: 21
A40: 22 | B40: 3958 | C40: 23 | D40: 3965 | K40: 0 | L40: 22
A41: 22 | B41: 4072 | C41: 14 | D41: 4083 | K41: 0 | L41: 21
A42: 22 | B42: 4192 | C42: 23 | D42: 4199 | K42: 0 | L42: 22
A43: 22 | B43: 4305 | C43: 23 | D43: 4312 | K43: 0 | L43: 22
A44: 22 | B44: 4418 | C44: 23 | D44: 4431 | K44: 0 | L44: 22
A45: 22 | B45: 4540 | C45: 23 | D45: 4548 | K45: 0 | L45: 22
A46: 22 | B46: 4653 | C46: 23 | D46: 4660 | K46: 0 | L46: 22
A47: 22 | B47: 4768 | C47: 23 | D47: 4775 | K47: 0 | L47: 22
A48: 22 | B48: 4883 | C48: 23 | D48: 4889 | K48: 0 | L48: 22
A49: 22 | B49: 5003 | C49: 23 | D49: 5017 | K49: 0 | L49: 22
A50: 22 | B50: 5146 | C50: 23 | D50: 5155 | K50: 0 | L50: 22
A51: 22 | B51: 5314 | C51: 23 | D51: 5321 | K51: 0 | L51: 22
A52: 22 | B52: 5451 | C52: 14 | D52: 5462 | K52: 0 | L52: 21
A53: 22 | B53: 5580 | C53: 23 | D53: 5591 | K53: 0 | L53: 22
A54: 22 | B54: 5706 | C54: 14 | D54: 5718 | K54: 0 | L54: 21
A55: 22 | B55: 5846 | C55: 23 | D55: 5858 | K55: 0 | L55: 22
A56: 22 | B56: 5970 | C56: 23 | D56: 5976 | K56: 0 | L56: 22
A57: 22 | B57: 6105 | C57: 23 | D57: 6112 | K57: 0 | L57: 22
A58: 22 | B58: 6224 | C58: 23 | D58: 6231 | K58: 0 | L58: 22
A59: 22 | B59: 6343 | C59: 14 | D59: 6355 | K59: 0 | L59: 21
A60: 22 | B60: 6464 | C60: 23 | D60: 6475 | K60: 0 | L60: 22
A61: 22 | B61: 6584 | C61: 23 | D61: 6591 | K61: 0 | L61: 22
A62: 22 | B62: 6699 | C62: 23 | D62: 6710 | K62: 0 | L62: 22
A63: 22 | B63: 6821 | C63: 14 | D63: 6833 | K63: 0 | L63: 21
A64: 22 | B64: 6946 | C64: 23 | D64: 6953 | K64: 0 | L64: 22
A65: 22 | B65: 7062 | C65: 23 | D65: 7069 | K65: 0 | L65: 22
A66: 22 | B66: 7191 | C66: 14 | D66: 7205 | K66: 0 | L66: 21
A67: 22 | B67: 7322 | C67: 23 | D67: 7335 | K67: 0 | L67: 22
A68: 22 | B68: 7442 | C68: 23 | D68: 7447 | K68: 0 | L68: 22
A69: 22 | B69: 7578 | C69: 23 | D69: 7584 | K69: 0 | L69: 22
A70: 22 | B70: 7713 | C70: 23 | D70: 7726 | K70: 0 | L70: 22
A71: 22 | B71: 7850 | C71: 23 | D71: 7859 | K71: 0 | L71: 22
A72: 22 | B72: 7998 | C72: 14 | D72: 8010 | K72: 0 | L72: 21
A73: 22 | B73: 8134 | C73: 23 | D73: 8142 | K73: 0 | L73: 22
A74: 22 | B74: 8277 | C74: 23 | D74: 8291 | K74: 0 | L74: 22
A75: 22 | B75: 8463 | C75: 23 | D75: 8476 | K75: 0 | L75: 22
A76: 22 | B76: 8631 | C76: 23 | D76: 8646 | K76: 0 | L76: 22
A77: 22 | B77: 8783 | C77: 14 | D77: 8794 | K77: 0 | L77: 21
A78: 22 | B78: 8922 | C78: 23 | D78: 8929 | K78: 0 | L78: 22
A79: 22 | B79: 9052 | C79: 23 | D79: 9059 | K79: 0 | L79: 22
A80: 22 | B80: 9181 | C80: 23 | D80: 9188 | K80: 0 | L80: 22
A81: 11 | B81: 9347 | C81: 21 | D81: 9356 | K81: 0 | L81: 12
A82: 22 | B82: 9458 | C82: 23 | D82: 9471 | K82: 0 | L82: 22
A83: 22 | B83: 9582 | C83: 23 | D83: 9587 | K83: 0 | L83: 22
A84: 22 | B84: 9704 | C84: 23 | D84: 9711 | K84: 0 | L84: 22
A85: 22 | B85: 9824 | C85: 23 | D85: 9830 | K85: 0 | L85: 22
A86: 22 | B86: 9942 | C86: 14 | D86: 9954 | K86: 0 | L86: 21
A87: 22 | B87: 10077 | C87: 23 | D87: 10085 | K87: 0 | L87: 22
A88: 22 | B88: 10196 | C88: 23 | D88: 10211 | K88: 0 | L88: 22
A89: 22 | B89: 10303 | C89: 23 | D89: 10310 | K89: 0 | L89: 22
A90: 22 | B90: 10404 | C90: 23 | D90: 10411 | K90: 0 | L90: 22
A91: 22 | B91: 10510 | C91: 23 | D91: 10518 | K91: 0 | L91: 22
A92: 22 | B92: 10612 | C92: 23 | D92: 10623 | K92: 0 | L92: 22
A93: 22 | B93: 10723 | C93: 14 | D93: 10735 | K93: 0 | L93: 21
A94: 22 | B94: 10833 | C94: 23 | D94: 10837 | K94: 0 | L94: 22
A95: 22 | B95: 10941 | C95: 23 | D95: 10947 | K95: 0 | L95: 22
A96: 22 | B96: 11065 | C96: 23 | D96: 11081 | K96: 0 | L96: 22
A97: 22 | B97: 11192 | C97: 23 | D97: 11197 | K97: 0 | L97: 22
A98: 22 | B98: 11300 | C98: 23 | D98: 11304 | K98: 0 | L98: 22
A99: 22 | B99: 11414 | C99: 23 | D99: 11419 | K99: 0 | L99: 22
A100: 22 | B100: 11524 | C100: 23 | D100: 11532 | K100: 0 | L100: 22
A101: 22 | B101: 11645 | C101: 23 | D101: 11657 | K101: 0 | L101: 22
A102: 22 | B102: 11755 | C102: 23 | D102: 11760 | K102: 0 | L102: 22
A103: 22 | B103: 11881 | C103: 23 | D103: 11888 | K103: 0 | L103: 22
A104: 22 | B104: 11990 | C104: 23 | D104: 11997 | K104: 0 | L104: 22
A105: 22 | B105: 12100 | C105: 23 | D105: 12105 | K105: 0 | L105: 22
A106: 22 | B106: 12210 | C106: 23 | D106: 12217 | K106: 0 | L106: 22
A107: 22 | B107: 12328 | C107: 23 | D107: 12333 | K107: 0 | L107: 22
A108: 22 | B108: 12433 | C108: 23 | D108: 12438 | K108: 0 | L108: 22
A109: 22 | B109: 12539 | C109: 23 | D109: 12548 | K109: 0 | L109: 22
A110: 22 | B110: 12669 | C110: 23 | D110: 12673 | K110: 0 | L110: 22
A111: 22 | B111: 12776 | C111: 23 | D111: 12780 | K111: 0 | L111: 22
A112: 22 | B112: 12883 | C112: 23 | D112: 12894 | K112: 0 | L112: 22
A113: 22 | B113: 13005 | C113: 23 | D113: 13012 | K113: 0 | L113: 22
A114: 22 | B114: 13113 | C114: 23 | D114: 13118 | K114: 0 | L114: 22
A115: 22 | B115: 13215 | C115: 23 | D115: 13220 | K115: 0 | L115: 22
A116: 22 | B116: 13328 | C116: 23 | D116: 13337 | K116: 0 | L116: 22
A117: 22 | B117: 13450 | C117: 23 | D117: 13457 | K117: 0 | L117: 22
A118: 22 | B118: 13574 | C118: 23 | D118: 13580 | K118: 0 | L118: 22
A119: 22 | B119: 13696 | C119: 14 | D119: 13710 | K119: 0 | L119: 21
A120: 22 | B120: 13821 | C120: 23 | D120: 13839 | K120: 0 | L120: 22
A121: 22 | B121: 13948 | C121: 23 | D121: 13953 | K121: 0 | L121: 22
A122: 22 | B122: 14071 | C122: 23 | D122: 14076 | K122: 0 | L122: 22
A123: 22 | B123: 14182 | C123: 23 | D123: 14187 | K123: 0 | L123: 22
A124: 22 | B124: 14300 | C124: 23 | D124: 14304 | K124: 0 | L124: 22
A125: 22 | B125: 14424 | C125: 23 | D125: 14432 | K125: 0 | L125: 22
A126: 22 | B126: 14532 | C126: 23 | D126: 14549 | K126: 0 | L126: 22
A127: 22 | B127: 14655 | C127: 23 | D127: 14663 | K127: 0 | L127: 22
A128: 22 | B128: 14785 | C128: 23 | D128: 14792 | K128: 0 | L128: 22
A129: 22 | B129: 14922 | C129: 23 | D129: 14942 | K129: 0 | L129: 22
A130: 22 | B130: 15046 | C130: 23 | D130: 15053 | K130: 0 | L130: 22
A131: 22 | B131: 15156 | C131: 23 | D131: 15170 | K131: 0 | L131: 22
A132: 22 | B132: 15295 | C132: 14 | D132: 15307 | K132: 0 | L132: 21
A133: 22 | B133: 15407 | C133: 23 | D133: 15412 | K133: 0 | L133: 22
A134: 22 | B134: 15513 | C134: 23 | D134: 15525 | K134: 0 | L134: 22
A135: 11 | B135: 15646 | C135: 21 | D135: 15654 | K135: 0 | L135: 12
A136: 22 | B136: 15761 | C136: 23 | D136: 15777 | K136: 0 | L136: 22
A137: 22 | B137: 15885 | C137: 23 | D137: 15899 | K137: 0 | L137: 22
A138: 22 | B138: 16013 | C138: 23 | D138: 16020 | K138: 0 | L138: 22
A139: 22 | B139: 16134 | C139: 23 | D139: 16147 | K139: 0 | L139: 22
A140: 22 | B140: 16255 | C140: 23 | D140: 16272 | K140: 0 | L140: 22
A141: 22 | B141: 16367 | C141: 23 | D141: 16372 | K141: 0 | L141: 22
A142: 22 | B142: 16491 | C142: 23 | D142: 16498 | K142: 0 | L142: 22
A143: 22 | B143: 16592 | C143: 23 | D143: 16605 | K143: 0 | L143: 22
A144: 22 | B144: 16701 | C144: 23 | D144: 16709 | K144: 0 | L144: 22
A145: 22 | B145: 16813 | C145: 23 | D145: 16820 | K145: 0 | L145: 22
A146: 22 | B146: 16919 | C146: 23 | D146: 16930 | K146: 0 | L146: 22
A147: 22 | B147: 17044 | C147: 14 | D147: 17055 | K147: 0 | L147: 21
A148: 22 | B148: 17170 | C148: 23 | D148: 17177 | K148: 0 | L148: 22
A149: 22 | B149: 17282 | C149: 23 | D149: 17293 | K149: 0 | L149: 22
A150: 22 | B150: 17398 | C150: 23 | D150: 17412 | K150: 0 | L150: 22
A151: 22 | B151: 17515 | C151: 23 | D151: 17519 | K151: 0 | L151: 22
A152: 22 | B152: 17622 | C152: 23 | D152: 17627 | K152: 0 | L152: 22
A153: 22 | B153: 17733 | C153: 23 | D153: 17741 | K153: 0 | L153: 22
A154: 22 | B154: 17844 | C154: 23 | D154: 17849 | K154: 0 | L154: 22
A155: 11 | B155: 17976 | C155: 21 | D155: 17985 | K155: 0 | L155: 12
A156: 22 | B156: 18094 | C156: 23 | D156: 18102 | K156: 0 | L156: 22
A157: 22 | B157: 18207 | C157: 23 | D157: 18213 | K157: 0 | L157: 22
A158: 22 | B158: 18308 | C158: 23 | D158: 18312 | K158: 0 | L158: 22
A159: 22 | B159: 18408 | C159: 23 | D159: 18421 | K159: 0 | L159: 22
A160: 22 | B160: 18529 | C160: 23 | D160: 18534 | K160: 0 | L160: 22
A161: 22 | B161: 18631 | C161: 23 | D161: 18637 | K161: 0 | L161: 22
A162: 22 | B162: 18736 | C162: 14 | D162: 18744 | K162: 0 | L162: 21
A163: 11 | B163: 18870 | C163: 21 | D163: 18880 | K163: 0 | L163: 12
A164: 11 | B164: 18996 | C164: 21 | D164: 19004 | K164: 0 | L164: 12
A165: 11 | B165: 19105 | C165: 21 | D165: 19114 | K165: 0 | L165: 12
A166: 11 | B166: 19217 | C166: 21 | D166: 19226 | K166: 0 | L166: 12
A167: 11 | B167: 19321 | C167: 21 | D167: 19333 | K167: 0 | L167: 12
A168: 11 | B168: 19432 | C168: 21 | D168: 19442 | K168: 0 | L168: 12
A169: 11 | B169: 19548 | C169: 21 | D169: 19556 | K169: 0 | L169: 12
A170: 22 | B170: 19663 | C170: 14 | D170: 19672 | K170: 0 | L170: 21
A171: 22 | B171: 19778 | C171: 14 | D171: 19788 | K171: 0 | L171: 21
A172: 22 | B172: 19880 | C172: 23 | D172: 19884 | K172: 0 | L172: 22
A173: 22 | B173: 19979 | C173: 23 | D173: 19982 | K173: 0 | L173: 22
A174: 11 | B174: 20085 | C174: 21 | D174: 20094 | K174: 0 | L174: 12
A175: 22 | B175: 20190 | C175: 23 | D175: 20198 | K175: 0 | L175: 22
A176: 22 | B176: 20290 | C176: 23 | D176: 20294 | K176: 0 | L176: 22
A177: 22 | B177: 20392 | C177: 14 | D177: 20401 | K177: 0 | L177: 21
A178: 22 | B178: 20499 | C178: 14 | D178: 20510 | K178: 0 | L178: 21
A179: 22 | B179: 20604 | C179: 14 | D179: 20614 | K179: 0 | L179: 21
A180: 22 | B180: 20708 | C180: 23 | D180: 20712 | K180: 0 | L180: 22
A181: 22 | B181: 20809 | C181: 14 | D181: 20817 | K181: 0 | L181: 21
A182: 22 | B182: 20913 | C182: 23 | D182: 20917 | K182: 0 | L182: 22
A183: 11 | B183: 21025 | C183: 21 | D183: 21036 | K183: 0 | L183: 12
A184: 11 | B184: 21131 | C184: 12 | D184: 21139 | K184: 0 | L184: 11
A185: 22 | B185: 21234 | C185: 14 | D185: 21245 | K185: 0 | L185: 21
A186: 11 | B186: 21353 | C186: 21 | D186: 21361 | K186: 0 | L186: 12
A187: 11 | B187: 21454 | C187: 21 | D187: 21463 | K187: 0 | L187: 12
A188: 11 | B188: 21558 | C188: 21 | D188: 21590 | K188: 0 | L188: 12
A189: 11 | B189: 21685 | C189: 21 | D189: 21693 | K189: 0 | L189: 12
A190: 11 | B190: 21787 | C190: 21 | D190: 21795 | K190: 0 | L190: 12
A191: 22 | B191: 21896 | C191: 23 | D191: 21928 | K191: 0 | L191: 22
A192: 22 | B192: 22022 | C192: 23 | D192: 22026 | K192: 0 | L192: 22
A193: 22 | B193: 22121 | C193: 23 | D193: 22126 | K193: 0 | L193: 22
A194: 22 | B194: 22224 | C194: 14 | D194: 22232 | K194: 0 | L194: 21
A195: 11 | B195: 22343 | C195: 21 | D195: 22351 | K195: 0 | L195: 12
A196: 11 | B196: 22444 | C196: 12 | D196: 22457 | K196: 0 | L196: 11
A197: 22 | B197: 22549 | C197: 23 | D197: 22553 | K197: 0 | L197: 22
A198: 11 | B198: 22656 | C198: 21 | D198: 22664 | K198: 0 | L198: 12
A199: 22 | B199: 22751 | C199: 14 | D199: 22762 | K199: 0 | L199: 21
A200: 22 | B200: 22857 | C200: 14 | D200: 22865 | K200: 0 | L200: 21
... 10 more rows

Sheet !L810A50.052
A1: Report for:!L810A50.052
A2: Date: | B2: <date>
A3: Hen: | B3: <hen> | F3: Correct Sequence | G3: =Start!J2 -> 12 | P3: Total Sequences in Data | Q3: =4994-COUNTBLANK(L7:L5000) -> 88 | V3: Total Sequences in Block Data | W3: =COUNTA(L7:L21) -> 15 | AA3: Total Sequences in Block Data | AB3: =COUNTA(L22:L35) -> 14 | AF3: Total Sequences in Block Data | AG3: =COUNTA(L36:L50) -> 15 | AK3: Total Sequences in Block Data | AL3: =COUNTA(L51:L65) -> 15 | AP3: Total Sequences in Block Data | AQ3: =COUNTA(L66:L79) -> 14 | AU3: Total Sequences in Block Data | AV3: =COUNTA(L80:L94) -> 15
P4: Total Sequences in Summary | Q4: =SUM(O7:O14) -> 88 | V4: Total Sequences in Block Summary | W4: =SUM(U7:U14) -> 15 | AA4: Total Sequences in Block Summary | AB4: =SUM(Z7:Z14) -> 14 | AF4: Total Sequences in Block Summary | AG4: =SUM(AE7:AE14) -> 15 | AK4: Total Sequences in Block Summary | AL4: =SUM(AJ7:AJ14) -> 15 | AP4: Total Sequences in Block Summary | AQ4: =SUM(AO7:AO14) -> 14 | AU4: Total Sequences in Block Summary | AV4: =SUM(AT7:AT14) -> 15
T5: Block 1 | Y5: Block 2 | AD5: Block 3 | AI5: Block 4 | AN5: Block 5 | AS5: Block 6
A6: Sequence Component 1 | B6: Time 1 | C6: Sequence Component 2 | D6: Time 2 | E6: Sequence Component 3 | F6: Time 3 | G6: Sequence Component 4 | H6: Time 4 | I6: Sequence Component 5 | J6: Time 5 | K6: Correct? 0=No 1=Yes | L6: Sequence | N6: Frequency | P6: Relative Frequency | Q6: Variability | T6: Frequency | V6: Relative Frequency | W6: Variability | Y6: Frequency | AA6: Relative Frequency | AB6: Variability | AD6: Frequency | AF6: Relative Frequency | AG6: Variability | AI6: Frequency | AK6: Relative Frequency | AL6: Variability | AN6: Frequency | AP6: Relative Frequency | AQ6: Variability | AS6: Frequency | AU6: Relative Frequency | AV6: Variability
A7: 22 | B7: 15 | C7: 14 | D7: 24 | K7: 0 | L7: 21 | N7: 11 | O7: =COUNTIF($L$7:$L$500,N7) -> 1 | P7: =O7/$Q$4 -> 0.01136363636 | Q7: =IF(P7=0,0,(P7*((LOG(P7))/LOG(2)))) -> -0.07340263203 | T7: =N7 -> 11 | U7: =COUNTIF(L7:L21,T7) -> 0 | V7: =U7/(W4-U8) -> 0 | W7: =IF(V7=0,0,(V7*((LOG(V7))/LOG(2)))) -> 0 | Y7: =N7 -> 11 | Z7: =COUNTIF(L22:L35,Y7) -> 0 | AA7: =Z7/(AB4-Z8) -> 0 | AB7: =IF(AA7=0,0,(AA7*((LOG(AA7))/LOG(2)))) -> 0 | AD7: =N7 -> 11 | AE7: =COUNTIF(L36:L50,AD7) -> 0 | AF7: =AE7/(AG4-AE8) -> 0 | AG7: =IF(AF7=0,0,(AF7*((LOG(AF7))/LOG(2)))) -> 0 | AI7: =N7 -> 11 | AJ7: =COUNTIF(L51:L65,AI7) -> 0 | AK7: =AJ7/(AL4-AJ8) -> 0 | AL7: =IF(AK7=0,0,(AK7*((LOG(AK7))/LOG(2)))) -> 0 | AN7: =N7 -> 11 | AO7: =COUNTIF(L66:L79,AN7) -> 1 | AP7: =AO7/(AQ4-AO8) -> 0.1666666667 | AQ7: =IF(AP7=0,0,(AP7*((LOG(AP7))/LOG(2)))) -> -0.4308270835 | AS7: =N7 -> 11 | AT7: =COUNTIF(L80:L94,AS7) -> 0 | AU7: =AT7/(AV4-AT8) -> 0 | AV7: =IF(AU7=0,0,(AU7*((LOG(AU7))/LOG(2)))) -> 0
A8: 11 | B8: 126 | C8: 21 | D8: 134 | K8: 0 | L8: 12 | N8: 12 | O8: =COUNTIF($L$7:$L$500,N8) -> 40 | P8: =O8/$Q$4 -> 0.4545454545 | Q8: =IF(P8=0,0,(P8*((LOG(P8))/LOG(2)))) -> -0.5170470562 | T8: =N8 -> 12 | U8: =COUNTIF(L7:L21,T8) -> 3 | Y8: =N8 -> 12 | Z8: =COUNTIF(L22:L35,Y8) -> 3 | AD8: =N8 -> 12 | AE8: =COUNTIF(L36:L50,AD8) -> 2 | AI8: =N8 -> 12 | AJ8: =COUNTIF(L51:L65,AI8) -> 11 | AN8: =N8 -> 12 | AO8: =COUNTIF(L66:L79,AN8) -> 8 | AS8: =N8 -> 12 | AT8: =COUNTIF(L80:L94,AS8) -> 13
A9: 22 | B9: 228 | C9: 14 | D9: 236 | K9: 0 | L9: 21 | N9: 21 | O9: =COUNTIF($L$7:$L$500,N9) -> 28 | P9: =O9/$Q$4 -> 0.3181818182 | Q9: =IF(P9=0,0,(P9*((LOG(P9))/LOG(2)))) -> -0.5256607671 | T9: =N9 -> 21 | U9: =COUNTIF(L7:L21,T9) -> 7 | V9: =U9/(W4-U8) -> 0.5833333333 | W9: =IF(V9=0,0,(V9*((LOG(V9))/LOG(2)))) -> -0.4536044209 | Y9: =N9 -> 21 | Z9: =COUNTIF(L22:L35,Y9) -> 5 | AA9: =Z9/(AB4-Z8) -> 0.4545454545 | AB9: =IF(AA9=0,0,(AA9*((LOG(AA9))/LOG(2)))) -> -0.5170470562 | AD9: =N9 -> 21 | AE9: =COUNTIF(L36:L50,AD9) -> 9 | AF9: =AE9/(AG4-AE8) -> 0.6923076923 | AG9: =IF(AF9=0,0,(AF9*((LOG(AF9))/LOG(2)))) -> -0.3672794193 | AI9: =N9 -> 21 | AJ9: =COUNTIF(L51:L65,AI9) -> 2 | AK9: =AJ9/(AL4-AJ8) -> 0.5 | AL9: =IF(AK9=0,0,(AK9*((LOG(AK9))/LOG(2)))) -> -0.5 | AN9: =N9 -> 21 | AO9: =COUNTIF(L66:L79,AN9) -> 4 | AP9: =AO9/(AQ4-AO8) -> 0.6666666667 | AQ9: =IF(AP9=0,0,(AP9*((LOG(AP9))/LOG(2)))) -> -0.3899750005 | AS9: =N9 -> 21 | AT9: =COUNTIF(L80:L94,AS9) -> 1 | AU9: =AT9/(AV4-AT8) -> 0.5 | AV9: =IF(AU9=0,0,(AU9*((LOG(AU9))/LOG(2)))) -> -0.5
A10: 22 | B10: 346 | C10: 14 | D10: 358 | K10: 0 | L10: 21 | N10: 22 | O10: =COUNTIF($L$7:$L$500,N10) -> 19 | P10: =O10/$Q$4 -> 0.2159090909 | Q10: =IF(P10=0,0,(P10*((LOG(P10))/LOG(2)))) -> -0.4774838409 | T10: =N10 -> 22 | U10: =COUNTIF(L7:L21,T10) -> 5 | V10: =U10/(W4-U8) -> 0.4166666667 | W10: =IF(V10=0,0,(V10*((LOG(V10))/LOG(2)))) -> -0.5262643358 | Y10: =N10 -> 22 | Z10: =COUNTIF(L22:L35,Y10) -> 6 | AA10: =Z10/(AB4-Z8) -> 0.5454545455 | AB10: =IF(AA10=0,0,(AA10*((LOG(AA10))/LOG(2)))) -> -0.4769831552 | AD10: =N10 -> 22 | AE10: =COUNTIF(L36:L50,AD10) -> 4 | AF10: =AE10/(AG4-AE8) -> 0.3076923077 | AG10: =IF(AF10=0,0,(AF10*((LOG(AF10))/LOG(2)))) -> -0.523212221 | AI10: =N10 -> 22 | AJ10: =COUNTIF(L51:L65,AI10) -> 2 | AK10: =AJ10/(AL4-AJ8) -> 0.5 | AL10: =IF(AK10=0,0,(AK10*((LOG(AK10))/LOG(2)))) -> -0.5 | AN10: =N10 -> 22 | AO10: =COUNTIF(L66:L79,AN10) -> 1 | AP10: =AO10/(AQ4-AO8) -> 0.1666666667 | AQ10: =IF(AP10=0,0,(AP10*((LOG(AP10))/LOG(2)))) -> -0.4308270835 | AS10: =N10 -> 22 | AT10: =COUNTIF(L80:L94,AS10) -> 1 | AU10: =AT10/(AV4-AT8) -> 0.5 | AV10: =IF(AU10=0,0,(AU10*((LOG(AU10))/LOG(2)))) -> -0.5
A11: 22 | B11: 462 | C11: 14 | D11: 470 | K11: 0 | L11: 21 | T11: =N11 -> 0 | U11: =COUNTIF(L7:L21,T11) -> 0 | V11: =U11/(W4-U8) -> 0 | W11: =IF(V11=0,0,(V11*((LOG(V11))/LOG(2)))) -> 0 | Y11: =N11 -> 0 | Z11: =COUNTIF(L22:L35,Y11) -> 0 | AA11: =Z11/(AB4-Z8) -> 0 | AB11: =IF(AA11=0,0,(AA11*((LOG(AA11))/LOG(2)))) -> 0 | AD11: =N11 -> 0 | AE11: =COUNTIF(L36:L50,AD11) -> 0 | AF11: =AE11/(AG4-AE8) -> 0 | AG11: =IF(AF11=0,0,(AF11*((LOG(AF11))/LOG(2)))) -> 0 | AI11: =N11 -> 0 | AJ11: =COUNTIF(L51:L65,AI11) -> 0 | AK11: =AJ11/(AL4-AJ8) -> 0 | AL11: =IF(AK11=0,0,(AK11*((LOG(AK11))/LOG(2)))) -> 0 | AN11: =N11 -> 0 | AO11: =COUNTIF(L66:L79,AN11) -> 0 | AP11: =AO11/(AQ4-AO8) -> 0 | AQ11: =IF(AP11=0,0,(AP11*((LOG(AP11))/LOG(2)))) -> 0 | AS11: =N11 -> 0 | AT11: =COUNTIF(L80:L94,AS11) -> 0 | AU11: =AT11/(AV4-AT8) -> 0 | AV11: =IF(AU11=0,0,(AU11*((LOG(AU11))/LOG(2)))) -> 0
A12: 11 | B12: 580 | C12: 21 | D12: 588 | K12: 0 | L12: 12 | T12: =N12 -> 0 | U12: =COUNTIF(L7:L21,T12) -> 0 | V12: =U12/(W4-U8) -> 0 | W12: =IF(V12=0,0,(V12*((LOG(V12))/LOG(2)))) -> 0 | Y12: =N12 -> 0 | Z12: =COUNTIF(L22:L35,Y12) -> 0 | AA12: =Z12/(AB4-Z8) -> 0 | AB12: =IF(AA12=0,0,(AA12*((LOG(AA12))/LOG(2)))) -> 0 | AD12: =N12 -> 0 | AE12: =COUNTIF(L36:L50,AD12) -> 0 | AF12: =AE12/(AG4-AE8) -> 0 | AG12: =IF(AF12=0,0,(AF12*((LOG(AF12))/LOG(2)))) -> 0 | AI12: =N12 -> 0 | AJ12: =COUNTIF(L51:L65,AI12) -> 0 | AK12: =AJ12/(AL4-AJ8) -> 0 | AL12: =IF(AK12=0,0,(AK12*((LOG(AK12))/LOG(2)))) -> 0 | AN12: =N12 -> 0 | AO12: =COUNTIF(L66:L79,AN12) -> 0 | AP12: =AO12/(AQ4-AO8) -> 0 | AQ12: =IF(AP12=0,0,(AP12*((LOG(AP12))/LOG(2)))) -> 0 | AS12: =N12 -> 0 | AT12: =COUNTIF(L80:L94,AS12) -> 0 | AU12: =AT12/(AV4-AT8) -> 0 | AV12: =IF(AU12=0,0,(AU12*((LOG(AU12))/LOG(2)))) -> 0
A13: 22 | B13: 682 | C13: 23 | D13: 688 | K13: 0 | L13: 22 | T13: =N13 -> 0 | U13: =COUNTIF(L7:L21,T13) -> 0 | V13: =U13/(W4-U8) -> 0 | W13: =IF(V13=0,0,(V13*((LOG(V13))/LOG(2)))) -> 0 | Y13: =N13 -> 0 | Z13: =COUNTIF(L22:L35,Y13) -> 0 | AA13: =Z13/(AB4-Z8) -> 0 | AB13: =IF(AA13=0,0,(AA13*((LOG(AA13))/LOG(2)))) -> 0 | AD13: =N13 -> 0 | AE13: =COUNTIF(L36:L50,AD13) -> 0 | AF13: =AE13/(AG4-AE8) -> 0 | AG13: =IF(AF13=0,0,(AF13*((LOG(AF13))/LOG(2)))) -> 0 | AI13: =N13 -> 0 | AJ13: =COUNTIF(L51:L65,AI13) -> 0 | AK13: =AJ13/(AL4-AJ8) -> 0 | AL13: =IF(AK13=0,0,(AK13*((LOG(AK13))/LOG(2)))) -> 0 | AN13: =N13 -> 0 | AO13: =COUNTIF(L66:L79,AN13) -> 0 | AP13: =AO13/(AQ4-AO8) -> 0 | AQ13: =IF(AP13=0,0,(AP13*((LOG(AP13))/LOG(2)))) -> 0 | AS13: =N13 -> 0 | AT13: =COUNTIF(L80:L94,AS13) -> 0 | AU13: =AT13/(AV4-AT8) -> 0 | AV13: =IF(AU13=0,0,(AU13*((LOG(AU13))/LOG(2)))) -> 0
A14: 22 | B14: 791 | C14: 14 | D14: 807 | K14: 0 | L14: 21 | T14: =N14 -> 0 | U14: =COUNTIF(L7:L21,T14) -> 0 | V14: =U14/(W4-U8) -> 0 | W14: =IF(V14=0,0,(V14*((LOG(V14))/LOG(2)))) -> 0 | Y14: =N14 -> 0 | Z14: =COUNTIF(L22:L35,Y14) -> 0 | AA14: =Z14/(AB4-Z8) -> 0 | AB14: =IF(AA14=0,0,(AA14*((LOG(AA14))/LOG(2)))) -> 0 | AD14: =N14 -> 0 | AE14: =COUNTIF(L36:L50,AD14) -> 0 | AF14: =AE14/(AG4-AE8) -> 0 | AG14: =IF(AF14=0,0,(AF14*((LOG(AF14))/LOG(2)))) -> 0 | AI14: =N14 -> 0 | AJ14: =COUNTIF(L51:L65,AI14) -> 0 | AK14: =AJ14/(AL4-AJ8) -> 0 | AL14: =IF(AK14=0,0,(AK14*((LOG(AK14))/LOG(2)))) -> 0 | AN14: =N14 -> 0 | AO14: =COUNTIF(L66:L79,AN14) -> 0 | AP14: =AO14/(AQ4-AO8) -> 0 | AQ14: =IF(AP14=0,0,(AP14*((LOG(AP14))/LOG(2)))) -> 0 | AS14: =N14 -> 0 | AT14: =COUNTIF(L80:L94,AS14) -> 0 | AU14: =AT14/(AV4-AT8) -> 0 | AV14: =IF(AU14=0,0,(AU14*((LOG(AU14))/LOG(2)))) -> 0
A15: 22 | B15: 905 | C15: 23 | D15: 912 | K15: 0 | L15: 22 | P15: =SUM(P7:P14) -> 1 | Q15: =-SUM(Q7:Q14) -> 1.593594296 | V15: =SUM(V7:V14) -> 1 | W15: =-SUM(W7:W14) -> 0.9798687567 | AA15: =SUM(AA7:AA14) -> 1 | AB15: =-SUM(AB7:AB14) -> 0.9940302115 | AF15: =SUM(AF7:AF14) -> 1 | AG15: =-SUM(AG7:AG14) -> 0.8904916402 | AK15: =SUM(AK7:AK14) -> 1 | AL15: =-SUM(AL7:AL14) -> 1 | AP15: =SUM(AP7:AP14) -> 1 | AQ15: =-SUM(AQ7:AQ14) -> 1.251629167 | AU15: =SUM(AU7:AU14) -> 1 | AV15: =-SUM(AV7:AV14) -> 1
A16: 22 | B16: 1016 | C16: 23 | D16: 1025 | K16: 0 | L16: 22 | P16: U= | Q16: =Q15/(LOG(Q4)/LOG(2)) -> 0.2467081301 | V16: U1= | W16: =W15/(LOG(W4)/LOG(2)) -> 0.2508052715 | AA16: U2= | AB16: =AB15/(LOG(AB4)/LOG(2)) -> 0.2610815729 | AF16: U3= | AG16: =AG15/(LOG(AG4)/LOG(2)) -> 0.2279284813 | AK16: U4= | AL16: =AL15/(LOG(AL4)/LOG(2)) -> 0.2559580248 | AP16: U5= | AQ16: =AQ15/(LOG(AQ4)/LOG(2)) -> 0.3287398189 | AU16: U6= | AV16: =AV15/(LOG(AV4)/LOG(2)) -> 0.2559580248
A17: 22 | B17: 1126 | C17: 14 | D17: 1137 | K17: 0 | L17: 21
A18: 11 | B18: 1229 | C18: 21 | D18: 1242 | K18: 0 | L18: 12
A19: 22 | B19: 1343 | C19: 23 | D19: 1351 | K19: 0 | L19: 22 | N19: Total Target Seq
A20: 22 | B20: 1461 | C20: 14 | D20: 1478 | K20: 0 | L20: 21 | N20: =COUNTIF(L7:L94,G3) -> 40 | P20: 15 | Q20: 14 | R20: 15 | S20: 15 | T20: 14 | U20: 15
A21: 22 | B21: 1573 | C21: 23 | D21: 1593 | K21: 0 | L21: 22 | P21: % of reinforcement given in 6 equal intervals based on number of trials
A22: 22 | B22: 1690 | C22: 14 | D22: 1699 | K22: 0 | L22: 21 | P22: %_1 | Q22: %_2 | R22: %_3 | S22: %_4 | T22: %_5 | U22: %_6
A23: 22 | B23: 1794 | C23: 14 | D23: 1803 | K23: 0 | L23: 21 | O23: target sequence | P23: =$G$3 -> 12 | Q23: =$G$3 -> 12 | R23: =$G$3 -> 12 | S23: =$G$3 -> 12 | T23: =$G$3 -> 12 | U23: =$G$3 -> 12
A24: 22 | B24: 1897 | C24: 23 | D24: 1912 | K24: 0 | L24: 22 | O24: total reinforcement | P24: =U8 -> 3 | Q24: =Z8 -> 3 | R24: =AE8 -> 2 | S24: =AJ8 -> 11 | T24: =AO8 -> 8 | U24: =AT8 -> 13
A25: 22 | B25: 2010 | C25: 14 | D25: 2020 | K25: 0 | L25: 21 | O25: % target
A26: 22 | B26: 2118 | C26: 23 | D26: 2133 | K26: 0 | L26: 22 | O26: CCRF
A27: 11 | B27: 2243 | C27: 21 | D27: 2251 | K27: 0 | L27: 12 | O27: % CCRf
A28: 22 | B28: 2345 | C28: 23 | D28: 2349 | K28: 0 | L28: 22 | O28: average response rate | P28: =D21/P20 -> 106.2 | Q28: =(D35-D21)/Q20 -> 109.9285714 | R28: =(D50-D35)/R20 -> 112.5333333 | S28: =(D65-D50)/S20 -> 112.6 | T28: =(D79-D65)/T20 -> 111.8571429 | U28: =(D94-D79)/U20 -> 105.2
A29: 22 | B29: 2449 | C29: 23 | D29: 2460 | K29: 0 | L29: 22
A30: 22 | B30: 2557 | C30: 23 | D30: 2573 | K30: 0 | L30: 22
A31: 22 | B31: 2670 | C31: 23 | D31: 2675 | K31: 0 | L31: 22
A32: 11 | B32: 2793 | C32: 21 | D32: 2801 | K32: 0 | L32: 12
A33: 11 | B33: 2907 | C33: 21 | D33: 2915 | K33: 0 | L33: 12
A34: 22 | B34: 3016 | C34: 14 | D34: 3025 | K34: 0 | L34: 21
A35: 22 | B35: 3124 | C35: 14 | D35: 3132 | K35: 0 | L35: 21
A36: 11 | B36: 3232 | C36: 21 | D36: 3240 | K36: 0 | L36: 12
A37: 22 | B37: 3327 | C37: 23 | D37: 3334 | K37: 0 | L37: 22
A38: 22 | B38: 3428 | C38: 14 | D38: 3436 | K38: 0 | L38: 21
A39: 22 | B39: 3544 | C39: 14 | D39: 3555 | K39: 0 | L39: 21
A40: 22 | B40: 3657 | C40: 14 | D40: 3666 | K40: 0 | L40: 21
A41: 22 | B41: 3767 | C41: 23 | D41: 3783 | K41: 0 | L41: 22
A42: 22 | B42: 3889 | C42: 14 | D42: 3897 | K42: 0 | L42: 21
A43: 22 | B43: 4003 | C43: 14 | D43: 4011 | K43: 0 | L43: 21
A44: 11 | B44: 4129 | C44: 21 | D44: 4139 | K44: 0 | L44: 12
A45: 22 | B45: 4242 | C45: 14 | D45: 4250 | K45: 0 | L45: 21
A46: 22 | B46: 4352 | C46: 14 | D46: 4364 | K46: 0 | L46: 21
A47: 22 | B47: 4461 | C47: 23 | D47: 4476 | K47: 0 | L47: 22
A48: 22 | B48: 4577 | C48: 14 | D48: 4585 | K48: 0 | L48: 21
A49: 22 | B49: 4693 | C49: 14 | D49: 4700 | K49: 0 | L49: 21
A50: 22 | B50: 4810 | C50: 23 | D50: 4820 | K50: 0 | L50: 22
A51: 11 | B51: 4933 | C51: 21 | D51: 4943 | K51: 0 | L51: 12
A52: 11 | B52: 5044 | C52: 21 | D52: 5054 | K52: 0 | L52: 12
A53: 22 | B53: 5157 | C53: 14 | D53: 5169 | K53: 0 | L53: 21
A54: 11 | B54: 5277 | C54: 21 | D54: 5285 | K54: 0 | L54: 12
A55: 22 | B55: 5387 | C55: 23 | D55: 5421 | K55: 0 | L55: 22
A56: 11 | B56: 5527 | C56: 21 | D56: 5534 | K56: 0 | L56: 12
A57: 11 | B57: 5629 | C57: 21 | D57: 5638 | K57: 0 | L57: 12
A58: 11 | B58: 5727 | C58: 21 | D58: 5743 | K58: 0 | L58: 12
A59: 22 | B59: 5828 | C59: 23 | D59: 5843 | K59: 0 | L59: 22
A60: 22 | B60: 5957 | C60: 14 | D60: 5986 | K60: 0 | L60: 21
A61: 11 | B61: 6091 | C61: 21 | D61: 6099 | K61: 0 | L61: 12
A62: 11 | B62: 6190 | C62: 21 | D62: 6198 | K62: 0 | L62: 12
A63: 11 | B63: 6297 | C63: 21 | D63: 6305 | K63: 0 | L63: 12
A64: 11 | B64: 6401 | C64: 21 | D64: 6411 | K64: 0 | L64: 12
A65: 11 | B65: 6501 | C65: 21 | D65: 6509 | K65: 0 | L65: 12
A66: 11 | B66: 6597 | C66: 21 | D66: 6604 | K66: 0 | L66: 12
A67: 22 | B67: 6710 | C67: 14 | D67: 6744 | K67: 0 | L67: 21
A68: 11 | B68: 6843 | C68: 21 | D68: 6851 | K68: 0 | L68: 12
A69: 22 | B69: 6950 | C69: 14 | D69: 6958 | K69: 0 | L69: 21
A70: 22 | B70: 7062 | C70: 23 | D70: 7077 | K70: 0 | L70: 22
A71: 11 | B71: 7180 | C71: 21 | D71: 7187 | K71: 0 | L71: 12
A72: 11 | B72: 7282 | C72: 21 | D72: 7291 | K72: 0 | L72: 12
A73: 11 | B73: 7388 | C73: 21 | D73: 7398 | K73: 0 | L73: 12
A74: 11 | B74: 7495 | C74: 21 | D74: 7503 | K74: 0 | L74: 12
A75: 11 | B75: 7590 | C75: 21 | D75: 7598 | K75: 0 | L75: 12
A76: 11 | B76: 7683 | C76: 12 | D76: 7693 | K76: 0 | L76: 11
A77: 22 | B77: 7800 | C77: 14 | D77: 7807 | K77: 0 | L77: 21
A78: 11 | B78: 7921 | C78: 21 | D78: 7929 | K78: 0 | L78: 12
A79: 22 | B79: 8042 | C79: 14 | D79: 8075 | K79: 0 | L79: 21
A80: 11 | B80: 8172 | C80: 21 | D80: 8180 | K80: 0 | L80: 12
A81: 11 | B81: 8278 | C81: 21 | D81: 8289 | K81: 0 | L81: 12
A82: 11 | B82: 8380 | C82: 21 | D82: 8388 | K82: 0 | L82: 12
A83: 11 | B83: 8476 | C83: 21 | D83: 8486 | K83: 0 | L83: 12
A84: 11 | B84: 8586 | C84: 21 | D84: 8593 | K84: 0 | L84: 12
A85: 11 | B85: 8688 | C85: 21 | D85: 8696 | K85: 0 | L85: 12
A86: 11 | B86: 8785 | C86: 21 | D86: 8793 | K86: 0 | L86: 12
A87: 11 | B87: 8889 | C87: 21 | D87: 8897 | K87: 0 | L87: 12
A88: 11 | B88: 8991 | C88: 21 | D88: 8999 | K88: 0 | L88: 12
A89: 11 | B89: 9096 | C89: 21 | D89: 9106 | K89: 0 | L89: 12
A90: 11 | B90: 9198 | C90: 21 | D90: 9206 | K90: 0 | L90: 12
A91: 22 | B91: 9295 | C91: 23 | D91: 9310 | K91: 0 | L91: 22
A92: 22 | B92: 9427 | C92: 14 | D92: 9438 | K92: 0 | L92: 21
A93: 11 | B93: 9545 | C93: 21 | D93: 9553 | K93: 0 | L93: 12
A94: 11 | B94: 9645 | C94: 21 | D94: 9653 | K94: 1 | L94: 12

Sheet !L811940.052
A1: Report for:!L811940.052
A2: Date: | B2: <date>
A3: Hen: | B3: <hen> | F3: Correct Sequence | G3: =Start!J2 -> 12 | P3: Total Sequences in Data | Q3: =4994-COUNTBLANK(L7:L5000) -> 58 | V3: Total Sequences in Block Data | W3: =COUNTA(L7:L16) -> 10 | AA3: Total Sequences in Block Data | AB3: =COUNTA(L17:L25) -> 9 | AF3: Total Sequences in Block Data | AG3: =COUNTA(L26:L35) -> 10 | AK3: Total Sequences in Block Data | AL3: =COUNTA(L36:L45) -> 10 | AP3: Total Sequences in Block Data | AQ3: =COUNTA(L46:L54) -> 9 | AU3: Total Sequences in Block Data | AV3: =COUNTA(L55:L64) -> 10
P4: Total Sequences in Summary | Q4: =SUM(O7:O14) -> 58 | V4: Total Sequences in Block Summary | W4: =SUM(U7:U14) -> 10 | AA4: Total Sequences in Block Summary | AB4: =SUM(Z7:Z14) -> 9 | AF4: Total Sequences in Block Summary | AG4: =SUM(AE7:AE14) -> 10 | AK4: Total Sequences in Block Summary | AL4: =SUM(AJ7:AJ14) -> 10 | AP4: Total Sequences in Block Summary | AQ4: =SUM(AO7:AO14) -> 9 | AU4: Total Sequences in Block Summary | AV4: =SUM(AT7:AT14) -> 10
T5: Block 1 | Y5: Block 2 | AD5: Block 3 | AI5: Block 4 | AN5: Block 5 | AS5: Block 6
A6: Sequence Component 1 | B6: Time 1 | C6: Sequence Component 2 | D6: Time 2 | E6: Sequence Component 3 | F6: Time 3 | G6: Sequence Component 4 | H6: Time 4 | I6: Sequence Component 5 | J6: Time 5 | K6: Correct? 0=No 1=Yes | L6: Sequence | N6: Frequency | P6: Relative Frequency | Q6: Variability | T6: Frequency | V6: Relative Frequency | W6: Variability | Y6: Frequency | AA6: Relative Frequency | AB6: Variability | AD6: Frequency | AF6: Relative Frequency | AG6: Variability | AI6: Frequency | AK6: Relative Frequency | AL6: Variability | AN6: Frequency | AP6: Relative Frequency | AQ6: Variability | AS6: Frequency | AU6: Relative Frequency | AV6: Variability
A7: 11 | B7: 16 | C7: 21 | D7: 24 | K7: 0 | L7: 12 | N7: 11 | O7: =COUNTIF($L$7:$L$500,N7) -> 10 | P7: =O7/$Q$4 -> 0.1724137931 | Q7: =IF(P7=0,0,(P7*((LOG(P7))/LOG(2)))) -> -0.4372505 | T7: =N7 -> 11 | U7: =COUNTIF(L7:L16,T7) -> 0 | V7: =U7/(W4-U8) -> 0 | W7: =IF(V7=0,0,(V7*((LOG(V7))/LOG(2)))) -> 0 | Y7: =N7 -> 11 | Z7: =COUNTIF(L17:L25,Y7) -> 0 | AA7: =Z7/(AB4-Z8) -> 0 | AB7: =IF(AA7=0,0,(AA7*((LOG(AA7))/LOG(2)))) -> 0 | AD7: =N7 -> 11 | AE7: =COUNTIF(L26:L35,AD7) -> 1 | AF7: =AE7/(AG4-AE8) -> 0.5 | AG7: =IF(AF7=0,0,(AF7*((LOG(AF7))/LOG(2)))) -> -0.5 | AI7: =N7 -> 11 | AJ7: =COUNTIF(L36:L45,AI7) -> 3 | AK7: =AJ7/(AL4-AJ8) -> 1 | AL7: =IF(AK7=0,0,(AK7*((LOG(AK7))/LOG(2)))) -> 0 | AN7: =N7 -> 11 | AO7: =COUNTIF(L46:L54,AN7) -> 3 | AP7: =AO7/(AQ4-AO8) -> 1 | AQ7: =IF(AP7=0,0,(AP7*((LOG(AP7))/LOG(2)))) -> 0 | AS7: =N7 -> 11 | AT7: =COUNTIF(L55:L64,AS7) -> 3 | AU7: =AT7/(AV4-AT8) -> 0.75 | AV7: =IF(AU7=0,0,(AU7*((LOG(AU7))/LOG(2)))) -> -0.3112781245
A8: 22 | B8: 126 | C8: 14 | D8: 138 | K8: 0 | L8: 21 | N8: 12 | O8: =COUNTIF($L$7:$L$500,N8) -> 40 | P8: =O8/$Q$4 -> 0.6896551724 | Q8: =IF(P8=0,0,(P8*((LOG(P8))/LOG(2)))) -> -0.3696916553 | T8: =N8 -> 12 | U8: =COUNTIF(L7:L16,T8) -> 6 | Y8: =N8 -> 12 | Z8: =COUNTIF(L17:L25,Y8) -> 7 | AD8: =N8 -> 12 | AE8: =COUNTIF(L26:L35,AD8) -> 8 | AI8: =N8 -> 12 | AJ8: =COUNTIF(L36:L45,AI8) -> 7 | AN8: =N8 -> 12 | AO8: =COUNTIF(L46:L54,AN8) -> 6 | AS8: =N8 -> 12 | AT8: =COUNTIF(L55:L64,AS8) -> 6
A9: 11 | B9: 236 | C9: 21 | D9: 245 | K9: 0 | L9: 12 | N9: 21 | O9: =COUNTIF($L$7:$L$500,N9) -> 5 | P9: =O9/$Q$4 -> 0.08620689655 | Q9: =IF(P9=0,0,(P9*((LOG(P9))/LOG(2)))) -> -0.3048321466 | T9: =N9 -> 21 | U9: =COUNTIF(L7:L16,T9) -> 2 | V9: =U9/(W4-U8) -> 0.5 | W9: =IF(V9=0,0,(V9*((LOG(V9))/LOG(2)))) -> -0.5 | Y9: =N9 -> 21 | Z9: =COUNTIF(L17:L25,Y9) -> 1 | AA9: =Z9/(AB4-Z8) -> 0.5 | AB9: =IF(AA9=0,0,(AA9*((LOG(AA9))/LOG(2)))) -> -0.5 | AD9: =N9 -> 21 | AE9: =COUNTIF(L26:L35,AD9) -> 1 | AF9: =AE9/(AG4-AE8) -> 0.5 | AG9: =IF(AF9=0,0,(AF9*((LOG(AF9))/LOG(2)))) -> -0.5 | AI9: =N9 -> 21 | AJ9: =COUNTIF(L36:L45,AI9) -> 0 | AK9: =AJ9/(AL4-AJ8) -> 0 | AL9: =IF(AK9=0,0,(AK9*((LOG(AK9))/LOG(2)))) -> 0 | AN9: =N9 -> 21 | AO9: =COUNTIF(L46:L54,AN9) -> 0 | AP9: =AO9/(AQ4-AO8) -> 0 | AQ9: =IF(AP9=0,0,(AP9*((LOG(AP9))/LOG(2)))) -> 0 | AS9: =N9 -> 21 | AT9: =COUNTIF(L55:L64,AS9) -> 1 | AU9: =AT9/(AV4-AT8) -> 0.25 | AV9: =IF(AU9=0,0,(AU9*((LOG(AU9))/LOG(2)))) -> -0.5
A10: 22 | B10: 345 | C10: 23 | D10: 362 | K10: 0 | L10: 22 | N10: 22 | O10: =COUNTIF($L$7:$L$500,N10) -> 3 | P10: =O10/$Q$4 -> 0.05172413793 | Q10: =IF(P10=0,0,(P10*((LOG(P10))/LOG(2)))) -> -0.221018198 | T10: =N10 -> 22 | U10: =COUNTIF(L7:L16,T10) -> 2 | V10: =U10/(W4-U8) -> 0.5 | W10: =IF(V10=0,0,(V10*((LOG(V10))/LOG(2)))) -> -0.5 | Y10: =N10 -> 22 | Z10: =COUNTIF(L17:L25,Y10) -> 1 | AA10: =Z10/(AB4-Z8) -> 0.5 | AB10: =IF(AA10=0,0,(AA10*((LOG(AA10))/LOG(2)))) -> -0.5 | AD10: =N10 -> 22 | AE10: =COUNTIF(L26:L35,AD10) -> 0 | AF10: =AE10/(AG4-AE8) -> 0 | AG10: =IF(AF10=0,0,(AF10*((LOG(AF10))/LOG(2)))) -> 0 | AI10: =N10 -> 22 | AJ10: =COUNTIF(L36:L45,AI10) -> 0 | AK10: =AJ10/(AL4-AJ8) -> 0 | AL10: =IF(AK10=0,0,(AK10*((LOG(AK10))/LOG(2)))) -> 0 | AN10: =N10 -> 22 | AO10: =COUNTIF(L46:L54,AN10) -> 0 | AP10: =AO10/(AQ4-AO8) -> 0 | AQ10: =IF(AP10=0,0,(AP10*((LOG(AP10))/LOG(2)))) -> 0 | AS10: =N10 -> 22 | AT10: =COUNTIF(L55:L64,AS10) -> 0 | AU10: =AT10/(AV4-AT8) -> 0 | AV10: =IF(AU10=0,0,(AU10*((LOG(AU10))/LOG(2)))) -> 0
A11: 22 | B11: 469 | C11: 14 | D11: 478 | K11: 0 | L11: 21 | T11: =N11 -> 0 | U11: =COUNTIF(L7:L16,T11) -> 0 | V11: =U11/(W4-U8) -> 0 | W11: =IF(V11=0,0,(V11*((LOG(V11))/LOG(2)))) -> 0 | Y11: =N11 -> 0 | Z11: =COUNTIF(L17:L25,Y11) -> 0 | AA11: =Z11/(AB4-Z8) -> 0 | AB11: =IF(AA11=0,0,(AA11*((LOG(AA11))/LOG(2)))) -> 0 | AD11: =N11 -> 0 | AE11: =COUNTIF(L26:L35,AD11) -> 0 | AF11: =AE11/(AG4-AE8) -> 0 | AG11: =IF(AF11=0,0,(AF11*((LOG(AF11))/LOG(2)))) -> 0 | AI11: =N11 -> 0 | AJ11: =COUNTIF(L36:L45,AI11) -> 0 | AK11: =AJ11/(AL4-AJ8) -> 0 | AL11: =IF(AK11=0,0,(AK11*((LOG(AK11))/LOG(2)))) -> 0 | AN11: =N11 -> 0 | AO11: =COUNTIF(L46:L54,AN11) -> 0 | AP11: =AO11/(AQ4-AO8) -> 0 | AQ11: =IF(AP11=0,0,(AP11*((LOG(AP11))/LOG(2)))) -> 0 | AS11: =N11 -> 0 | AT11: =COUNTIF(L55:L64,AS11) -> 0 | AU11: =AT11/(AV4-AT8) -> 0 | AV11: =IF(AU11=0,0,(AU11*((LOG(AU11))/LOG(2)))) -> 0
A12: 11 | B12: 575 | C12: 21 | D12: 584 | K12: 0 | L12: 12 | T12: =N12 -> 0 | U12: =COUNTIF(L7:L16,T12) -> 0 | V12: =U12/(W4-U8) -> 0 | W12: =IF(V12=0,0,(V12*((LOG(V12))/LOG(2)))) -> 0 | Y12: =N12 -> 0 | Z12: =COUNTIF(L17:L25,Y12) -> 0 | AA12: =Z12/(AB4-Z8) -> 0 | AB12: =IF(AA12=0,0,(AA12*((LOG(AA12))/LOG(2)))) -> 0 | AD12: =N12 -> 0 | AE12: =COUNTIF(L26:L35,AD12) -> 0 | AF12: =AE12/(AG4-AE8) -> 0 | AG12: =IF(AF12=0,0,(AF12*((LOG(AF12))/LOG(2)))) -> 0 | AI12: =N12 -> 0 | AJ12: =COUNTIF(L36:L45,AI12) -> 0 | AK12: =AJ12/(AL4-AJ8) -> 0 | AL12: =IF(AK12=0,0,(AK12*((LOG(AK12))/LOG(2)))) -> 0 | AN12: =N12 -> 0 | AO12: =COUNTIF(L46:L54,AN12) -> 0 | AP12: =AO12/(AQ4-AO8) -> 0 | AQ12: =IF(AP12=0,0,(AP12*((LOG(AP12))/LOG(2)))) -> 0 | AS12: =N12 -> 0 | AT12: =COUNTIF(L55:L64,AS12) -> 0 | AU12: =AT12/(AV4-AT8) -> 0 | AV12: =IF(AU12=0,0,(AU12*((LOG(AU12))/LOG(2)))) -> 0
A13: 11 | B13: 686 | C13: 21 | D13: 694 | K13: 0 | L13: 12 | T13: =N13 -> 0 | U13: =COUNTIF(L7:L16,T13) -> 0 | V13: =U13/(W4-U8) -> 0 | W13: =IF(V13=0,0,(V13*((LOG(V13))/LOG(2)))) -> 0 | Y13: =N13 -> 0 | Z13: =COUNTIF(L17:L25,Y13) -> 0 | AA13: =Z13/(AB4-Z8) -> 0 | AB13: =IF(AA13=0,0,(AA13*((LOG(AA13))/LOG(2)))) -> 0 | AD13: =N13 -> 0 | AE13: =COUNTIF(L26:L35,AD13) -> 0 | AF13: =AE13/(AG4-AE8) -> 0 | AG13: =IF(AF13=0,0,(AF13*((LOG(AF13))/LOG(2)))) -> 0 | AI13: =N13 -> 0 | AJ13: =COUNTIF(L36:L45,AI13) -> 0 | AK13: =AJ13/(AL4-AJ8) -> 0 | AL13: =IF(AK13=0,0,(AK13*((LOG(AK13))/LOG(2)))) -> 0 | AN13: =N13 -> 0 | AO13: =COUNTIF(L46:L54,AN13) -> 0 | AP13: =AO13/(AQ4-AO8) -> 0 | AQ13: =IF(AP13=0,0,(AP13*((LOG(AP13))/LOG(2)))) -> 0 | AS13: =N13 -> 0 | AT13: =COUNTIF(L55:L64,AS13) -> 0 | AU13: =AT13/(AV4-AT8) -> 0 | AV13: =IF(AU13=0,0,(AU13*((LOG(AU13))/LOG(2)))) -> 0
A14: 11 | B14: 782 | C14: 21 | D14: 790 | K14: 0 | L14: 12 | T14: =N14 -> 0 | U14: =COUNTIF(L7:L16,T14) -> 0 | V14: =U14/(W4-U8) -> 0 | W14: =IF(V14=0,0,(V14*((LOG(V14))/LOG(2)))) -> 0 | Y14: =N14 -> 0 | Z14: =COUNTIF(L17:L25,Y14) -> 0 | AA14: =Z14/(AB4-Z8) -> 0 | AB14: =IF(AA14=0,0,(AA14*((LOG(AA14))/LOG(2)))) -> 0 | AD14: =N14 -> 0 | AE14: =COUNTIF(L26:L35,AD14) -> 0 | AF14: =AE14/(AG4-AE8) -> 0 | AG14: =IF(AF14=0,0,(AF14*((LOG(AF14))/LOG(2)))) -> 0 | AI14: =N14 -> 0 | AJ14: =COUNTIF(L36:L45,AI14) -> 0 | AK14: =AJ14/(AL4-AJ8) -> 0 | AL14: =IF(AK14=0,0,(AK14*((LOG(AK14))/LOG(2)))) -> 0 | AN14: =N14 -> 0 | AO14: =COUNTIF(L46:L54,AN14) -> 0 | AP14: =AO14/(AQ4-AO8) -> 0 | AQ14: =IF(AP14=0,0,(AP14*((LOG(AP14))/LOG(2)))) -> 0 | AS14: =N14 -> 0 | AT14: =COUNTIF(L55:L64,AS14) -> 0 | AU14: =AT14/(AV4-AT8) -> 0 | AV14: =IF(AU14=0,0,(AU14*((LOG(AU14))/LOG(2)))) -> 0
A15: 11 | B15: 878 | C15: 21 | D15: 886 | K15: 0 | L15: 12 | P15: =SUM(P7:P14) -> 1 | Q15: =-SUM(Q7:Q14) -> 1.3327925 | V15: =SUM(V7:V14) -> 1 | W15: =-SUM(W7:W14) -> 1 | AA15: =SUM(AA7:AA14) -> 1 | AB15: =-SUM(AB7:AB14) -> 1 | AF15: =SUM(AF7:AF14) -> 1 | AG15: =-SUM(AG7:AG14) -> 1 | AK15: =SUM(AK7:AK14) -> 1 | AL15: =-SUM(AL7:AL14) -> 0 | AP15: =SUM(AP7:AP14) -> 1 | AQ15: =-SUM(AQ7:AQ14) -> 0 | AU15: =SUM(AU7:AU14) -> 1 | AV15: =-SUM(AV7:AV14) -> 0.8112781245
A16: 22 | B16: 972 | C16: 23 | D16: 988 | K16: 0 | L16: 22 | P16: U= | Q16: =Q15/(LOG(Q4)/LOG(2)) -> 0.227517382 | V16: U1= | W16: =W15/(LOG(W4)/LOG(2)) -> 0.3010299957 | AA16: U2= | AB16: =AB15/(LOG(AB4)/LOG(2)) -> 0.3154648768 | AF16: U3= | AG16: =AG15/(LOG(AG4)/LOG(2)) -> 0.3010299957 | AK16: U4= | AL16: =AL15/(LOG(AL4)/LOG(2)) -> 0 | AP16: U5= | AQ16: =AQ15/(LOG(AQ4)/LOG(2)) -> 0 | AU16: U6= | AV16: =AV15/(LOG(AV4)/LOG(2)) -> 0.2442190503
A17: 22 | B17: 1087 | C17: 14 | D17: 1096 | K17: 0 | L17: 21
A18: 11 | B18: 1196 | C18: 21 | D18: 1204 | K18: 0 | L18: 12
A19: 22 | B19: 1306 | C19: 23 | D19: 1337 | K19: 0 | L19: 22 | N19: Total Target Seq
A20: 11 | B20: 1437 | C20: 21 | D20: 1445 | K20: 0 | L20: 12 | N20: =COUNTIF(L7:L64,G3) -> 40 | P20: 10 | Q20: 9 | R20: 10 | S20: 10 | T20: 9 | U20: 10
A21: 11 | B21: 1547 | C21: 21 | D21: 1554 | K21: 0 | L21: 12 | P21: % of reinforcement given in 6 equal intervals based on number of trials
A22: 11 | B22: 1658 | C22: 21 | D22: 1666 | K22: 0 | L22: 12 | P22: %_1 | Q22: %_2 | R22: %_3 | S22: %_4 | T22: %_5 | U22: %_6
A23: 11 | B23: 1766 | C23: 21 | D23: 1774 | K23: 0 | L23: 12 | O23: target sequence | P23: =$G$3 -> 12 | Q23: =$G$3 -> 12 | R23: =$G$3 -> 12 | S23: =$G$3 -> 12 | T23: =$G$3 -> 12 | U23: =$G$3 -> 12
A24: 11 | B24: 1869 | C24: 21 | D24: 1878 | K24: 0 | L24: 12 | O24: total reinforcement | P24: =U8 -> 6 | Q24: =Z8 -> 7 | R24: =AE8 -> 8 | S24: =AJ8 -> 7 | T24: =AO8 -> 6 | U24: =AT8 -> 6
A25: 11 | B25: 1966 | C25: 21 | D25: 1974 | K25: 0 | L25: 12 | O25: % target
A26: 11 | B26: 2074 | C26: 21 | D26: 2082 | K26: 0 | L26: 12 | O26: CCRF
A27: 11 | B27: 2181 | C27: 21 | D27: 2190 | K27: 0 | L27: 12 | O27: % CCRf
A28: 11 | B28: 2279 | C28: 21 | D28: 2290 | K28: 0 | L28: 12 | O28: average response rate | P28: =D16/P20 -> 98.8 | Q28: =(D25-D16)/Q20 -> 109.5555556 | R28: =(D35-D25)/R20 -> 104.8 | S28: =(D45-D35)/S20 -> 115.6 | T28: =(D54-D45)/T20 -> 100.8888889 | U28: =(D64-D54)/U20 -> 102
A29: 11 | B29: 2395 | C29: 21 | D29: 2403 | K29: 0 | L29: 12
A30: 11 | B30: 2495 | C30: 21 | D30: 2503 | K30: 0 | L30: 12
A31: 11 | B31: 2592 | C31: 21 | D31: 2600 | K31: 0 | L31: 12
A32: 11 | B32: 2690 | C32: 12 | D32: 2698 | K32: 0 | L32: 11
A33: 22 | B33: 2796 | C33: 14 | D33: 2805 | K33: 0 | L33: 21
A34: 11 | B34: 2910 | C34: 21 | D34: 2919 | K34: 0 | L34: 12
A35: 11 | B35: 3012 | C35: 21 | D35: 3022 | K35: 0 | L35: 12
A36: 11 | B36: 3203 | C36: 21 | D36: 3211 | K36: 0 | L36: 12
A37: 11 | B37: 3301 | C37: 21 | D37: 3310 | K37: 0 | L37: 12
A38: 11 | B38: 3400 | C38: 12 | D38: 3408 | K38: 0 | L38: 11
A39: 11 | B39: 3510 | C39: 12 | D39: 3516 | K39: 0 | L39: 11
A40: 11 | B40: 3619 | C40: 21 | D40: 3627 | K40: 0 | L40: 12
A41: 11 | B41: 3722 | C41: 21 | D41: 3738 | K41: 0 | L41: 12
A42: 11 | B42: 3827 | C42: 21 | D42: 3855 | K42: 0 | L42: 12
A43: 11 | B43: 3944 | C43: 12 | D43: 3954 | K43: 0 | L43: 11
A44: 11 | B44: 4056 | C44: 21 | D44: 4068 | K44: 0 | L44: 12
A45: 11 | B45: 4168 | C45: 21 | D45: 4178 | K45: 0 | L45: 12
A46: 11 | B46: 4268 | C46: 12 | D46: 4275 | K46: 0 | L46: 11
A47: 11 | B47: 4375 | C47: 21 | D47: 4383 | K47: 0 | L47: 12
A48: 11 | B48: 4472 | C48: 21 | D48: 4479 | K48: 0 | L48: 12
A49: 11 | B49: 4569 | C49: 12 | D49: 4578 | K49: 0 | L49: 11
A50: 11 | B50: 4676 | C50: 21 | D50: 4683 | K50: 0 | L50: 12
A51: 11 | B51: 4771 | C51: 21 | D51: 4781 | K51: 0 | L51: 12
A52: 11 | B52: 4870 | C52: 12 | D52: 4875 | K52: 0 | L52: 11
A53: 11 | B53: 4972 | C53: 21 | D53: 4980 | K53: 0 | L53: 12
A54: 11 | B54: 5075 | C54: 21 | D54: 5086 | K54: 0 | L54: 12
A55: 11 | B55: 5177 | C55: 12 | D55: 5182 | K55: 0 | L55: 11
A56: 11 | B56: 5282 | C56: 12 | D56: 5286 | K56: 0 | L56: 11
A57: 11 | B57: 5383 | C57: 21 | D57: 5390 | K57: 0 | L57: 12
A58: 22 | B58: 5486 | C58: 14 | D58: 5494 | K58: 0 | L58: 21
A59: 11 | B59: 5593 | C59: 21 | D59: 5601 | K59: 0 | L59: 12
A60: 11 | B60: 5695 | C60: 21 | D60: 5703 | K60: 0 | L60: 12
A61: 11 | B61: 5796 | C61: 12 | D61: 5805 | K61: 0 | L61: 11
A62: 11 | B62: 5902 | C62: 21 | D62: 5910 | K62: 0 | L62: 12
A63: 11 | B63: 5998 | C63: 21 | D63: 6010 | K63: 0 | L63: 12
A64: 11 | B64: 6098 | C64: 21 | D64: 6106 | K64: 1 | L64: 12

Sheet !L812910.052
A1: Report for:!L812910.052
A2: Date: | B2: <date>
A3: Hen: | B3: <hen> | F3: Correct Sequence | G3: =Start!J2 -> 12 | P3: Total Sequences in Data | Q3: =4994-COUNTBLANK(L7:L5000) -> 53 | V3: Total Sequences in Block Data | W3: =COUNTA(L7:L15) -> 9 | AA3: Total Sequences in Block Data | AB3: =COUNTA(L16:L24) -> 9 | AF3: Total Sequences in Block Data | AG3: =COUNTA(L25:L32) -> 8 | AK3: Total Sequences in Block Data | AL3: =COUNTA(L33:L41) -> 9 | AP3: Total Sequences in Block Data | AQ3: =COUNTA(L42:L50) -> 9 | AU3: Total Sequences in Block Data | AV3: =COUNTA(L51:L59) -> 9
P4: Total Sequences in Summary | Q4: =SUM(O7:O14) -> 53 | V4: Total Sequences in Block Summary | W4: =SUM(U7:U14) -> 9 | AA4: Total Sequences in Block Summary | AB4: =SUM(Z7:Z14) -> 9 | AF4: Total Sequences in Block Summary | AG4: =SUM(AE7:AE14) -> 8 | AK4: Total Sequences in Block Summary | AL4: =SUM(AJ7:AJ14) -> 9 | AP4: Total Sequences in Block Summary | AQ4: =SUM(AO7:AO14) -> 9 | AU4: Total Sequences in Block Summary | AV4: =SUM(AT7:AT14) -> 9
T5: Block 1 | Y5: Block 2 | AD5: Block 3 | AI5: Block 4 | AN5: Block 5 | AS5: Block 6
A6: Sequence Component 1 | B6: Time 1 | C6: Sequence Component 2 | D6: Time 2 | E6: Sequence Component 3 | F6: Time 3 | G6: Sequence Component 4 | H6: Time 4 | I6: Sequence Component 5 | J6: Time 5 | K6: Correct? 0=No 1=Yes | L6: Sequence | N6: Frequency | P6: Relative Frequency | Q6: Variability | T6: Frequency | V6: Relative Frequency | W6: Variability | Y6: Frequency | AA6: Relative Frequency | AB6: Variability | AD6: Frequency | AF6: Relative Frequency | AG6: Variability | AI6: Frequency | AK6: Relative Frequency | AL6: Variability | AN6: Frequency | AP6: Relative Frequency | AQ6: Variability | AS6: Frequency | AU6: Relative Frequency | AV6: Variability
A7: 11 | B7: 10 | C7: 12 | D7: 18 | K7: 0 | L7: 11 | N7: 11 | O7: =COUNTIF($L$7:$L$500,N7) -> 5 | P7: =O7/$Q$4 -> 0.09433962264 | Q7: =IF(P7=0,0,(P7*((LOG(P7))/LOG(2)))) -> -0.3213200339 | T7: =N7 -> 11 | U7: =COUNTIF(L7:L15,T7) -> 1 | V7: =U7/(W4-U8) -> 0.2 | W7: =IF(V7=0,0,(V7*((LOG(V7))/LOG(2)))) -> -0.464385619 | Y7: =N7 -> 11 | Z7: =COUNTIF(L16:L24,Y7) -> 1 | AA7: =Z7/(AB4-Z8) -> 0.5 | AB7: =IF(AA7=0,0,(AA7*((LOG(AA7))/LOG(2)))) -> -0.5 | AD7: =N7 -> 11 | AE7: =COUNTIF(L25:L32,AD7) -> 0 | AF7: =AE7/(AG4-AE8) -> 0 | AG7: =IF(AF7=0,0,(AF7*((LOG(AF7))/LOG(2)))) -> 0 | AI7: =N7 -> 11 | AJ7: =COUNTIF(L33:L41,AI7) -> 1 | AK7: =AJ7/(AL4-AJ8) -> 0.5 | AL7: =IF(AK7=0,0,(AK7*((LOG(AK7))/LOG(2)))) -> -0.5 | AN7: =N7 -> 11 | AO7: =COUNTIF(L42:L50,AN7) -> 2 | AP7: =AO7/(AQ4-AO8) -> 1 | AQ7: =IF(AP7=0,0,(AP7*((LOG(AP7))/LOG(2)))) -> 0 | AS7: =N7 -> 11 | AT7: =COUNTIF(L51:L59,AS7) -> 0 | AU7: =AT7/(AV4-AT8) -> 0 | AV7: =IF(AU7=0,0,(AU7*((LOG(AU7))/LOG(2)))) -> 0
A8: 11 | B8: 117 | C8: 21 | D8: 124 | K8: 0 | L8: 12 | N8: 12 | O8: =COUNTIF($L$7:$L$500,N8) -> 40 | P8: =O8/$Q$4 -> 0.7547169811 | Q8: =IF(P8=0,0,(P8*((LOG(P8))/LOG(2)))) -> -0.3064093281 | T8: =N8 -> 12 | U8: =COUNTIF(L7:L15,T8) -> 4 | Y8: =N8 -> 12 | Z8: =COUNTIF(L16:L24,Y8) -> 7 | AD8: =N8 -> 12 | AE8: =COUNTIF(L25:L32,AD8) -> 7 | AI8: =N8 -> 12 | AJ8: =COUNTIF(L33:L41,AI8) -> 7 | AN8: =N8 -> 12 | AO8: =COUNTIF(L42:L50,AN8) -> 7 | AS8: =N8 -> 12 | AT8: =COUNTIF(L51:L59,AS8) -> 8
A9: 11 | B9: 219 | C9: 21 | D9: 228 | K9: 0 | L9: 12 | N9: 21 | O9: =COUNTIF($L$7:$L$500,N9) -> 4 | P9: =O9/$Q$4 -> 0.07547169811 | Q9: =IF(P9=0,0,(P9*((LOG(P9))/LOG(2)))) -> -0.2813524871 | T9: =N9 -> 21 | U9: =COUNTIF(L7:L15,T9) -> 2 | V9: =U9/(W4-U8) -> 0.4 | W9: =IF(V9=0,0,(V9*((LOG(V9))/LOG(2)))) -> -0.528771238 | Y9: =N9 -> 21 | Z9: =COUNTIF(L16:L24,Y9) -> 0 | AA9: =Z9/(AB4-Z8) -> 0 | AB9: =IF(AA9=0,0,(AA9*((LOG(AA9))/LOG(2)))) -> 0 | AD9: =N9 -> 21 | AE9: =COUNTIF(L25:L32,AD9) -> 1 | AF9: =AE9/(AG4-AE8) -> 1 | AG9: =IF(AF9=0,0,(AF9*((LOG(AF9))/LOG(2)))) -> 0 | AI9: =N9 -> 21 | AJ9: =COUNTIF(L33:L41,AI9) -> 1 | AK9: =AJ9/(AL4-AJ8) -> 0.5 | AL9: =IF(AK9=0,0,(AK9*((LOG(AK9))/LOG(2)))) -> -0.5 | AN9: =N9 -> 21 | AO9: =COUNTIF(L42:L50,AN9) -> 0 | AP9: =AO9/(AQ4-AO8) -> 0 | AQ9: =IF(AP9=0,0,(AP9*((LOG(AP9))/LOG(2)))) -> 0 | AS9: =N9 -> 21 | AT9: =COUNTIF(L51:L59,AS9) -> 0 | AU9: =AT9/(AV4-AT8) -> 0 | AV9: =IF(AU9=0,0,(AU9*((LOG(AU9))/LOG(2)))) -> 0
A10: 22 | B10: 315 | C10: 14 | D10: 323 | K10: 0 | L10: 21 | N10: 22 | O10: =COUNTIF($L$7:$L$500,N10) -> 4 | P10: =O10/$Q$4 -> 0.07547169811 | Q10: =IF(P10=0,0,(P10*((LOG(P10))/LOG(2)))) -> -0.2813524871 | T10: =N10 -> 22 | U10: =COUNTIF(L7:L15,T10) -> 2 | V10: =U10/(W4-U8) -> 0.4 | W10: =IF(V10=0,0,(V10*((LOG(V10))/LOG(2)))) -> -0.528771238 | Y10: =N10 -> 22 | Z10: =COUNTIF(L16:L24,Y10) -> 1 | AA10: =Z10/(AB4-Z8) -> 0.5 | AB10: =IF(AA10=0,0,(AA10*((LOG(AA10))/LOG(2)))) -> -0.5 | AD10: =N10 -> 22 | AE10: =COUNTIF(L25:L32,AD10) -> 0 | AF10: =AE10/(AG4-AE8) -> 0 | AG10: =IF(AF10=0,0,(AF10*((LOG(AF10))/LOG(2)))) -> 0 | AI10: =N10 -> 22 | AJ10: =COUNTIF(L33:L41,AI10) -> 0 | AK10: =AJ10/(AL4-AJ8) -> 0 | AL10: =IF(AK10=0,0,(AK10*((LOG(AK10))/LOG(2)))) -> 0 | AN10: =N10 -> 22 | AO10: =COUNTIF(L42:L50,AN10) -> 0 | AP10: =AO10/(AQ4-AO8) -> 0 | AQ10: =IF(AP10=0,0,(AP10*((LOG(AP10))/LOG(2)))) -> 0 | AS10: =N10 -> 22 | AT10: =COUNTIF(L51:L59,AS10) -> 1 | AU10: =AT10/(AV4-AT8) -> 1 | AV10: =IF(AU10=0,0,(AU10*((LOG(AU10))/LOG(2)))) -> 0
A11: 22 | B11: 429 | C11: 23 | D11: 449 | K11: 0 | L11: 22 | T11: =N11 -> 0 | U11: =COUNTIF(L7:L15,T11) -> 0 | V11: =U11/(W4-U8) -> 0 | W11: =IF(V11=0,0,(V11*((LOG(V11))/LOG(2)))) -> 0 | Y11: =N11 -> 0 | Z11: =COUNTIF(L16:L24,Y11) -> 0 | AA11: =Z11/(AB4-Z8) -> 0 | AB11: =IF(AA11=0,0,(AA11*((LOG(AA11))/LOG(2)))) -> 0 | AD11: =N11 -> 0 | AE11: =COUNTIF(L25:L32,AD11) -> 0 | AF11: =AE11/(AG4-AE8) -> 0 | AG11: =IF(AF11=0,0,(AF11*((LOG(AF11))/LOG(2)))) -> 0 | AI11: =N11 -> 0 | AJ11: =COUNTIF(L33:L41,AI11) -> 0 | AK11: =AJ11/(AL4-AJ8) -> 0 | AL11: =IF(AK11=0,0,(AK11*((LOG(AK11))/LOG(2)))) -> 0 | AN11: =N11 -> 0 | AO11: =COUNTIF(L42:L50,AN11) -> 0 | AP11: =AO11/(AQ4-AO8) -> 0 | AQ11: =IF(AP11=0,0,(AP11*((LOG(AP11))/LOG(2)))) -> 0 | AS11: =N11 -> 0 | AT11: =COUNTIF(L51:L59,AS11) -> 0 | AU11: =AT11/(AV4-AT8) -> 0 | AV11: =IF(AU11=0,0,(AU11*((LOG(AU11))/LOG(2)))) -> 0
A12: 11 | B12: 555 | C12: 21 | D12: 564 | K12: 0 | L12: 12 | T12: =N12 -> 0 | U12: =COUNTIF(L7:L15,T12) -> 0 | V12: =U12/(W4-U8) -> 0 | W12: =IF(V12=0,0,(V12*((LOG(V12))/LOG(2)))) -> 0 | Y12: =N12 -> 0 | Z12: =COUNTIF(L16:L24,Y12) -> 0 | AA12: =Z12/(AB4-Z8) -> 0 | AB12: =IF(AA12=0,0,(AA12*((LOG(AA12))/LOG(2)))) -> 0 | AD12: =N12 -> 0 | AE12: =COUNTIF(L25:L32,AD12) -> 0 | AF12: =AE12/(AG4-AE8) -> 0 | AG12: =IF(AF12=0,0,(AF12*((LOG(AF12))/LOG(2)))) -> 0 | AI12: =N12 -> 0 | AJ12: =COUNTIF(L33:L41,AI12) -> 0 | AK12: =AJ12/(AL4-AJ8) -> 0 | AL12: =IF(AK12=0,0,(AK12*((LOG(AK12))/LOG(2)))) -> 0 | AN12: =N12 -> 0 | AO12: =COUNTIF(L42:L50,AN12) -> 0 | AP12: =AO12/(AQ4-AO8) -> 0 | AQ12: =IF(AP12=0,0,(AP12*((LOG(AP12))/LOG(2)))) -> 0 | AS12: =N12 -> 0 | AT12: =COUNTIF(L51:L59,AS12) -> 0 | AU12: =AT12/(AV4-AT8) -> 0 | AV12: =IF(AU12=0,0,(AU12*((LOG(AU12))/LOG(2)))) -> 0
A13: 11 | B13: 660 | C13: 21 | D13: 668 | K13: 0 | L13: 12 | T13: =N13 -> 0 | U13: =COUNTIF(L7:L15,T13) -> 0 | V13: =U13/(W4-U8) -> 0 | W13: =IF(V13=0,0,(V13*((LOG(V13))/LOG(2)))) -> 0 | Y13: =N13 -> 0 | Z13: =COUNTIF(L16:L24,Y13) -> 0 | AA13: =Z13/(AB4-Z8) -> 0 | AB13: =IF(AA13=0,0,(AA13*((LOG(AA13))/LOG(2)))) -> 0 | AD13: =N13 -> 0 | AE13: =COUNTIF(L25:L32,AD13) -> 0 | AF13: =AE13/(AG4-AE8) -> 0 | AG13: =IF(AF13=0,0,(AF13*((LOG(AF13))/LOG(2)))) -> 0 | AI13: =N13 -> 0 | AJ13: =COUNTIF(L33:L41,AI13) -> 0 | AK13: =AJ13/(AL4-AJ8) -> 0 | AL13: =IF(AK13=0,0,(AK13*((LOG(AK13))/LOG(2)))) -> 0 | AN13: =N13 -> 0 | AO13: =COUNTIF(L42:L50,AN13) -> 0 | AP13: =AO13/(AQ4-AO8) -> 0 | AQ13: =IF(AP13=0,0,(AP13*((LOG(AP13))/LOG(2)))) -> 0 | AS13: =N13 -> 0 | AT13: =COUNTIF(L51:L59,AS13) -> 0 | AU13: =AT13/(AV4-AT8) -> 0 | AV13: =IF(AU13=0,0,(AU13*((LOG(AU13))/LOG(2)))) -> 0
A14: 22 | B14: 770 | C14: 23 | D14: 788 | K14: 0 | L14: 22 | T14: =N14 -> 0 | U14: =COUNTIF(L7:L15,T14) -> 0 | V14: =U14/(W4-U8) -> 0 | W14: =IF(V14=0,0,(V14*((LOG(V14))/LOG(2)))) -> 0 | Y14: =N14 -> 0 | Z14: =COUNTIF(L16:L24,Y14) -> 0 | AA14: =Z14/(AB4-Z8) -> 0 | AB14: =IF(AA14=0,0,(AA14*((LOG(AA14))/LOG(2)))) -> 0 | AD14: =N14 -> 0 | AE14: =COUNTIF(L25:L32,AD14) -> 0 | AF14: =AE14/(AG4-AE8) -> 0 | AG14: =IF(AF14=0,0,(AF14*((LOG(AF14))/LOG(2)))) -> 0 | AI14: =N14 -> 0 | AJ14: =COUNTIF(L33:L41,AI14) -> 0 | AK14: =AJ14/(AL4-AJ8) -> 0 | AL14: =IF(AK14=0,0,(AK14*((LOG(AK14))/LOG(2)))) -> 0 | AN14: =N14 -> 0 | AO14: =COUNTIF(L42:L50,AN14) -> 0 | AP14: =AO14/(AQ4-AO8) -> 0 | AQ14: =IF(AP14=0,0,(AP14*((LOG(AP14))/LOG(2)))) -> 0 | AS14: =N14 -> 0 | AT14: =COUNTIF(L51:L59,AS14) -> 0 | AU14: =AT14/(AV4-AT8) -> 0 | AV14: =IF(AU14=0,0,(AU14*((LOG(AU14))/LOG(2)))) -> 0
A15: 22 | B15: 903 | C15: 14 | D15: 912 | K15: 0 | L15: 21 | P15: =SUM(P7:P14) -> 1 | Q15: =-SUM(Q7:Q14) -> 1.190434336 | V15: =SUM(V7:V14) -> 1 | W15: =-SUM(W7:W14) -> 1.521928095 | AA15: =SUM(AA7:AA14) -> 1 | AB15: =-SUM(AB7:AB14) -> 1 | AF15: =SUM(AF7:AF14) -> 1 | AG15: =-SUM(AG7:AG14) -> 0 | AK15: =SUM(AK7:AK14) -> 1 | AL15: =-SUM(AL7:AL14) -> 1 | AP15: =SUM(AP7:AP14) -> 1 | AQ15: =-SUM(AQ7:AQ14) -> 0 | AU15: =SUM(AU7:AU14) -> 1 | AV15: =-SUM(AV7:AV14) -> 0
A16: 22 | B16: 1018 | C16: 23 | D16: 1033 | K16: 0 | L16: 22 | P16: U= | Q16: =Q15/(LOG(Q4)/LOG(2)) -> 0.2078301097 | V16: U1= | W16: =W15/(LOG(W4)/LOG(2)) -> 0.4801148589 | AA16: U2= | AB16: =AB15/(LOG(AB4)/LOG(2)) -> 0.3154648768 | AF16: U3= | AG16: =AG15/(LOG(AG4)/LOG(2)) -> 0 | AK16: U4= | AL16: =AL15/(LOG(AL4)/LOG(2)) -> 0.3154648768 | AP16: U5= | AQ16: =AQ15/(LOG(AQ4)/LOG(2)) -> 0 | AU16: U6= | AV16: =AV15/(LOG(AV4)/LOG(2)) -> 0
A17: 11 | B17: 1141 | C17: 21 | D17: 1148 | K17: 0 | L17: 12
A18: 11 | B18: 1245 | C18: 21 | D18: 1253 | K18: 0 | L18: 12
A19: 11 | B19: 1341 | C19: 21 | D19: 1350 | K19: 0 | L19: 12 | N19: Total Target Seq
A20: 11 | B20: 1444 | C20: 21 | D20: 1453 | K20: 0 | L20: 12 | N20: =COUNTIF(L7:L59,G3) -> 40 | P20: 9 | Q20: 9 | R20: 8 | S20: 9 | T20: 9 | U20: 9
A21: 11 | B21: 1542 | C21: 21 | D21: 1550 | K21: 0 | L21: 12 | P21: % of reinforcement given in 6 equal intervals based on number of trials
A22: 11 | B22: 1647 | C22: 12 | D22: 1652 | K22: 0 | L22: 11 | P22: %_1 | Q22: %_2 | R22: %_3 | S22: %_4 | T22: %_5 | U22: %_6
A23: 11 | B23: 1750 | C23: 21 | D23: 1757 | K23: 0 | L23: 12 | O23: target sequence | P23: =$G$3 -> 12 | Q23: =$G$3 -> 12 | R23: =$G$3 -> 12 | S23: =$G$3 -> 12 | T23: =$G$3 -> 12 | U23: =$G$3 -> 12
A24: 11 | B24: 1845 | C24: 21 | D24: 1852 | K24: 0 | L24: 12 | O24: total reinforcement | P24: =U8 -> 4 | Q24: =Z8 -> 7 | R24: =AE8 -> 7 | S24: =AJ8 -> 7 | T24: =AO8 -> 7 | U24: =AT8 -> 8
A25: 11 | B25: 1942 | C25: 21 | D25: 1950 | K25: 0 | L25: 12 | O25: % target
A26: 11 | B26: 2042 | C26: 21 | D26: 2055 | K26: 0 | L26: 12 | O26: CCRF
A27: 11 | B27: 2145 | C27: 21 | D27: 2152 | K27: 0 | L27: 12 | O27: % CCRf
A28: 11 | B28: 2240 | C28: 21 | D28: 2248 | K28: 0 | L28: 12 | O28: average response rate | P28: =D15/P20 -> 101.3333333 | Q28: =(D24-D15)/Q20 -> 104.4444444 | R28: =(D32-D24)/R20 -> 103.125 | S28: =(D41-D32)/S20 -> 101.8888889 | T28: =(D50-D41)/T20 -> 102.4444444 | U28: =(D59-D50)/U20 -> 99.22222222
A29: 11 | B29: 2344 | C29: 21 | D29: 2351 | K29: 0 | L29: 12
A30: 22 | B30: 2448 | C30: 14 | D30: 2475 | K30: 0 | L30: 21
A31: 11 | B31: 2571 | C31: 21 | D31: 2579 | K31: 0 | L31: 12
A32: 11 | B32: 2669 | C32: 21 | D32: 2677 | K32: 0 | L32: 12
A33: 11 | B33: 2765 | C33: 21 | D33: 2772 | K33: 0 | L33: 12
A34: 11 | B34: 2863 | C34: 21 | D34: 2871 | K34: 0 | L34: 12
A35: 11 | B35: 2960 | C35: 21 | D35: 2967 | K35: 0 | L35: 12
A36: 11 | B36: 3060 | C36: 21 | D36: 3068 | K36: 0 | L36: 12
A37: 11 | B37: 3167 | C37: 21 | D37: 3175 | K37: 0 | L37: 12
A38: 11 | B38: 3263 | C38: 21 | D38: 3270 | K38: 0 | L38: 12
A39: 11 | B39: 3356 | C39: 12 | D39: 3363 | K39: 0 | L39: 11
A40: 22 | B40: 3469 | C40: 14 | D40: 3477 | K40: 0 | L40: 21
A41: 11 | B41: 3586 | C41: 21 | D41: 3594 | K41: 0 | L41: 12
A42: 11 | B42: 3692 | C42: 21 | D42: 3699 | K42: 0 | L42: 12
A43: 11 | B43: 3787 | C43: 21 | D43: 3795 | K43: 0 | L43: 12
A44: 11 | B44: 3884 | C44: 21 | D44: 3892 | K44: 0 | L44: 12
A45: 11 | B45: 3991 | C45: 21 | D45: 3999 | K45: 0 | L45: 12
A46: 11 | B46: 4086 | C46: 12 | D46: 4095 | K46: 0 | L46: 11
A47: 11 | B47: 4195 | C47: 21 | D47: 4202 | K47: 0 | L47: 12
A48: 11 | B48: 4288 | C48: 12 | D48: 4298 | K48: 0 | L48: 11
A49: 11 | B49: 4402 | C49: 21 | D49: 4409 | K49: 0 | L49: 12
A50: 11 | B50: 4508 | C50: 21 | D50: 4516 | K50: 0 | L50: 12
A51: 11 | B51: 4605 | C51: 21 | D51: 4612 | K51: 0 | L51: 12
A52: 11 | B52: 4700 | C52: 21 | D52: 4708 | K52: 0 | L52: 12
A53: 11 | B53: 4799 | C53: 21 | D53: 4806 | K53: 0 | L53: 12
A54: 11 | B54: 4893 | C54: 21 | D54: 4901 | K54: 0 | L54: 12
A55: 11 | B55: 4987 | C55: 21 | D55: 4997 | K55: 0 | L55: 12
A56: 22 | B56: 5103 | C56: 23 | D56: 5119 | K56: 0 | L56: 22
A57: 11 | B57: 5215 | C57: 21 | D57: 5220 | K57: 0 | L57: 12
A58: 11 | B58: 5306 | C58: 21 | D58: 5314 | K58: 0 | L58: 12
A59: 11 | B59: 5402 | C59: 21 | D59: 5409 | K59: 1 | L59: 12

Sheet !L813900.052
A1: Report for:!L813900.052
A2: Date: | B2: <date>
A3: Hen: | B3: <hen> | F3: Correct Sequence | G3: =Start!J2 -> 12 | P3: Total Sequences in Data | Q3: =4994-COUNTBLANK(L7:L5000) -> 42 | V3: Total Sequences in Block Data | W3: =COUNTA(L7:L13) -> 7 | AA3: Total Sequences in Block Data | AB3: =COUNTA(L14:L20) -> 7 | AF3: Total Sequences in Block Data | AG3: =COUNTA(L21:L27) -> 7 | AK3: Total Sequences in Block Data | AL3: =COUNTA(L28:L34) -> 7 | AP3: Total Sequences in Block Data | AQ3: =COUNTA(L35:L41) -> 7 | AU3: Total Sequences in Block Data | AV3: =COUNTA(L42:L48) -> 7
P4: Total Sequences in Summary | Q4: =SUM(O7:O14) -> 42 | V4: Total Sequences in Block Summary | W4: =SUM(U7:U14) -> 7 | AA4: Total Sequences in Block Summary | AB4: =SUM(Z7:Z14) -> 7 | AF4: Total Sequences in Block Summary | AG4: =SUM(AE7:AE14) -> 7 | AK4: Total Sequences in Block Summary | AL4: =SUM(AJ7:AJ14) -> 7 | AP4: Total Sequences in Block Summary | AQ4: =SUM(AO7:AO14) -> 7 | AU4: Total Sequences in Block Summary | AV4: =SUM(AT7:AT14) -> 7
T5: Block 1 | Y5: Block 2 | AD5: Block 3 | AI5: Block 4 | AN5: Block 5 | AS5: Block 6
A6: Sequence Component 1 | B6: Time 1 | C6: Sequence Component 2 | D6: Time 2 | E6: Sequence Component 3 | F6: Time 3 | G6: Sequence Component 4 | H6: Time 4 | I6: Sequence Component 5 | J6: Time 5 | K6: Correct? 0=No 1=Yes | L6: Sequence | N6: Frequency | P6: Relative Frequency | Q6: Variability | T6: Frequency | V6: Relative Frequency | W6: Variability | Y6: Frequency | AA6: Relative Frequency | AB6: Variability | AD6: Frequency | AF6: Relative Frequency | AG6: Variability | AI6: Frequency | AK6: Relative Frequency | AL6: Variability | AN6: Frequency | AP6: Relative Frequency | AQ6: Variability | AS6: Frequency | AU6: Relative Frequency | AV6: Variability
A7: 11 | B7: 9 | C7: 21 | D7: 16 | K7: 0 | L7: 12 | N7: 11 | O7: =COUNTIF($L$7:$L$500,N7) -> 1 | P7: =O7/$Q$4 -> 0.02380952381 | Q7: =IF(P7=0,0,(P7*((LOG(P7))/LOG(2)))) -> -0.1283885101 | T7: =N7 -> 11 | U7: =COUNTIF(L7:L13,T7) -> 0 | V7: =U7/(W4-U8) ->  | W7: =IF(V7=0,0,(V7*((LOG(V7))/LOG(2)))) ->  | Y7: =N7 -> 11 | Z7: =COUNTIF(L14:L20,Y7) -> 0 | AA7: =Z7/(AB4-Z8) ->  | AB7: =IF(AA7=0,0,(AA7*((LOG(AA7))/LOG(2)))) ->  | AD7: =N7 -> 11 | AE7: =COUNTIF(L21:L27,AD7) -> 1 | AF7: =AE7/(AG4-AE8) -> 0.5 | AG7: =IF(AF7=0,0,(AF7*((LOG(AF7))/LOG(2)))) -> -0.5 | AI7: =N7 -> 11 | AJ7: =COUNTIF(L28:L34,AI7) -> 0 | AK7: =AJ7/(AL4-AJ8) ->  | AL7: =IF(AK7=0,0,(AK7*((LOG(AK7))/LOG(2)))) ->  | AN7: =N7 -> 11 | AO7: =COUNTIF(L35:L41,AN7) -> 0 | AP7: =AO7/(AQ4-AO8) ->  | AQ7: =IF(AP7=0,0,(AP7*((LOG(AP7))/LOG(2)))) ->  | AS7: =N7 -> 11 | AT7: =COUNTIF(L42:L48,AS7) -> 0 | AU7: =AT7/(AV4-AT8) ->  | AV7: =IF(AU7=0,0,(AU7*((LOG(AU7))/LOG(2)))) -> 
A8: 11 | B8: 105 | C8: 21 | D8: 112 | K8: 0 | L8: 12 | N8: 12 | O8: =COUNTIF($L$7:$L$500,N8) -> 40 | P8: =O8/$Q$4 -> 0.9523809524 | Q8: =IF(P8=0,0,(P8*((LOG(P8))/LOG(2)))) -> -0.06703745513 | T8: =N8 -> 12 | U8: =COUNTIF(L7:L13,T8) -> 7 | Y8: =N8 -> 12 | Z8: =COUNTIF(L14:L20,Y8) -> 7 | AD8: =N8 -> 12 | AE8: =COUNTIF(L21:L27,AD8) -> 5 | AI8: =N8 -> 12 | AJ8: =COUNTIF(L28:L34,AI8) -> 7 | AN8: =N8 -> 12 | AO8: =COUNTIF(L35:L41,AN8) -> 7 | AS8: =N8 -> 12 | AT8: =COUNTIF(L42:L48,AS8) -> 7
A9: 11 | B9: 198 | C9: 21 | D9: 205 | K9: 0 | L9: 12 | N9: 21 | O9: =COUNTIF($L$7:$L$500,N9) -> 0 | P9: =O9/$Q$4 -> 0 | Q9: =IF(P9=0,0,(P9*((LOG(P9))/LOG(2)))) -> 0 | T9: =N9 -> 21 | U9: =COUNTIF(L7:L13,T9) -> 0 | V9: =U9/(W4-U8) ->  | W9: =IF(V9=0,0,(V9*((LOG(V9))/LOG(2)))) ->  | Y9: =N9 -> 21 | Z9: =COUNTIF(L14:L20,Y9) -> 0 | AA9: =Z9/(AB4-Z8) ->  | AB9: =IF(AA9=0,0,(AA9*((LOG(AA9))/LOG(2)))) ->  | AD9: =N9 -> 21 | AE9: =COUNTIF(L21:L27,AD9) -> 0 | AF9: =AE9/(AG4-AE8) -> 0 | AG9: =IF(AF9=0,0,(AF9*((LOG(AF9))/LOG(2)))) -> 0 | AI9: =N9 -> 21 | AJ9: =COUNTIF(L28:L34,AI9) -> 0 | AK9: =AJ9/(AL4-AJ8) ->  | AL9: =IF(AK9=0,0,(AK9*((LOG(AK9))/LOG(2)))) ->  | AN9: =N9 -> 21 | AO9: =COUNTIF(L35:L41,AN9) -> 0 | AP9: =AO9/(AQ4-AO8) ->  | AQ9: =IF(AP9=0,0,(AP9*((LOG(AP9))/LOG(2)))) ->  | AS9: =N9 -> 21 | AT9: =COUNTIF(L42:L48,AS9) -> 0 | AU9: =AT9/(AV4-AT8) ->  | AV9: =IF(AU9=0,0,(AU9*((LOG(AU9))/LOG(2)))) -> 
A10: 11 | B10: 292 | C10: 21 | D10: 299 | K10: 0 | L10: 12 | N10: 22 | O10: =COUNTIF($L$7:$L$500,N10) -> 1 | P10: =O10/$Q$4 -> 0.02380952381 | Q10: =IF(P10=0,0,(P10*((LOG(P10))/LOG(2)))) -> -0.1283885101 | T10: =N10 -> 22 | U10: =COUNTIF(L7:L13,T10) -> 0 | V10: =U10/(W4-U8) ->  | W10: =IF(V10=0,0,(V10*((LOG(V10))/LOG(2)))) ->  | Y10: =N10 -> 22 | Z10: =COUNTIF(L14:L20,Y10) -> 0 | AA10: =Z10/(AB4-Z8) ->  | AB10: =IF(AA10=0,0,(AA10*((LOG(AA10))/LOG(2)))) ->  | AD10: =N10 -> 22 | AE10: =COUNTIF(L21:L27,AD10) -> 1 | AF10: =AE10/(AG4-AE8) -> 0.5 | AG10: =IF(AF10=0,0,(AF10*((LOG(AF10))/LOG(2)))) -> -0.5 | AI10: =N10 -> 22 | AJ10: =COUNTIF(L28:L34,AI10) -> 0 | AK10: =AJ10/(AL4-AJ8) ->  | AL10: =IF(AK10=0,0,(AK10*((LOG(AK10))/LOG(2)))) ->  | AN10: =N10 -> 22 | AO10: =COUNTIF(L35:L41,AN10) -> 0 | AP10: =AO10/(AQ4-AO8) ->  | AQ10: =IF(AP10=0,0,(AP10*((LOG(AP10))/LOG(2)))) ->  | AS10: =N10 -> 22 | AT10: =COUNTIF(L42:L48,AS10) -> 0 | AU10: =AT10/(AV4-AT8) ->  | AV10: =IF(AU10=0,0,(AU10*((LOG(AU10))/LOG(2)))) -> 
A11: 11 | B11: 385 | C11: 21 | D11: 392 | K11: 0 | L11: 12 | T11: =N11 -> 0 | U11: =COUNTIF(L7:L13,T11) -> 0 | V11: =U11/(W4-U8) ->  | W11: =IF(V11=0,0,(V11*((LOG(V11))/LOG(2)))) ->  | Y11: =N11 -> 0 | Z11: =COUNTIF(L14:L20,Y11) -> 0 | AA11: =Z11/(AB4-Z8) ->  | AB11: =IF(AA11=0,0,(AA11*((LOG(AA11))/LOG(2)))) ->  | AD11: =N11 -> 0 | AE11: =COUNTIF(L21:L27,AD11) -> 0 | AF11: =AE11/(AG4-AE8) -> 0 | AG11: =IF(AF11=0,0,(AF11*((LOG(AF11))/LOG(2)))) -> 0 | AI11: =N11 -> 0 | AJ11: =COUNTIF(L28:L34,AI11) -> 0 | AK11: =AJ11/(AL4-AJ8) ->  | AL11: =IF(AK11=0,0,(AK11*((LOG(AK11))/LOG(2)))) ->  | AN11: =N11 -> 0 | AO11: =COUNTIF(L35:L41,AN11) -> 0 | AP11: =AO11/(AQ4-AO8) ->  | AQ11: =IF(AP11=0,0,(AP11*((LOG(AP11))/LOG(2)))) ->  | AS11: =N11 -> 0 | AT11: =COUNTIF(L42:L48,AS11) -> 0 | AU11: =AT11/(AV4-AT8) ->  | AV11: =IF(AU11=0,0,(AU11*((LOG(AU11))/LOG(2)))) -> 
A12: 11 | B12: 478 | C12: 21 | D12: 485 | K12: 0 | L12: 12 | T12: =N12 -> 0 | U12: =COUNTIF(L7:L13,T12) -> 0 | V12: =U12/(W4-U8) ->  | W12: =IF(V12=0,0,(V12*((LOG(V12))/LOG(2)))) ->  | Y12: =N12 -> 0 | Z12: =COUNTIF(L14:L20,Y12) -> 0 | AA12: =Z12/(AB4-Z8) ->  | AB12: =IF(AA12=0,0,(AA12*((LOG(AA12))/LOG(2)))) ->  | AD12: =N12 -> 0 | AE12: =COUNTIF(L21:L27,AD12) -> 0 | AF12: =AE12/(AG4-AE8) -> 0 | AG12: =IF(AF12=0,0,(AF12*((LOG(AF12))/LOG(2)))) -> 0 | AI12: =N12 -> 0 | AJ12: =COUNTIF(L28:L34,AI12) -> 0 | AK12: =AJ12/(AL4-AJ8) ->  | AL12: =IF(AK12=0,0,(AK12*((LOG(AK12))/LOG(2)))) ->  | AN12: =N12 -> 0 | AO12: =COUNTIF(L35:L41,AN12) -> 0 | AP12: =AO12/(AQ4-AO8) ->  | AQ12: =IF(AP12=0,0,(AP12*((LOG(AP12))/LOG(2)))) ->  | AS12: =N12 -> 0 | AT12: =COUNTIF(L42:L48,AS12) -> 0 | AU12: =AT12/(AV4-AT8) ->  | AV12: =IF(AU12=0,0,(AU12*((LOG(AU12))/LOG(2)))) -> 
A13: 11 | B13: 569 | C13: 21 | D13: 576 | K13: 0 | L13: 12 | T13: =N13 -> 0 | U13: =COUNTIF(L7:L13,T13) -> 0 | V13: =U13/(W4-U8) ->  | W13: =IF(V13=0,0,(V13*((LOG(V13))/LOG(2)))) ->  | Y13: =N13 -> 0 | Z13: =COUNTIF(L14:L20,Y13) -> 0 | AA13: =Z13/(AB4-Z8) ->  | AB13: =IF(AA13=0,0,(AA13*((LOG(AA13))/LOG(2)))) ->  | AD13: =N13 -> 0 | AE13: =COUNTIF(L21:L27,AD13) -> 0 | AF13: =AE13/(AG4-AE8) -> 0 | AG13: =IF(AF13=0,0,(AF13*((LOG(AF13))/LOG(2)))) -> 0 | AI13: =N13 -> 0 | AJ13: =COUNTIF(L28:L34,AI13) -> 0 | AK13: =AJ13/(AL4-AJ8) ->  | AL13: =IF(AK13=0,0,(AK13*((LOG(AK13))/LOG(2)))) ->  | AN13: =N13 -> 0 | AO13: =COUNTIF(L35:L41,AN13) -> 0 | AP13: =AO13/(AQ4-AO8) ->  | AQ13: =IF(AP13=0,0,(AP13*((LOG(AP13))/LOG(2)))) ->  | AS13: =N13 -> 0 | AT13: =COUNTIF(L42:L48,AS13) -> 0 | AU13: =AT13/(AV4-AT8) ->  | AV13: =IF(AU13=0,0,(AU13*((LOG(AU13))/LOG(2)))) -> 
A14: 11 | B14: 664 | C14: 21 | D14: 671 | K14: 0 | L14: 12 | T14: =N14 -> 0 | U14: =COUNTIF(L7:L13,T14) -> 0 | V14: =U14/(W4-U8) ->  | W14: =IF(V14=0,0,(V14*((LOG(V14))/LOG(2)))) ->  | Y14: =N14 -> 0 | Z14: =COUNTIF(L14:L20,Y14) -> 0 | AA14: =Z14/(AB4-Z8) ->  | AB14: =IF(AA14=0,0,(AA14*((LOG(AA14))/LOG(2)))) ->  | AD14: =N14 -> 0 | AE14: =COUNTIF(L21:L27,AD14) -> 0 | AF14: =AE14/(AG4-AE8) -> 0 | AG14: =IF(AF14=0,0,(AF14*((LOG(AF14))/LOG(2)))) -> 0 | AI14: =N14 -> 0 | AJ14: =COUNTIF(L28:L34,AI14) -> 0 | AK14: =AJ14/(AL4-AJ8) ->  | AL14: =IF(AK14=0,0,(AK14*((LOG(AK14))/LOG(2)))) ->  | AN14: =N14 -> 0 | AO14: =COUNTIF(L35:L41,AN14) -> 0 | AP14: =AO14/(AQ4-AO8) ->  | AQ14: =IF(AP14=0,0,(AP14*((LOG(AP14))/LOG(2)))) ->  | AS14: =N14 -> 0 | AT14: =COUNTIF(L42:L48,AS14) -> 0 | AU14: =AT14/(AV4-AT8) ->  | AV14: =IF(AU14=0,0,(AU14*((LOG(AU14))/LOG(2)))) -> 
A15: 11 | B15: 760 | C15: 21 | D15: 767 | K15: 0 | L15: 12 | P15: =SUM(P7:P14) -> 1 | Q15: =-SUM(Q7:Q14) -> 0.3238144753 | V15: =SUM(V7:V14) ->  | W15: =-SUM(W7:W14) ->  | AA15: =SUM(AA7:AA14) ->  | AB15: =-SUM(AB7:AB14) ->  | AF15: =SUM(AF7:AF14) -> 1 | AG15: =-SUM(AG7:AG14) -> 1 | AK15: =SUM(AK7:AK14) ->  | AL15: =-SUM(AL7:AL14) ->  | AP15: =SUM(AP7:AP14) ->  | AQ15: =-SUM(AQ7:AQ14) ->  | AU15: =SUM(AU7:AU14) ->  | AV15: =-SUM(AV7:AV14) -> 
A16: 11 | B16: 861 | C16: 21 | D16: 869 | K16: 0 | L16: 12 | P16: U= | Q16: =Q15/(LOG(Q4)/LOG(2)) -> 0.06005107821 | V16: U1= | W16: =W15/(LOG(W4)/LOG(2)) ->  | AA16: U2= | AB16: =AB15/(LOG(AB4)/LOG(2)) ->  | AF16: U3= | AG16: =AG15/(LOG(AG4)/LOG(2)) -> 0.3562071871 | AK16: U4= | AL16: =AL15/(LOG(AL4)/LOG(2)) ->  | AP16: U5= | AQ16: =AQ15/(LOG(AQ4)/LOG(2)) ->  | AU16: U6= | AV16: =AV15/(LOG(AV4)/LOG(2)) -> 
A17: 11 | B17: 956 | C17: 21 | D17: 963 | K17: 0 | L17: 12
A18: 11 | B18: 1051 | C18: 21 | D18: 1060 | K18: 0 | L18: 12
A19: 11 | B19: 1147 | C19: 21 | D19: 1153 | K19: 0 | L19: 12 | N19: Total Target Seq
A20: 11 | B20: 1241 | C20: 21 | D20: 1248 | K20: 0 | L20: 12 | N20: =COUNTIF(L7:L48,G3) -> 40 | P20: 7 | Q20: 7 | R20: 7 | S20: 7 | T20: 7 | U20: 7
A21: 11 | B21: 1341 | C21: 21 | D21: 1349 | K21: 0 | L21: 12 | P21: % of reinforcement given in 6 equal intervals based on number of trials
A22: 11 | B22: 1433 | C22: 21 | D22: 1441 | K22: 0 | L22: 12 | P22: %_1 | Q22: %_2 | R22: %_3 | S22: %_4 | T22: %_5 | U22: %_6
A23: 11 | B23: 1530 | C23: 21 | D23: 1538 | K23: 0 | L23: 12 | O23: target sequence | P23: =$G$3 -> 12 | Q23: =$G$3 -> 12 | R23: =$G$3 -> 12 | S23: =$G$3 -> 12 | T23: =$G$3 -> 12 | U23: =$G$3 -> 12
A24: 22 | B24: 1641 | C24: 23 | D24: 1672 | K24: 0 | L24: 22 | O24: total reinforcement | P24: =U8 -> 7 | Q24: =Z8 -> 7 | R24: =AE8 -> 5 | S24: =AJ8 -> 7 | T24: =AO8 -> 7 | U24: =AT8 -> 7
A25: 11 | B25: 1770 | C25: 21 | D25: 1777 | K25: 0 | L25: 12 | O25: % target
A26: 11 | B26: 1867 | C26: 12 | D26: 1876 | K26: 0 | L26: 11 | O26: CCRF
A27: 11 | B27: 1974 | C27: 21 | D27: 1981 | K27: 0 | L27: 12 | O27: % CCRf
A28: 11 | B28: 2072 | C28: 21 | D28: 2080 | K28: 0 | L28: 12 | O28: average response rate | P28: =D13/P20 -> 82.28571429 | Q28: =(D20-D13)/Q20 -> 96 | R28: =(D27-D20)/R20 -> 104.7142857 | S28: =(D34-D27)/S20 -> 100.8571429 | T28: =(D41-D34)/T20 -> 99.14285714 | U28: =(D48-D41)/U20 -> 96
A29: 11 | B29: 2167 | C29: 21 | D29: 2174 | K29: 0 | L29: 12
A30: 11 | B30: 2262 | C30: 21 | D30: 2267 | K30: 0 | L30: 12
A31: 11 | B31: 2369 | C31: 21 | D31: 2376 | K31: 0 | L31: 12
A32: 11 | B32: 2473 | C32: 21 | D32: 2480 | K32: 0 | L32: 12
A33: 11 | B33: 2567 | C33: 21 | D33: 2582 | K33: 0 | L33: 12
A34: 11 | B34: 2679 | C34: 21 | D34: 2687 | K34: 0 | L34: 12
A35: 11 | B35: 2775 | C35: 21 | D35: 2782 | K35: 0 | L35: 12
A36: 11 | B36: 2871 | C36: 21 | D36: 2879 | K36: 0 | L36: 12
A37: 11 | B37: 2966 | C37: 21 | D37: 2973 | K37: 0 | L37: 12
A38: 11 | B38: 3067 | C38: 21 | D38: 3076 | K38: 0 | L38: 12
A39: 11 | B39: 3168 | C39: 21 | D39: 3178 | K39: 0 | L39: 12
A40: 11 | B40: 3272 | C40: 21 | D40: 3280 | K40: 0 | L40: 12
A41: 11 | B41: 3373 | C41: 21 | D41: 3381 | K41: 0 | L41: 12
A42: 11 | B42: 3466 | C42: 21 | D42: 3474 | K42: 0 | L42: 12
A43: 11 | B43: 3562 | C43: 21 | D43: 3570 | K43: 0 | L43: 12
A44: 11 | B44: 3660 | C44: 21 | D44: 3668 | K44: 0 | L44: 12
A45: 11 | B45: 3755 | C45: 21 | D45: 3763 | K45: 0 | L45: 12
A46: 11 | B46: 3850 | C46: 21 | D46: 3858 | K46: 0 | L46: 12
A47: 11 | B47: 3949 | C47: 21 | D47: 3957 | K47: 0 | L47: 12
A48: 11 | B48: 4046 | C48: 21 | D48: 4053 | K48: 1 | L48: 12

Sheet !L814930.052
A1: Report for:!L814930.052
A2: Date: | B2: <date>
A3: Hen: | B3: <hen> | F3: Correct Sequence | G3: =Start!J2 -> 12 | P3: Total Sequences in Data | Q3: =4994-COUNTBLANK(L7:L5000) -> 44 | V3: Total Sequences in Block Data | W3: =COUNTA(L7:L13) -> 7 | AA3: Total Sequences in Block Data | AB3: =COUNTA(L14:L21) -> 8 | AF3: Total Sequences in Block Data | AG3: =COUNTA(L22:L28) -> 7 | AK3: Total Sequences in Block Data | AL3: =COUNTA(L29:L35) -> 7 | AP3: Total Sequences in Block Data | AQ3: =COUNTA(L36:L43) -> 8 | AU3: Total Sequences in Block Data | AV3: =COUNTA(L44:L50) -> 7
P4: Total Sequences in Summary | Q4: =SUM(O7:O14) -> 44 | V4: Total Sequences in Block Summary | W4: =SUM(U7:U14) -> 7 | AA4: Total Sequences in Block Summary | AB4: =SUM(Z7:Z14) -> 8 | AF4: Total Sequences in Block Summary | AG4: =SUM(AE7:AE14) -> 7 | AK4: Total Sequences in Block Summary | AL4: =SUM(AJ7:AJ14) -> 7 | AP4: Total Sequences in Block Summary | AQ4: =SUM(AO7:AO14) -> 8 | AU4: Total Sequences in Block Summary | AV4: =SUM(AT7:AT14) -> 7
T5: Block 1 | Y5: Block 2 | AD5: Block 3 | AI5: Block 4 | AN5: Block 5 | AS5: Block 6
A6: Sequence Component 1 | B6: Time 1 | C6: Sequence Component 2 | D6: Time 2 | E6: Sequence Component 3 | F6: Time 3 | G6: Sequence Component 4 | H6: Time 4 | I6: Sequence Component 5 | J6: Time 5 | K6: Correct? 0=No 1=Yes | L6: Sequence | N6: Frequency | P6: Relative Frequency | Q6: Variability | T6: Frequency | V6: Relative Frequency | W6: Variability | Y6: Frequency | AA6: Relative Frequency | AB6: Variability | AD6: Frequency | AF6: Relative Frequency | AG6: Variability | AI6: Frequency | AK6: Relative Frequency | AL6: Variability | AN6: Frequency | AP6: Relative Frequency | AQ6: Variability | AS6: Frequency | AU6: Relative Frequency | AV6: Variability
A7: 11 | B7: 9 | C7: 21 | D7: 16 | K7: 0 | L7: 12 | N7: 11 | O7: =COUNTIF($L$7:$L$500,N7) -> 2 | P7: =O7/$Q$4 -> 0.04545454545 | Q7: =IF(P7=0,0,(P7*((LOG(P7))/LOG(2)))) -> -0.2027014372 | T7: =N7 -> 11 | U7: =COUNTIF(L7:L13,T7) -> 0 | V7: =U7/(W4-U8) ->  | W7: =IF(V7=0,0,(V7*((LOG(V7))/LOG(2)))) ->  | Y7: =N7 -> 11 | Z7: =COUNTIF(L14:L21,Y7) -> 1 | AA7: =Z7/(AB4-Z8) -> 0.5 | AB7: =IF(AA7=0,0,(AA7*((LOG(AA7))/LOG(2)))) -> -0.5 | AD7: =N7 -> 11 | AE7: =COUNTIF(L22:L28,AD7) -> 0 | AF7: =AE7/(AG4-AE8) -> 0 | AG7: =IF(AF7=0,0,(AF7*((LOG(AF7))/LOG(2)))) -> 0 | AI7: =N7 -> 11 | AJ7: =COUNTIF(L29:L35,AI7) -> 0 | AK7: =AJ7/(AL4-AJ8) ->  | AL7: =IF(AK7=0,0,(AK7*((LOG(AK7))/LOG(2)))) ->  | AN7: =N7 -> 11 | AO7: =COUNTIF(L36:L43,AN7) -> 0 | AP7: =AO7/(AQ4-AO8) ->  | AQ7: =IF(AP7=0,0,(AP7*((LOG(AP7))/LOG(2)))) ->  | AS7: =N7 -> 11 | AT7: =COUNTIF(L44:L50,AS7) -> 1 | AU7: =AT7/(AV4-AT8) -> 1 | AV7: =IF(AU7=0,0,(AU7*((LOG(AU7))/LOG(2)))) -> 0
A8: 11 | B8: 103 | C8: 21 | D8: 110 | K8: 0 | L8: 12 | N8: 12 | O8: =COUNTIF($L$7:$L$500,N8) -> 40 | P8: =O8/$Q$4 -> 0.9090909091 | Q8: =IF(P8=0,0,(P8*((LOG(P8))/LOG(2)))) -> -0.1250032034 | T8: =N8 -> 12 | U8: =COUNTIF(L7:L13,T8) -> 7 | Y8: =N8 -> 12 | Z8: =COUNTIF(L14:L21,Y8) -> 6 | AD8: =N8 -> 12 | AE8: =COUNTIF(L22:L28,AD8) -> 6 | AI8: =N8 -> 12 | AJ8: =COUNTIF(L29:L35,AI8) -> 7 | AN8: =N8 -> 12 | AO8: =COUNTIF(L36:L43,AN8) -> 8 | AS8: =N8 -> 12 | AT8: =COUNTIF(L44:L50,AS8) -> 6
A9: 11 | B9: 197 | C9: 21 | D9: 202 | K9: 0 | L9: 12 | N9: 21 | O9: =COUNTIF($L$7:$L$500,N9) -> 2 | P9: =O9/$Q$4 -> 0.04545454545 | Q9: =IF(P9=0,0,(P9*((LOG(P9))/LOG(2)))) -> -0.2027014372 | T9: =N9 -> 21 | U9: =COUNTIF(L7:L13,T9) -> 0 | V9: =U9/(W4-U8) ->  | W9: =IF(V9=0,0,(V9*((LOG(V9))/LOG(2)))) ->  | Y9: =N9 -> 21 | Z9: =COUNTIF(L14:L21,Y9) -> 1 | AA9: =Z9/(AB4-Z8) -> 0.5 | AB9: =IF(AA9=0,0,(AA9*((LOG(AA9))/LOG(2)))) -> -0.5 | AD9: =N9 -> 21 | AE9: =COUNTIF(L22:L28,AD9) -> 1 | AF9: =AE9/(AG4-AE8) -> 1 | AG9: =IF(AF9=0,0,(AF9*((LOG(AF9))/LOG(2)))) -> 0 | AI9: =N9 -> 21 | AJ9: =COUNTIF(L29:L35,AI9) -> 0 | AK9: =AJ9/(AL4-AJ8) ->  | AL9: =IF(AK9=0,0,(AK9*((LOG(AK9))/LOG(2)))) ->  | AN9: =N9 -> 21 | AO9: =COUNTIF(L36:L43,AN9) -> 0 | AP9: =AO9/(AQ4-AO8) ->  | AQ9: =IF(AP9=0,0,(AP9*((LOG(AP9))/LOG(2)))) ->  | AS9: =N9 -> 21 | AT9: =COUNTIF(L44:L50,AS9) -> 0 | AU9: =AT9/(AV4-AT8) -> 0 | AV9: =IF(AU9=0,0,(AU9*((LOG(AU9))/LOG(2)))) -> 0
A10: 11 | B10: 303 | C10: 21 | D10: 310 | K10: 0 | L10: 12 | N10: 22 | O10: =COUNTIF($L$7:$L$500,N10) -> 0 | P10: =O10/$Q$4 -> 0 | Q10: =IF(P10=0,0,(P10*((LOG(P10))/LOG(2)))) -> 0 | T10: =N10 -> 22 | U10: =COUNTIF(L7:L13,T10) -> 0 | V10: =U10/(W4-U8) ->  | W10: =IF(V10=0,0,(V10*((LOG(V10))/LOG(2)))) ->  | Y10: =N10 -> 22 | Z10: =COUNTIF(L14:L21,Y10) -> 0 | AA10: =Z10/(AB4-Z8) -> 0 | AB10: =IF(AA10=0,0,(AA10*((LOG(AA10))/LOG(2)))) -> 0 | AD10: =N10 -> 22 | AE10: =COUNTIF(L22:L28,AD10) -> 0 | AF10: =AE10/(AG4-AE8) -> 0 | AG10: =IF(AF10=0,0,(AF10*((LOG(AF10))/LOG(2)))) -> 0 | AI10: =N10 -> 22 | AJ10: =COUNTIF(L29:L35,AI10) -> 0 | AK10: =AJ10/(AL4-AJ8) ->  | AL10: =IF(AK10=0,0,(AK10*((LOG(AK10))/LOG(2)))) ->  | AN10: =N10 -> 22 | AO10: =COUNTIF(L36:L43,AN10) -> 0 | AP10: =AO10/(AQ4-AO8) ->  | AQ10: =IF(AP10=0,0,(AP10*((LOG(AP10))/LOG(2)))) ->  | AS10: =N10 -> 22 | AT10: =COUNTIF(L44:L50,AS10) -> 0 | AU10: =AT10/(AV4-AT8) -> 0 | AV10: =IF(AU10=0,0,(AU10*((LOG(AU10))/LOG(2)))) -> 0
A11: 11 | B11: 396 | C11: 21 | D11: 403 | K11: 0 | L11: 12 | T11: =N11 -> 0 | U11: =COUNTIF(L7:L13,T11) -> 0 | V11: =U11/(W4-U8) ->  | W11: =IF(V11=0,0,(V11*((LOG(V11))/LOG(2)))) ->  | Y11: =N11 -> 0 | Z11: =COUNTIF(L14:L21,Y11) -> 0 | AA11: =Z11/(AB4-Z8) -> 0 | AB11: =IF(AA11=0,0,(AA11*((LOG(AA11))/LOG(2)))) -> 0 | AD11: =N11 -> 0 | AE11: =COUNTIF(L22:L28,AD11) -> 0 | AF11: =AE11/(AG4-AE8) -> 0 | AG11: =IF(AF11=0,0,(AF11*((LOG(AF11))/LOG(2)))) -> 0 | AI11: =N11 -> 0 | AJ11: =COUNTIF(L29:L35,AI11) -> 0 | AK11: =AJ11/(AL4-AJ8) ->  | AL11: =IF(AK11=0,0,(AK11*((LOG(AK11))/LOG(2)))) ->  | AN11: =N11 -> 0 | AO11: =COUNTIF(L36:L43,AN11) -> 0 | AP11: =AO11/(AQ4-AO8) ->  | AQ11: =IF(AP11=0,0,(AP11*((LOG(AP11))/LOG(2)))) ->  | AS11: =N11 -> 0 | AT11: =COUNTIF(L44:L50,AS11) -> 0 | AU11: =AT11/(AV4-AT8) -> 0 | AV11: =IF(AU11=0,0,(AU11*((LOG(AU11))/LOG(2)))) -> 0
A12: 11 | B12: 500 | C12: 21 | D12: 506 | K12: 0 | L12: 12 | T12: =N12 -> 0 | U12: =COUNTIF(L7:L13,T12) -> 0 | V12: =U12/(W4-U8) ->  | W12: =IF(V12=0,0,(V12*((LOG(V12))/LOG(2)))) ->  | Y12: =N12 -> 0 | Z12: =COUNTIF(L14:L21,Y12) -> 0 | AA12: =Z12/(AB4-Z8) -> 0 | AB12: =IF(AA12=0,0,(AA12*((LOG(AA12))/LOG(2)))) -> 0 | AD12: =N12 -> 0 | AE12: =COUNTIF(L22:L28,AD12) -> 0 | AF12: =AE12/(AG4-AE8) -> 0 | AG12: =IF(AF12=0,0,(AF12*((LOG(AF12))/LOG(2)))) -> 0 | AI12: =N12 -> 0 | AJ12: =COUNTIF(L29:L35,AI12) -> 0 | AK12: =AJ12/(AL4-AJ8) ->  | AL12: =IF(AK12=0,0,(AK12*((LOG(AK12))/LOG(2)))) ->  | AN12: =N12 -> 0 | AO12: =COUNTIF(L36:L43,AN12) -> 0 | AP12: =AO12/(AQ4-AO8) ->  | AQ12: =IF(AP12=0,0,(AP12*((LOG(AP12))/LOG(2)))) ->  | AS12: =N12 -> 0 | AT12: =COUNTIF(L44:L50,AS12) -> 0 | AU12: =AT12/(AV4-AT8) -> 0 | AV12: =IF(AU12=0,0,(AU12*((LOG(AU12))/LOG(2)))) -> 0
A13: 11 | B13: 593 | C13: 21 | D13: 609 | K13: 0 | L13: 12 | T13: =N13 -> 0 | U13: =COUNTIF(L7:L13,T13) -> 0 | V13: =U13/(W4-U8) ->  | W13: =IF(V13=0,0,(V13*((LOG(V13))/LOG(2)))) ->  | Y13: =N13 -> 0 | Z13: =COUNTIF(L14:L21,Y13) -> 0 | AA13: =Z13/(AB4-Z8) -> 0 | AB13: =IF(AA13=0,0,(AA13*((LOG(AA13))/LOG(2)))) -> 0 | AD13: =N13 -> 0 | AE13: =COUNTIF(L22:L28,AD13) -> 0 | AF13: =AE13/(AG4-AE8) -> 0 | AG13: =IF(AF13=0,0,(AF13*((LOG(AF13))/LOG(2)))) -> 0 | AI13: =N13 -> 0 | AJ13: =COUNTIF(L29:L35,AI13) -> 0 | AK13: =AJ13/(AL4-AJ8) ->  | AL13: =IF(AK13=0,0,(AK13*((LOG(AK13))/LOG(2)))) ->  | AN13: =N13 -> 0 | AO13: =COUNTIF(L36:L43,AN13) -> 0 | AP13: =AO13/(AQ4-AO8) ->  | AQ13: =IF(AP13=0,0,(AP13*((LOG(AP13))/LOG(2)))) ->  | AS13: =N13 -> 0 | AT13: =COUNTIF(L44:L50,AS13) -> 0 | AU13: =AT13/(AV4-AT8) -> 0 | AV13: =IF(AU13=0,0,(AU13*((LOG(AU13))/LOG(2)))) -> 0
A14: 11 | B14: 697 | C14: 12 | D14: 706 | K14: 0 | L14: 11 | T14: =N14 -> 0 | U14: =COUNTIF(L7:L13,T14) -> 0 | V14: =U14/(W4-U8) ->  | W14: =IF(V14=0,0,(V14*((LOG(V14))/LOG(2)))) ->  | Y14: =N14 -> 0 | Z14: =COUNTIF(L14:L21,Y14) -> 0 | AA14: =Z14/(AB4-Z8) -> 0 | AB14: =IF(AA14=0,0,(AA14*((LOG(AA14))/LOG(2)))) -> 0 | AD14: =N14 -> 0 | AE14: =COUNTIF(L22:L28,AD14) -> 0 | AF14: =AE14/(AG4-AE8) -> 0 | AG14: =IF(AF14=0,0,(AF14*((LOG(AF14))/LOG(2)))) -> 0 | AI14: =N14 -> 0 | AJ14: =COUNTIF(L29:L35,AI14) -> 0 | AK14: =AJ14/(AL4-AJ8) ->  | AL14: =IF(AK14=0,0,(AK14*((LOG(AK14))/LOG(2)))) ->  | AN14: =N14 -> 0 | AO14: =COUNTIF(L36:L43,AN14) -> 0 | AP14: =AO14/(AQ4-AO8) ->  | AQ14: =IF(AP14=0,0,(AP14*((LOG(AP14))/LOG(2)))) ->  | AS14: =N14 -> 0 | AT14: =COUNTIF(L44:L50,AS14) -> 0 | AU14: =AT14/(AV4-AT8) -> 0 | AV14: =IF(AU14=0,0,(AU14*((LOG(AU14))/LOG(2)))) -> 0
A15: 11 | B15: 805 | C15: 21 | D15: 822 | K15: 0 | L15: 12 | P15: =SUM(P7:P14) -> 1 | Q15: =-SUM(Q7:Q14) -> 0.5304060778 | V15: =SUM(V7:V14) ->  | W15: =-SUM(W7:W14) ->  | AA15: =SUM(AA7:AA14) -> 1 | AB15: =-SUM(AB7:AB14) -> 1 | AF15: =SUM(AF7:AF14) -> 1 | AG15: =-SUM(AG7:AG14) -> 0 | AK15: =SUM(AK7:AK14) ->  | AL15: =-SUM(AL7:AL14) ->  | AP15: =SUM(AP7:AP14) ->  | AQ15: =-SUM(AQ7:AQ14) ->  | AU15: =SUM(AU7:AU14) -> 1 | AV15: =-SUM(AV7:AV14) -> 0
A16: 11 | B16: 909 | C16: 21 | D16: 916 | K16: 0 | L16: 12 | P16: U= | Q16: =Q15/(LOG(Q4)/LOG(2)) -> 0.09715408396 | V16: U1= | W16: =W15/(LOG(W4)/LOG(2)) ->  | AA16: U2= | AB16: =AB15/(LOG(AB4)/LOG(2)) -> 0.3333333333 | AF16: U3= | AG16: =AG15/(LOG(AG4)/LOG(2)) -> 0 | AK16: U4= | AL16: =AL15/(LOG(AL4)/LOG(2)) ->  | AP16: U5= | AQ16: =AQ15/(LOG(AQ4)/LOG(2)) ->  | AU16: U6= | AV16: =AV15/(LOG(AV4)/LOG(2)) -> 0
A17: 11 | B17: 1005 | C17: 21 | D17: 1010 | K17: 0 | L17: 12
A18: 22 | B18: 1112 | C18: 14 | D18: 1163 | K18: 0 | L18: 21
A19: 11 | B19: 1268 | C19: 21 | D19: 1275 | K19: 0 | L19: 12 | N19: Total Target Seq
A20: 11 | B20: 1377 | C20: 21 | D20: 1383 | K20: 0 | L20: 12 | N20: =COUNTIF(L7:L50,G3) -> 40 | P20: 7 | Q20: 8 | R20: 7 | S20: 7 | T20: 8 | U20: 7
A21: 11 | B21: 1479 | C21: 21 | D21: 1486 | K21: 0 | L21: 12 | P21: % of reinforcement given in 6 equal intervals based on number of trials
A22: 11 | B22: 1575 | C22: 21 | D22: 1581 | K22: 0 | L22: 12 | P22: %_1 | Q22: %_2 | R22: %_3 | S22: %_4 | T22: %_5 | U22: %_6
A23: 11 | B23: 1668 | C23: 21 | D23: 1676 | K23: 0 | L23: 12 | O23: target sequence | P23: =$G$3 -> 12 | Q23: =$G$3 -> 12 | R23: =$G$3 -> 12 | S23: =$G$3 -> 12 | T23: =$G$3 -> 12 | U23: =$G$3 -> 12
A24: 11 | B24: 1765 | C24: 21 | D24: 1772 | K24: 0 | L24: 12 | O24: total reinforcement | P24: =U8 -> 7 | Q24: =Z8 -> 6 | R24: =AE8 -> 6 | S24: =AJ8 -> 7 | T24: =AO8 -> 8 | U24: =AT8 -> 6
A25: 11 | B25: 1861 | C25: 21 | D25: 1868 | K25: 0 | L25: 12 | O25: % target
A26: 11 | B26: 1955 | C26: 21 | D26: 1962 | K26: 0 | L26: 12 | O26: CCRF
A27: 11 | B27: 2050 | C27: 21 | D27: 2058 | K27: 0 | L27: 12 | O27: % CCRf
A28: 22 | B28: 2159 | C28: 14 | D28: 2185 | K28: 0 | L28: 21 | O28: average response rate | P28: =D13/P20 -> 87 | Q28: =(D21-D13)/Q20 -> 109.625 | R28: =(D28-D21)/R20 -> 99.85714286 | S28: =(D35-D28)/S20 -> 101 | T28: =(D43-D35)/T20 -> 97.75 | U28: =(D50-D43)/U20 -> 97.28571429
A29: 11 | B29: 2291 | C29: 21 | D29: 2298 | K29: 0 | L29: 12
A30: 11 | B30: 2393 | C30: 21 | D30: 2401 | K30: 0 | L30: 12
A31: 11 | B31: 2501 | C31: 21 | D31: 2508 | K31: 0 | L31: 12
A32: 11 | B32: 2598 | C32: 21 | D32: 2607 | K32: 0 | L32: 12
A33: 11 | B33: 2697 | C33: 21 | D33: 2705 | K33: 0 | L33: 12
A34: 11 | B34: 2791 | C34: 21 | D34: 2798 | K34: 0 | L34: 12
A35: 11 | B35: 2885 | C35: 21 | D35: 2892 | K35: 0 | L35: 12
A36: 11 | B36: 2978 | C36: 21 | D36: 2987 | K36: 0 | L36: 12
A37: 11 | B37: 3077 | C37: 21 | D37: 3085 | K37: 0 | L37: 12
A38: 11 | B38: 3179 | C38: 21 | D38: 3187 | K38: 0 | L38: 12
A39: 11 | B39: 3274 | C39: 21 | D39: 3281 | K39: 0 | L39: 12
A40: 11 | B40: 3373 | C40: 21 | D40: 3381 | K40: 0 | L40: 12
A41: 11 | B41: 3479 | C41: 21 | D41: 3486 | K41: 0 | L41: 12
A42: 11 | B42: 3572 | C42: 21 | D42: 3579 | K42: 0 | L42: 12
A43: 11 | B43: 3666 | C43: 21 | D43: 3674 | K43: 0 | L43: 12
A44: 11 | B44: 3762 | C44: 21 | D44: 3770 | K44: 0 | L44: 12
A45: 11 | B45: 3858 | C45: 21 | D45: 3865 | K45: 0 | L45: 12
A46: 11 | B46: 3951 | C46: 12 | D46: 3960 | K46: 0 | L46: 11
A47: 11 | B47: 4057 | C47: 21 | D47: 4064 | K47: 0 | L47: 12
A48: 11 | B48: 4157 | C48: 21 | D48: 4166 | K48: 0 | L48: 12
A49: 11 | B49: 4255 | C49: 21 | D49: 4262 | K49: 0 | L49: 12
A50: 11 | B50: 4348 | C50: 21 | D50: 4355 | K50: 1 | L50: 12

Sheet !L815A00.052
A1: Report for:!L815A00.052
A2: Date: | B2: <date>
A3: Hen: | B3: <hen> | F3: Correct Sequence | G3: =Start!J2 -> 12 | P3: Total Sequences in Data | Q3: =4994-COUNTBLANK(L7:L5000) -> 49 | V3: Total Sequences in Block Data | W3: =COUNTA(L7:L14) -> 8 | AA3: Total Sequences in Block Data | AB3: =COUNTA(L15:L22) -> 8 | AF3: Total Sequences in Block Data | AG3: =COUNTA(L23:L31) -> 9 | AK3: Total Sequences in Block Data | AL3: =COUNTA(L32:L39) -> 8 | AP3: Total Sequences in Block Data | AQ3: =COUNTA(L40:L47) -> 8 | AU3: Total Sequences in Block Data | AV3: =COUNTA(L48:L55) -> 8
P4: Total Sequences in Summary | Q4: =SUM(O7:O14) -> 49 | V4: Total Sequences in Block Summary | W4: =SUM(U7:U14) -> 8 | AA4: Total Sequences in Block Summary | AB4: =SUM(Z7:Z14) -> 8 | AF4: Total Sequences in Block Summary | AG4: =SUM(AE7:AE14) -> 9 | AK4: Total Sequences in Block Summary | AL4: =SUM(AJ7:AJ14) -> 8 | AP4: Total Sequences in Block Summary | AQ4: =SUM(AO7:AO14) -> 8 | AU4: Total Sequences in Block Summary | AV4: =SUM(AT7:AT14) -> 8
T5: Block 1 | Y5: Block 2 | AD5: Block 3 | AI5: Block 4 | AN5: Block 5 | AS5: Block 6
A6: Sequence Component 1 | B6: Time 1 | C6: Sequence Component 2 | D6: Time 2 | E6: Sequence Component 3 | F6: Time 3 | G6: Sequence Component 4 | H6: Time 4 | I6: Sequence Component 5 | J6: Time 5 | K6: Correct? 0=No 1=Yes | L6: Sequence | N6: Frequency | P6: Relative Frequency | Q6: Variability | T6: Frequency | V6: Relative Frequency | W6: Variability | Y6: Frequency | AA6: Relative Frequency | AB6: Variability | AD6: Frequency | AF6: Relative Frequency | AG6: Variability | AI6: Frequency | AK6: Relative Frequency | AL6: Variability | AN6: Frequency | AP6: Relative Frequency | AQ6: Variability | AS6: Frequency | AU6: Relative Frequency | AV6: Variability
A7: 11 | B7: 7 | C7: 21 | D7: 14 | K7: 0 | L7: 12 | N7: 11 | O7: =COUNTIF($L$7:$L$500,N7) -> 5 | P7: =O7/$Q$4 -> 0.1020408163 | Q7: =IF(P7=0,0,(P7*((LOG(P7))/LOG(2)))) -> -0.3359981377 | T7: =N7 -> 11 | U7: =COUNTIF(L7:L14,T7) -> 1 | V7: =U7/(W4-U8) -> 0.5 | W7: =IF(V7=0,0,(V7*((LOG(V7))/LOG(2)))) -> -0.5 | Y7: =N7 -> 11 | Z7: =COUNTIF(L15:L22,Y7) -> 0 | AA7: =Z7/(AB4-Z8) ->  | AB7: =IF(AA7=0,0,(AA7*((LOG(AA7))/LOG(2)))) ->  | AD7: =N7 -> 11 | AE7: =COUNTIF(L23:L31,AD7) -> 1 | AF7: =AE7/(AG4-AE8) -> 0.3333333333 | AG7: =IF(AF7=0,0,(AF7*((LOG(AF7))/LOG(2)))) -> -0.5283208336 | AI7: =N7 -> 11 | AJ7: =COUNTIF(L32:L39,AI7) -> 2 | AK7: =AJ7/(AL4-AJ8) -> 1 | AL7: =IF(AK7=0,0,(AK7*((LOG(AK7))/LOG(2)))) -> 0 | AN7: =N7 -> 11 | AO7: =COUNTIF(L40:L47,AN7) -> 1 | AP7: =AO7/(AQ4-AO8) -> 0.5 | AQ7: =IF(AP7=0,0,(AP7*((LOG(AP7))/LOG(2)))) -> -0.5 | AS7: =N7 -> 11 | AT7: =COUNTIF(L48:L55,AS7) -> 0 | AU7: =AT7/(AV4-AT8) ->  | AV7: =IF(AU7=0,0,(AU7*((LOG(AU7))/LOG(2)))) -> 
A8: 11 | B8: 101 | C8: 21 | D8: 106 | K8: 0 | L8: 12 | N8: 12 | O8: =COUNTIF($L$7:$L$500,N8) -> 40 | P8: =O8/$Q$4 -> 0.8163265306 | Q8: =IF(P8=0,0,(P8*((LOG(P8))/LOG(2)))) -> -0.2390055096 | T8: =N8 -> 12 | U8: =COUNTIF(L7:L14,T8) -> 6 | Y8: =N8 -> 12 | Z8: =COUNTIF(L15:L22,Y8) -> 8 | AD8: =N8 -> 12 | AE8: =COUNTIF(L23:L31,AD8) -> 6 | AI8: =N8 -> 12 | AJ8: =COUNTIF(L32:L39,AI8) -> 6 | AN8: =N8 -> 12 | AO8: =COUNTIF(L40:L47,AN8) -> 6 | AS8: =N8 -> 12 | AT8: =COUNTIF(L48:L55,AS8) -> 8
A9: 11 | B9: 196 | C9: 21 | D9: 203 | K9: 0 | L9: 12 | N9: 21 | O9: =COUNTIF($L$7:$L$500,N9) -> 4 | P9: =O9/$Q$4 -> 0.08163265306 | Q9: =IF(P9=0,0,(P9*((LOG(P9))/LOG(2)))) -> -0.2950783546 | T9: =N9 -> 21 | U9: =COUNTIF(L7:L14,T9) -> 1 | V9: =U9/(W4-U8) -> 0.5 | W9: =IF(V9=0,0,(V9*((LOG(V9))/LOG(2)))) -> -0.5 | Y9: =N9 -> 21 | Z9: =COUNTIF(L15:L22,Y9) -> 0 | AA9: =Z9/(AB4-Z8) ->  | AB9: =IF(AA9=0,0,(AA9*((LOG(AA9))/LOG(2)))) ->  | AD9: =N9 -> 21 | AE9: =COUNTIF(L23:L31,AD9) -> 2 | AF9: =AE9/(AG4-AE8) -> 0.6666666667 | AG9: =IF(AF9=0,0,(AF9*((LOG(AF9))/LOG(2)))) -> -0.3899750005 | AI9: =N9 -> 21 | AJ9: =COUNTIF(L32:L39,AI9) -> 0 | AK9: =AJ9/(AL4-AJ8) -> 0 | AL9: =IF(AK9=0,0,(AK9*((LOG(AK9))/LOG(2)))) -> 0 | AN9: =N9 -> 21 | AO9: =COUNTIF(L40:L47,AN9) -> 1 | AP9: =AO9/(AQ4-AO8) -> 0.5 | AQ9: =IF(AP9=0,0,(AP9*((LOG(AP9))/LOG(2)))) -> -0.5 | AS9: =N9 -> 21 | AT9: =COUNTIF(L48:L55,AS9) -> 0 | AU9: =AT9/(AV4-AT8) ->  | AV9: =IF(AU9=0,0,(AU9*((LOG(AU9))/LOG(2)))) -> 
A10: 22 | B10: 295 | C10: 14 | D10: 307 | K10: 0 | L10: 21 | N10: 22 | O10: =COUNTIF($L$7:$L$500,N10) -> 0 | P10: =O10/$Q$4 -> 0 | Q10: =IF(P10=0,0,(P10*((LOG(P10))/LOG(2)))) -> 0 | T10: =N10 -> 22 | U10: =COUNTIF(L7:L14,T10) -> 0 | V10: =U10/(W4-U8) -> 0 | W10: =IF(V10=0,0,(V10*((LOG(V10))/LOG(2)))) -> 0 | Y10: =N10 -> 22 | Z10: =COUNTIF(L15:L22,Y10) -> 0 | AA10: =Z10/(AB4-Z8) ->  | AB10: =IF(AA10=0,0,(AA10*((LOG(AA10))/LOG(2)))) ->  | AD10: =N10 -> 22 | AE10: =COUNTIF(L23:L31,AD10) -> 0 | AF10: =AE10/(AG4-AE8) -> 0 | AG10: =IF(AF10=0,0,(AF10*((LOG(AF10))/LOG(2)))) -> 0 | AI10: =N10 -> 22 | AJ10: =COUNTIF(L32:L39,AI10) -> 0 | AK10: =AJ10/(AL4-AJ8) -> 0 | AL10: =IF(AK10=0,0,(AK10*((LOG(AK10))/LOG(2)))) -> 0 | AN10: =N10 -> 22 | AO10: =COUNTIF(L40:L47,AN10) -> 0 | AP10: =AO10/(AQ4-AO8) -> 0 | AQ10: =IF(AP10=0,0,(AP10*((LOG(AP10))/LOG(2)))) -> 0 | AS10: =N10 -> 22 | AT10: =COUNTIF(L48:L55,AS10) -> 0 | AU10: =AT10/(AV4-AT8) ->  | AV10: =IF(AU10=0,0,(AU10*((LOG(AU10))/LOG(2)))) -> 
A11: 11 | B11: 403 | C11: 12 | D11: 412 | K11: 0 | L11: 11 | T11: =N11 -> 0 | U11: =COUNTIF(L7:L14,T11) -> 0 | V11: =U11/(W4-U8) -> 0 | W11: =IF(V11=0,0,(V11*((LOG(V11))/LOG(2)))) -> 0 | Y11: =N11 -> 0 | Z11: =COUNTIF(L15:L22,Y11) -> 0 | AA11: =Z11/(AB4-Z8) ->  | AB11: =IF(AA11=0,0,(AA11*((LOG(AA11))/LOG(2)))) ->  | AD11: =N11 -> 0 | AE11: =COUNTIF(L23:L31,AD11) -> 0 | AF11: =AE11/(AG4-AE8) -> 0 | AG11: =IF(AF11=0,0,(AF11*((LOG(AF11))/LOG(2)))) -> 0 | AI11: =N11 -> 0 | AJ11: =COUNTIF(L32:L39,AI11) -> 0 | AK11: =AJ11/(AL4-AJ8) -> 0 | AL11: =IF(AK11=0,0,(AK11*((LOG(AK11))/LOG(2)))) -> 0 | AN11: =N11 -> 0 | AO11: =COUNTIF(L40:L47,AN11) -> 0 | AP11: =AO11/(AQ4-AO8) -> 0 | AQ11: =IF(AP11=0,0,(AP11*((LOG(AP11))/LOG(2)))) -> 0 | AS11: =N11 -> 0 | AT11: =COUNTIF(L48:L55,AS11) -> 0 | AU11: =AT11/(AV4-AT8) ->  | AV11: =IF(AU11=0,0,(AU11*((LOG(AU11))/LOG(2)))) -> 
A12: 11 | B12: 511 | C12: 21 | D12: 520 | K12: 0 | L12: 12 | T12: =N12 -> 0 | U12: =COUNTIF(L7:L14,T12) -> 0 | V12: =U12/(W4-U8) -> 0 | W12: =IF(V12=0,0,(V12*((LOG(V12))/LOG(2)))) -> 0 | Y12: =N12 -> 0 | Z12: =COUNTIF(L15:L22,Y12) -> 0 | AA12: =Z12/(AB4-Z8) ->  | AB12: =IF(AA12=0,0,(AA12*((LOG(AA12))/LOG(2)))) ->  | AD12: =N12 -> 0 | AE12: =COUNTIF(L23:L31,AD12) -> 0 | AF12: =AE12/(AG4-AE8) -> 0 | AG12: =IF(AF12=0,0,(AF12*((LOG(AF12))/LOG(2)))) -> 0 | AI12: =N12 -> 0 | AJ12: =COUNTIF(L32:L39,AI12) -> 0 | AK12: =AJ12/(AL4-AJ8) -> 0 | AL12: =IF(AK12=0,0,(AK12*((LOG(AK12))/LOG(2)))) -> 0 | AN12: =N12 -> 0 | AO12: =COUNTIF(L40:L47,AN12) -> 0 | AP12: =AO12/(AQ4-AO8) -> 0 | AQ12: =IF(AP12=0,0,(AP12*((LOG(AP12))/LOG(2)))) -> 0 | AS12: =N12 -> 0 | AT12: =COUNTIF(L48:L55,AS12) -> 0 | AU12: =AT12/(AV4-AT8) ->  | AV12: =IF(AU12=0,0,(AU12*((LOG(AU12))/LOG(2)))) -> 
A13: 11 | B13: 614 | C13: 21 | D13: 620 | K13: 0 | L13: 12 | T13: =N13 -> 0 | U13: =COUNTIF(L7:L14,T13) -> 0 | V13: =U13/(W4-U8) -> 0 | W13: =IF(V13=0,0,(V13*((LOG(V13))/LOG(2)))) -> 0 | Y13: =N13 -> 0 | Z13: =COUNTIF(L15:L22,Y13) -> 0 | AA13: =Z13/(AB4-Z8) ->  | AB13: =IF(AA13=0,0,(AA13*((LOG(AA13))/LOG(2)))) ->  | AD13: =N13 -> 0 | AE13: =COUNTIF(L23:L31,AD13) -> 0 | AF13: =AE13/(AG4-AE8) -> 0 | AG13: =IF(AF13=0,0,(AF13*((LOG(AF13))/LOG(2)))) -> 0 | AI13: =N13 -> 0 | AJ13: =COUNTIF(L32:L39,AI13) -> 0 | AK13: =AJ13/(AL4-AJ8) -> 0 | AL13: =IF(AK13=0,0,(AK13*((LOG(AK13))/LOG(2)))) -> 0 | AN13: =N13 -> 0 | AO13: =COUNTIF(L40:L47,AN13) -> 0 | AP13: =AO13/(AQ4-AO8) -> 0 | AQ13: =IF(AP13=0,0,(AP13*((LOG(AP13))/LOG(2)))) -> 0 | AS13: =N13 -> 0 | AT13: =COUNTIF(L48:L55,AS13) -> 0 | AU13: =AT13/(AV4-AT8) ->  | AV13: =IF(AU13=0,0,(AU13*((LOG(AU13))/LOG(2)))) -> 
A14: 11 | B14: 706 | C14: 21 | D14: 714 | K14: 0 | L14: 12 | T14: =N14 -> 0 | U14: =COUNTIF(L7:L14,T14) -> 0 | V14: =U14/(W4-U8) -> 0 | W14: =IF(V14=0,0,(V14*((LOG(V14))/LOG(2)))) -> 0 | Y14: =N14 -> 0 | Z14: =COUNTIF(L15:L22,Y14) -> 0 | AA14: =Z14/(AB4-Z8) ->  | AB14: =IF(AA14=0,0,(AA14*((LOG(AA14))/LOG(2)))) ->  | AD14: =N14 -> 0 | AE14: =COUNTIF(L23:L31,AD14) -> 0 | AF14: =AE14/(AG4-AE8) -> 0 | AG14: =IF(AF14=0,0,(AF14*((LOG(AF14))/LOG(2)))) -> 0 | AI14: =N14 -> 0 | AJ14: =COUNTIF(L32:L39,AI14) -> 0 | AK14: =AJ14/(AL4-AJ8) -> 0 | AL14: =IF(AK14=0,0,(AK14*((LOG(AK14))/LOG(2)))) -> 0 | AN14: =N14 -> 0 | AO14: =COUNTIF(L40:L47,AN14) -> 0 | AP14: =AO14/(AQ4-AO8) -> 0 | AQ14: =IF(AP14=0,0,(AP14*((LOG(AP14))/LOG(2)))) -> 0 | AS14: =N14 -> 0 | AT14: =COUNTIF(L48:L55,AS14) -> 0 | AU14: =AT14/(AV4-AT8) ->  | AV14: =IF(AU14=0,0,(AU14*((LOG(AU14))/LOG(2)))) -> 
A15: 11 | B15: 800 | C15: 21 | D15: 807 | K15: 0 | L15: 12 | P15: =SUM(P7:P14) -> 1 | Q15: =-SUM(Q7:Q14) -> 0.8700820019 | V15: =SUM(V7:V14) -> 1 | W15: =-SUM(W7:W14) -> 1 | AA15: =SUM(AA7:AA14) ->  | AB15: =-SUM(AB7:AB14) ->  | AF15: =SUM(AF7:AF14) -> 1 | AG15: =-SUM(AG7:AG14) -> 0.9182958341 | AK15: =SUM(AK7:AK14) -> 1 | AL15: =-SUM(AL7:AL14) -> 0 | AP15: =SUM(AP7:AP14) -> 1 | AQ15: =-SUM(AQ7:AQ14) -> 1 | AU15: =SUM(AU7:AU14) ->  | AV15: =-SUM(AV7:AV14) -> 
A16: 11 | B16: 893 | C16: 21 | D16: 900 | K16: 0 | L16: 12 | P16: U= | Q16: =Q15/(LOG(Q4)/LOG(2)) -> 0.1549647312 | V16: U1= | W16: =W15/(LOG(W4)/LOG(2)) -> 0.3333333333 | AA16: U2= | AB16: =AB15/(LOG(AB4)/LOG(2)) ->  | AF16: U3= | AG16: =AG15/(LOG(AG4)/LOG(2)) -> 0.2896900821 | AK16: U4= | AL16: =AL15/(LOG(AL4)/LOG(2)) -> 0 | AP16: U5= | AQ16: =AQ15/(LOG(AQ4)/LOG(2)) -> 0.3333333333 | AU16: U6= | AV16: =AV15/(LOG(AV4)/LOG(2)) -> 
A17: 11 | B17: 992 | C17: 21 | D17: 999 | K17: 0 | L17: 12
A18: 11 | B18: 1085 | C18: 21 | D18: 1092 | K18: 0 | L18: 12
A19: 11 | B19: 1185 | C19: 21 | D19: 1193 | K19: 0 | L19: 12 | N19: Total Target Seq
A20: 11 | B20: 1279 | C20: 21 | D20: 1287 | K20: 0 | L20: 12 | N20: =COUNTIF(L7:L55,G3) -> 40 | P20: 8 | Q20: 8 | R20: 9 | S20: 8 | T20: 8 | U20: 8
A21: 11 | B21: 1373 | C21: 21 | D21: 1381 | K21: 0 | L21: 12 | P21: % of reinforcement given in 6 equal intervals based on number of trials
A22: 11 | B22: 1469 | C22: 21 | D22: 1476 | K22: 0 | L22: 12 | P22: %_1 | Q22: %_2 | R22: %_3 | S22: %_4 | T22: %_5 | U22: %_6
A23: 22 | B23: 1586 | C23: 14 | D23: 1699 | K23: 0 | L23: 21 | O23: target sequence | P23: =$G$3 -> 12 | Q23: =$G$3 -> 12 | R23: =$G$3 -> 12 | S23: =$G$3 -> 12 | T23: =$G$3 -> 12 | U23: =$G$3 -> 12
A24: 11 | B24: 1795 | C24: 21 | D24: 1800 | K24: 0 | L24: 12 | O24: total reinforcement | P24: =U8 -> 6 | Q24: =Z8 -> 8 | R24: =AE8 -> 6 | S24: =AJ8 -> 6 | T24: =AO8 -> 6 | U24: =AT8 -> 8
A25: 11 | B25: 1893 | C25: 21 | D25: 1901 | K25: 0 | L25: 12 | O25: % target
A26: 11 | B26: 1985 | C26: 21 | D26: 1993 | K26: 0 | L26: 12 | O26: CCRF
A27: 11 | B27: 2078 | C27: 21 | D27: 2086 | K27: 0 | L27: 12 | O27: % CCRf
A28: 11 | B28: 2174 | C28: 21 | D28: 2182 | K28: 0 | L28: 12 | O28: average response rate | P28: =D14/P20 -> 89.25 | Q28: =(D22-D14)/Q20 -> 95.25 | R28: =(D31-D22)/R20 -> 118.6666667 | S28: =(D39-D31)/S20 -> 105.5 | T28: =(D47-D39)/T20 -> 112.5 | U28: =(D55-D47)/U20 -> 95.75
A29: 11 | B29: 2266 | C29: 21 | D29: 2273 | K29: 0 | L29: 12
A30: 11 | B30: 2355 | C30: 12 | D30: 2359 | K30: 0 | L30: 11
A31: 22 | B31: 2463 | C31: 14 | D31: 2544 | K31: 0 | L31: 21
A32: 11 | B32: 2667 | C32: 21 | D32: 2675 | K32: 0 | L32: 12
A33: 11 | B33: 2770 | C33: 12 | D33: 2780 | K33: 0 | L33: 11
A34: 11 | B34: 2890 | C34: 21 | D34: 2897 | K34: 0 | L34: 12
A35: 11 | B35: 2987 | C35: 12 | D35: 2995 | K35: 0 | L35: 11
A36: 11 | B36: 3089 | C36: 21 | D36: 3097 | K36: 0 | L36: 12
A37: 11 | B37: 3188 | C37: 21 | D37: 3196 | K37: 0 | L37: 12
A38: 11 | B38: 3284 | C38: 21 | D38: 3292 | K38: 0 | L38: 12
A39: 11 | B39: 3380 | C39: 21 | D39: 3388 | K39: 0 | L39: 12
A40: 11 | B40: 3473 | C40: 21 | D40: 3481 | K40: 0 | L40: 12
A41: 11 | B41: 3567 | C41: 21 | D41: 3585 | K41: 0 | L41: 12
A42: 11 | B42: 3667 | C42: 12 | D42: 3672 | K42: 0 | L42: 11
A43: 11 | B43: 3768 | C43: 21 | D43: 3776 | K43: 0 | L43: 12
A44: 11 | B44: 3872 | C44: 21 | D44: 3881 | K44: 0 | L44: 12
A45: 11 | B45: 3967 | C45: 21 | D45: 3975 | K45: 0 | L45: 12
A46: 22 | B46: 4069 | C46: 14 | D46: 4184 | K46: 0 | L46: 21
A47: 11 | B47: 4280 | C47: 21 | D47: 4288 | K47: 0 | L47: 12
A48: 11 | B48: 4372 | C48: 21 | D48: 4381 | K48: 0 | L48: 12
A49: 11 | B49: 4466 | C49: 21 | D49: 4474 | K49: 0 | L49: 12
A50: 11 | B50: 4562 | C50: 21 | D50: 4570 | K50: 0 | L50: 12
A51: 11 | B51: 4658 | C51: 21 | D51: 4666 | K51: 0 | L51: 12
A52: 11 | B52: 4751 | C52: 21 | D52: 4759 | K52: 0 | L52: 12
A53: 11 | B53: 4858 | C53: 21 | D53: 4867 | K53: 0 | L53: 12
A54: 11 | B54: 4952 | C54: 21 | D54: 4961 | K54: 0 | L54: 12
A55: 11 | B55: 5046 | C55: 21 | D55: 5054 | K55: 1 | L55: 12

Sheet !L816850.052
A1: Report for:!L816850.052
A2: Date: | B2: <date>
A3: Hen: | B3: <hen> | F3: Correct Sequence | G3: =Start!J2 -> 12 | P3: Total Sequences in Data | Q3: =4994-COUNTBLANK(L7:L5000) -> 53 | V3: Total Sequences in Block Data | W3: =COUNTA(L7:L15) -> 9 | AA3: Total Sequences in Block Data | AB3: =COUNTA(L16:L24) -> 9 | AF3: Total Sequences in Block Data | AG3: =COUNTA(L25:L32) -> 8 | AK3: Total Sequences in Block Data | AL3: =COUNTA(L33:L41) -> 9 | AP3: Total Sequences in Block Data | AQ3: =COUNTA(L42:L50) -> 9 | AU3: Total Sequences in Block Data | AV3: =COUNTA(L51:L59) -> 9
P4: Total Sequences in Summary | Q4: =SUM(O7:O14) -> 53 | V4: Total Sequences in Block Summary | W4: =SUM(U7:U14) -> 9 | AA4: Total Sequences in Block Summary | AB4: =SUM(Z7:Z14) -> 9 | AF4: Total Sequences in Block Summary | AG4: =SUM(AE7:AE14) -> 8 | AK4: Total Sequences in Block Summary | AL4: =SUM(AJ7:AJ14) -> 9 | AP4: Total Sequences in Block Summary | AQ4: =SUM(AO7:AO14) -> 9 | AU4: Total Sequences in Block Summary | AV4: =SUM(AT7:AT14) -> 9
T5: Block 1 | Y5: Block 2 | AD5: Block 3 | AI5: Block 4 | AN5: Block 5 | AS5: Block 6
A6: Sequence Component 1 | B6: Time 1 | C6: Sequence Component 2 | D6: Time 2 | E6: Sequence Component 3 | F6: Time 3 | G6: Sequence Component 4 | H6: Time 4 | I6: Sequence Component 5 | J6: Time 5 | K6: Correct? 0=No 1=Yes | L6: Sequence | N6: Frequency | P6: Relative Frequency | Q6: Variability | T6: Frequency | V6: Relative Frequency | W6: Variability | Y6: Frequency | AA6: Relative Frequency | AB6: Variability | AD6: Frequency | AF6: Relative Frequency | AG6: Variability | AI6: Frequency | AK6: Relative Frequency | AL6: Variability | AN6: Frequency | AP6: Relative Frequency | AQ6: Variability | AS6: Frequency | AU6: Relative Frequency | AV6: Variability
A7: 11 | B7: 7 | C7: 21 | D7: 14 | K7: 0 | L7: 12 | N7: 11 | O7: =COUNTIF($L$7:$L$500,N7) -> 7 | P7: =O7/$Q$4 -> 0.1320754717 | Q7: =IF(P7=0,0,(P7*((LOG(P7))/LOG(2)))) -> -0.3857350703 | T7: =N7 -> 11 | U7: =COUNTIF(L7:L15,T7) -> 0 | V7: =U7/(W4-U8) -> 0 | W7: =IF(V7=0,0,(V7*((LOG(V7))/LOG(2)))) -> 0 | Y7: =N7 -> 11 | Z7: =COUNTIF(L16:L24,Y7) -> 1 | AA7: =Z7/(AB4-Z8) -> 1 | AB7: =IF(AA7=0,0,(AA7*((LOG(AA7))/LOG(2)))) -> 0 | AD7: =N7 -> 11 | AE7: =COUNTIF(L25:L32,AD7) -> 2 | AF7: =AE7/(AG4-AE8) -> 0.6666666667 | AG7: =IF(AF7=0,0,(AF7*((LOG(AF7))/LOG(2)))) -> -0.3899750005 | AI7: =N7 -> 11 | AJ7: =COUNTIF(L33:L41,AI7) -> 2 | AK7: =AJ7/(AL4-AJ8) -> 0.6666666667 | AL7: =IF(AK7=0,0,(AK7*((LOG(AK7))/LOG(2)))) -> -0.3899750005 | AN7: =N7 -> 11 | AO7: =COUNTIF(L42:L50,AN7) -> 2 | AP7: =AO7/(AQ4-AO8) -> 0.5 | AQ7: =IF(AP7=0,0,(AP7*((LOG(AP7))/LOG(2)))) -> -0.5 | AS7: =N7 -> 11 | AT7: =COUNTIF(L51:L59,AS7) -> 0 | AU7: =AT7/(AV4-AT8) ->  | AV7: =IF(AU7=0,0,(AU7*((LOG(AU7))/LOG(2)))) -> 
A8: 11 | B8: 101 | C8: 21 | D8: 108 | K8: 0 | L8: 12 | N8: 12 | O8: =COUNTIF($L$7:$L$500,N8) -> 40 | P8: =O8/$Q$4 -> 0.7547169811 | Q8: =IF(P8=0,0,(P8*((LOG(P8))/LOG(2)))) -> -0.3064093281 | T8: =N8 -> 12 | U8: =COUNTIF(L7:L15,T8) -> 7 | Y8: =N8 -> 12 | Z8: =COUNTIF(L16:L24,Y8) -> 8 | AD8: =N8 -> 12 | AE8: =COUNTIF(L25:L32,AD8) -> 5 | AI8: =N8 -> 12 | AJ8: =COUNTIF(L33:L41,AI8) -> 6 | AN8: =N8 -> 12 | AO8: =COUNTIF(L42:L50,AN8) -> 5 | AS8: =N8 -> 12 | AT8: =COUNTIF(L51:L59,AS8) -> 9
A9: 11 | B9: 198 | C9: 21 | D9: 205 | K9: 0 | L9: 12 | N9: 21 | O9: =COUNTIF($L$7:$L$500,N9) -> 1 | P9: =O9/$Q$4 -> 0.01886792453 | Q9: =IF(P9=0,0,(P9*((LOG(P9))/LOG(2)))) -> -0.1080739708 | T9: =N9 -> 21 | U9: =COUNTIF(L7:L15,T9) -> 1 | V9: =U9/(W4-U8) -> 0.5 | W9: =IF(V9=0,0,(V9*((LOG(V9))/LOG(2)))) -> -0.5 | Y9: =N9 -> 21 | Z9: =COUNTIF(L16:L24,Y9) -> 0 | AA9: =Z9/(AB4-Z8) -> 0 | AB9: =IF(AA9=0,0,(AA9*((LOG(AA9))/LOG(2)))) -> 0 | AD9: =N9 -> 21 | AE9: =COUNTIF(L25:L32,AD9) -> 0 | AF9: =AE9/(AG4-AE8) -> 0 | AG9: =IF(AF9=0,0,(AF9*((LOG(AF9))/LOG(2)))) -> 0 | AI9: =N9 -> 21 | AJ9: =COUNTIF(L33:L41,AI9) -> 0 | AK9: =AJ9/(AL4-AJ8) -> 0 | AL9: =IF(AK9=0,0,(AK9*((LOG(AK9))/LOG(2)))) -> 0 | AN9: =N9 -> 21 | AO9: =COUNTIF(L42:L50,AN9) -> 0 | AP9: =AO9/(AQ4-AO8) -> 0 | AQ9: =IF(AP9=0,0,(AP9*((LOG(AP9))/LOG(2)))) -> 0 | AS9: =N9 -> 21 | AT9: =COUNTIF(L51:L59,AS9) -> 0 | AU9: =AT9/(AV4-AT8) ->  | AV9: =IF(AU9=0,0,(AU9*((LOG(AU9))/LOG(2)))) -> 
A10: 11 | B10: 290 | C10: 21 | D10: 297 | K10: 0 | L10: 12 | N10: 22 | O10: =COUNTIF($L$7:$L$500,N10) -> 5 | P10: =O10/$Q$4 -> 0.09433962264 | Q10: =IF(P10=0,0,(P10*((LOG(P10))/LOG(2)))) -> -0.3213200339 | T10: =N10 -> 22 | U10: =COUNTIF(L7:L15,T10) -> 1 | V10: =U10/(W4-U8) -> 0.5 | W10: =IF(V10=0,0,(V10*((LOG(V10))/LOG(2)))) -> -0.5 | Y10: =N10 -> 22 | Z10: =COUNTIF(L16:L24,Y10) -> 0 | AA10: =Z10/(AB4-Z8) -> 0 | AB10: =IF(AA10=0,0,(AA10*((LOG(AA10))/LOG(2)))) -> 0 | AD10: =N10 -> 22 | AE10: =COUNTIF(L25:L32,AD10) -> 1 | AF10: =AE10/(AG4-AE8) -> 0.3333333333 | AG10: =IF(AF10=0,0,(AF10*((LOG(AF10))/LOG(2)))) -> -0.5283208336 | AI10: =N10 -> 22 | AJ10: =COUNTIF(L33:L41,AI10) -> 1 | AK10: =AJ10/(AL4-AJ8) -> 0.3333333333 | AL10: =IF(AK10=0,0,(AK10*((LOG(AK10))/LOG(2)))) -> -0.5283208336 | AN10: =N10 -> 22 | AO10: =COUNTIF(L42:L50,AN10) -> 2 | AP10: =AO10/(AQ4-AO8) -> 0.5 | AQ10: =IF(AP10=0,0,(AP10*((LOG(AP10))/LOG(2)))) -> -0.5 | AS10: =N10 -> 22 | AT10: =COUNTIF(L51:L59,AS10) -> 0 | AU10: =AT10/(AV4-AT8) ->  | AV10: =IF(AU10=0,0,(AU10*((LOG(AU10))/LOG(2)))) -> 
A11: 22 | B11: 393 | C11: 23 | D11: 460 | K11: 0 | L11: 22 | T11: =N11 -> 0 | U11: =COUNTIF(L7:L15,T11) -> 0 | V11: =U11/(W4-U8) -> 0 | W11: =IF(V11=0,0,(V11*((LOG(V11))/LOG(2)))) -> 0 | Y11: =N11 -> 0 | Z11: =COUNTIF(L16:L24,Y11) -> 0 | AA11: =Z11/(AB4-Z8) -> 0 | AB11: =IF(AA11=0,0,(AA11*((LOG(AA11))/LOG(2)))) -> 0 | AD11: =N11 -> 0 | AE11: =COUNTIF(L25:L32,AD11) -> 0 | AF11: =AE11/(AG4-AE8) -> 0 | AG11: =IF(AF11=0,0,(AF11*((LOG(AF11))/LOG(2)))) -> 0 | AI11: =N11 -> 0 | AJ11: =COUNTIF(L33:L41,AI11) -> 0 | AK11: =AJ11/(AL4-AJ8) -> 0 | AL11: =IF(AK11=0,0,(AK11*((LOG(AK11))/LOG(2)))) -> 0 | AN11: =N11 -> 0 | AO11: =COUNTIF(L42:L50,AN11) -> 0 | AP11: =AO11/(AQ4-AO8) -> 0 | AQ11: =IF(AP11=0,0,(AP11*((LOG(AP11))/LOG(2)))) -> 0 | AS11: =N11 -> 0 | AT11: =COUNTIF(L51:L59,AS11) -> 0 | AU11: =AT11/(AV4-AT8) ->  | AV11: =IF(AU11=0,0,(AU11*((LOG(AU11))/LOG(2)))) -> 
A12: 22 | B12: 564 | C12: 14 | D12: 573 | K12: 0 | L12: 21 | T12: =N12 -> 0 | U12: =COUNTIF(L7:L15,T12) -> 0 | V12: =U12/(W4-U8) -> 0 | W12: =IF(V12=0,0,(V12*((LOG(V12))/LOG(2)))) -> 0 | Y12: =N12 -> 0 | Z12: =COUNTIF(L16:L24,Y12) -> 0 | AA12: =Z12/(AB4-Z8) -> 0 | AB12: =IF(AA12=0,0,(AA12*((LOG(AA12))/LOG(2)))) -> 0 | AD12: =N12 -> 0 | AE12: =COUNTIF(L25:L32,AD12) -> 0 | AF12: =AE12/(AG4-AE8) -> 0 | AG12: =IF(AF12=0,0,(AF12*((LOG(AF12))/LOG(2)))) -> 0 | AI12: =N12 -> 0 | AJ12: =COUNTIF(L33:L41,AI12) -> 0 | AK12: =AJ12/(AL4-AJ8) -> 0 | AL12: =IF(AK12=0,0,(AK12*((LOG(AK12))/LOG(2)))) -> 0 | AN12: =N12 -> 0 | AO12: =COUNTIF(L42:L50,AN12) -> 0 | AP12: =AO12/(AQ4-AO8) -> 0 | AQ12: =IF(AP12=0,0,(AP12*((LOG(AP12))/LOG(2)))) -> 0 | AS12: =N12 -> 0 | AT12: =COUNTIF(L51:L59,AS12) -> 0 | AU12: =AT12/(AV4-AT8) ->  | AV12: =IF(AU12=0,0,(AU12*((LOG(AU12))/LOG(2)))) -> 
A13: 11 | B13: 673 | C13: 21 | D13: 678 | K13: 0 | L13: 12 | T13: =N13 -> 0 | U13: =COUNTIF(L7:L15,T13) -> 0 | V13: =U13/(W4-U8) -> 0 | W13: =IF(V13=0,0,(V13*((LOG(V13))/LOG(2)))) -> 0 | Y13: =N13 -> 0 | Z13: =COUNTIF(L16:L24,Y13) -> 0 | AA13: =Z13/(AB4-Z8) -> 0 | AB13: =IF(AA13=0,0,(AA13*((LOG(AA13))/LOG(2)))) -> 0 | AD13: =N13 -> 0 | AE13: =COUNTIF(L25:L32,AD13) -> 0 | AF13: =AE13/(AG4-AE8) -> 0 | AG13: =IF(AF13=0,0,(AF13*((LOG(AF13))/LOG(2)))) -> 0 | AI13: =N13 -> 0 | AJ13: =COUNTIF(L33:L41,AI13) -> 0 | AK13: =AJ13/(AL4-AJ8) -> 0 | AL13: =IF(AK13=0,0,(AK13*((LOG(AK13))/LOG(2)))) -> 0 | AN13: =N13 -> 0 | AO13: =COUNTIF(L42:L50,AN13) -> 0 | AP13: =AO13/(AQ4-AO8) -> 0 | AQ13: =IF(AP13=0,0,(AP13*((LOG(AP13))/LOG(2)))) -> 0 | AS13: =N13 -> 0 | AT13: =COUNTIF(L51:L59,AS13) -> 0 | AU13: =AT13/(AV4-AT8) ->  | AV13: =IF(AU13=0,0,(AU13*((LOG(AU13))/LOG(2)))) -> 
A14: 11 | B14: 774 | C14: 21 | D14: 781 | K14: 0 | L14: 12 | T14: =N14 -> 0 | U14: =COUNTIF(L7:L15,T14) -> 0 | V14: =U14/(W4-U8) -> 0 | W14: =IF(V14=0,0,(V14*((LOG(V14))/LOG(2)))) -> 0 | Y14: =N14 -> 0 | Z14: =COUNTIF(L16:L24,Y14) -> 0 | AA14: =Z14/(AB4-Z8) -> 0 | AB14: =IF(AA14=0,0,(AA14*((LOG(AA14))/LOG(2)))) -> 0 | AD14: =N14 -> 0 | AE14: =COUNTIF(L25:L32,AD14) -> 0 | AF14: =AE14/(AG4-AE8) -> 0 | AG14: =IF(AF14=0,0,(AF14*((LOG(AF14))/LOG(2)))) -> 0 | AI14: =N14 -> 0 | AJ14: =COUNTIF(L33:L41,AI14) -> 0 | AK14: =AJ14/(AL4-AJ8) -> 0 | AL14: =IF(AK14=0,0,(AK14*((LOG(AK14))/LOG(2)))) -> 0 | AN14: =N14 -> 0 | AO14: =COUNTIF(L42:L50,AN14) -> 0 | AP14: =AO14/(AQ4-AO8) -> 0 | AQ14: =IF(AP14=0,0,(AP14*((LOG(AP14))/LOG(2)))) -> 0 | AS14: =N14 -> 0 | AT14: =COUNTIF(L51:L59,AS14) -> 0 | AU14: =AT14/(AV4-AT8) ->  | AV14: =IF(AU14=0,0,(AU14*((LOG(AU14))/LOG(2)))) -> 
A15: 11 | B15: 876 | C15: 21 | D15: 883 | K15: 0 | L15: 12 | P15: =SUM(P7:P14) -> 1 | Q15: =-SUM(Q7:Q14) -> 1.121538403 | V15: =SUM(V7:V14) -> 1 | W15: =-SUM(W7:W14) -> 1 | AA15: =SUM(AA7:AA14) -> 1 | AB15: =-SUM(AB7:AB14) -> 0 | AF15: =SUM(AF7:AF14) -> 1 | AG15: =-SUM(AG7:AG14) -> 0.9182958341 | AK15: =SUM(AK7:AK14) -> 1 | AL15: =-SUM(AL7:AL14) -> 0.9182958341 | AP15: =SUM(AP7:AP14) -> 1 | AQ15: =-SUM(AQ7:AQ14) -> 1 | AU15: =SUM(AU7:AU14) ->  | AV15: =-SUM(AV7:AV14) -> 
A16: 11 | B16: 969 | C16: 21 | D16: 977 | K16: 0 | L16: 12 | P16: U= | Q16: =Q15/(LOG(Q4)/LOG(2)) -> 0.1958020214 | V16: U1= | W16: =W15/(LOG(W4)/LOG(2)) -> 0.3154648768 | AA16: U2= | AB16: =AB15/(LOG(AB4)/LOG(2)) -> 0 | AF16: U3= | AG16: =AG15/(LOG(AG4)/LOG(2)) -> 0.3060986114 | AK16: U4= | AL16: =AL15/(LOG(AL4)/LOG(2)) -> 0.2896900821 | AP16: U5= | AQ16: =AQ15/(LOG(AQ4)/LOG(2)) -> 0.3154648768 | AU16: U6= | AV16: =AV15/(LOG(AV4)/LOG(2)) -> 
A17: 11 | B17: 1071 | C17: 21 | D17: 1079 | K17: 0 | L17: 12
A18: 11 | B18: 1166 | C18: 12 | D18: 1175 | K18: 0 | L18: 11
A19: 11 | B19: 1273 | C19: 21 | D19: 1281 | K19: 0 | L19: 12 | N19: Total Target Seq
A20: 11 | B20: 1366 | C20: 21 | D20: 1374 | K20: 0 | L20: 12 | N20: =COUNTIF(L7:L59,G3) -> 40 | P20: 9 | Q20: 9 | R20: 8 | S20: 9 | T20: 9 | U20: 9
A21: 11 | B21: 1464 | C21: 21 | D21: 1470 | K21: 0 | L21: 12 | P21: % of reinforcement given in 6 equal intervals based on number of trials
A22: 11 | B22: 1557 | C22: 21 | D22: 1564 | K22: 0 | L22: 12 | P22: %_1 | Q22: %_2 | R22: %_3 | S22: %_4 | T22: %_5 | U22: %_6
A23: 11 | B23: 1650 | C23: 21 | D23: 1657 | K23: 0 | L23: 12 | O23: target sequence | P23: =$G$3 -> 12 | Q23: =$G$3 -> 12 | R23: =$G$3 -> 12 | S23: =$G$3 -> 12 | T23: =$G$3 -> 12 | U23: =$G$3 -> 12
A24: 11 | B24: 1746 | C24: 21 | D24: 1753 | K24: 0 | L24: 12 | O24: total reinforcement | P24: =U8 -> 7 | Q24: =Z8 -> 8 | R24: =AE8 -> 5 | S24: =AJ8 -> 6 | T24: =AO8 -> 5 | U24: =AT8 -> 9
A25: 11 | B25: 1844 | C25: 21 | D25: 1851 | K25: 0 | L25: 12 | O25: % target
A26: 11 | B26: 1938 | C26: 21 | D26: 1945 | K26: 0 | L26: 12 | O26: CCRF
A27: 11 | B27: 2030 | C27: 21 | D27: 2037 | K27: 0 | L27: 12 | O27: % CCRf
A28: 11 | B28: 2127 | C28: 12 | D28: 2136 | K28: 0 | L28: 11 | O28: average response rate | P28: =D15/P20 -> 98.11111111 | Q28: =(D24-D15)/Q20 -> 96.66666667 | R28: =(D32-D24)/R20 -> 112.375 | S28: =(D41-D32)/S20 -> 127.8888889 | T28: =(D50-D41)/T20 -> 121.8888889 | U28: =(D59-D50)/U20 -> 96.22222222
A29: 11 | B29: 2233 | C29: 21 | D29: 2240 | K29: 0 | L29: 12
A30: 22 | B30: 2334 | C30: 23 | D30: 2426 | K30: 0 | L30: 22
A31: 11 | B31: 2537 | C31: 21 | D31: 2546 | K31: 0 | L31: 12
A32: 11 | B32: 2632 | C32: 12 | D32: 2652 | K32: 0 | L32: 11
A33: 11 | B33: 2749 | C33: 12 | D33: 2758 | K33: 0 | L33: 11
A34: 11 | B34: 2854 | C34: 12 | D34: 2862 | K34: 0 | L34: 11
A35: 11 | B35: 2960 | C35: 21 | D35: 2968 | K35: 0 | L35: 12
A36: 11 | B36: 3064 | C36: 21 | D36: 3072 | K36: 0 | L36: 12
A37: 11 | B37: 3158 | C37: 21 | D37: 3343 | K37: 0 | L37: 12
A38: 11 | B38: 3430 | C38: 21 | D38: 3438 | K38: 0 | L38: 12
A39: 11 | B39: 3525 | C39: 21 | D39: 3534 | K39: 0 | L39: 12
A40: 22 | B40: 3630 | C40: 23 | D40: 3699 | K40: 0 | L40: 22
A41: 11 | B41: 3795 | C41: 21 | D41: 3803 | K41: 0 | L41: 12
A42: 11 | B42: 3891 | C42: 21 | D42: 3901 | K42: 0 | L42: 12
A43: 11 | B43: 3986 | C43: 21 | D43: 3994 | K43: 0 | L43: 12
A44: 11 | B44: 4079 | C44: 21 | D44: 4089 | K44: 0 | L44: 12
A45: 11 | B45: 4171 | C45: 12 | D45: 4175 | K45: 0 | L45: 11
A46: 11 | B46: 4279 | C46: 21 | D46: 4288 | K46: 0 | L46: 12
A47: 22 | B47: 4383 | C47: 23 | D47: 4445 | K47: 0 | L47: 22
A48: 22 | B48: 4551 | C48: 23 | D48: 4628 | K48: 0 | L48: 22
A49: 11 | B49: 4732 | C49: 12 | D49: 4796 | K49: 0 | L49: 11
A50: 11 | B50: 4895 | C50: 21 | D50: 4900 | K50: 0 | L50: 12
A51: 11 | B51: 4989 | C51: 21 | D51: 4997 | K51: 0 | L51: 12
A52: 11 | B52: 5087 | C52: 21 | D52: 5096 | K52: 0 | L52: 12
A53: 11 | B53: 5183 | C53: 21 | D53: 5192 | K53: 0 | L53: 12
A54: 11 | B54: 5277 | C54: 21 | D54: 5285 | K54: 0 | L54: 12
A55: 11 | B55: 5378 | C55: 21 | D55: 5386 | K55: 0 | L55: 12
A56: 11 | B56: 5471 | C56: 21 | D56: 5479 | K56: 0 | L56: 12
A57: 11 | B57: 5569 | C57: 21 | D57: 5576 | K57: 0 | L57: 12
A58: 11 | B58: 5662 | C58: 21 | D58: 5671 | K58: 0 | L58: 12
A59: 11 | B59: 5758 | C59: 21 | D59: 5766 | K59: 1 | L59: 12

Sheet !L817920.052
A1: Report for:!L817920.052
A2: Date: | B2: <date>
A3: Hen: | B3: <hen> | F3: Correct Sequence | G3: =Start!J2 -> 12 | P3: Total Sequences in Data | Q3: =4994-COUNTBLANK(L7:L5000) -> 45 | V3: Total Sequences in Block Data | W3: =COUNTA(L7:L14) -> 8 | AA3: Total Sequences in Block Data | AB3: =COUNTA(L15:L21) -> 7 | AF3: Total Sequences in Block Data | AG3: =COUNTA(L22:L29) -> 8 | AK3: Total Sequences in Block Data | AL3: =COUNTA(L30:L36) -> 7 | AP3: Total Sequences in Block Data | AQ3: =COUNTA(L37:L44) -> 8 | AU3: Total Sequences in Block Data | AV3: =COUNTA(L45:L51) -> 7
P4: Total Sequences in Summary | Q4: =SUM(O7:O14) -> 45 | V4: Total Sequences in Block Summary | W4: =SUM(U7:U14) -> 8 | AA4: Total Sequences in Block Summary | AB4: =SUM(Z7:Z14) -> 7 | AF4: Total Sequences in Block Summary | AG4: =SUM(AE7:AE14) -> 8 | AK4: Total Sequences in Block Summary | AL4: =SUM(AJ7:AJ14) -> 7 | AP4: Total Sequences in Block Summary | AQ4: =SUM(AO7:AO14) -> 8 | AU4: Total Sequences in Block Summary | AV4: =SUM(AT7:AT14) -> 7
T5: Block 1 | Y5: Block 2 | AD5: Block 3 | AI5: Block 4 | AN5: Block 5 | AS5: Block 6
A6: Sequence Component 1 | B6: Time 1 | C6: Sequence Component 2 | D6: Time 2 | E6: Sequence Component 3 | F6: Time 3 | G6: Sequence Component 4 | H6: Time 4 | I6: Sequence Component 5 | J6: Time 5 | K6: Correct? 0=No 1=Yes | L6: Sequence | N6: Frequency | P6: Relative Frequency | Q6: Variability | T6: Frequency | V6: Relative Frequency | W6: Variability | Y6: Frequency | AA6: Relative Frequency | AB6: Variability | AD6: Frequency | AF6: Relative Frequency | AG6: Variability | AI6: Frequency | AK6: Relative Frequency | AL6: Variability | AN6: Frequency | AP6: Relative Frequency | AQ6: Variability | AS6: Frequency | AU6: Relative Frequency | AV6: Variability
A7: 11 | B7: 7 | C7: 21 | D7: 13 | K7: 0 | L7: 12 | N7: 11 | O7: =COUNTIF($L$7:$L$500,N7) -> 3 | P7: =O7/$Q$4 -> 0.06666666667 | Q7: =IF(P7=0,0,(P7*((LOG(P7))/LOG(2)))) -> -0.260459373 | T7: =N7 -> 11 | U7: =COUNTIF(L7:L14,T7) -> 1 | V7: =U7/(W4-U8) -> 1 | W7: =IF(V7=0,0,(V7*((LOG(V7))/LOG(2)))) -> 0 | Y7: =N7 -> 11 | Z7: =COUNTIF(L15:L21,Y7) -> 1 | AA7: =Z7/(AB4-Z8) -> 1 | AB7: =IF(AA7=0,0,(AA7*((LOG(AA7))/LOG(2)))) -> 0 | AD7: =N7 -> 11 | AE7: =COUNTIF(L22:L29,AD7) -> 1 | AF7: =AE7/(AG4-AE8) -> 1 | AG7: =IF(AF7=0,0,(AF7*((LOG(AF7))/LOG(2)))) -> 0 | AI7: =N7 -> 11 | AJ7: =COUNTIF(L30:L36,AI7) -> 0 | AK7: =AJ7/(AL4-AJ8) -> 0 | AL7: =IF(AK7=0,0,(AK7*((LOG(AK7))/LOG(2)))) -> 0 | AN7: =N7 -> 11 | AO7: =COUNTIF(L37:L44,AN7) -> 0 | AP7: =AO7/(AQ4-AO8) ->  | AQ7: =IF(AP7=0,0,(AP7*((LOG(AP7))/LOG(2)))) ->  | AS7: =N7 -> 11 | AT7: =COUNTIF(L45:L51,AS7) -> 0 | AU7: =AT7/(AV4-AT8) -> 0 | AV7: =IF(AU7=0,0,(AU7*((LOG(AU7))/LOG(2)))) -> 0
A8: 11 | B8: 98 | C8: 21 | D8: 106 | K8: 0 | L8: 12 | N8: 12 | O8: =COUNTIF($L$7:$L$500,N8) -> 40 | P8: =O8/$Q$4 -> 0.8888888889 | Q8: =IF(P8=0,0,(P8*((LOG(P8))/LOG(2)))) -> -0.1510444457 | T8: =N8 -> 12 | U8: =COUNTIF(L7:L14,T8) -> 7 | Y8: =N8 -> 12 | Z8: =COUNTIF(L15:L21,Y8) -> 6 | AD8: =N8 -> 12 | AE8: =COUNTIF(L22:L29,AD8) -> 7 | AI8: =N8 -> 12 | AJ8: =COUNTIF(L30:L36,AI8) -> 6 | AN8: =N8 -> 12 | AO8: =COUNTIF(L37:L44,AN8) -> 8 | AS8: =N8 -> 12 | AT8: =COUNTIF(L45:L51,AS8) -> 6
A9: 11 | B9: 197 | C9: 21 | D9: 203 | K9: 0 | L9: 12 | N9: 21 | O9: =COUNTIF($L$7:$L$500,N9) -> 1 | P9: =O9/$Q$4 -> 0.02222222222 | Q9: =IF(P9=0,0,(P9*((LOG(P9))/LOG(2)))) -> -0.1220411799 | T9: =N9 -> 21 | U9: =COUNTIF(L7:L14,T9) -> 0 | V9: =U9/(W4-U8) -> 0 | W9: =IF(V9=0,0,(V9*((LOG(V9))/LOG(2)))) -> 0 | Y9: =N9 -> 21 | Z9: =COUNTIF(L15:L21,Y9) -> 0 | AA9: =Z9/(AB4-Z8) -> 0 | AB9: =IF(AA9=0,0,(AA9*((LOG(AA9))/LOG(2)))) -> 0 | AD9: =N9 -> 21 | AE9: =COUNTIF(L22:L29,AD9) -> 0 | AF9: =AE9/(AG4-AE8) -> 0 | AG9: =IF(AF9=0,0,(AF9*((LOG(AF9))/LOG(2)))) -> 0 | AI9: =N9 -> 21 | AJ9: =COUNTIF(L30:L36,AI9) -> 0 | AK9: =AJ9/(AL4-AJ8) -> 0 | AL9: =IF(AK9=0,0,(AK9*((LOG(AK9))/LOG(2)))) -> 0 | AN9: =N9 -> 21 | AO9: =COUNTIF(L37:L44,AN9) -> 0 | AP9: =AO9/(AQ4-AO8) ->  | AQ9: =IF(AP9=0,0,(AP9*((LOG(AP9))/LOG(2)))) ->  | AS9: =N9 -> 21 | AT9: =COUNTIF(L45:L51,AS9) -> 1 | AU9: =AT9/(AV4-AT8) -> 1 | AV9: =IF(AU9=0,0,(AU9*((LOG(AU9))/LOG(2)))) -> 0
A10: 11 | B10: 290 | C10: 21 | D10: 297 | K10: 0 | L10: 12 | N10: 22 | O10: =COUNTIF($L$7:$L$500,N10) -> 1 | P10: =O10/$Q$4 -> 0.02222222222 | Q10: =IF(P10=0,0,(P10*((LOG(P10))/LOG(2)))) -> -0.1220411799 | T10: =N10 -> 22 | U10: =COUNTIF(L7:L14,T10) -> 0 | V10: =U10/(W4-U8) -> 0 | W10: =IF(V10=0,0,(V10*((LOG(V10))/LOG(2)))) -> 0 | Y10: =N10 -> 22 | Z10: =COUNTIF(L15:L21,Y10) -> 0 | AA10: =Z10/(AB4-Z8) -> 0 | AB10: =IF(AA10=0,0,(AA10*((LOG(AA10))/LOG(2)))) -> 0 | AD10: =N10 -> 22 | AE10: =COUNTIF(L22:L29,AD10) -> 0 | AF10: =AE10/(AG4-AE8) -> 0 | AG10: =IF(AF10=0,0,(AF10*((LOG(AF10))/LOG(2)))) -> 0 | AI10: =N10 -> 22 | AJ10: =COUNTIF(L30:L36,AI10) -> 1 | AK10: =AJ10/(AL4-AJ8) -> 1 | AL10: =IF(AK10=0,0,(AK10*((LOG(AK10))/LOG(2)))) -> 0 | AN10: =N10 -> 22 | AO10: =COUNTIF(L37:L44,AN10) -> 0 | AP10: =AO10/(AQ4-AO8) ->  | AQ10: =IF(AP10=0,0,(AP10*((LOG(AP10))/LOG(2)))) ->  | AS10: =N10 -> 22 | AT10: =COUNTIF(L45:L51,AS10) -> 0 | AU10: =AT10/(AV4-AT8) -> 0 | AV10: =IF(AU10=0,0,(AU10*((LOG(AU10))/LOG(2)))) -> 0
A11: 11 | B11: 383 | C11: 21 | D11: 388 | K11: 0 | L11: 12 | T11: =N11 -> 0 | U11: =COUNTIF(L7:L14,T11) -> 0 | V11: =U11/(W4-U8) -> 0 | W11: =IF(V11=0,0,(V11*((LOG(V11))/LOG(2)))) -> 0 | Y11: =N11 -> 0 | Z11: =COUNTIF(L15:L21,Y11) -> 0 | AA11: =Z11/(AB4-Z8) -> 0 | AB11: =IF(AA11=0,0,(AA11*((LOG(AA11))/LOG(2)))) -> 0 | AD11: =N11 -> 0 | AE11: =COUNTIF(L22:L29,AD11) -> 0 | AF11: =AE11/(AG4-AE8) -> 0 | AG11: =IF(AF11=0,0,(AF11*((LOG(AF11))/LOG(2)))) -> 0 | AI11: =N11 -> 0 | AJ11: =COUNTIF(L30:L36,AI11) -> 0 | AK11: =AJ11/(AL4-AJ8) -> 0 | AL11: =IF(AK11=0,0,(AK11*((LOG(AK11))/LOG(2)))) -> 0 | AN11: =N11 -> 0 | AO11: =COUNTIF(L37:L44,AN11) -> 0 | AP11: =AO11/(AQ4-AO8) ->  | AQ11: =IF(AP11=0,0,(AP11*((LOG(AP11))/LOG(2)))) ->  | AS11: =N11 -> 0 | AT11: =COUNTIF(L45:L51,AS11) -> 0 | AU11: =AT11/(AV4-AT8) -> 0 | AV11: =IF(AU11=0,0,(AU11*((LOG(AU11))/LOG(2)))) -> 0
A12: 11 | B12: 477 | C12: 21 | D12: 484 | K12: 0 | L12: 12 | T12: =N12 -> 0 | U12: =COUNTIF(L7:L14,T12) -> 0 | V12: =U12/(W4-U8) -> 0 | W12: =IF(V12=0,0,(V12*((LOG(V12))/LOG(2)))) -> 0 | Y12: =N12 -> 0 | Z12: =COUNTIF(L15:L21,Y12) -> 0 | AA12: =Z12/(AB4-Z8) -> 0 | AB12: =IF(AA12=0,0,(AA12*((LOG(AA12))/LOG(2)))) -> 0 | AD12: =N12 -> 0 | AE12: =COUNTIF(L22:L29,AD12) -> 0 | AF12: =AE12/(AG4-AE8) -> 0 | AG12: =IF(AF12=0,0,(AF12*((LOG(AF12))/LOG(2)))) -> 0 | AI12: =N12 -> 0 | AJ12: =COUNTIF(L30:L36,AI12) -> 0 | AK12: =AJ12/(AL4-AJ8) -> 0 | AL12: =IF(AK12=0,0,(AK12*((LOG(AK12))/LOG(2)))) -> 0 | AN12: =N12 -> 0 | AO12: =COUNTIF(L37:L44,AN12) -> 0 | AP12: =AO12/(AQ4-AO8) ->  | AQ12: =IF(AP12=0,0,(AP12*((LOG(AP12))/LOG(2)))) ->  | AS12: =N12 -> 0 | AT12: =COUNTIF(L45:L51,AS12) -> 0 | AU12: =AT12/(AV4-AT8) -> 0 | AV12: =IF(AU12=0,0,(AU12*((LOG(AU12))/LOG(2)))) -> 0
A13: 11 | B13: 569 | C13: 12 | D13: 578 | K13: 0 | L13: 11 | T13: =N13 -> 0 | U13: =COUNTIF(L7:L14,T13) -> 0 | V13: =U13/(W4-U8) -> 0 | W13: =IF(V13=0,0,(V13*((LOG(V13))/LOG(2)))) -> 0 | Y13: =N13 -> 0 | Z13: =COUNTIF(L15:L21,Y13) -> 0 | AA13: =Z13/(AB4-Z8) -> 0 | AB13: =IF(AA13=0,0,(AA13*((LOG(AA13))/LOG(2)))) -> 0 | AD13: =N13 -> 0 | AE13: =COUNTIF(L22:L29,AD13) -> 0 | AF13: =AE13/(AG4-AE8) -> 0 | AG13: =IF(AF13=0,0,(AF13*((LOG(AF13))/LOG(2)))) -> 0 | AI13: =N13 -> 0 | AJ13: =COUNTIF(L30:L36,AI13) -> 0 | AK13: =AJ13/(AL4-AJ8) -> 0 | AL13: =IF(AK13=0,0,(AK13*((LOG(AK13))/LOG(2)))) -> 0 | AN13: =N13 -> 0 | AO13: =COUNTIF(L37:L44,AN13) -> 0 | AP13: =AO13/(AQ4-AO8) ->  | AQ13: =IF(AP13=0,0,(AP13*((LOG(AP13))/LOG(2)))) ->  | AS13: =N13 -> 0 | AT13: =COUNTIF(L45:L51,AS13) -> 0 | AU13: =AT13/(AV4-AT8) -> 0 | AV13: =IF(AU13=0,0,(AU13*((LOG(AU13))/LOG(2)))) -> 0
A14: 11 | B14: 675 | C14: 21 | D14: 682 | K14: 0 | L14: 12 | T14: =N14 -> 0 | U14: =COUNTIF(L7:L14,T14) -> 0 | V14: =U14/(W4-U8) -> 0 | W14: =IF(V14=0,0,(V14*((LOG(V14))/LOG(2)))) -> 0 | Y14: =N14 -> 0 | Z14: =COUNTIF(L15:L21,Y14) -> 0 | AA14: =Z14/(AB4-Z8) -> 0 | AB14: =IF(AA14=0,0,(AA14*((LOG(AA14))/LOG(2)))) -> 0 | AD14: =N14 -> 0 | AE14: =COUNTIF(L22:L29,AD14) -> 0 | AF14: =AE14/(AG4-AE8) -> 0 | AG14: =IF(AF14=0,0,(AF14*((LOG(AF14))/LOG(2)))) -> 0 | AI14: =N14 -> 0 | AJ14: =COUNTIF(L30:L36,AI14) -> 0 | AK14: =AJ14/(AL4-AJ8) -> 0 | AL14: =IF(AK14=0,0,(AK14*((LOG(AK14))/LOG(2)))) -> 0 | AN14: =N14 -> 0 | AO14: =COUNTIF(L37:L44,AN14) -> 0 | AP14: =AO14/(AQ4-AO8) ->  | AQ14: =IF(AP14=0,0,(AP14*((LOG(AP14))/LOG(2)))) ->  | AS14: =N14 -> 0 | AT14: =COUNTIF(L45:L51,AS14) -> 0 | AU14: =AT14/(AV4-AT8) -> 0 | AV14: =IF(AU14=0,0,(AU14*((LOG(AU14))/LOG(2)))) -> 0
A15: 11 | B15: 768 | C15: 12 | D15: 781 | K15: 0 | L15: 11 | P15: =SUM(P7:P14) -> 1 | Q15: =-SUM(Q7:Q14) -> 0.6555861786 | V15: =SUM(V7:V14) -> 1 | W15: =-SUM(W7:W14) -> 0 | AA15: =SUM(AA7:AA14) -> 1 | AB15: =-SUM(AB7:AB14) -> 0 | AF15: =SUM(AF7:AF14) -> 1 | AG15: =-SUM(AG7:AG14) -> 0 | AK15: =SUM(AK7:AK14) -> 1 | AL15: =-SUM(AL7:AL14) -> 0 | AP15: =SUM(AP7:AP14) ->  | AQ15: =-SUM(AQ7:AQ14) ->  | AU15: =SUM(AU7:AU14) -> 1 | AV15: =-SUM(AV7:AV14) -> 0
A16: 11 | B16: 891 | C16: 21 | D16: 897 | K16: 0 | L16: 12 | P16: U= | Q16: =Q15/(LOG(Q4)/LOG(2)) -> 0.1193743108 | V16: U1= | W16: =W15/(LOG(W4)/LOG(2)) -> 0 | AA16: U2= | AB16: =AB15/(LOG(AB4)/LOG(2)) -> 0 | AF16: U3= | AG16: =AG15/(LOG(AG4)/LOG(2)) -> 0 | AK16: U4= | AL16: =AL15/(LOG(AL4)/LOG(2)) -> 0 | AP16: U5= | AQ16: =AQ15/(LOG(AQ4)/LOG(2)) ->  | AU16: U6= | AV16: =AV15/(LOG(AV4)/LOG(2)) -> 0
A17: 11 | B17: 985 | C17: 21 | D17: 991 | K17: 0 | L17: 12
A18: 11 | B18: 1079 | C18: 21 | D18: 1086 | K18: 0 | L18: 12
A19: 11 | B19: 1178 | C19: 21 | D19: 1185 | K19: 0 | L19: 12 | N19: Total Target Seq
A20: 11 | B20: 1269 | C20: 21 | D20: 1276 | K20: 0 | L20: 12 | N20: =COUNTIF(L7:L51,G3) -> 40 | P20: 8 | Q20: 7 | R20: 8 | S20: 7 | T20: 8 | U20: 7
A21: 11 | B21: 1366 | C21: 21 | D21: 1373 | K21: 0 | L21: 12 | P21: % of reinforcement given in 6 equal intervals based on number of trials
A22: 11 | B22: 1458 | C22: 21 | D22: 1465 | K22: 0 | L22: 12 | P22: %_1 | Q22: %_2 | R22: %_3 | S22: %_4 | T22: %_5 | U22: %_6
A23: 11 | B23: 1550 | C23: 21 | D23: 1557 | K23: 0 | L23: 12 | O23: target sequence | P23: =$G$3 -> 12 | Q23: =$G$3 -> 12 | R23: =$G$3 -> 12 | S23: =$G$3 -> 12 | T23: =$G$3 -> 12 | U23: =$G$3 -> 12
A24: 11 | B24: 1643 | C24: 21 | D24: 1650 | K24: 0 | L24: 12 | O24: total reinforcement | P24: =U8 -> 7 | Q24: =Z8 -> 6 | R24: =AE8 -> 7 | S24: =AJ8 -> 6 | T24: =AO8 -> 8 | U24: =AT8 -> 6
A25: 11 | B25: 1735 | C25: 12 | D25: 1742 | K25: 0 | L25: 11 | O25: % target
A26: 11 | B26: 1839 | C26: 21 | D26: 1846 | K26: 0 | L26: 12 | O26: CCRF
A27: 11 | B27: 1933 | C27: 21 | D27: 1940 | K27: 0 | L27: 12 | O27: % CCRf
A28: 11 | B28: 2024 | C28: 21 | D28: 2031 | K28: 0 | L28: 12 | O28: average response rate | P28: =D14/P20 -> 85.25 | Q28: =(D21-D14)/Q20 -> 98.71428571 | R28: =(D29-D21)/R20 -> 94.25 | S28: =(D36-D29)/S20 -> 108.8571429 | T28: =(D44-D36)/T20 -> 95.75 | U28: =(D51-D44)/U20 -> 104.5714286
A29: 11 | B29: 2120 | C29: 21 | D29: 2127 | K29: 0 | L29: 12
A30: 11 | B30: 2216 | C30: 21 | D30: 2223 | K30: 0 | L30: 12
A31: 22 | B31: 2318 | C31: 23 | D31: 2398 | K31: 0 | L31: 22
A32: 11 | B32: 2498 | C32: 21 | D32: 2506 | K32: 0 | L32: 12
A33: 11 | B33: 2604 | C33: 21 | D33: 2611 | K33: 0 | L33: 12
A34: 11 | B34: 2699 | C34: 21 | D34: 2706 | K34: 0 | L34: 12
A35: 11 | B35: 2791 | C35: 21 | D35: 2796 | K35: 0 | L35: 12
A36: 11 | B36: 2882 | C36: 21 | D36: 2889 | K36: 0 | L36: 12
A37: 11 | B37: 2975 | C37: 21 | D37: 2984 | K37: 0 | L37: 12
A38: 11 | B38: 3067 | C38: 21 | D38: 3075 | K38: 0 | L38: 12
A39: 11 | B39: 3163 | C39: 21 | D39: 3171 | K39: 0 | L39: 12
A40: 11 | B40: 3270 | C40: 21 | D40: 3278 | K40: 0 | L40: 12
A41: 11 | B41: 3363 | C41: 21 | D41: 3371 | K41: 0 | L41: 12
A42: 11 | B42: 3459 | C42: 21 | D42: 3467 | K42: 0 | L42: 12
A43: 11 | B43: 3554 | C43: 21 | D43: 3561 | K43: 0 | L43: 12
A44: 11 | B44: 3647 | C44: 21 | D44: 3655 | K44: 0 | L44: 12
A45: 11 | B45: 3740 | C45: 21 | D45: 3747 | K45: 0 | L45: 12
A46: 11 | B46: 3838 | C46: 21 | D46: 3846 | K46: 0 | L46: 12
A47: 22 | B47: 3941 | C47: 14 | D47: 4002 | K47: 0 | L47: 21
A48: 11 | B48: 4099 | C48: 21 | D48: 4106 | K48: 0 | L48: 12
A49: 11 | B49: 4193 | C49: 21 | D49: 4201 | K49: 0 | L49: 12
A50: 11 | B50: 4288 | C50: 21 | D50: 4293 | K50: 0 | L50: 12
A51: 11 | B51: 4379 | C51: 21 | D51: 4387 | K51: 1 | L51: 12

Sheet !L818B20.052
A1: Report for:!L818B20.052
A2: Date: | B2: <date>
A3: Hen: | B3: <hen> | F3: Correct Sequence | G3: =Start!J2 -> 12 | P3: Total Sequences in Data | Q3: =4994-COUNTBLANK(L7:L5000) -> 56 | V3: Total Sequences in Block Data | W3: =COUNTA(L7:L15) -> 9 | AA3: Total Sequences in Block Data | AB3: =COUNTA(L16:L25) -> 10 | AF3: Total Sequences in Block Data | AG3: =COUNTA(L26:L34) -> 9 | AK3: Total Sequences in Block Data | AL3: =COUNTA(L35:L43) -> 9 | AP3: Total Sequences in Block Data | AQ3: =COUNTA(L44:L53) -> 10 | AU3: Total Sequences in Block Data | AV3: =COUNTA(L54:L62) -> 9
P4: Total Sequences in Summary | Q4: =SUM(O7:O14) -> 56 | V4: Total Sequences in Block Summary | W4: =SUM(U7:U14) -> 9 | AA4: Total Sequences in Block Summary | AB4: =SUM(Z7:Z14) -> 10 | AF4: Total Sequences in Block Summary | AG4: =SUM(AE7:AE14) -> 9 | AK4: Total Sequences in Block Summary | AL4: =SUM(AJ7:AJ14) -> 9 | AP4: Total Sequences in Block Summary | AQ4: =SUM(AO7:AO14) -> 10 | AU4: Total Sequences in Block Summary | AV4: =SUM(AT7:AT14) -> 9
T5: Block 1 | Y5: Block 2 | AD5: Block 3 | AI5: Block 4 | AN5: Block 5 | AS5: Block 6
A6: Sequence Component 1 | B6: Time 1 | C6: Sequence Component 2 | D6: Time 2 | E6: Sequence Component 3 | F6: Time 3 | G6: Sequence Component 4 | H6: Time 4 | I6: Sequence Component 5 | J6: Time 5 | K6: Correct? 0=No 1=Yes | L6: Sequence | N6: Frequency | P6: Relative Frequency | Q6: Variability | T6: Frequency | V6: Relative Frequency | W6: Variability | Y6: Frequency | AA6: Relative Frequency | AB6: Variability | AD6: Frequency | AF6: Relative Frequency | AG6: Variability | AI6: Frequency | AK6: Relative Frequency | AL6: Variability | AN6: Frequency | AP6: Relative Frequency | AQ6: Variability | AS6: Frequency | AU6: Relative Frequency | AV6: Variability
A7: 11 | B7: 25 | C7: 21 | D7: 34 | K7: 0 | L7: 12 | N7: 11 | O7: =COUNTIF($L$7:$L$500,N7) -> 2 | P7: =O7/$Q$4 -> 0.03571428571 | Q7: =IF(P7=0,0,(P7*((LOG(P7))/LOG(2)))) -> -0.1716912472 | T7: =N7 -> 11 | U7: =COUNTIF(L7:L15,T7) -> 0 | V7: =U7/(W4-U8) -> 0 | W7: =IF(V7=0,0,(V7*((LOG(V7))/LOG(2)))) -> 0 | Y7: =N7 -> 11 | Z7: =COUNTIF(L16:L25,Y7) -> 0 | AA7: =Z7/(AB4-Z8) -> 0 | AB7: =IF(AA7=0,0,(AA7*((LOG(AA7))/LOG(2)))) -> 0 | AD7: =N7 -> 11 | AE7: =COUNTIF(L26:L34,AD7) -> 0 | AF7: =AE7/(AG4-AE8) -> 0 | AG7: =IF(AF7=0,0,(AF7*((LOG(AF7))/LOG(2)))) -> 0 | AI7: =N7 -> 11 | AJ7: =COUNTIF(L35:L43,AI7) -> 0 | AK7: =AJ7/(AL4-AJ8) -> 0 | AL7: =IF(AK7=0,0,(AK7*((LOG(AK7))/LOG(2)))) -> 0 | AN7: =N7 -> 11 | AO7: =COUNTIF(L44:L53,AN7) -> 2 | AP7: =AO7/(AQ4-AO8) -> 0.4 | AQ7: =IF(AP7=0,0,(AP7*((LOG(AP7))/LOG(2)))) -> -0.528771238 | AS7: =N7 -> 11 | AT7: =COUNTIF(L54:L62,AS7) -> 0 | AU7: =AT7/(AV4-AT8) -> 0 | AV7: =IF(AU7=0,0,(AU7*((LOG(AU7))/LOG(2)))) -> 0
A8: 22 | B8: 133 | C8: 23 | D8: 155 | K8: 0 | L8: 22 | N8: 12 | O8: =COUNTIF($L$7:$L$500,N8) -> 40 | P8: =O8/$Q$4 -> 0.7142857143 | Q8: =IF(P8=0,0,(P8*((LOG(P8))/LOG(2)))) -> -0.346733448 | T8: =N8 -> 12 | U8: =COUNTIF(L7:L15,T8) -> 4 | Y8: =N8 -> 12 | Z8: =COUNTIF(L16:L25,Y8) -> 9 | AD8: =N8 -> 12 | AE8: =COUNTIF(L26:L34,AD8) -> 8 | AI8: =N8 -> 12 | AJ8: =COUNTIF(L35:L43,AI8) -> 6 | AN8: =N8 -> 12 | AO8: =COUNTIF(L44:L53,AN8) -> 5 | AS8: =N8 -> 12 | AT8: =COUNTIF(L54:L62,AS8) -> 8
A9: 22 | B9: 272 | C9: 23 | D9: 312 | K9: 0 | L9: 22 | N9: 21 | O9: =COUNTIF($L$7:$L$500,N9) -> 6 | P9: =O9/$Q$4 -> 0.1071428571 | Q9: =IF(P9=0,0,(P9*((LOG(P9))/LOG(2)))) -> -0.3452563309 | T9: =N9 -> 21 | U9: =COUNTIF(L7:L15,T9) -> 1 | V9: =U9/(W4-U8) -> 0.2 | W9: =IF(V9=0,0,(V9*((LOG(V9))/LOG(2)))) -> -0.464385619 | Y9: =N9 -> 21 | Z9: =COUNTIF(L16:L25,Y9) -> 1 | AA9: =Z9/(AB4-Z8) -> 1 | AB9: =IF(AA9=0,0,(AA9*((LOG(AA9))/LOG(2)))) -> 0 | AD9: =N9 -> 21 | AE9: =COUNTIF(L26:L34,AD9) -> 0 | AF9: =AE9/(AG4-AE8) -> 0 | AG9: =IF(AF9=0,0,(AF9*((LOG(AF9))/LOG(2)))) -> 0 | AI9: =N9 -> 21 | AJ9: =COUNTIF(L35:L43,AI9) -> 1 | AK9: =AJ9/(AL4-AJ8) -> 0.3333333333 | AL9: =IF(AK9=0,0,(AK9*((LOG(AK9))/LOG(2)))) -> -0.5283208336 | AN9: =N9 -> 21 | AO9: =COUNTIF(L44:L53,AN9) -> 2 | AP9: =AO9/(AQ4-AO8) -> 0.4 | AQ9: =IF(AP9=0,0,(AP9*((LOG(AP9))/LOG(2)))) -> -0.528771238 | AS9: =N9 -> 21 | AT9: =COUNTIF(L54:L62,AS9) -> 1 | AU9: =AT9/(AV4-AT8) -> 1 | AV9: =IF(AU9=0,0,(AU9*((LOG(AU9))/LOG(2)))) -> 0
A10: 22 | B10: 430 | C10: 23 | D10: 449 | K10: 0 | L10: 22 | N10: 22 | O10: =COUNTIF($L$7:$L$500,N10) -> 8 | P10: =O10/$Q$4 -> 0.1428571429 | Q10: =IF(P10=0,0,(P10*((LOG(P10))/LOG(2)))) -> -0.4010507032 | T10: =N10 -> 22 | U10: =COUNTIF(L7:L15,T10) -> 4 | V10: =U10/(W4-U8) -> 0.8 | W10: =IF(V10=0,0,(V10*((LOG(V10))/LOG(2)))) -> -0.2575424759 | Y10: =N10 -> 22 | Z10: =COUNTIF(L16:L25,Y10) -> 0 | AA10: =Z10/(AB4-Z8) -> 0 | AB10: =IF(AA10=0,0,(AA10*((LOG(AA10))/LOG(2)))) -> 0 | AD10: =N10 -> 22 | AE10: =COUNTIF(L26:L34,AD10) -> 1 | AF10: =AE10/(AG4-AE8) -> 1 | AG10: =IF(AF10=0,0,(AF10*((LOG(AF10))/LOG(2)))) -> 0 | AI10: =N10 -> 22 | AJ10: =COUNTIF(L35:L43,AI10) -> 2 | AK10: =AJ10/(AL4-AJ8) -> 0.6666666667 | AL10: =IF(AK10=0,0,(AK10*((LOG(AK10))/LOG(2)))) -> -0.3899750005 | AN10: =N10 -> 22 | AO10: =COUNTIF(L44:L53,AN10) -> 1 | AP10: =AO10/(AQ4-AO8) -> 0.2 | AQ10: =IF(AP10=0,0,(AP10*((LOG(AP10))/LOG(2)))) -> -0.464385619 | AS10: =N10 -> 22 | AT10: =COUNTIF(L54:L62,AS10) -> 0 | AU10: =AT10/(AV4-AT8) -> 0 | AV10: =IF(AU10=0,0,(AU10*((LOG(AU10))/LOG(2)))) -> 0
A11: 22 | B11: 568 | C11: 14 | D11: 580 | K11: 0 | L11: 21 | T11: =N11 -> 0 | U11: =COUNTIF(L7:L15,T11) -> 0 | V11: =U11/(W4-U8) -> 0 | W11: =IF(V11=0,0,(V11*((LOG(V11))/LOG(2)))) -> 0 | Y11: =N11 -> 0 | Z11: =COUNTIF(L16:L25,Y11) -> 0 | AA11: =Z11/(AB4-Z8) -> 0 | AB11: =IF(AA11=0,0,(AA11*((LOG(AA11))/LOG(2)))) -> 0 | AD11: =N11 -> 0 | AE11: =COUNTIF(L26:L34,AD11) -> 0 | AF11: =AE11/(AG4-AE8) -> 0 | AG11: =IF(AF11=0,0,(AF11*((LOG(AF11))/LOG(2)))) -> 0 | AI11: =N11 -> 0 | AJ11: =COUNTIF(L35:L43,AI11) -> 0 | AK11: =AJ11/(AL4-AJ8) -> 0 | AL11: =IF(AK11=0,0,(AK11*((LOG(AK11))/LOG(2)))) -> 0 | AN11: =N11 -> 0 | AO11: =COUNTIF(L44:L53,AN11) -> 0 | AP11: =AO11/(AQ4-AO8) -> 0 | AQ11: =IF(AP11=0,0,(AP11*((LOG(AP11))/LOG(2)))) -> 0 | AS11: =N11 -> 0 | AT11: =COUNTIF(L54:L62,AS11) -> 0 | AU11: =AT11/(AV4-AT8) -> 0 | AV11: =IF(AU11=0,0,(AU11*((LOG(AU11))/LOG(2)))) -> 0
A12: 11 | B12: 690 | C12: 21 | D12: 698 | K12: 0 | L12: 12 | T12: =N12 -> 0 | U12: =COUNTIF(L7:L15,T12) -> 0 | V12: =U12/(W4-U8) -> 0 | W12: =IF(V12=0,0,(V12*((LOG(V12))/LOG(2)))) -> 0 | Y12: =N12 -> 0 | Z12: =COUNTIF(L16:L25,Y12) -> 0 | AA12: =Z12/(AB4-Z8) -> 0 | AB12: =IF(AA12=0,0,(AA12*((LOG(AA12))/LOG(2)))) -> 0 | AD12: =N12 -> 0 | AE12: =COUNTIF(L26:L34,AD12) -> 0 | AF12: =AE12/(AG4-AE8) -> 0 | AG12: =IF(AF12=0,0,(AF12*((LOG(AF12))/LOG(2)))) -> 0 | AI12: =N12 -> 0 | AJ12: =COUNTIF(L35:L43,AI12) -> 0 | AK12: =AJ12/(AL4-AJ8) -> 0 | AL12: =IF(AK12=0,0,(AK12*((LOG(AK12))/LOG(2)))) -> 0 | AN12: =N12 -> 0 | AO12: =COUNTIF(L44:L53,AN12) -> 0 | AP12: =AO12/(AQ4-AO8) -> 0 | AQ12: =IF(AP12=0,0,(AP12*((LOG(AP12))/LOG(2)))) -> 0 | AS12: =N12 -> 0 | AT12: =COUNTIF(L54:L62,AS12) -> 0 | AU12: =AT12/(AV4-AT8) -> 0 | AV12: =IF(AU12=0,0,(AU12*((LOG(AU12))/LOG(2)))) -> 0
A13: 22 | B13: 802 | C13: 23 | D13: 820 | K13: 0 | L13: 22 | T13: =N13 -> 0 | U13: =COUNTIF(L7:L15,T13) -> 0 | V13: =U13/(W4-U8) -> 0 | W13: =IF(V13=0,0,(V13*((LOG(V13))/LOG(2)))) -> 0 | Y13: =N13 -> 0 | Z13: =COUNTIF(L16:L25,Y13) -> 0 | AA13: =Z13/(AB4-Z8) -> 0 | AB13: =IF(AA13=0,0,(AA13*((LOG(AA13))/LOG(2)))) -> 0 | AD13: =N13 -> 0 | AE13: =COUNTIF(L26:L34,AD13) -> 0 | AF13: =AE13/(AG4-AE8) -> 0 | AG13: =IF(AF13=0,0,(AF13*((LOG(AF13))/LOG(2)))) -> 0 | AI13: =N13 -> 0 | AJ13: =COUNTIF(L35:L43,AI13) -> 0 | AK13: =AJ13/(AL4-AJ8) -> 0 | AL13: =IF(AK13=0,0,(AK13*((LOG(AK13))/LOG(2)))) -> 0 | AN13: =N13 -> 0 | AO13: =COUNTIF(L44:L53,AN13) -> 0 | AP13: =AO13/(AQ4-AO8) -> 0 | AQ13: =IF(AP13=0,0,(AP13*((LOG(AP13))/LOG(2)))) -> 0 | AS13: =N13 -> 0 | AT13: =COUNTIF(L54:L62,AS13) -> 0 | AU13: =AT13/(AV4-AT8) -> 0 | AV13: =IF(AU13=0,0,(AU13*((LOG(AU13))/LOG(2)))) -> 0
A14: 11 | B14: 928 | C14: 21 | D14: 936 | K14: 0 | L14: 12 | T14: =N14 -> 0 | U14: =COUNTIF(L7:L15,T14) -> 0 | V14: =U14/(W4-U8) -> 0 | W14: =IF(V14=0,0,(V14*((LOG(V14))/LOG(2)))) -> 0 | Y14: =N14 -> 0 | Z14: =COUNTIF(L16:L25,Y14) -> 0 | AA14: =Z14/(AB4-Z8) -> 0 | AB14: =IF(AA14=0,0,(AA14*((LOG(AA14))/LOG(2)))) -> 0 | AD14: =N14 -> 0 | AE14: =COUNTIF(L26:L34,AD14) -> 0 | AF14: =AE14/(AG4-AE8) -> 0 | AG14: =IF(AF14=0,0,(AF14*((LOG(AF14))/LOG(2)))) -> 0 | AI14: =N14 -> 0 | AJ14: =COUNTIF(L35:L43,AI14) -> 0 | AK14: =AJ14/(AL4-AJ8) -> 0 | AL14: =IF(AK14=0,0,(AK14*((LOG(AK14))/LOG(2)))) -> 0 | AN14: =N14 -> 0 | AO14: =COUNTIF(L44:L53,AN14) -> 0 | AP14: =AO14/(AQ4-AO8) -> 0 | AQ14: =IF(AP14=0,0,(AP14*((LOG(AP14))/LOG(2)))) -> 0 | AS14: =N14 -> 0 | AT14: =COUNTIF(L54:L62,AS14) -> 0 | AU14: =AT14/(AV4-AT8) -> 0 | AV14: =IF(AU14=0,0,(AU14*((LOG(AU14))/LOG(2)))) -> 0
A15: 11 | B15: 1025 | C15: 21 | D15: 1033 | K15: 0 | L15: 12 | P15: =SUM(P7:P14) -> 1 | Q15: =-SUM(Q7:Q14) -> 1.264731729 | V15: =SUM(V7:V14) -> 1 | W15: =-SUM(W7:W14) -> 0.7219280949 | AA15: =SUM(AA7:AA14) -> 1 | AB15: =-SUM(AB7:AB14) -> 0 | AF15: =SUM(AF7:AF14) -> 1 | AG15: =-SUM(AG7:AG14) -> 0 | AK15: =SUM(AK7:AK14) -> 1 | AL15: =-SUM(AL7:AL14) -> 0.9182958341 | AP15: =SUM(AP7:AP14) -> 1 | AQ15: =-SUM(AQ7:AQ14) -> 1.521928095 | AU15: =SUM(AU7:AU14) -> 1 | AV15: =-SUM(AV7:AV14) -> 0
A16: 11 | B16: 1124 | C16: 21 | D16: 1132 | K16: 0 | L16: 12 | P16: U= | Q16: =Q15/(LOG(Q4)/LOG(2)) -> 0.2177810287 | V16: U1= | W16: =W15/(LOG(W4)/LOG(2)) -> 0.2277429575 | AA16: U2= | AB16: =AB15/(LOG(AB4)/LOG(2)) -> 0 | AF16: U3= | AG16: =AG15/(LOG(AG4)/LOG(2)) -> 0 | AK16: U4= | AL16: =AL15/(LOG(AL4)/LOG(2)) -> 0.2896900821 | AP16: U5= | AQ16: =AQ15/(LOG(AQ4)/LOG(2)) -> 0.4581460078 | AU16: U6= | AV16: =AV15/(LOG(AV4)/LOG(2)) -> 0
A17: 11 | B17: 1231 | C17: 21 | D17: 1239 | K17: 0 | L17: 12
A18: 11 | B18: 1332 | C18: 21 | D18: 1340 | K18: 0 | L18: 12
A19: 11 | B19: 1430 | C19: 21 | D19: 1439 | K19: 0 | L19: 12 | N19: Total Target Seq
A20: 11 | B20: 1527 | C20: 21 | D20: 1534 | K20: 0 | L20: 12 | N20: =COUNTIF(L7:L62,G3) -> 40 | P20: 9 | Q20: 10 | R20: 9 | S20: 9 | T20: 10 | U20: 9
A21: 11 | B21: 1634 | C21: 21 | D21: 1643 | K21: 0 | L21: 12 | P21: % of reinforcement given in 6 equal intervals based on number of trials
A22: 11 | B22: 1746 | C22: 21 | D22: 1753 | K22: 0 | L22: 12 | P22: %_1 | Q22: %_2 | R22: %_3 | S22: %_4 | T22: %_5 | U22: %_6
A23: 11 | B23: 1848 | C23: 21 | D23: 1855 | K23: 0 | L23: 12 | O23: target sequence | P23: =$G$3 -> 12 | Q23: =$G$3 -> 12 | R23: =$G$3 -> 12 | S23: =$G$3 -> 12 | T23: =$G$3 -> 12 | U23: =$G$3 -> 12
A24: 22 | B24: 1949 | C24: 14 | D24: 1973 | K24: 0 | L24: 21 | O24: total reinforcement | P24: =U8 -> 4 | Q24: =Z8 -> 9 | R24: =AE8 -> 8 | S24: =AJ8 -> 6 | T24: =AO8 -> 5 | U24: =AT8 -> 8
A25: 11 | B25: 2071 | C25: 21 | D25: 2079 | K25: 0 | L25: 12 | O25: % target
A26: 22 | B26: 2184 | C26: 23 | D26: 2221 | K26: 0 | L26: 22 | O26: CCRF
A27: 11 | B27: 2329 | C27: 21 | D27: 2337 | K27: 0 | L27: 12 | O27: % CCRf
A28: 11 | B28: 2425 | C28: 21 | D28: 2432 | K28: 0 | L28: 12 | O28: average response rate | P28: =D15/P20 -> 114.7777778 | Q28: =(D25-D15)/Q20 -> 104.6 | R28: =(D34-D25)/R20 -> 108.7777778 | S28: =(D43-D34)/S20 -> 119.5555556 | T28: =(D53-D43)/T20 -> 114.6 | U28: =(D62-D53)/U20 -> 106.4444444
A29: 11 | B29: 2527 | C29: 21 | D29: 2535 | K29: 0 | L29: 12
A30: 11 | B30: 2631 | C30: 21 | D30: 2638 | K30: 0 | L30: 12
A31: 11 | B31: 2733 | C31: 21 | D31: 2741 | K31: 0 | L31: 12
A32: 11 | B32: 2836 | C32: 21 | D32: 2844 | K32: 0 | L32: 12
A33: 11 | B33: 2941 | C33: 21 | D33: 2948 | K33: 0 | L33: 12
A34: 11 | B34: 3050 | C34: 21 | D34: 3058 | K34: 0 | L34: 12
A35: 11 | B35: 3155 | C35: 21 | D35: 3164 | K35: 0 | L35: 12
A36: 22 | B36: 3267 | C36: 23 | D36: 3313 | K36: 0 | L36: 22
A37: 11 | B37: 3411 | C37: 21 | D37: 3432 | K37: 0 | L37: 12
A38: 11 | B38: 3519 | C38: 21 | D38: 3527 | K38: 0 | L38: 12
A39: 22 | B39: 3620 | C39: 23 | D39: 3640 | K39: 0 | L39: 22
A40: 11 | B40: 3738 | C40: 21 | D40: 3743 | K40: 0 | L40: 12
A41: 22 | B41: 3839 | C41: 14 | D41: 3901 | K41: 0 | L41: 21
A42: 11 | B42: 4020 | C42: 21 | D42: 4028 | K42: 0 | L42: 12
A43: 11 | B43: 4126 | C43: 21 | D43: 4134 | K43: 0 | L43: 12
A44: 11 | B44: 4222 | C44: 12 | D44: 4238 | K44: 0 | L44: 11
A45: 11 | B45: 4337 | C45: 21 | D45: 4345 | K45: 0 | L45: 12
A46: 22 | B46: 4439 | C46: 14 | D46: 4469 | K46: 0 | L46: 21
A47: 11 | B47: 4567 | C47: 21 | D47: 4575 | K47: 0 | L47: 12
A48: 11 | B48: 4664 | C48: 21 | D48: 4672 | K48: 0 | L48: 12
A49: 22 | B49: 4778 | C49: 14 | D49: 4818 | K49: 0 | L49: 21
A50: 11 | B50: 4916 | C50: 12 | D50: 4928 | K50: 0 | L50: 11
A51: 11 | B51: 5027 | C51: 21 | D51: 5035 | K51: 0 | L51: 12
A52: 22 | B52: 5135 | C52: 23 | D52: 5175 | K52: 0 | L52: 22
A53: 11 | B53: 5274 | C53: 21 | D53: 5280 | K53: 0 | L53: 12
A54: 11 | B54: 5380 | C54: 21 | D54: 5387 | K54: 0 | L54: 12
A55: 11 | B55: 5474 | C55: 21 | D55: 5481 | K55: 0 | L55: 12
A56: 11 | B56: 5569 | C56: 21 | D56: 5585 | K56: 0 | L56: 12
A57: 11 | B57: 5680 | C57: 21 | D57: 5688 | K57: 0 | L57: 12
A58: 11 | B58: 5775 | C58: 21 | D58: 5783 | K58: 0 | L58: 12
A59: 11 | B59: 5878 | C59: 21 | D59: 5886 | K59: 0 | L59: 12
A60: 11 | B60: 5972 | C60: 21 | D60: 5980 | K60: 0 | L60: 12
A61: 22 | B61: 6083 | C61: 14 | D61: 6124 | K61: 0 | L61: 21
A62: 11 | B62: 6231 | C62: 21 | D62: 6238 | K62: 1 | L62: 12

Sheet !L819910.052
A1: Report for:!L819910.052
A2: Date: | B2: <date>
A3: Hen: | B3: <hen> | F3: Correct Sequence | G3: =Start!J2 -> 12 | P3: Total Sequences in Data | Q3: =4994-COUNTBLANK(L7:L5000) -> 47 | V3: Total Sequences in Block Data | W3: =COUNTA(L7:L14) -> 8 | AA3: Total Sequences in Block Data | AB3: =COUNTA(L15:L22) -> 8 | AF3: Total Sequences in Block Data | AG3: =COUNTA(L23:L29) -> 7 | AK3: Total Sequences in Block Data | AL3: =COUNTA(L30:L37) -> 8 | AP3: Total Sequences in Block Data | AQ3: =COUNTA(L38:L45) -> 8 | AU3: Total Sequences in Block Data | AV3: =COUNTA(L46:L53) -> 8
P4: Total Sequences in Summary | Q4: =SUM(O7:O14) -> 47 | V4: Total Sequences in Block Summary | W4: =SUM(U7:U14) -> 8 | AA4: Total Sequences in Block Summary | AB4: =SUM(Z7:Z14) -> 8 | AF4: Total Sequences in Block Summary | AG4: =SUM(AE7:AE14) -> 7 | AK4: Total Sequences in Block Summary | AL4: =SUM(AJ7:AJ14) -> 8 | AP4: Total Sequences in Block Summary | AQ4: =SUM(AO7:AO14) -> 8 | AU4: Total Sequences in Block Summary | AV4: =SUM(AT7:AT14) -> 8
T5: Block 1 | Y5: Block 2 | AD5: Block 3 | AI5: Block 4 | AN5: Block 5 | AS5: Block 6
A6: Sequence Component 1 | B6: Time 1 | C6: Sequence Component 2 | D6: Time 2 | E6: Sequence Component 3 | F6: Time 3 | G6: Sequence Component 4 | H6: Time 4 | I6: Sequence Component 5 | J6: Time 5 | K6: Correct? 0=No 1=Yes | L6: Sequence | N6: Frequency | P6: Relative Frequency | Q6: Variability | T6: Frequency | V6: Relative Frequency | W6: Variability | Y6: Frequency | AA6: Relative Frequency | AB6: Variability | AD6: Frequency | AF6: Relative Frequency | AG6: Variability | AI6: Frequency | AK6: Relative Frequency | AL6: Variability | AN6: Frequency | AP6: Relative Frequency | AQ6: Variability | AS6: Frequency | AU6: Relative Frequency | AV6: Variability
A7: 11 | B7: 8 | C7: 21 | D7: 15 | K7: 0 | L7: 12 | N7: 11 | O7: =COUNTIF($L$7:$L$500,N7) -> 3 | P7: =O7/$Q$4 -> 0.06382978723 | Q7: =IF(P7=0,0,(P7*((LOG(P7))/LOG(2)))) -> -0.2533804054 | T7: =N7 -> 11 | U7: =COUNTIF(L7:L14,T7) -> 0 | V7: =U7/(W4-U8) -> 0 | W7: =IF(V7=0,0,(V7*((LOG(V7))/LOG(2)))) -> 0 | Y7: =N7 -> 11 | Z7: =COUNTIF(L15:L22,Y7) -> 0 | AA7: =Z7/(AB4-Z8) -> 0 | AB7: =IF(AA7=0,0,(AA7*((LOG(AA7))/LOG(2)))) -> 0 | AD7: =N7 -> 11 | AE7: =COUNTIF(L23:L29,AD7) -> 0 | AF7: =AE7/(AG4-AE8) ->  | AG7: =IF(AF7=0,0,(AF7*((LOG(AF7))/LOG(2)))) ->  | AI7: =N7 -> 11 | AJ7: =COUNTIF(L30:L37,AI7) -> 3 | AK7: =AJ7/(AL4-AJ8) -> 1 | AL7: =IF(AK7=0,0,(AK7*((LOG(AK7))/LOG(2)))) -> 0 | AN7: =N7 -> 11 | AO7: =COUNTIF(L38:L45,AN7) -> 0 | AP7: =AO7/(AQ4-AO8) -> 0 | AQ7: =IF(AP7=0,0,(AP7*((LOG(AP7))/LOG(2)))) -> 0 | AS7: =N7 -> 11 | AT7: =COUNTIF(L46:L53,AS7) -> 0 | AU7: =AT7/(AV4-AT8) ->  | AV7: =IF(AU7=0,0,(AU7*((LOG(AU7))/LOG(2)))) -> 
A8: 11 | B8: 102 | C8: 21 | D8: 109 | K8: 0 | L8: 12 | N8: 12 | O8: =COUNTIF($L$7:$L$500,N8) -> 40 | P8: =O8/$Q$4 -> 0.8510638298 | Q8: =IF(P8=0,0,(P8*((LOG(P8))/LOG(2)))) -> -0.1980091547 | T8: =N8 -> 12 | U8: =COUNTIF(L7:L14,T8) -> 7 | Y8: =N8 -> 12 | Z8: =COUNTIF(L15:L22,Y8) -> 6 | AD8: =N8 -> 12 | AE8: =COUNTIF(L23:L29,AD8) -> 7 | AI8: =N8 -> 12 | AJ8: =COUNTIF(L30:L37,AI8) -> 5 | AN8: =N8 -> 12 | AO8: =COUNTIF(L38:L45,AN8) -> 7 | AS8: =N8 -> 12 | AT8: =COUNTIF(L46:L53,AS8) -> 8
A9: 11 | B9: 195 | C9: 21 | D9: 202 | K9: 0 | L9: 12 | N9: 21 | O9: =COUNTIF($L$7:$L$500,N9) -> 3 | P9: =O9/$Q$4 -> 0.06382978723 | Q9: =IF(P9=0,0,(P9*((LOG(P9))/LOG(2)))) -> -0.2533804054 | T9: =N9 -> 21 | U9: =COUNTIF(L7:L14,T9) -> 1 | V9: =U9/(W4-U8) -> 1 | W9: =IF(V9=0,0,(V9*((LOG(V9))/LOG(2)))) -> 0 | Y9: =N9 -> 21 | Z9: =COUNTIF(L15:L22,Y9) -> 2 | AA9: =Z9/(AB4-Z8) -> 1 | AB9: =IF(AA9=0,0,(AA9*((LOG(AA9))/LOG(2)))) -> 0 | AD9: =N9 -> 21 | AE9: =COUNTIF(L23:L29,AD9) -> 0 | AF9: =AE9/(AG4-AE8) ->  | AG9: =IF(AF9=0,0,(AF9*((LOG(AF9))/LOG(2)))) ->  | AI9: =N9 -> 21 | AJ9: =COUNTIF(L30:L37,AI9) -> 0 | AK9: =AJ9/(AL4-AJ8) -> 0 | AL9: =IF(AK9=0,0,(AK9*((LOG(AK9))/LOG(2)))) -> 0 | AN9: =N9 -> 21 | AO9: =COUNTIF(L38:L45,AN9) -> 0 | AP9: =AO9/(AQ4-AO8) -> 0 | AQ9: =IF(AP9=0,0,(AP9*((LOG(AP9))/LOG(2)))) -> 0 | AS9: =N9 -> 21 | AT9: =COUNTIF(L46:L53,AS9) -> 0 | AU9: =AT9/(AV4-AT8) ->  | AV9: =IF(AU9=0,0,(AU9*((LOG(AU9))/LOG(2)))) -> 
A10: 11 | B10: 288 | C10: 21 | D10: 295 | K10: 0 | L10: 12 | N10: 22 | O10: =COUNTIF($L$7:$L$500,N10) -> 1 | P10: =O10/$Q$4 -> 0.02127659574 | Q10: =IF(P10=0,0,(P10*((LOG(P10))/LOG(2)))) -> -0.1181827415 | T10: =N10 -> 22 | U10: =COUNTIF(L7:L14,T10) -> 0 | V10: =U10/(W4-U8) -> 0 | W10: =IF(V10=0,0,(V10*((LOG(V10))/LOG(2)))) -> 0 | Y10: =N10 -> 22 | Z10: =COUNTIF(L15:L22,Y10) -> 0 | AA10: =Z10/(AB4-Z8) -> 0 | AB10: =IF(AA10=0,0,(AA10*((LOG(AA10))/LOG(2)))) -> 0 | AD10: =N10 -> 22 | AE10: =COUNTIF(L23:L29,AD10) -> 0 | AF10: =AE10/(AG4-AE8) ->  | AG10: =IF(AF10=0,0,(AF10*((LOG(AF10))/LOG(2)))) ->  | AI10: =N10 -> 22 | AJ10: =COUNTIF(L30:L37,AI10) -> 0 | AK10: =AJ10/(AL4-AJ8) -> 0 | AL10: =IF(AK10=0,0,(AK10*((LOG(AK10))/LOG(2)))) -> 0 | AN10: =N10 -> 22 | AO10: =COUNTIF(L38:L45,AN10) -> 1 | AP10: =AO10/(AQ4-AO8) -> 1 | AQ10: =IF(AP10=0,0,(AP10*((LOG(AP10))/LOG(2)))) -> 0 | AS10: =N10 -> 22 | AT10: =COUNTIF(L46:L53,AS10) -> 0 | AU10: =AT10/(AV4-AT8) ->  | AV10: =IF(AU10=0,0,(AU10*((LOG(AU10))/LOG(2)))) -> 
A11: 11 | B11: 382 | C11: 21 | D11: 387 | K11: 0 | L11: 12 | T11: =N11 -> 0 | U11: =COUNTIF(L7:L14,T11) -> 0 | V11: =U11/(W4-U8) -> 0 | W11: =IF(V11=0,0,(V11*((LOG(V11))/LOG(2)))) -> 0 | Y11: =N11 -> 0 | Z11: =COUNTIF(L15:L22,Y11) -> 0 | AA11: =Z11/(AB4-Z8) -> 0 | AB11: =IF(AA11=0,0,(AA11*((LOG(AA11))/LOG(2)))) -> 0 | AD11: =N11 -> 0 | AE11: =COUNTIF(L23:L29,AD11) -> 0 | AF11: =AE11/(AG4-AE8) ->  | AG11: =IF(AF11=0,0,(AF11*((LOG(AF11))/LOG(2)))) ->  | AI11: =N11 -> 0 | AJ11: =COUNTIF(L30:L37,AI11) -> 0 | AK11: =AJ11/(AL4-AJ8) -> 0 | AL11: =IF(AK11=0,0,(AK11*((LOG(AK11))/LOG(2)))) -> 0 | AN11: =N11 -> 0 | AO11: =COUNTIF(L38:L45,AN11) -> 0 | AP11: =AO11/(AQ4-AO8) -> 0 | AQ11: =IF(AP11=0,0,(AP11*((LOG(AP11))/LOG(2)))) -> 0 | AS11: =N11 -> 0 | AT11: =COUNTIF(L46:L53,AS11) -> 0 | AU11: =AT11/(AV4-AT8) ->  | AV11: =IF(AU11=0,0,(AU11*((LOG(AU11))/LOG(2)))) -> 
A12: 11 | B12: 475 | C12: 21 | D12: 482 | K12: 0 | L12: 12 | T12: =N12 -> 0 | U12: =COUNTIF(L7:L14,T12) -> 0 | V12: =U12/(W4-U8) -> 0 | W12: =IF(V12=0,0,(V12*((LOG(V12))/LOG(2)))) -> 0 | Y12: =N12 -> 0 | Z12: =COUNTIF(L15:L22,Y12) -> 0 | AA12: =Z12/(AB4-Z8) -> 0 | AB12: =IF(AA12=0,0,(AA12*((LOG(AA12))/LOG(2)))) -> 0 | AD12: =N12 -> 0 | AE12: =COUNTIF(L23:L29,AD12) -> 0 | AF12: =AE12/(AG4-AE8) ->  | AG12: =IF(AF12=0,0,(AF12*((LOG(AF12))/LOG(2)))) ->  | AI12: =N12 -> 0 | AJ12: =COUNTIF(L30:L37,AI12) -> 0 | AK12: =AJ12/(AL4-AJ8) -> 0 | AL12: =IF(AK12=0,0,(AK12*((LOG(AK12))/LOG(2)))) -> 0 | AN12: =N12 -> 0 | AO12: =COUNTIF(L38:L45,AN12) -> 0 | AP12: =AO12/(AQ4-AO8) -> 0 | AQ12: =IF(AP12=0,0,(AP12*((LOG(AP12))/LOG(2)))) -> 0 | AS12: =N12 -> 0 | AT12: =COUNTIF(L46:L53,AS12) -> 0 | AU12: =AT12/(AV4-AT8) ->  | AV12: =IF(AU12=0,0,(AU12*((LOG(AU12))/LOG(2)))) -> 
A13: 22 | B13: 580 | C13: 14 | D13: 619 | K13: 0 | L13: 21 | T13: =N13 -> 0 | U13: =COUNTIF(L7:L14,T13) -> 0 | V13: =U13/(W4-U8) -> 0 | W13: =IF(V13=0,0,(V13*((LOG(V13))/LOG(2)))) -> 0 | Y13: =N13 -> 0 | Z13: =COUNTIF(L15:L22,Y13) -> 0 | AA13: =Z13/(AB4-Z8) -> 0 | AB13: =IF(AA13=0,0,(AA13*((LOG(AA13))/LOG(2)))) -> 0 | AD13: =N13 -> 0 | AE13: =COUNTIF(L23:L29,AD13) -> 0 | AF13: =AE13/(AG4-AE8) ->  | AG13: =IF(AF13=0,0,(AF13*((LOG(AF13))/LOG(2)))) ->  | AI13: =N13 -> 0 | AJ13: =COUNTIF(L30:L37,AI13) -> 0 | AK13: =AJ13/(AL4-AJ8) -> 0 | AL13: =IF(AK13=0,0,(AK13*((LOG(AK13))/LOG(2)))) -> 0 | AN13: =N13 -> 0 | AO13: =COUNTIF(L38:L45,AN13) -> 0 | AP13: =AO13/(AQ4-AO8) -> 0 | AQ13: =IF(AP13=0,0,(AP13*((LOG(AP13))/LOG(2)))) -> 0 | AS13: =N13 -> 0 | AT13: =COUNTIF(L46:L53,AS13) -> 0 | AU13: =AT13/(AV4-AT8) ->  | AV13: =IF(AU13=0,0,(AU13*((LOG(AU13))/LOG(2)))) -> 
A14: 11 | B14: 721 | C14: 21 | D14: 728 | K14: 0 | L14: 12 | T14: =N14 -> 0 | U14: =COUNTIF(L7:L14,T14) -> 0 | V14: =U14/(W4-U8) -> 0 | W14: =IF(V14=0,0,(V14*((LOG(V14))/LOG(2)))) -> 0 | Y14: =N14 -> 0 | Z14: =COUNTIF(L15:L22,Y14) -> 0 | AA14: =Z14/(AB4-Z8) -> 0 | AB14: =IF(AA14=0,0,(AA14*((LOG(AA14))/LOG(2)))) -> 0 | AD14: =N14 -> 0 | AE14: =COUNTIF(L23:L29,AD14) -> 0 | AF14: =AE14/(AG4-AE8) ->  | AG14: =IF(AF14=0,0,(AF14*((LOG(AF14))/LOG(2)))) ->  | AI14: =N14 -> 0 | AJ14: =COUNTIF(L30:L37,AI14) -> 0 | AK14: =AJ14/(AL4-AJ8) -> 0 | AL14: =IF(AK14=0,0,(AK14*((LOG(AK14))/LOG(2)))) -> 0 | AN14: =N14 -> 0 | AO14: =COUNTIF(L38:L45,AN14) -> 0 | AP14: =AO14/(AQ4-AO8) -> 0 | AQ14: =IF(AP14=0,0,(AP14*((LOG(AP14))/LOG(2)))) -> 0 | AS14: =N14 -> 0 | AT14: =COUNTIF(L46:L53,AS14) -> 0 | AU14: =AT14/(AV4-AT8) ->  | AV14: =IF(AU14=0,0,(AU14*((LOG(AU14))/LOG(2)))) -> 
A15: 22 | B15: 825 | C15: 14 | D15: 874 | K15: 0 | L15: 21 | P15: =SUM(P7:P14) -> 1 | Q15: =-SUM(Q7:Q14) -> 0.822952707 | V15: =SUM(V7:V14) -> 1 | W15: =-SUM(W7:W14) -> 0 | AA15: =SUM(AA7:AA14) -> 1 | AB15: =-SUM(AB7:AB14) -> 0 | AF15: =SUM(AF7:AF14) ->  | AG15: =-SUM(AG7:AG14) ->  | AK15: =SUM(AK7:AK14) -> 1 | AL15: =-SUM(AL7:AL14) -> 0 | AP15: =SUM(AP7:AP14) -> 1 | AQ15: =-SUM(AQ7:AQ14) -> 0 | AU15: =SUM(AU7:AU14) ->  | AV15: =-SUM(AV7:AV14) -> 
A16: 11 | B16: 971 | C16: 21 | D16: 980 | K16: 0 | L16: 12 | P16: U= | Q16: =Q15/(LOG(Q4)/LOG(2)) -> 0.1481572676 | V16: U1= | W16: =W15/(LOG(W4)/LOG(2)) -> 0 | AA16: U2= | AB16: =AB15/(LOG(AB4)/LOG(2)) -> 0 | AF16: U3= | AG16: =AG15/(LOG(AG4)/LOG(2)) ->  | AK16: U4= | AL16: =AL15/(LOG(AL4)/LOG(2)) -> 0 | AP16: U5= | AQ16: =AQ15/(LOG(AQ4)/LOG(2)) -> 0 | AU16: U6= | AV16: =AV15/(LOG(AV4)/LOG(2)) -> 
A17: 11 | B17: 1067 | C17: 21 | D17: 1075 | K17: 0 | L17: 12
A18: 11 | B18: 1161 | C18: 21 | D18: 1169 | K18: 0 | L18: 12
A19: 11 | B19: 1264 | C19: 21 | D19: 1272 | K19: 0 | L19: 12 | N19: Total Target Seq
A20: 22 | B20: 1371 | C20: 14 | D20: 1380 | K20: 0 | L20: 21 | N20: =COUNTIF(L7:L53,G3) -> 40 | P20: 8 | Q20: 8 | R20: 7 | S20: 8 | T20: 8 | U20: 8
A21: 11 | B21: 1486 | C21: 21 | D21: 1493 | K21: 0 | L21: 12 | P21: % of reinforcement given in 6 equal intervals based on number of trials
A22: 11 | B22: 1587 | C22: 21 | D22: 1595 | K22: 0 | L22: 12 | P22: %_1 | Q22: %_2 | R22: %_3 | S22: %_4 | T22: %_5 | U22: %_6
A23: 11 | B23: 1683 | C23: 21 | D23: 1690 | K23: 0 | L23: 12 | O23: target sequence | P23: =$G$3 -> 12 | Q23: =$G$3 -> 12 | R23: =$G$3 -> 12 | S23: =$G$3 -> 12 | T23: =$G$3 -> 12 | U23: =$G$3 -> 12
A24: 11 | B24: 1776 | C24: 21 | D24: 1783 | K24: 0 | L24: 12 | O24: total reinforcement | P24: =U8 -> 7 | Q24: =Z8 -> 6 | R24: =AE8 -> 7 | S24: =AJ8 -> 5 | T24: =AO8 -> 7 | U24: =AT8 -> 8
A25: 11 | B25: 1872 | C25: 21 | D25: 1879 | K25: 0 | L25: 12 | O25: % target
A26: 11 | B26: 1968 | C26: 21 | D26: 1975 | K26: 0 | L26: 12 | O26: CCRF
A27: 11 | B27: 2062 | C27: 21 | D27: 2067 | K27: 0 | L27: 12 | O27: % CCRf
A28: 11 | B28: 2156 | C28: 21 | D28: 2164 | K28: 0 | L28: 12 | O28: average response rate | P28: =D14/P20 -> 91 | Q28: =(D22-D14)/Q20 -> 108.375 | R28: =(D29-D22)/R20 -> 95.14285714 | S28: =(D37-D29)/S20 -> 106.375 | T28: =(D45-D37)/T20 -> 109.5 | U28: =(D53-D45)/U20 -> 94.375
A29: 11 | B29: 2253 | C29: 21 | D29: 2261 | K29: 0 | L29: 12
A30: 11 | B30: 2349 | C30: 21 | D30: 2357 | K30: 0 | L30: 12
A31: 11 | B31: 2450 | C31: 21 | D31: 2458 | K31: 0 | L31: 12
A32: 11 | B32: 2545 | C32: 21 | D32: 2553 | K32: 0 | L32: 12
A33: 11 | B33: 2640 | C33: 21 | D33: 2648 | K33: 0 | L33: 12
A34: 11 | B34: 2734 | C34: 21 | D34: 2742 | K34: 0 | L34: 12
A35: 11 | B35: 2841 | C35: 12 | D35: 2868 | K35: 0 | L35: 11
A36: 11 | B36: 2970 | C36: 12 | D36: 2984 | K36: 0 | L36: 11
A37: 11 | B37: 3091 | C37: 12 | D37: 3112 | K37: 0 | L37: 11
A38: 11 | B38: 3208 | C38: 21 | D38: 3223 | K38: 0 | L38: 12
A39: 11 | B39: 3315 | C39: 21 | D39: 3324 | K39: 0 | L39: 12
A40: 11 | B40: 3414 | C40: 21 | D40: 3422 | K40: 0 | L40: 12
A41: 11 | B41: 3510 | C41: 21 | D41: 3518 | K41: 0 | L41: 12
A42: 11 | B42: 3605 | C42: 21 | D42: 3613 | K42: 0 | L42: 12
A43: 11 | B43: 3699 | C43: 21 | D43: 3705 | K43: 0 | L43: 12
A44: 22 | B44: 3805 | C44: 23 | D44: 3866 | K44: 0 | L44: 22
A45: 11 | B45: 3980 | C45: 21 | D45: 3988 | K45: 0 | L45: 12
A46: 11 | B46: 4075 | C46: 21 | D46: 4083 | K46: 0 | L46: 12
A47: 11 | B47: 4169 | C47: 21 | D47: 4174 | K47: 0 | L47: 12
A48: 11 | B48: 4261 | C48: 21 | D48: 4266 | K48: 0 | L48: 12
A49: 11 | B49: 4354 | C49: 21 | D49: 4363 | K49: 0 | L49: 12
A50: 11 | B50: 4451 | C50: 21 | D50: 4458 | K50: 0 | L50: 12
A51: 11 | B51: 4546 | C51: 21 | D51: 4554 | K51: 0 | L51: 12
A52: 11 | B52: 4642 | C52: 21 | D52: 4649 | K52: 0 | L52: 12
A53: 11 | B53: 4737 | C53: 21 | D53: 4743 | K53: 1 | L53: 12

Sheet !L820920.052
A1: Report for:!L820920.052
A2: Date: | B2: <date>
A3: Hen: | B3: <hen> | F3: Correct Sequence | G3: =Start!J2 -> 12 | P3: Total Sequences in Data | Q3: =4994-COUNTBLANK(L7:L5000) -> 44 | V3: Total Sequences in Block Data | W3: =COUNTA(L7:L13) -> 7 | AA3: Total Sequences in Block Data | AB3: =COUNTA(L14:L21) -> 8 | AF3: Total Sequences in Block Data | AG3: =COUNTA(L22:L28) -> 7 | AK3: Total Sequences in Block Data | AL3: =COUNTA(L29:L35) -> 7 | AP3: Total Sequences in Block Data | AQ3: =COUNTA(L36:L43) -> 8 | AU3: Total Sequences in Block Data | AV3: =COUNTA(L44:L50) -> 7
P4: Total Sequences in Summary | Q4: =SUM(O7:O14) -> 44 | V4: Total Sequences in Block Summary | W4: =SUM(U7:U14) -> 7 | AA4: Total Sequences in Block Summary | AB4: =SUM(Z7:Z14) -> 8 | AF4: Total Sequences in Block Summary | AG4: =SUM(AE7:AE14) -> 7 | AK4: Total Sequences in Block Summary | AL4: =SUM(AJ7:AJ14) -> 7 | AP4: Total Sequences in Block Summary | AQ4: =SUM(AO7:AO14) -> 8 | AU4: Total Sequences in Block Summary | AV4: =SUM(AT7:AT14) -> 7
T5: Block 1 | Y5: Block 2 | AD5: Block 3 | AI5: Block 4 | AN5: Block 5 | AS5: Block 6
A6: Sequence Component 1 | B6: Time 1 | C6: Sequence Component 2 | D6: Time 2 | E6: Sequence Component 3 | F6: Time 3 | G6: Sequence Component 4 | H6: Time 4 | I6: Sequence Component 5 | J6: Time 5 | K6: Correct? 0=No 1=Yes | L6: Sequence | N6: Frequency | P6: Relative Frequency | Q6: Variability | T6: Frequency | V6: Relative Frequency | W6: Variability | Y6: Frequency | AA6: Relative Frequency | AB6: Variability | AD6: Frequency | AF6: Relative Frequency | AG6: Variability | AI6: Frequency | AK6: Relative Frequency | AL6: Variability | AN6: Frequency | AP6: Relative Frequency | AQ6: Variability | AS6: Frequency | AU6: Relative Frequency | AV6: Variability
A7: 11 | B7: 9 | C7: 21 | D7: 16 | K7: 0 | L7: 12 | N7: 11 | O7: =COUNTIF($L$7:$L$500,N7) -> 1 | P7: =O7/$Q$4 -> 0.02272727273 | Q7: =IF(P7=0,0,(P7*((LOG(P7))/LOG(2)))) -> -0.1240779913 | T7: =N7 -> 11 | U7: =COUNTIF(L7:L13,T7) -> 0 | V7: =U7/(W4-U8) ->  | W7: =IF(V7=0,0,(V7*((LOG(V7))/LOG(2)))) ->  | Y7: =N7 -> 11 | Z7: =COUNTIF(L14:L21,Y7) -> 0 | AA7: =Z7/(AB4-Z8) -> 0 | AB7: =IF(AA7=0,0,(AA7*((LOG(AA7))/LOG(2)))) -> 0 | AD7: =N7 -> 11 | AE7: =COUNTIF(L22:L28,AD7) -> 0 | AF7: =AE7/(AG4-AE8) -> 0 | AG7: =IF(AF7=0,0,(AF7*((LOG(AF7))/LOG(2)))) -> 0 | AI7: =N7 -> 11 | AJ7: =COUNTIF(L29:L35,AI7) -> 0 | AK7: =AJ7/(AL4-AJ8) ->  | AL7: =IF(AK7=0,0,(AK7*((LOG(AK7))/LOG(2)))) ->  | AN7: =N7 -> 11 | AO7: =COUNTIF(L36:L43,AN7) -> 1 | AP7: =AO7/(AQ4-AO8) -> 1 | AQ7: =IF(AP7=0,0,(AP7*((LOG(AP7))/LOG(2)))) -> 0 | AS7: =N7 -> 11 | AT7: =COUNTIF(L44:L50,AS7) -> 0 | AU7: =AT7/(AV4-AT8) ->  | AV7: =IF(AU7=0,0,(AU7*((LOG(AU7))/LOG(2)))) -> 
A8: 11 | B8: 108 | C8: 21 | D8: 115 | K8: 0 | L8: 12 | N8: 12 | O8: =COUNTIF($L$7:$L$500,N8) -> 40 | P8: =O8/$Q$4 -> 0.9090909091 | Q8: =IF(P8=0,0,(P8*((LOG(P8))/LOG(2)))) -> -0.1250032034 | T8: =N8 -> 12 | U8: =COUNTIF(L7:L13,T8) -> 7 | Y8: =N8 -> 12 | Z8: =COUNTIF(L14:L21,Y8) -> 6 | AD8: =N8 -> 12 | AE8: =COUNTIF(L22:L28,AD8) -> 6 | AI8: =N8 -> 12 | AJ8: =COUNTIF(L29:L35,AI8) -> 7 | AN8: =N8 -> 12 | AO8: =COUNTIF(L36:L43,AN8) -> 7 | AS8: =N8 -> 12 | AT8: =COUNTIF(L44:L50,AS8) -> 7
A9: 11 | B9: 200 | C9: 21 | D9: 207 | K9: 0 | L9: 12 | N9: 21 | O9: =COUNTIF($L$7:$L$500,N9) -> 1 | P9: =O9/$Q$4 -> 0.02272727273 | Q9: =IF(P9=0,0,(P9*((LOG(P9))/LOG(2)))) -> -0.1240779913 | T9: =N9 -> 21 | U9: =COUNTIF(L7:L13,T9) -> 0 | V9: =U9/(W4-U8) ->  | W9: =IF(V9=0,0,(V9*((LOG(V9))/LOG(2)))) ->  | Y9: =N9 -> 21 | Z9: =COUNTIF(L14:L21,Y9) -> 1 | AA9: =Z9/(AB4-Z8) -> 0.5 | AB9: =IF(AA9=0,0,(AA9*((LOG(AA9))/LOG(2)))) -> -0.5 | AD9: =N9 -> 21 | AE9: =COUNTIF(L22:L28,AD9) -> 0 | AF9: =AE9/(AG4-AE8) -> 0 | AG9: =IF(AF9=0,0,(AF9*((LOG(AF9))/LOG(2)))) -> 0 | AI9: =N9 -> 21 | AJ9: =COUNTIF(L29:L35,AI9) -> 0 | AK9: =AJ9/(AL4-AJ8) ->  | AL9: =IF(AK9=0,0,(AK9*((LOG(AK9))/LOG(2)))) ->  | AN9: =N9 -> 21 | AO9: =COUNTIF(L36:L43,AN9) -> 0 | AP9: =AO9/(AQ4-AO8) -> 0 | AQ9: =IF(AP9=0,0,(AP9*((LOG(AP9))/LOG(2)))) -> 0 | AS9: =N9 -> 21 | AT9: =COUNTIF(L44:L50,AS9) -> 0 | AU9: =AT9/(AV4-AT8) ->  | AV9: =IF(AU9=0,0,(AU9*((LOG(AU9))/LOG(2)))) -> 
A10: 11 | B10: 296 | C10: 21 | D10: 307 | K10: 0 | L10: 12 | N10: 22 | O10: =COUNTIF($L$7:$L$500,N10) -> 2 | P10: =O10/$Q$4 -> 0.04545454545 | Q10: =IF(P10=0,0,(P10*((LOG(P10))/LOG(2)))) -> -0.2027014372 | T10: =N10 -> 22 | U10: =COUNTIF(L7:L13,T10) -> 0 | V10: =U10/(W4-U8) ->  | W10: =IF(V10=0,0,(V10*((LOG(V10))/LOG(2)))) ->  | Y10: =N10 -> 22 | Z10: =COUNTIF(L14:L21,Y10) -> 1 | AA10: =Z10/(AB4-Z8) -> 0.5 | AB10: =IF(AA10=0,0,(AA10*((LOG(AA10))/LOG(2)))) -> -0.5 | AD10: =N10 -> 22 | AE10: =COUNTIF(L22:L28,AD10) -> 1 | AF10: =AE10/(AG4-AE8) -> 1 | AG10: =IF(AF10=0,0,(AF10*((LOG(AF10))/LOG(2)))) -> 0 | AI10: =N10 -> 22 | AJ10: =COUNTIF(L29:L35,AI10) -> 0 | AK10: =AJ10/(AL4-AJ8) ->  | AL10: =IF(AK10=0,0,(AK10*((LOG(AK10))/LOG(2)))) ->  | AN10: =N10 -> 22 | AO10: =COUNTIF(L36:L43,AN10) -> 0 | AP10: =AO10/(AQ4-AO8) -> 0 | AQ10: =IF(AP10=0,0,(AP10*((LOG(AP10))/LOG(2)))) -> 0 | AS10: =N10 -> 22 | AT10: =COUNTIF(L44:L50,AS10) -> 0 | AU10: =AT10/(AV4-AT8) ->  | AV10: =IF(AU10=0,0,(AU10*((LOG(AU10))/LOG(2)))) -> 
A11: 11 | B11: 392 | C11: 21 | D11: 397 | K11: 0 | L11: 12 | T11: =N11 -> 0 | U11: =COUNTIF(L7:L13,T11) -> 0 | V11: =U11/(W4-U8) ->  | W11: =IF(V11=0,0,(V11*((LOG(V11))/LOG(2)))) ->  | Y11: =N11 -> 0 | Z11: =COUNTIF(L14:L21,Y11) -> 0 | AA11: =Z11/(AB4-Z8) -> 0 | AB11: =IF(AA11=0,0,(AA11*((LOG(AA11))/LOG(2)))) -> 0 | AD11: =N11 -> 0 | AE11: =COUNTIF(L22:L28,AD11) -> 0 | AF11: =AE11/(AG4-AE8) -> 0 | AG11: =IF(AF11=0,0,(AF11*((LOG(AF11))/LOG(2)))) -> 0 | AI11: =N11 -> 0 | AJ11: =COUNTIF(L29:L35,AI11) -> 0 | AK11: =AJ11/(AL4-AJ8) ->  | AL11: =IF(AK11=0,0,(AK11*((LOG(AK11))/LOG(2)))) ->  | AN11: =N11 -> 0 | AO11: =COUNTIF(L36:L43,AN11) -> 0 | AP11: =AO11/(AQ4-AO8) -> 0 | AQ11: =IF(AP11=0,0,(AP11*((LOG(AP11))/LOG(2)))) -> 0 | AS11: =N11 -> 0 | AT11: =COUNTIF(L44:L50,AS11) -> 0 | AU11: =AT11/(AV4-AT8) ->  | AV11: =IF(AU11=0,0,(AU11*((LOG(AU11))/LOG(2)))) -> 
A12: 11 | B12: 482 | C12: 21 | D12: 489 | K12: 0 | L12: 12 | T12: =N12 -> 0 | U12: =COUNTIF(L7:L13,T12) -> 0 | V12: =U12/(W4-U8) ->  | W12: =IF(V12=0,0,(V12*((LOG(V12))/LOG(2)))) ->  | Y12: =N12 -> 0 | Z12: =COUNTIF(L14:L21,Y12) -> 0 | AA12: =Z12/(AB4-Z8) -> 0 | AB12: =IF(AA12=0,0,(AA12*((LOG(AA12))/LOG(2)))) -> 0 | AD12: =N12 -> 0 | AE12: =COUNTIF(L22:L28,AD12) -> 0 | AF12: =AE12/(AG4-AE8) -> 0 | AG12: =IF(AF12=0,0,(AF12*((LOG(AF12))/LOG(2)))) -> 0 | AI12: =N12 -> 0 | AJ12: =COUNTIF(L29:L35,AI12) -> 0 | AK12: =AJ12/(AL4-AJ8) ->  | AL12: =IF(AK12=0,0,(AK12*((LOG(AK12))/LOG(2)))) ->  | AN12: =N12 -> 0 | AO12: =COUNTIF(L36:L43,AN12) -> 0 | AP12: =AO12/(AQ4-AO8) -> 0 | AQ12: =IF(AP12=0,0,(AP12*((LOG(AP12))/LOG(2)))) -> 0 | AS12: =N12 -> 0 | AT12: =COUNTIF(L44:L50,AS12) -> 0 | AU12: =AT12/(AV4-AT8) ->  | AV12: =IF(AU12=0,0,(AU12*((LOG(AU12))/LOG(2)))) -> 
A13: 11 | B13: 580 | C13: 21 | D13: 585 | K13: 0 | L13: 12 | T13: =N13 -> 0 | U13: =COUNTIF(L7:L13,T13) -> 0 | V13: =U13/(W4-U8) ->  | W13: =IF(V13=0,0,(V13*((LOG(V13))/LOG(2)))) ->  | Y13: =N13 -> 0 | Z13: =COUNTIF(L14:L21,Y13) -> 0 | AA13: =Z13/(AB4-Z8) -> 0 | AB13: =IF(AA13=0,0,(AA13*((LOG(AA13))/LOG(2)))) -> 0 | AD13: =N13 -> 0 | AE13: =COUNTIF(L22:L28,AD13) -> 0 | AF13: =AE13/(AG4-AE8) -> 0 | AG13: =IF(AF13=0,0,(AF13*((LOG(AF13))/LOG(2)))) -> 0 | AI13: =N13 -> 0 | AJ13: =COUNTIF(L29:L35,AI13) -> 0 | AK13: =AJ13/(AL4-AJ8) ->  | AL13: =IF(AK13=0,0,(AK13*((LOG(AK13))/LOG(2)))) ->  | AN13: =N13 -> 0 | AO13: =COUNTIF(L36:L43,AN13) -> 0 | AP13: =AO13/(AQ4-AO8) -> 0 | AQ13: =IF(AP13=0,0,(AP13*((LOG(AP13))/LOG(2)))) -> 0 | AS13: =N13 -> 0 | AT13: =COUNTIF(L44:L50,AS13) -> 0 | AU13: =AT13/(AV4-AT8) ->  | AV13: =IF(AU13=0,0,(AU13*((LOG(AU13))/LOG(2)))) -> 
A14: 11 | B14: 670 | C14: 21 | D14: 677 | K14: 0 | L14: 12 | T14: =N14 -> 0 | U14: =COUNTIF(L7:L13,T14) -> 0 | V14: =U14/(W4-U8) ->  | W14: =IF(V14=0,0,(V14*((LOG(V14))/LOG(2)))) ->  | Y14: =N14 -> 0 | Z14: =COUNTIF(L14:L21,Y14) -> 0 | AA14: =Z14/(AB4-Z8) -> 0 | AB14: =IF(AA14=0,0,(AA14*((LOG(AA14))/LOG(2)))) -> 0 | AD14: =N14 -> 0 | AE14: =COUNTIF(L22:L28,AD14) -> 0 | AF14: =AE14/(AG4-AE8) -> 0 | AG14: =IF(AF14=0,0,(AF14*((LOG(AF14))/LOG(2)))) -> 0 | AI14: =N14 -> 0 | AJ14: =COUNTIF(L29:L35,AI14) -> 0 | AK14: =AJ14/(AL4-AJ8) ->  | AL14: =IF(AK14=0,0,(AK14*((LOG(AK14))/LOG(2)))) ->  | AN14: =N14 -> 0 | AO14: =COUNTIF(L36:L43,AN14) -> 0 | AP14: =AO14/(AQ4-AO8) -> 0 | AQ14: =IF(AP14=0,0,(AP14*((LOG(AP14))/LOG(2)))) -> 0 | AS14: =N14 -> 0 | AT14: =COUNTIF(L44:L50,AS14) -> 0 | AU14: =AT14/(AV4-AT8) ->  | AV14: =IF(AU14=0,0,(AU14*((LOG(AU14))/LOG(2)))) -> 
A15: 11 | B15: 764 | C15: 21 | D15: 771 | K15: 0 | L15: 12 | P15: =SUM(P7:P14) -> 1 | Q15: =-SUM(Q7:Q14) -> 0.5758606233 | V15: =SUM(V7:V14) ->  | W15: =-SUM(W7:W14) ->  | AA15: =SUM(AA7:AA14) -> 1 | AB15: =-SUM(AB7:AB14) -> 1 | AF15: =SUM(AF7:AF14) -> 1 | AG15: =-SUM(AG7:AG14) -> 0 | AK15: =SUM(AK7:AK14) ->  | AL15: =-SUM(AL7:AL14) ->  | AP15: =SUM(AP7:AP14) -> 1 | AQ15: =-SUM(AQ7:AQ14) -> 0 | AU15: =SUM(AU7:AU14) ->  | AV15: =-SUM(AV7:AV14) -> 
A16: 22 | B16: 866 | C16: 14 | D16: 886 | K16: 0 | L16: 21 | P16: U= | Q16: =Q15/(LOG(Q4)/LOG(2)) -> 0.105479959 | V16: U1= | W16: =W15/(LOG(W4)/LOG(2)) ->  | AA16: U2= | AB16: =AB15/(LOG(AB4)/LOG(2)) -> 0.3333333333 | AF16: U3= | AG16: =AG15/(LOG(AG4)/LOG(2)) -> 0 | AK16: U4= | AL16: =AL15/(LOG(AL4)/LOG(2)) ->  | AP16: U5= | AQ16: =AQ15/(LOG(AQ4)/LOG(2)) -> 0 | AU16: U6= | AV16: =AV15/(LOG(AV4)/LOG(2)) -> 
A17: 11 | B17: 984 | C17: 21 | D17: 989 | K17: 0 | L17: 12
A18: 22 | B18: 1085 | C18: 23 | D18: 1151 | K18: 0 | L18: 22
A19: 11 | B19: 1250 | C19: 21 | D19: 1257 | K19: 0 | L19: 12 | N19: Total Target Seq
A20: 11 | B20: 1343 | C20: 21 | D20: 1350 | K20: 0 | L20: 12 | N20: =COUNTIF(L7:L50,G3) -> 40 | P20: 7 | Q20: 8 | R20: 7 | S20: 7 | T20: 8 | U20: 7
A21: 11 | B21: 1437 | C21: 21 | D21: 1444 | K21: 0 | L21: 12 | P21: % of reinforcement given in 6 equal intervals based on number of trials
A22: 11 | B22: 1532 | C22: 21 | D22: 1539 | K22: 0 | L22: 12 | P22: %_1 | Q22: %_2 | R22: %_3 | S22: %_4 | T22: %_5 | U22: %_6
A23: 11 | B23: 1622 | C23: 21 | D23: 1629 | K23: 0 | L23: 12 | O23: target sequence | P23: =$G$3 -> 12 | Q23: =$G$3 -> 12 | R23: =$G$3 -> 12 | S23: =$G$3 -> 12 | T23: =$G$3 -> 12 | U23: =$G$3 -> 12
A24: 11 | B24: 1720 | C24: 21 | D24: 1726 | K24: 0 | L24: 12 | O24: total reinforcement | P24: =U8 -> 7 | Q24: =Z8 -> 6 | R24: =AE8 -> 6 | S24: =AJ8 -> 7 | T24: =AO8 -> 7 | U24: =AT8 -> 7
A25: 11 | B25: 1812 | C25: 21 | D25: 1819 | K25: 0 | L25: 12 | O25: % target
A26: 11 | B26: 1905 | C26: 21 | D26: 1910 | K26: 0 | L26: 12 | O26: CCRF
A27: 22 | B27: 2018 | C27: 23 | D27: 2037 | K27: 0 | L27: 22 | O27: % CCRf
A28: 11 | B28: 2134 | C28: 21 | D28: 2141 | K28: 0 | L28: 12 | O28: average response rate | P28: =D13/P20 -> 83.57142857 | Q28: =(D21-D13)/Q20 -> 107.375 | R28: =(D28-D21)/R20 -> 99.57142857 | S28: =(D35-D28)/S20 -> 93.42857143 | T28: =(D43-D35)/T20 -> 93.125 | U28: =(D50-D43)/U20 -> 93.71428571
A29: 11 | B29: 2232 | C29: 21 | D29: 2239 | K29: 0 | L29: 12
A30: 11 | B30: 2324 | C30: 21 | D30: 2329 | K30: 0 | L30: 12
A31: 11 | B31: 2415 | C31: 21 | D31: 2420 | K31: 0 | L31: 12
A32: 11 | B32: 2505 | C32: 21 | D32: 2510 | K32: 0 | L32: 12
A33: 11 | B33: 2596 | C33: 21 | D33: 2603 | K33: 0 | L33: 12
A34: 11 | B34: 2690 | C34: 21 | D34: 2695 | K34: 0 | L34: 12
A35: 11 | B35: 2787 | C35: 21 | D35: 2795 | K35: 0 | L35: 12
A36: 11 | B36: 2882 | C36: 21 | D36: 2887 | K36: 0 | L36: 12
A37: 11 | B37: 2972 | C37: 21 | D37: 2979 | K37: 0 | L37: 12
A38: 11 | B38: 3065 | C38: 21 | D38: 3070 | K38: 0 | L38: 12
A39: 11 | B39: 3155 | C39: 21 | D39: 3160 | K39: 0 | L39: 12
A40: 11 | B40: 3240 | C40: 12 | D40: 3247 | K40: 0 | L40: 11
A41: 11 | B41: 3346 | C41: 21 | D41: 3353 | K41: 0 | L41: 12
A42: 11 | B42: 3439 | C42: 21 | D42: 3445 | K42: 0 | L42: 12
A43: 11 | B43: 3533 | C43: 21 | D43: 3540 | K43: 0 | L43: 12
A44: 11 | B44: 3626 | C44: 21 | D44: 3633 | K44: 0 | L44: 12
A45: 11 | B45: 3720 | C45: 21 | D45: 3727 | K45: 0 | L45: 12
A46: 11 | B46: 3815 | C46: 21 | D46: 3823 | K46: 0 | L46: 12
A47: 11 | B47: 3911 | C47: 21 | D47: 3918 | K47: 0 | L47: 12
A48: 11 | B48: 4005 | C48: 21 | D48: 4011 | K48: 0 | L48: 12
A49: 11 | B49: 4097 | C49: 21 | D49: 4102 | K49: 0 | L49: 12
A50: 11 | B50: 4188 | C50: 21 | D50: 4196 | K50: 1 | L50: 12

Sheet !L821A30.052
A1: Report for:!L821A30.052
A2: Date: | B2: <date>
A3: Hen: | B3: <hen> | F3: Correct Sequence | G3: =Start!J2 -> 12 | P3: Total Sequences in Data | Q3: =4994-COUNTBLANK(L7:L5000) -> 46 | V3: Total Sequences in Block Data | W3: =COUNTA(L7:L14) -> 8 | AA3: Total Sequences in Block Data | AB3: =COUNTA(L15:L21) -> 7 | AF3: Total Sequences in Block Data | AG3: =COUNTA(L22:L29) -> 8 | AK3: Total Sequences in Block Data | AL3: =COUNTA(L30:L37) -> 8 | AP3: Total Sequences in Block Data | AQ3: =COUNTA(L38:L44) -> 7 | AU3: Total Sequences in Block Data | AV3: =COUNTA(L45:L52) -> 8
P4: Total Sequences in Summary | Q4: =SUM(O7:O14) -> 46 | V4: Total Sequences in Block Summary | W4: =SUM(U7:U14) -> 8 | AA4: Total Sequences in Block Summary | AB4: =SUM(Z7:Z14) -> 7 | AF4: Total Sequences in Block Summary | AG4: =SUM(AE7:AE14) -> 8 | AK4: Total Sequences in Block Summary | AL4: =SUM(AJ7:AJ14) -> 8 | AP4: Total Sequences in Block Summary | AQ4: =SUM(AO7:AO14) -> 7 | AU4: Total Sequences in Block Summary | AV4: =SUM(AT7:AT14) -> 8
T5: Block 1 | Y5: Block 2 | AD5: Block 3 | AI5: Block 4 | AN5: Block 5 | AS5: Block 6
A6: Sequence Component 1 | B6: Time 1 | C6: Sequence Component 2 | D6: Time 2 | E6: Sequence Component 3 | F6: Time 3 | G6: Sequence Component 4 | H6: Time 4 | I6: Sequence Component 5 | J6: Time 5 | K6: Correct? 0=No 1=Yes | L6: Sequence | N6: Frequency | P6: Relative Frequency | Q6: Variability | T6: Frequency | V6: Relative Frequency | W6: Variability | Y6: Frequency | AA6: Relative Frequency | AB6: Variability | AD6: Frequency | AF6: Relative Frequency | AG6: Variability | AI6: Frequency | AK6: Relative Frequency | AL6: Variability | AN6: Frequency | AP6: Relative Frequency | AQ6: Variability | AS6: Frequency | AU6: Relative Frequency | AV6: Variability
A7: 11 | B7: 8 | C7: 21 | D7: 15 | K7: 0 | L7: 12 | N7: 11 | O7: =COUNTIF($L$7:$L$500,N7) -> 1 | P7: =O7/$Q$4 -> 0.02173913043 | Q7: =IF(P7=0,0,(P7*((LOG(P7))/LOG(2)))) -> -0.1200774338 | T7: =N7 -> 11 | U7: =COUNTIF(L7:L14,T7) -> 1 | V7: =U7/(W4-U8) -> 0.3333333333 | W7: =IF(V7=0,0,(V7*((LOG(V7))/LOG(2)))) -> -0.5283208336 | Y7: =N7 -> 11 | Z7: =COUNTIF(L15:L21,Y7) -> 0 | AA7: =Z7/(AB4-Z8) -> 0 | AB7: =IF(AA7=0,0,(AA7*((LOG(AA7))/LOG(2)))) -> 0 | AD7: =N7 -> 11 | AE7: =COUNTIF(L22:L29,AD7) -> 0 | AF7: =AE7/(AG4-AE8) -> 0 | AG7: =IF(AF7=0,0,(AF7*((LOG(AF7))/LOG(2)))) -> 0 | AI7: =N7 -> 11 | AJ7: =COUNTIF(L30:L37,AI7) -> 0 | AK7: =AJ7/(AL4-AJ8) ->  | AL7: =IF(AK7=0,0,(AK7*((LOG(AK7))/LOG(2)))) ->  | AN7: =N7 -> 11 | AO7: =COUNTIF(L38:L44,AN7) -> 0 | AP7: =AO7/(AQ4-AO8) ->  | AQ7: =IF(AP7=0,0,(AP7*((LOG(AP7))/LOG(2)))) ->  | AS7: =N7 -> 11 | AT7: =COUNTIF(L45:L52,AS7) -> 0 | AU7: =AT7/(AV4-AT8) ->  | AV7: =IF(AU7=0,0,(AU7*((LOG(AU7))/LOG(2)))) -> 
A8: 11 | B8: 102 | C8: 21 | D8: 109 | K8: 0 | L8: 12 | N8: 12 | O8: =COUNTIF($L$7:$L$500,N8) -> 40 | P8: =O8/$Q$4 -> 0.8695652174 | Q8: =IF(P8=0,0,(P8*((LOG(P8))/LOG(2)))) -> -0.1753337923 | T8: =N8 -> 12 | U8: =COUNTIF(L7:L14,T8) -> 5 | Y8: =N8 -> 12 | Z8: =COUNTIF(L15:L21,Y8) -> 6 | AD8: =N8 -> 12 | AE8: =COUNTIF(L22:L29,AD8) -> 6 | AI8: =N8 -> 12 | AJ8: =COUNTIF(L30:L37,AI8) -> 8 | AN8: =N8 -> 12 | AO8: =COUNTIF(L38:L44,AN8) -> 7 | AS8: =N8 -> 12 | AT8: =COUNTIF(L45:L52,AS8) -> 8
A9: 22 | B9: 196 | C9: 23 | D9: 208 | K9: 0 | L9: 22 | N9: 21 | O9: =COUNTIF($L$7:$L$500,N9) -> 1 | P9: =O9/$Q$4 -> 0.02173913043 | Q9: =IF(P9=0,0,(P9*((LOG(P9))/LOG(2)))) -> -0.1200774338 | T9: =N9 -> 21 | U9: =COUNTIF(L7:L14,T9) -> 0 | V9: =U9/(W4-U8) -> 0 | W9: =IF(V9=0,0,(V9*((LOG(V9))/LOG(2)))) -> 0 | Y9: =N9 -> 21 | Z9: =COUNTIF(L15:L21,Y9) -> 0 | AA9: =Z9/(AB4-Z8) -> 0 | AB9: =IF(AA9=0,0,(AA9*((LOG(AA9))/LOG(2)))) -> 0 | AD9: =N9 -> 21 | AE9: =COUNTIF(L22:L29,AD9) -> 1 | AF9: =AE9/(AG4-AE8) -> 0.5 | AG9: =IF(AF9=0,0,(AF9*((LOG(AF9))/LOG(2)))) -> -0.5 | AI9: =N9 -> 21 | AJ9: =COUNTIF(L30:L37,AI9) -> 0 | AK9: =AJ9/(AL4-AJ8) ->  | AL9: =IF(AK9=0,0,(AK9*((LOG(AK9))/LOG(2)))) ->  | AN9: =N9 -> 21 | AO9: =COUNTIF(L38:L44,AN9) -> 0 | AP9: =AO9/(AQ4-AO8) ->  | AQ9: =IF(AP9=0,0,(AP9*((LOG(AP9))/LOG(2)))) ->  | AS9: =N9 -> 21 | AT9: =COUNTIF(L45:L52,AS9) -> 0 | AU9: =AT9/(AV4-AT8) ->  | AV9: =IF(AU9=0,0,(AU9*((LOG(AU9))/LOG(2)))) -> 
A10: 11 | B10: 310 | C10: 21 | D10: 317 | K10: 0 | L10: 12 | N10: 22 | O10: =COUNTIF($L$7:$L$500,N10) -> 4 | P10: =O10/$Q$4 -> 0.08695652174 | Q10: =IF(P10=0,0,(P10*((LOG(P10))/LOG(2)))) -> -0.3063966918 | T10: =N10 -> 22 | U10: =COUNTIF(L7:L14,T10) -> 2 | V10: =U10/(W4-U8) -> 0.6666666667 | W10: =IF(V10=0,0,(V10*((LOG(V10))/LOG(2)))) -> -0.3899750005 | Y10: =N10 -> 22 | Z10: =COUNTIF(L15:L21,Y10) -> 1 | AA10: =Z10/(AB4-Z8) -> 1 | AB10: =IF(AA10=0,0,(AA10*((LOG(AA10))/LOG(2)))) -> 0 | AD10: =N10 -> 22 | AE10: =COUNTIF(L22:L29,AD10) -> 1 | AF10: =AE10/(AG4-AE8) -> 0.5 | AG10: =IF(AF10=0,0,(AF10*((LOG(AF10))/LOG(2)))) -> -0.5 | AI10: =N10 -> 22 | AJ10: =COUNTIF(L30:L37,AI10) -> 0 | AK10: =AJ10/(AL4-AJ8) ->  | AL10: =IF(AK10=0,0,(AK10*((LOG(AK10))/LOG(2)))) ->  | AN10: =N10 -> 22 | AO10: =COUNTIF(L38:L44,AN10) -> 0 | AP10: =AO10/(AQ4-AO8) ->  | AQ10: =IF(AP10=0,0,(AP10*((LOG(AP10))/LOG(2)))) ->  | AS10: =N10 -> 22 | AT10: =COUNTIF(L45:L52,AS10) -> 0 | AU10: =AT10/(AV4-AT8) ->  | AV10: =IF(AU10=0,0,(AU10*((LOG(AU10))/LOG(2)))) -> 
A11: 22 | B11: 402 | C11: 23 | D11: 420 | K11: 0 | L11: 22 | T11: =N11 -> 0 | U11: =COUNTIF(L7:L14,T11) -> 0 | V11: =U11/(W4-U8) -> 0 | W11: =IF(V11=0,0,(V11*((LOG(V11))/LOG(2)))) -> 0 | Y11: =N11 -> 0 | Z11: =COUNTIF(L15:L21,Y11) -> 0 | AA11: =Z11/(AB4-Z8) -> 0 | AB11: =IF(AA11=0,0,(AA11*((LOG(AA11))/LOG(2)))) -> 0 | AD11: =N11 -> 0 | AE11: =COUNTIF(L22:L29,AD11) -> 0 | AF11: =AE11/(AG4-AE8) -> 0 | AG11: =IF(AF11=0,0,(AF11*((LOG(AF11))/LOG(2)))) -> 0 | AI11: =N11 -> 0 | AJ11: =COUNTIF(L30:L37,AI11) -> 0 | AK11: =AJ11/(AL4-AJ8) ->  | AL11: =IF(AK11=0,0,(AK11*((LOG(AK11))/LOG(2)))) ->  | AN11: =N11 -> 0 | AO11: =COUNTIF(L38:L44,AN11) -> 0 | AP11: =AO11/(AQ4-AO8) ->  | AQ11: =IF(AP11=0,0,(AP11*((LOG(AP11))/LOG(2)))) ->  | AS11: =N11 -> 0 | AT11: =COUNTIF(L45:L52,AS11) -> 0 | AU11: =AT11/(AV4-AT8) ->  | AV11: =IF(AU11=0,0,(AU11*((LOG(AU11))/LOG(2)))) -> 
A12: 11 | B12: 517 | C12: 21 | D12: 524 | K12: 0 | L12: 12 | T12: =N12 -> 0 | U12: =COUNTIF(L7:L14,T12) -> 0 | V12: =U12/(W4-U8) -> 0 | W12: =IF(V12=0,0,(V12*((LOG(V12))/LOG(2)))) -> 0 | Y12: =N12 -> 0 | Z12: =COUNTIF(L15:L21,Y12) -> 0 | AA12: =Z12/(AB4-Z8) -> 0 | AB12: =IF(AA12=0,0,(AA12*((LOG(AA12))/LOG(2)))) -> 0 | AD12: =N12 -> 0 | AE12: =COUNTIF(L22:L29,AD12) -> 0 | AF12: =AE12/(AG4-AE8) -> 0 | AG12: =IF(AF12=0,0,(AF12*((LOG(AF12))/LOG(2)))) -> 0 | AI12: =N12 -> 0 | AJ12: =COUNTIF(L30:L37,AI12) -> 0 | AK12: =AJ12/(AL4-AJ8) ->  | AL12: =IF(AK12=0,0,(AK12*((LOG(AK12))/LOG(2)))) ->  | AN12: =N12 -> 0 | AO12: =COUNTIF(L38:L44,AN12) -> 0 | AP12: =AO12/(AQ4-AO8) ->  | AQ12: =IF(AP12=0,0,(AP12*((LOG(AP12))/LOG(2)))) ->  | AS12: =N12 -> 0 | AT12: =COUNTIF(L45:L52,AS12) -> 0 | AU12: =AT12/(AV4-AT8) ->  | AV12: =IF(AU12=0,0,(AU12*((LOG(AU12))/LOG(2)))) -> 
A13: 11 | B13: 611 | C13: 12 | D13: 626 | K13: 0 | L13: 11 | T13: =N13 -> 0 | U13: =COUNTIF(L7:L14,T13) -> 0 | V13: =U13/(W4-U8) -> 0 | W13: =IF(V13=0,0,(V13*((LOG(V13))/LOG(2)))) -> 0 | Y13: =N13 -> 0 | Z13: =COUNTIF(L15:L21,Y13) -> 0 | AA13: =Z13/(AB4-Z8) -> 0 | AB13: =IF(AA13=0,0,(AA13*((LOG(AA13))/LOG(2)))) -> 0 | AD13: =N13 -> 0 | AE13: =COUNTIF(L22:L29,AD13) -> 0 | AF13: =AE13/(AG4-AE8) -> 0 | AG13: =IF(AF13=0,0,(AF13*((LOG(AF13))/LOG(2)))) -> 0 | AI13: =N13 -> 0 | AJ13: =COUNTIF(L30:L37,AI13) -> 0 | AK13: =AJ13/(AL4-AJ8) ->  | AL13: =IF(AK13=0,0,(AK13*((LOG(AK13))/LOG(2)))) ->  | AN13: =N13 -> 0 | AO13: =COUNTIF(L38:L44,AN13) -> 0 | AP13: =AO13/(AQ4-AO8) ->  | AQ13: =IF(AP13=0,0,(AP13*((LOG(AP13))/LOG(2)))) ->  | AS13: =N13 -> 0 | AT13: =COUNTIF(L45:L52,AS13) -> 0 | AU13: =AT13/(AV4-AT8) ->  | AV13: =IF(AU13=0,0,(AU13*((LOG(AU13))/LOG(2)))) -> 
A14: 11 | B14: 721 | C14: 21 | D14: 726 | K14: 0 | L14: 12 | T14: =N14 -> 0 | U14: =COUNTIF(L7:L14,T14) -> 0 | V14: =U14/(W4-U8) -> 0 | W14: =IF(V14=0,0,(V14*((LOG(V14))/LOG(2)))) -> 0 | Y14: =N14 -> 0 | Z14: =COUNTIF(L15:L21,Y14) -> 0 | AA14: =Z14/(AB4-Z8) -> 0 | AB14: =IF(AA14=0,0,(AA14*((LOG(AA14))/LOG(2)))) -> 0 | AD14: =N14 -> 0 | AE14: =COUNTIF(L22:L29,AD14) -> 0 | AF14: =AE14/(AG4-AE8) -> 0 | AG14: =IF(AF14=0,0,(AF14*((LOG(AF14))/LOG(2)))) -> 0 | AI14: =N14 -> 0 | AJ14: =COUNTIF(L30:L37,AI14) -> 0 | AK14: =AJ14/(AL4-AJ8) ->  | AL14: =IF(AK14=0,0,(AK14*((LOG(AK14))/LOG(2)))) ->  | AN14: =N14 -> 0 | AO14: =COUNTIF(L38:L44,AN14) -> 0 | AP14: =AO14/(AQ4-AO8) ->  | AQ14: =IF(AP14=0,0,(AP14*((LOG(AP14))/LOG(2)))) ->  | AS14: =N14 -> 0 | AT14: =COUNTIF(L45:L52,AS14) -> 0 | AU14: =AT14/(AV4-AT8) ->  | AV14: =IF(AU14=0,0,(AU14*((LOG(AU14))/LOG(2)))) -> 
A15: 11 | B15: 816 | C15: 21 | D15: 822 | K15: 0 | L15: 12 | P15: =SUM(P7:P14) -> 1 | Q15: =-SUM(Q7:Q14) -> 0.7218853518 | V15: =SUM(V7:V14) -> 1 | W15: =-SUM(W7:W14) -> 0.9182958341 | AA15: =SUM(AA7:AA14) -> 1 | AB15: =-SUM(AB7:AB14) -> 0 | AF15: =SUM(AF7:AF14) -> 1 | AG15: =-SUM(AG7:AG14) -> 1 | AK15: =SUM(AK7:AK14) ->  | AL15: =-SUM(AL7:AL14) ->  | AP15: =SUM(AP7:AP14) ->  | AQ15: =-SUM(AQ7:AQ14) ->  | AU15: =SUM(AU7:AU14) ->  | AV15: =-SUM(AV7:AV14) -> 
A16: 11 | B16: 910 | C16: 21 | D16: 915 | K16: 0 | L16: 12 | P16: U= | Q16: =Q15/(LOG(Q4)/LOG(2)) -> 0.1306919987 | V16: U1= | W16: =W15/(LOG(W4)/LOG(2)) -> 0.3060986114 | AA16: U2= | AB16: =AB15/(LOG(AB4)/LOG(2)) -> 0 | AF16: U3= | AG16: =AG15/(LOG(AG4)/LOG(2)) -> 0.3333333333 | AK16: U4= | AL16: =AL15/(LOG(AL4)/LOG(2)) ->  | AP16: U5= | AQ16: =AQ15/(LOG(AQ4)/LOG(2)) ->  | AU16: U6= | AV16: =AV15/(LOG(AV4)/LOG(2)) -> 
A17: 22 | B17: 1002 | C17: 23 | D17: 1013 | K17: 0 | L17: 22
A18: 11 | B18: 1110 | C18: 21 | D18: 1119 | K18: 0 | L18: 12
A19: 11 | B19: 1208 | C19: 21 | D19: 1216 | K19: 0 | L19: 12 | N19: Total Target Seq
A20: 11 | B20: 1302 | C20: 21 | D20: 1309 | K20: 0 | L20: 12 | N20: =COUNTIF(L7:L52,G3) -> 40 | P20: 8 | Q20: 7 | R20: 8 | S20: 8 | T20: 7 | U20: 8
A21: 11 | B21: 1395 | C21: 21 | D21: 1402 | K21: 0 | L21: 12 | P21: % of reinforcement given in 6 equal intervals based on number of trials
A22: 11 | B22: 1489 | C22: 21 | D22: 1496 | K22: 0 | L22: 12 | P22: %_1 | Q22: %_2 | R22: %_3 | S22: %_4 | T22: %_5 | U22: %_6
A23: 11 | B23: 1584 | C23: 21 | D23: 1588 | K23: 0 | L23: 12 | O23: target sequence | P23: =$G$3 -> 12 | Q23: =$G$3 -> 12 | R23: =$G$3 -> 12 | S23: =$G$3 -> 12 | T23: =$G$3 -> 12 | U23: =$G$3 -> 12
A24: 11 | B24: 1675 | C24: 21 | D24: 1682 | K24: 0 | L24: 12 | O24: total reinforcement | P24: =U8 -> 5 | Q24: =Z8 -> 6 | R24: =AE8 -> 6 | S24: =AJ8 -> 8 | T24: =AO8 -> 7 | U24: =AT8 -> 8
A25: 11 | B25: 1769 | C25: 21 | D25: 1775 | K25: 0 | L25: 12 | O25: % target
A26: 22 | B26: 1871 | C26: 14 | D26: 1890 | K26: 0 | L26: 21 | O26: CCRF
A27: 11 | B27: 1986 | C27: 21 | D27: 1993 | K27: 0 | L27: 12 | O27: % CCRf
A28: 11 | B28: 2081 | C28: 21 | D28: 2088 | K28: 0 | L28: 12 | O28: average response rate | P28: =D14/P20 -> 90.75 | Q28: =(D21-D14)/Q20 -> 96.57142857 | R28: =(D29-D21)/R20 -> 110.625 | S28: =(D37-D29)/S20 -> 95.5 | T28: =(D44-D37)/T20 -> 94.28571429 | U28: =(D52-D44)/U20 -> 93.625
A29: 22 | B29: 2181 | C29: 23 | D29: 2287 | K29: 0 | L29: 22
A30: 11 | B30: 2385 | C30: 21 | D30: 2391 | K30: 0 | L30: 12
A31: 11 | B31: 2478 | C31: 21 | D31: 2485 | K31: 0 | L31: 12
A32: 11 | B32: 2573 | C32: 21 | D32: 2580 | K32: 0 | L32: 12
A33: 11 | B33: 2669 | C33: 21 | D33: 2676 | K33: 0 | L33: 12
A34: 11 | B34: 2764 | C34: 21 | D34: 2770 | K34: 0 | L34: 12
A35: 11 | B35: 2858 | C35: 21 | D35: 2865 | K35: 0 | L35: 12
A36: 11 | B36: 2955 | C36: 21 | D36: 2962 | K36: 0 | L36: 12
A37: 11 | B37: 3046 | C37: 21 | D37: 3051 | K37: 0 | L37: 12
A38: 11 | B38: 3137 | C38: 21 | D38: 3144 | K38: 0 | L38: 12
A39: 11 | B39: 3231 | C39: 21 | D39: 3237 | K39: 0 | L39: 12
A40: 11 | B40: 3327 | C40: 21 | D40: 3334 | K40: 0 | L40: 12
A41: 11 | B41: 3421 | C41: 21 | D41: 3429 | K41: 0 | L41: 12
A42: 11 | B42: 3514 | C42: 21 | D42: 3522 | K42: 0 | L42: 12
A43: 11 | B43: 3612 | C43: 21 | D43: 3619 | K43: 0 | L43: 12
A44: 11 | B44: 3705 | C44: 21 | D44: 3711 | K44: 0 | L44: 12
A45: 11 | B45: 3804 | C45: 21 | D45: 3811 | K45: 0 | L45: 12
A46: 11 | B46: 3897 | C46: 21 | D46: 3904 | K46: 0 | L46: 12
A47: 11 | B47: 3994 | C47: 21 | D47: 3998 | K47: 0 | L47: 12
A48: 11 | B48: 4085 | C48: 21 | D48: 4093 | K48: 0 | L48: 12
A49: 11 | B49: 4179 | C49: 21 | D49: 4184 | K49: 0 | L49: 12
A50: 11 | B50: 4268 | C50: 21 | D50: 4275 | K50: 0 | L50: 12
A51: 11 | B51: 4362 | C51: 21 | D51: 4367 | K51: 0 | L51: 12
A52: 11 | B52: 4453 | C52: 21 | D52: 4460 | K52: 1 | L52: 12

Sheet !L822950.052
A1: Report for:!L822950.052
A2: Date: | B2: <date>
A3: Hen: | B3: <hen> | F3: Correct Sequence | G3: =Start!J2 -> 12 | P3: Total Sequences in Data | Q3: =4994-COUNTBLANK(L7:L5000) -> 44 | V3: Total Sequences in Block Data | W3: =COUNTA(L7:L13) -> 7 | AA3: Total Sequences in Block Data | AB3: =COUNTA(L14:L21) -> 8 | AF3: Total Sequences in Block Data | AG3: =COUNTA(L22:L28) -> 7 | AK3: Total Sequences in Block Data | AL3: =COUNTA(L29:L35) -> 7 | AP3: Total Sequences in Block Data | AQ3: =COUNTA(L36:L43) -> 8 | AU3: Total Sequences in Block Data | AV3: =COUNTA(L44:L50) -> 7
P4: Total Sequences in Summary | Q4: =SUM(O7:O14) -> 44 | V4: Total Sequences in Block Summary | W4: =SUM(U7:U14) -> 7 | AA4: Total Sequences in Block Summary | AB4: =SUM(Z7:Z14) -> 8 | AF4: Total Sequences in Block Summary | AG4: =SUM(AE7:AE14) -> 7 | AK4: Total Sequences in Block Summary | AL4: =SUM(AJ7:AJ14) -> 7 | AP4: Total Sequences in Block Summary | AQ4: =SUM(AO7:AO14) -> 8 | AU4: Total Sequences in Block Summary | AV4: =SUM(AT7:AT14) -> 7
T5: Block 1 | Y5: Block 2 | AD5: Block 3 | AI5: Block 4 | AN5: Block 5 | AS5: Block 6
A6: Sequence Component 1 | B6: Time 1 | C6: Sequence Component 2 | D6: Time 2 | E6: Sequence Component 3 | F6: Time 3 | G6: Sequence Component 4 | H6: Time 4 | I6: Sequence Component 5 | J6: Time 5 | K6: Correct? 0=No 1=Yes | L6: Sequence | N6: Frequency | P6: Relative Frequency | Q6: Variability | T6: Frequency | V6: Relative Frequency | W6: Variability | Y6: Frequency | AA6: Relative Frequency | AB6: Variability | AD6: Frequency | AF6: Relative Frequency | AG6: Variability | AI6: Frequency | AK6: Relative Frequency | AL6: Variability | AN6: Frequency | AP6: Relative Frequency | AQ6: Variability | AS6: Frequency | AU6: Relative Frequency | AV6: Variability
A7: 11 | B7: 10 | C7: 21 | D7: 16 | K7: 0 | L7: 12 | N7: 11 | O7: =COUNTIF($L$7:$L$500,N7) -> 0 | P7: =O7/$Q$4 -> 0 | Q7: =IF(P7=0,0,(P7*((LOG(P7))/LOG(2)))) -> 0 | T7: =N7 -> 11 | U7: =COUNTIF(L7:L13,T7) -> 0 | V7: =U7/(W4-U8) -> 0 | W7: =IF(V7=0,0,(V7*((LOG(V7))/LOG(2)))) -> 0 | Y7: =N7 -> 11 | Z7: =COUNTIF(L14:L21,Y7) -> 0 | AA7: =Z7/(AB4-Z8) -> 0 | AB7: =IF(AA7=0,0,(AA7*((LOG(AA7))/LOG(2)))) -> 0 | AD7: =N7 -> 11 | AE7: =COUNTIF(L22:L28,AD7) -> 0 | AF7: =AE7/(AG4-AE8) ->  | AG7: =IF(AF7=0,0,(AF7*((LOG(AF7))/LOG(2)))) ->  | AI7: =N7 -> 11 | AJ7: =COUNTIF(L29:L35,AI7) -> 0 | AK7: =AJ7/(AL4-AJ8) -> 0 | AL7: =IF(AK7=0,0,(AK7*((LOG(AK7))/LOG(2)))) -> 0 | AN7: =N7 -> 11 | AO7: =COUNTIF(L36:L43,AN7) -> 0 | AP7: =AO7/(AQ4-AO8) ->  | AQ7: =IF(AP7=0,0,(AP7*((LOG(AP7))/LOG(2)))) ->  | AS7: =N7 -> 11 | AT7: =COUNTIF(L44:L50,AS7) -> 0 | AU7: =AT7/(AV4-AT8) -> 0 | AV7: =IF(AU7=0,0,(AU7*((LOG(AU7))/LOG(2)))) -> 0
A8: 11 | B8: 101 | C8: 21 | D8: 108 | K8: 0 | L8: 12 | N8: 12 | O8: =COUNTIF($L$7:$L$500,N8) -> 40 | P8: =O8/$Q$4 -> 0.9090909091 | Q8: =IF(P8=0,0,(P8*((LOG(P8))/LOG(2)))) -> -0.1250032034 | T8: =N8 -> 12 | U8: =COUNTIF(L7:L13,T8) -> 6 | Y8: =N8 -> 12 | Z8: =COUNTIF(L14:L21,Y8) -> 7 | AD8: =N8 -> 12 | AE8: =COUNTIF(L22:L28,AD8) -> 7 | AI8: =N8 -> 12 | AJ8: =COUNTIF(L29:L35,AI8) -> 6 | AN8: =N8 -> 12 | AO8: =COUNTIF(L36:L43,AN8) -> 8 | AS8: =N8 -> 12 | AT8: =COUNTIF(L44:L50,AS8) -> 6
A9: 11 | B9: 196 | C9: 21 | D9: 202 | K9: 0 | L9: 12 | N9: 21 | O9: =COUNTIF($L$7:$L$500,N9) -> 2 | P9: =O9/$Q$4 -> 0.04545454545 | Q9: =IF(P9=0,0,(P9*((LOG(P9))/LOG(2)))) -> -0.2027014372 | T9: =N9 -> 21 | U9: =COUNTIF(L7:L13,T9) -> 0 | V9: =U9/(W4-U8) -> 0 | W9: =IF(V9=0,0,(V9*((LOG(V9))/LOG(2)))) -> 0 | Y9: =N9 -> 21 | Z9: =COUNTIF(L14:L21,Y9) -> 1 | AA9: =Z9/(AB4-Z8) -> 1 | AB9: =IF(AA9=0,0,(AA9*((LOG(AA9))/LOG(2)))) -> 0 | AD9: =N9 -> 21 | AE9: =COUNTIF(L22:L28,AD9) -> 0 | AF9: =AE9/(AG4-AE8) ->  | AG9: =IF(AF9=0,0,(AF9*((LOG(AF9))/LOG(2)))) ->  | AI9: =N9 -> 21 | AJ9: =COUNTIF(L29:L35,AI9) -> 0 | AK9: =AJ9/(AL4-AJ8) -> 0 | AL9: =IF(AK9=0,0,(AK9*((LOG(AK9))/LOG(2)))) -> 0 | AN9: =N9 -> 21 | AO9: =COUNTIF(L36:L43,AN9) -> 0 | AP9: =AO9/(AQ4-AO8) ->  | AQ9: =IF(AP9=0,0,(AP9*((LOG(AP9))/LOG(2)))) ->  | AS9: =N9 -> 21 | AT9: =COUNTIF(L44:L50,AS9) -> 1 | AU9: =AT9/(AV4-AT8) -> 1 | AV9: =IF(AU9=0,0,(AU9*((LOG(AU9))/LOG(2)))) -> 0
A10: 11 | B10: 288 | C10: 21 | D10: 294 | K10: 0 | L10: 12 | N10: 22 | O10: =COUNTIF($L$7:$L$500,N10) -> 2 | P10: =O10/$Q$4 -> 0.04545454545 | Q10: =IF(P10=0,0,(P10*((LOG(P10))/LOG(2)))) -> -0.2027014372 | T10: =N10 -> 22 | U10: =COUNTIF(L7:L13,T10) -> 1 | V10: =U10/(W4-U8) -> 1 | W10: =IF(V10=0,0,(V10*((LOG(V10))/LOG(2)))) -> 0 | Y10: =N10 -> 22 | Z10: =COUNTIF(L14:L21,Y10) -> 0 | AA10: =Z10/(AB4-Z8) -> 0 | AB10: =IF(AA10=0,0,(AA10*((LOG(AA10))/LOG(2)))) -> 0 | AD10: =N10 -> 22 | AE10: =COUNTIF(L22:L28,AD10) -> 0 | AF10: =AE10/(AG4-AE8) ->  | AG10: =IF(AF10=0,0,(AF10*((LOG(AF10))/LOG(2)))) ->  | AI10: =N10 -> 22 | AJ10: =COUNTIF(L29:L35,AI10) -> 1 | AK10: =AJ10/(AL4-AJ8) -> 1 | AL10: =IF(AK10=0,0,(AK10*((LOG(AK10))/LOG(2)))) -> 0 | AN10: =N10 -> 22 | AO10: =COUNTIF(L36:L43,AN10) -> 0 | AP10: =AO10/(AQ4-AO8) ->  | AQ10: =IF(AP10=0,0,(AP10*((LOG(AP10))/LOG(2)))) ->  | AS10: =N10 -> 22 | AT10: =COUNTIF(L44:L50,AS10) -> 0 | AU10: =AT10/(AV4-AT8) -> 0 | AV10: =IF(AU10=0,0,(AU10*((LOG(AU10))/LOG(2)))) -> 0
A11: 22 | B11: 388 | C11: 23 | D11: 410 | K11: 0 | L11: 22 | T11: =N11 -> 0 | U11: =COUNTIF(L7:L13,T11) -> 0 | V11: =U11/(W4-U8) -> 0 | W11: =IF(V11=0,0,(V11*((LOG(V11))/LOG(2)))) -> 0 | Y11: =N11 -> 0 | Z11: =COUNTIF(L14:L21,Y11) -> 0 | AA11: =Z11/(AB4-Z8) -> 0 | AB11: =IF(AA11=0,0,(AA11*((LOG(AA11))/LOG(2)))) -> 0 | AD11: =N11 -> 0 | AE11: =COUNTIF(L22:L28,AD11) -> 0 | AF11: =AE11/(AG4-AE8) ->  | AG11: =IF(AF11=0,0,(AF11*((LOG(AF11))/LOG(2)))) ->  | AI11: =N11 -> 0 | AJ11: =COUNTIF(L29:L35,AI11) -> 0 | AK11: =AJ11/(AL4-AJ8) -> 0 | AL11: =IF(AK11=0,0,(AK11*((LOG(AK11))/LOG(2)))) -> 0 | AN11: =N11 -> 0 | AO11: =COUNTIF(L36:L43,AN11) -> 0 | AP11: =AO11/(AQ4-AO8) ->  | AQ11: =IF(AP11=0,0,(AP11*((LOG(AP11))/LOG(2)))) ->  | AS11: =N11 -> 0 | AT11: =COUNTIF(L44:L50,AS11) -> 0 | AU11: =AT11/(AV4-AT8) -> 0 | AV11: =IF(AU11=0,0,(AU11*((LOG(AU11))/LOG(2)))) -> 0
A12: 11 | B12: 509 | C12: 21 | D12: 515 | K12: 0 | L12: 12 | T12: =N12 -> 0 | U12: =COUNTIF(L7:L13,T12) -> 0 | V12: =U12/(W4-U8) -> 0 | W12: =IF(V12=0,0,(V12*((LOG(V12))/LOG(2)))) -> 0 | Y12: =N12 -> 0 | Z12: =COUNTIF(L14:L21,Y12) -> 0 | AA12: =Z12/(AB4-Z8) -> 0 | AB12: =IF(AA12=0,0,(AA12*((LOG(AA12))/LOG(2)))) -> 0 | AD12: =N12 -> 0 | AE12: =COUNTIF(L22:L28,AD12) -> 0 | AF12: =AE12/(AG4-AE8) ->  | AG12: =IF(AF12=0,0,(AF12*((LOG(AF12))/LOG(2)))) ->  | AI12: =N12 -> 0 | AJ12: =COUNTIF(L29:L35,AI12) -> 0 | AK12: =AJ12/(AL4-AJ8) -> 0 | AL12: =IF(AK12=0,0,(AK12*((LOG(AK12))/LOG(2)))) -> 0 | AN12: =N12 -> 0 | AO12: =COUNTIF(L36:L43,AN12) -> 0 | AP12: =AO12/(AQ4-AO8) ->  | AQ12: =IF(AP12=0,0,(AP12*((LOG(AP12))/LOG(2)))) ->  | AS12: =N12 -> 0 | AT12: =COUNTIF(L44:L50,AS12) -> 0 | AU12: =AT12/(AV4-AT8) -> 0 | AV12: =IF(AU12=0,0,(AU12*((LOG(AU12))/LOG(2)))) -> 0
A13: 11 | B13: 601 | C13: 21 | D13: 608 | K13: 0 | L13: 12 | T13: =N13 -> 0 | U13: =COUNTIF(L7:L13,T13) -> 0 | V13: =U13/(W4-U8) -> 0 | W13: =IF(V13=0,0,(V13*((LOG(V13))/LOG(2)))) -> 0 | Y13: =N13 -> 0 | Z13: =COUNTIF(L14:L21,Y13) -> 0 | AA13: =Z13/(AB4-Z8) -> 0 | AB13: =IF(AA13=0,0,(AA13*((LOG(AA13))/LOG(2)))) -> 0 | AD13: =N13 -> 0 | AE13: =COUNTIF(L22:L28,AD13) -> 0 | AF13: =AE13/(AG4-AE8) ->  | AG13: =IF(AF13=0,0,(AF13*((LOG(AF13))/LOG(2)))) ->  | AI13: =N13 -> 0 | AJ13: =COUNTIF(L29:L35,AI13) -> 0 | AK13: =AJ13/(AL4-AJ8) -> 0 | AL13: =IF(AK13=0,0,(AK13*((LOG(AK13))/LOG(2)))) -> 0 | AN13: =N13 -> 0 | AO13: =COUNTIF(L36:L43,AN13) -> 0 | AP13: =AO13/(AQ4-AO8) ->  | AQ13: =IF(AP13=0,0,(AP13*((LOG(AP13))/LOG(2)))) ->  | AS13: =N13 -> 0 | AT13: =COUNTIF(L44:L50,AS13) -> 0 | AU13: =AT13/(AV4-AT8) -> 0 | AV13: =IF(AU13=0,0,(AU13*((LOG(AU13))/LOG(2)))) -> 0
A14: 22 | B14: 696 | C14: 14 | D14: 707 | K14: 0 | L14: 21 | T14: =N14 -> 0 | U14: =COUNTIF(L7:L13,T14) -> 0 | V14: =U14/(W4-U8) -> 0 | W14: =IF(V14=0,0,(V14*((LOG(V14))/LOG(2)))) -> 0 | Y14: =N14 -> 0 | Z14: =COUNTIF(L14:L21,Y14) -> 0 | AA14: =Z14/(AB4-Z8) -> 0 | AB14: =IF(AA14=0,0,(AA14*((LOG(AA14))/LOG(2)))) -> 0 | AD14: =N14 -> 0 | AE14: =COUNTIF(L22:L28,AD14) -> 0 | AF14: =AE14/(AG4-AE8) ->  | AG14: =IF(AF14=0,0,(AF14*((LOG(AF14))/LOG(2)))) ->  | AI14: =N14 -> 0 | AJ14: =COUNTIF(L29:L35,AI14) -> 0 | AK14: =AJ14/(AL4-AJ8) -> 0 | AL14: =IF(AK14=0,0,(AK14*((LOG(AK14))/LOG(2)))) -> 0 | AN14: =N14 -> 0 | AO14: =COUNTIF(L36:L43,AN14) -> 0 | AP14: =AO14/(AQ4-AO8) ->  | AQ14: =IF(AP14=0,0,(AP14*((LOG(AP14))/LOG(2)))) ->  | AS14: =N14 -> 0 | AT14: =COUNTIF(L44:L50,AS14) -> 0 | AU14: =AT14/(AV4-AT8) -> 0 | AV14: =IF(AU14=0,0,(AU14*((LOG(AU14))/LOG(2)))) -> 0
A15: 11 | B15: 807 | C15: 21 | D15: 813 | K15: 0 | L15: 12 | P15: =SUM(P7:P14) -> 1 | Q15: =-SUM(Q7:Q14) -> 0.5304060778 | V15: =SUM(V7:V14) -> 1 | W15: =-SUM(W7:W14) -> 0 | AA15: =SUM(AA7:AA14) -> 1 | AB15: =-SUM(AB7:AB14) -> 0 | AF15: =SUM(AF7:AF14) ->  | AG15: =-SUM(AG7:AG14) ->  | AK15: =SUM(AK7:AK14) -> 1 | AL15: =-SUM(AL7:AL14) -> 0 | AP15: =SUM(AP7:AP14) ->  | AQ15: =-SUM(AQ7:AQ14) ->  | AU15: =SUM(AU7:AU14) -> 1 | AV15: =-SUM(AV7:AV14) -> 0
A16: 11 | B16: 901 | C16: 21 | D16: 908 | K16: 0 | L16: 12 | P16: U= | Q16: =Q15/(LOG(Q4)/LOG(2)) -> 0.09715408396 | V16: U1= | W16: =W15/(LOG(W4)/LOG(2)) -> 0 | AA16: U2= | AB16: =AB15/(LOG(AB4)/LOG(2)) -> 0 | AF16: U3= | AG16: =AG15/(LOG(AG4)/LOG(2)) ->  | AK16: U4= | AL16: =AL15/(LOG(AL4)/LOG(2)) -> 0 | AP16: U5= | AQ16: =AQ15/(LOG(AQ4)/LOG(2)) ->  | AU16: U6= | AV16: =AV15/(LOG(AV4)/LOG(2)) -> 0
A17: 11 | B17: 994 | C17: 21 | D17: 1001 | K17: 0 | L17: 12
A18: 11 | B18: 1085 | C18: 21 | D18: 1092 | K18: 0 | L18: 12
A19: 11 | B19: 1177 | C19: 21 | D19: 1184 | K19: 0 | L19: 12 | N19: Total Target Seq
A20: 11 | B20: 1271 | C20: 21 | D20: 1277 | K20: 0 | L20: 12 | N20: =COUNTIF(L7:L50,G3) -> 40 | P20: 7 | Q20: 8 | R20: 7 | S20: 7 | T20: 8 | U20: 7
A21: 11 | B21: 1362 | C21: 21 | D21: 1367 | K21: 0 | L21: 12 | P21: % of reinforcement given in 6 equal intervals based on number of trials
A22: 11 | B22: 1454 | C22: 21 | D22: 1460 | K22: 0 | L22: 12 | P22: %_1 | Q22: %_2 | R22: %_3 | S22: %_4 | T22: %_5 | U22: %_6
A23: 11 | B23: 1547 | C23: 21 | D23: 1554 | K23: 0 | L23: 12 | O23: target sequence | P23: =$G$3 -> 12 | Q23: =$G$3 -> 12 | R23: =$G$3 -> 12 | S23: =$G$3 -> 12 | T23: =$G$3 -> 12 | U23: =$G$3 -> 12
A24: 11 | B24: 1640 | C24: 21 | D24: 1647 | K24: 0 | L24: 12 | O24: total reinforcement | P24: =U8 -> 6 | Q24: =Z8 -> 7 | R24: =AE8 -> 7 | S24: =AJ8 -> 6 | T24: =AO8 -> 8 | U24: =AT8 -> 6
A25: 11 | B25: 1734 | C25: 21 | D25: 1741 | K25: 0 | L25: 12 | O25: % target
A26: 11 | B26: 1831 | C26: 21 | D26: 1838 | K26: 0 | L26: 12 | O26: CCRF
A27: 11 | B27: 1923 | C27: 21 | D27: 1928 | K27: 0 | L27: 12 | O27: % CCRf
A28: 11 | B28: 2015 | C28: 21 | D28: 2022 | K28: 0 | L28: 12 | O28: average response rate | P28: =D13/P20 -> 86.85714286 | Q28: =(D21-D13)/Q20 -> 94.875 | R28: =(D28-D21)/R20 -> 93.57142857 | S28: =(D35-D28)/S20 -> 96.42857143 | T28: =(D43-D35)/T20 -> 91.75 | U28: =(D50-D43)/U20 -> 96.57142857
A29: 11 | B29: 2106 | C29: 21 | D29: 2114 | K29: 0 | L29: 12
A30: 11 | B30: 2200 | C30: 21 | D30: 2207 | K30: 0 | L30: 12
A31: 11 | B31: 2295 | C31: 21 | D31: 2301 | K31: 0 | L31: 12
A32: 22 | B32: 2396 | C32: 23 | D32: 2407 | K32: 0 | L32: 22
A33: 11 | B33: 2505 | C33: 21 | D33: 2512 | K33: 0 | L33: 12
A34: 11 | B34: 2599 | C34: 21 | D34: 2603 | K34: 0 | L34: 12
A35: 11 | B35: 2690 | C35: 21 | D35: 2697 | K35: 0 | L35: 12
A36: 11 | B36: 2783 | C36: 21 | D36: 2790 | K36: 0 | L36: 12
A37: 11 | B37: 2875 | C37: 21 | D37: 2882 | K37: 0 | L37: 12
A38: 11 | B38: 2967 | C38: 21 | D38: 2974 | K38: 0 | L38: 12
A39: 11 | B39: 3061 | C39: 21 | D39: 3066 | K39: 0 | L39: 12
A40: 11 | B40: 3149 | C40: 21 | D40: 3156 | K40: 0 | L40: 12
A41: 11 | B41: 3242 | C41: 21 | D41: 3247 | K41: 0 | L41: 12
A42: 11 | B42: 3335 | C42: 21 | D42: 3343 | K42: 0 | L42: 12
A43: 11 | B43: 3426 | C43: 21 | D43: 3431 | K43: 0 | L43: 12
A44: 11 | B44: 3522 | C44: 21 | D44: 3529 | K44: 0 | L44: 12
A45: 11 | B45: 3616 | C45: 21 | D45: 3623 | K45: 0 | L45: 12
A46: 11 | B46: 3709 | C46: 21 | D46: 3716 | K46: 0 | L46: 12
A47: 22 | B47: 3804 | C47: 14 | D47: 3815 | K47: 0 | L47: 21
A48: 11 | B48: 3911 | C48: 21 | D48: 3918 | K48: 0 | L48: 12
A49: 11 | B49: 4007 | C49: 21 | D49: 4015 | K49: 0 | L49: 12
A50: 11 | B50: 4101 | C50: 21 | D50: 4107 | K50: 1 | L50: 12

Sheet !L823910.052
A1: Report for:!L823910.052
A2: Date: | B2: <date>
A3: Hen: | B3: <hen> | F3: Correct Sequence | G3: =Start!J2 -> 12 | P3: Total Sequences in Data | Q3: =4994-COUNTBLANK(L7:L5000) -> 40 | V3: Total Sequences in Block Data | W3: =COUNTA(L7:L13) -> 7 | AA3: Total Sequences in Block Data | AB3: =COUNTA(L14:L19) -> 6 | AF3: Total Sequences in Block Data | AG3: =COUNTA(L20:L26) -> 7 | AK3: Total Sequences in Block Data | AL3: =COUNTA(L27:L33) -> 7 | AP3: Total Sequences in Block Data | AQ3: =COUNTA(L34:L39) -> 6 | AU3: Total Sequences in Block Data | AV3: =COUNTA(L40:L46) -> 7
P4: Total Sequences in Summary | Q4: =SUM(O7:O14) -> 40 | V4: Total Sequences in Block Summary | W4: =SUM(U7:U14) -> 7 | AA4: Total Sequences in Block Summary | AB4: =SUM(Z7:Z14) -> 6 | AF4: Total Sequences in Block Summary | AG4: =SUM(AE7:AE14) -> 7 | AK4: Total Sequences in Block Summary | AL4: =SUM(AJ7:AJ14) -> 7 | AP4: Total Sequences in Block Summary | AQ4: =SUM(AO7:AO14) -> 6 | AU4: Total Sequences in Block Summary | AV4: =SUM(AT7:AT14) -> 7
T5: Block 1 | Y5: Block 2 | AD5: Block 3 | AI5: Block 4 | AN5: Block 5 | AS5: Block 6
A6: Sequence Component 1 | B6: Time 1 | C6: Sequence Component 2 | D6: Time 2 | E6: Sequence Component 3 | F6: Time 3 | G6: Sequence Component 4 | H6: Time 4 | I6: Sequence Component 5 | J6: Time 5 | K6: Correct? 0=No 1=Yes | L6: Sequence | N6: Frequency | P6: Relative Frequency | Q6: Variability | T6: Frequency | V6: Relative Frequency | W6: Variability | Y6: Frequency | AA6: Relative Frequency | AB6: Variability | AD6: Frequency | AF6: Relative Frequency | AG6: Variability | AI6: Frequency | AK6: Relative Frequency | AL6: Variability | AN6: Frequency | AP6: Relative Frequency | AQ6: Variability | AS6: Frequency | AU6: Relative Frequency | AV6: Variability
A7: 11 | B7: 7 | C7: 21 | D7: 13 | K7: 0 | L7: 12 | N7: 11 | O7: =COUNTIF($L$7:$L$500,N7) -> 0 | P7: =O7/$Q$4 -> 0 | Q7: =IF(P7=0,0,(P7*((LOG(P7))/LOG(2)))) -> 0 | T7: =N7 -> 11 | U7: =COUNTIF(L7:L13,T7) -> 0 | V7: =U7/(W4-U8) ->  | W7: =IF(V7=0,0,(V7*((LOG(V7))/LOG(2)))) ->  | Y7: =N7 -> 11 | Z7: =COUNTIF(L14:L19,Y7) -> 0 | AA7: =Z7/(AB4-Z8) ->  | AB7: =IF(AA7=0,0,(AA7*((LOG(AA7))/LOG(2)))) ->  | AD7: =N7 -> 11 | AE7: =COUNTIF(L20:L26,AD7) -> 0 | AF7: =AE7/(AG4-AE8) ->  | AG7: =IF(AF7=0,0,(AF7*((LOG(AF7))/LOG(2)))) ->  | AI7: =N7 -> 11 | AJ7: =COUNTIF(L27:L33,AI7) -> 0 | AK7: =AJ7/(AL4-AJ8) ->  | AL7: =IF(AK7=0,0,(AK7*((LOG(AK7))/LOG(2)))) ->  | AN7: =N7 -> 11 | AO7: =COUNTIF(L34:L39,AN7) -> 0 | AP7: =AO7/(AQ4-AO8) ->  | AQ7: =IF(AP7=0,0,(AP7*((LOG(AP7))/LOG(2)))) ->  | AS7: =N7 -> 11 | AT7: =COUNTIF(L40:L46,AS7) -> 0 | AU7: =AT7/(AV4-AT8) ->  | AV7: =IF(AU7=0,0,(AU7*((LOG(AU7))/LOG(2)))) -> 
A8: 11 | B8: 100 | C8: 21 | D8: 107 | K8: 0 | L8: 12 | N8: 12 | O8: =COUNTIF($L$7:$L$500,N8) -> 40 | P8: =O8/$Q$4 -> 1 | Q8: =IF(P8=0,0,(P8*((LOG(P8))/LOG(2)))) -> 0 | T8: =N8 -> 12 | U8: =COUNTIF(L7:L13,T8) -> 7 | Y8: =N8 -> 12 | Z8: =COUNTIF(L14:L19,Y8) -> 6 | AD8: =N8 -> 12 | AE8: =COUNTIF(L20:L26,AD8) -> 7 | AI8: =N8 -> 12 | AJ8: =COUNTIF(L27:L33,AI8) -> 7 | AN8: =N8 -> 12 | AO8: =COUNTIF(L34:L39,AN8) -> 6 | AS8: =N8 -> 12 | AT8: =COUNTIF(L40:L46,AS8) -> 7
A9: 11 | B9: 199 | C9: 21 | D9: 206 | K9: 0 | L9: 12 | N9: 21 | O9: =COUNTIF($L$7:$L$500,N9) -> 0 | P9: =O9/$Q$4 -> 0 | Q9: =IF(P9=0,0,(P9*((LOG(P9))/LOG(2)))) -> 0 | T9: =N9 -> 21 | U9: =COUNTIF(L7:L13,T9) -> 0 | V9: =U9/(W4-U8) ->  | W9: =IF(V9=0,0,(V9*((LOG(V9))/LOG(2)))) ->  | Y9: =N9 -> 21 | Z9: =COUNTIF(L14:L19,Y9) -> 0 | AA9: =Z9/(AB4-Z8) ->  | AB9: =IF(AA9=0,0,(AA9*((LOG(AA9))/LOG(2)))) ->  | AD9: =N9 -> 21 | AE9: =COUNTIF(L20:L26,AD9) -> 0 | AF9: =AE9/(AG4-AE8) ->  | AG9: =IF(AF9=0,0,(AF9*((LOG(AF9))/LOG(2)))) ->  | AI9: =N9 -> 21 | AJ9: =COUNTIF(L27:L33,AI9) -> 0 | AK9: =AJ9/(AL4-AJ8) ->  | AL9: =IF(AK9=0,0,(AK9*((LOG(AK9))/LOG(2)))) ->  | AN9: =N9 -> 21 | AO9: =COUNTIF(L34:L39,AN9) -> 0 | AP9: =AO9/(AQ4-AO8) ->  | AQ9: =IF(AP9=0,0,(AP9*((LOG(AP9))/LOG(2)))) ->  | AS9: =N9 -> 21 | AT9: =COUNTIF(L40:L46,AS9) -> 0 | AU9: =AT9/(AV4-AT8) ->  | AV9: =IF(AU9=0,0,(AU9*((LOG(AU9))/LOG(2)))) -> 
A10: 11 | B10: 292 | C10: 21 | D10: 298 | K10: 0 | L10: 12 | N10: 22 | O10: =COUNTIF($L$7:$L$500,N10) -> 0 | P10: =O10/$Q$4 -> 0 | Q10: =IF(P10=0,0,(P10*((LOG(P10))/LOG(2)))) -> 0 | T10: =N10 -> 22 | U10: =COUNTIF(L7:L13,T10) -> 0 | V10: =U10/(W4-U8) ->  | W10: =IF(V10=0,0,(V10*((LOG(V10))/LOG(2)))) ->  | Y10: =N10 -> 22 | Z10: =COUNTIF(L14:L19,Y10) -> 0 | AA10: =Z10/(AB4-Z8) ->  | AB10: =IF(AA10=0,0,(AA10*((LOG(AA10))/LOG(2)))) ->  | AD10: =N10 -> 22 | AE10: =COUNTIF(L20:L26,AD10) -> 0 | AF10: =AE10/(AG4-AE8) ->  | AG10: =IF(AF10=0,0,(AF10*((LOG(AF10))/LOG(2)))) ->  | AI10: =N10 -> 22 | AJ10: =COUNTIF(L27:L33,AI10) -> 0 | AK10: =AJ10/(AL4-AJ8) ->  | AL10: =IF(AK10=0,0,(AK10*((LOG(AK10))/LOG(2)))) ->  | AN10: =N10 -> 22 | AO10: =COUNTIF(L34:L39,AN10) -> 0 | AP10: =AO10/(AQ4-AO8) ->  | AQ10: =IF(AP10=0,0,(AP10*((LOG(AP10))/LOG(2)))) ->  | AS10: =N10 -> 22 | AT10: =COUNTIF(L40:L46,AS10) -> 0 | AU10: =AT10/(AV4-AT8) ->  | AV10: =IF(AU10=0,0,(AU10*((LOG(AU10))/LOG(2)))) -> 
A11: 11 | B11: 384 | C11: 21 | D11: 389 | K11: 0 | L11: 12 | T11: =N11 -> 0 | U11: =COUNTIF(L7:L13,T11) -> 0 | V11: =U11/(W4-U8) ->  | W11: =IF(V11=0,0,(V11*((LOG(V11))/LOG(2)))) ->  | Y11: =N11 -> 0 | Z11: =COUNTIF(L14:L19,Y11) -> 0 | AA11: =Z11/(AB4-Z8) ->  | AB11: =IF(AA11=0,0,(AA11*((LOG(AA11))/LOG(2)))) ->  | AD11: =N11 -> 0 | AE11: =COUNTIF(L20:L26,AD11) -> 0 | AF11: =AE11/(AG4-AE8) ->  | AG11: =IF(AF11=0,0,(AF11*((LOG(AF11))/LOG(2)))) ->  | AI11: =N11 -> 0 | AJ11: =COUNTIF(L27:L33,AI11) -> 0 | AK11: =AJ11/(AL4-AJ8) ->  | AL11: =IF(AK11=0,0,(AK11*((LOG(AK11))/LOG(2)))) ->  | AN11: =N11 -> 0 | AO11: =COUNTIF(L34:L39,AN11) -> 0 | AP11: =AO11/(AQ4-AO8) ->  | AQ11: =IF(AP11=0,0,(AP11*((LOG(AP11))/LOG(2)))) ->  | AS11: =N11 -> 0 | AT11: =COUNTIF(L40:L46,AS11) -> 0 | AU11: =AT11/(AV4-AT8) ->  | AV11: =IF(AU11=0,0,(AU11*((LOG(AU11))/LOG(2)))) -> 
A12: 11 | B12: 475 | C12: 21 | D12: 479 | K12: 0 | L12: 12 | T12: =N12 -> 0 | U12: =COUNTIF(L7:L13,T12) -> 0 | V12: =U12/(W4-U8) ->  | W12: =IF(V12=0,0,(V12*((LOG(V12))/LOG(2)))) ->  | Y12: =N12 -> 0 | Z12: =COUNTIF(L14:L19,Y12) -> 0 | AA12: =Z12/(AB4-Z8) ->  | AB12: =IF(AA12=0,0,(AA12*((LOG(AA12))/LOG(2)))) ->  | AD12: =N12 -> 0 | AE12: =COUNTIF(L20:L26,AD12) -> 0 | AF12: =AE12/(AG4-AE8) ->  | AG12: =IF(AF12=0,0,(AF12*((LOG(AF12))/LOG(2)))) ->  | AI12: =N12 -> 0 | AJ12: =COUNTIF(L27:L33,AI12) -> 0 | AK12: =AJ12/(AL4-AJ8) ->  | AL12: =IF(AK12=0,0,(AK12*((LOG(AK12))/LOG(2)))) ->  | AN12: =N12 -> 0 | AO12: =COUNTIF(L34:L39,AN12) -> 0 | AP12: =AO12/(AQ4-AO8) ->  | AQ12: =IF(AP12=0,0,(AP12*((LOG(AP12))/LOG(2)))) ->  | AS12: =N12 -> 0 | AT12: =COUNTIF(L40:L46,AS12) -> 0 | AU12: =AT12/(AV4-AT8) ->  | AV12: =IF(AU12=0,0,(AU12*((LOG(AU12))/LOG(2)))) -> 
A13: 11 | B13: 568 | C13: 21 | D13: 575 | K13: 0 | L13: 12 | T13: =N13 -> 0 | U13: =COUNTIF(L7:L13,T13) -> 0 | V13: =U13/(W4-U8) ->  | W13: =IF(V13=0,0,(V13*((LOG(V13))/LOG(2)))) ->  | Y13: =N13 -> 0 | Z13: =COUNTIF(L14:L19,Y13) -> 0 | AA13: =Z13/(AB4-Z8) ->  | AB13: =IF(AA13=0,0,(AA13*((LOG(AA13))/LOG(2)))) ->  | AD13: =N13 -> 0 | AE13: =COUNTIF(L20:L26,AD13) -> 0 | AF13: =AE13/(AG4-AE8) ->  | AG13: =IF(AF13=0,0,(AF13*((LOG(AF13))/LOG(2)))) ->  | AI13: =N13 -> 0 | AJ13: =COUNTIF(L27:L33,AI13) -> 0 | AK13: =AJ13/(AL4-AJ8) ->  | AL13: =IF(AK13=0,0,(AK13*((LOG(AK13))/LOG(2)))) ->  | AN13: =N13 -> 0 | AO13: =COUNTIF(L34:L39,AN13) -> 0 | AP13: =AO13/(AQ4-AO8) ->  | AQ13: =IF(AP13=0,0,(AP13*((LOG(AP13))/LOG(2)))) ->  | AS13: =N13 -> 0 | AT13: =COUNTIF(L40:L46,AS13) -> 0 | AU13: =AT13/(AV4-AT8) ->  | AV13: =IF(AU13=0,0,(AU13*((LOG(AU13))/LOG(2)))) -> 
A14: 11 | B14: 669 | C14: 21 | D14: 676 | K14: 0 | L14: 12 | T14: =N14 -> 0 | U14: =COUNTIF(L7:L13,T14) -> 0 | V14: =U14/(W4-U8) ->  | W14: =IF(V14=0,0,(V14*((LOG(V14))/LOG(2)))) ->  | Y14: =N14 -> 0 | Z14: =COUNTIF(L14:L19,Y14) -> 0 | AA14: =Z14/(AB4-Z8) ->  | AB14: =IF(AA14=0,0,(AA14*((LOG(AA14))/LOG(2)))) ->  | AD14: =N14 -> 0 | AE14: =COUNTIF(L20:L26,AD14) -> 0 | AF14: =AE14/(AG4-AE8) ->  | AG14: =IF(AF14=0,0,(AF14*((LOG(AF14))/LOG(2)))) ->  | AI14: =N14 -> 0 | AJ14: =COUNTIF(L27:L33,AI14) -> 0 | AK14: =AJ14/(AL4-AJ8) ->  | AL14: =IF(AK14=0,0,(AK14*((LOG(AK14))/LOG(2)))) ->  | AN14: =N14 -> 0 | AO14: =COUNTIF(L34:L39,AN14) -> 0 | AP14: =AO14/(AQ4-AO8) ->  | AQ14: =IF(AP14=0,0,(AP14*((LOG(AP14))/LOG(2)))) ->  | AS14: =N14 -> 0 | AT14: =COUNTIF(L40:L46,AS14) -> 0 | AU14: =AT14/(AV4-AT8) ->  | AV14: =IF(AU14=0,0,(AU14*((LOG(AU14))/LOG(2)))) -> 
A15: 11 | B15: 759 | C15: 21 | D15: 765 | K15: 0 | L15: 12 | P15: =SUM(P7:P14) -> 1 | Q15: =-SUM(Q7:Q14) -> 0 | V15: =SUM(V7:V14) ->  | W15: =-SUM(W7:W14) ->  | AA15: =SUM(AA7:AA14) ->  | AB15: =-SUM(AB7:AB14) ->  | AF15: =SUM(AF7:AF14) ->  | AG15: =-SUM(AG7:AG14) ->  | AK15: =SUM(AK7:AK14) ->  | AL15: =-SUM(AL7:AL14) ->  | AP15: =SUM(AP7:AP14) ->  | AQ15: =-SUM(AQ7:AQ14) ->  | AU15: =SUM(AU7:AU14) ->  | AV15: =-SUM(AV7:AV14) -> 
A16: 11 | B16: 851 | C16: 21 | D16: 857 | K16: 0 | L16: 12 | P16: U= | Q16: =Q15/(LOG(Q4)/LOG(2)) -> 0 | V16: U1= | W16: =W15/(LOG(W4)/LOG(2)) ->  | AA16: U2= | AB16: =AB15/(LOG(AB4)/LOG(2)) ->  | AF16: U3= | AG16: =AG15/(LOG(AG4)/LOG(2)) ->  | AK16: U4= | AL16: =AL15/(LOG(AL4)/LOG(2)) ->  | AP16: U5= | AQ16: =AQ15/(LOG(AQ4)/LOG(2)) ->  | AU16: U6= | AV16: =AV15/(LOG(AV4)/LOG(2)) -> 
A17: 11 | B17: 943 | C17: 21 | D17: 947 | K17: 0 | L17: 12
A18: 11 | B18: 1035 | C18: 21 | D18: 1043 | K18: 0 | L18: 12
A19: 11 | B19: 1133 | C19: 21 | D19: 1138 | K19: 0 | L19: 12 | N19: Total Target Seq
A20: 11 | B20: 1225 | C20: 21 | D20: 1231 | K20: 0 | L20: 12 | N20: =COUNTIF(L7:L46,G3) -> 40 | P20: 7 | Q20: 6 | R20: 7 | S20: 7 | T20: 6 | U20: 7
A21: 11 | B21: 1318 | C21: 21 | D21: 1325 | K21: 0 | L21: 12 | P21: % of reinforcement given in 6 equal intervals based on number of trials
A22: 11 | B22: 1411 | C22: 21 | D22: 1415 | K22: 0 | L22: 12 | P22: %_1 | Q22: %_2 | R22: %_3 | S22: %_4 | T22: %_5 | U22: %_6
A23: 11 | B23: 1503 | C23: 21 | D23: 1510 | K23: 0 | L23: 12 | O23: target sequence | P23: =$G$3 -> 12 | Q23: =$G$3 -> 12 | R23: =$G$3 -> 12 | S23: =$G$3 -> 12 | T23: =$G$3 -> 12 | U23: =$G$3 -> 12
A24: 11 | B24: 1594 | C24: 21 | D24: 1601 | K24: 0 | L24: 12 | O24: total reinforcement | P24: =U8 -> 7 | Q24: =Z8 -> 6 | R24: =AE8 -> 7 | S24: =AJ8 -> 7 | T24: =AO8 -> 6 | U24: =AT8 -> 7
A25: 11 | B25: 1684 | C25: 21 | D25: 1691 | K25: 0 | L25: 12 | O25: % target
A26: 11 | B26: 1776 | C26: 21 | D26: 1781 | K26: 0 | L26: 12 | O26: CCRF
A27: 11 | B27: 1867 | C27: 21 | D27: 1872 | K27: 0 | L27: 12 | O27: % CCRf
A28: 11 | B28: 1963 | C28: 21 | D28: 1969 | K28: 0 | L28: 12 | O28: average response rate | P28: =D13/P20 -> 82.14285714 | Q28: =(D19-D13)/Q20 -> 93.83333333 | R28: =(D26-D19)/R20 -> 91.85714286 | S28: =(D33-D26)/S20 -> 94 | T28: =(D39-D33)/T20 -> 93.16666667 | U28: =(D46-D39)/U20 -> 93.14285714
A29: 11 | B29: 2061 | C29: 21 | D29: 2069 | K29: 0 | L29: 12
A30: 11 | B30: 2156 | C30: 21 | D30: 2162 | K30: 0 | L30: 12
A31: 11 | B31: 2248 | C31: 21 | D31: 2253 | K31: 0 | L31: 12
A32: 11 | B32: 2338 | C32: 21 | D32: 2342 | K32: 0 | L32: 12
A33: 11 | B33: 2434 | C33: 21 | D33: 2439 | K33: 0 | L33: 12
A34: 11 | B34: 2526 | C34: 21 | D34: 2532 | K34: 0 | L34: 12
A35: 11 | B35: 2619 | C35: 21 | D35: 2626 | K35: 0 | L35: 12
A36: 11 | B36: 2713 | C36: 21 | D36: 2721 | K36: 0 | L36: 12
A37: 11 | B37: 2807 | C37: 21 | D37: 2814 | K37: 0 | L37: 12
A38: 11 | B38: 2899 | C38: 21 | D38: 2904 | K38: 0 | L38: 12
A39: 11 | B39: 2991 | C39: 21 | D39: 2998 | K39: 0 | L39: 12
A40: 11 | B40: 3086 | C40: 21 | D40: 3093 | K40: 0 | L40: 12
A41: 11 | B41: 3181 | C41: 21 | D41: 3186 | K41: 0 | L41: 12
A42: 11 | B42: 3271 | C42: 21 | D42: 3278 | K42: 0 | L42: 12
A43: 11 | B43: 3363 | C43: 21 | D43: 3370 | K43: 0 | L43: 12
A44: 11 | B44: 3459 | C44: 21 | D44: 3465 | K44: 0 | L44: 12
A45: 11 | B45: 3553 | C45: 21 | D45: 3559 | K45: 0 | L45: 12
A46: 11 | B46: 3645 | C46: 21 | D46: 3650 | K46: 1 | L46: 12

Sheet !L824920.052
A1: Report for:!L824920.052
A2: Date: | B2: <date>
A3: Hen: | B3: <hen> | F3: Correct Sequence | G3: =Start!J2 -> 12 | P3: Total Sequences in Data | Q3: =4994-COUNTBLANK(L7:L5000) -> 42 | V3: Total Sequences in Block Data | W3: =COUNTA(L7:L13) -> 7 | AA3: Total Sequences in Block Data | AB3: =COUNTA(L14:L20) -> 7 | AF3: Total Sequences in Block Data | AG3: =COUNTA(L21:L27) -> 7 | AK3: Total Sequences in Block Data | AL3: =COUNTA(L28:L34) -> 7 | AP3: Total Sequences in Block Data | AQ3: =COUNTA(L35:L41) -> 7 | AU3: Total Sequences in Block Data | AV3: =COUNTA(L42:L48) -> 7
P4: Total Sequences in Summary | Q4: =SUM(O7:O14) -> 42 | V4: Total Sequences in Block Summary | W4: =SUM(U7:U14) -> 7 | AA4: Total Sequences in Block Summary | AB4: =SUM(Z7:Z14) -> 7 | AF4: Total Sequences in Block Summary | AG4: =SUM(AE7:AE14) -> 7 | AK4: Total Sequences in Block Summary | AL4: =SUM(AJ7:AJ14) -> 7 | AP4: Total Sequences in Block Summary | AQ4: =SUM(AO7:AO14) -> 7 | AU4: Total Sequences in Block Summary | AV4: =SUM(AT7:AT14) -> 7
T5: Block 1 | Y5: Block 2 | AD5: Block 3 | AI5: Block 4 | AN5: Block 5 | AS5: Block 6
A6: Sequence Component 1 | B6: Time 1 | C6: Sequence Component 2 | D6: Time 2 | E6: Sequence Component 3 | F6: Time 3 | G6: Sequence Component 4 | H6: Time 4 | I6: Sequence Component 5 | J6: Time 5 | K6: Correct? 0=No 1=Yes | L6: Sequence | N6: Frequency | P6: Relative Frequency | Q6: Variability | T6: Frequency | V6: Relative Frequency | W6: Variability | Y6: Frequency | AA6: Relative Frequency | AB6: Variability | AD6: Frequency | AF6: Relative Frequency | AG6: Variability | AI6: Frequency | AK6: Relative Frequency | AL6: Variability | AN6: Frequency | AP6: Relative Frequency | AQ6: Variability | AS6: Frequency | AU6: Relative Frequency | AV6: Variability
A7: 11 | B7: 8 | C7: 21 | D7: 14 | K7: 0 | L7: 12 | N7: 11 | O7: =COUNTIF($L$7:$L$500,N7) -> 0 | P7: =O7/$Q$4 -> 0 | Q7: =IF(P7=0,0,(P7*((LOG(P7))/LOG(2)))) -> 0 | T7: =N7 -> 11 | U7: =COUNTIF(L7:L13,T7) -> 0 | V7: =U7/(W4-U8) ->  | W7: =IF(V7=0,0,(V7*((LOG(V7))/LOG(2)))) ->  | Y7: =N7 -> 11 | Z7: =COUNTIF(L14:L20,Y7) -> 0 | AA7: =Z7/(AB4-Z8) ->  | AB7: =IF(AA7=0,0,(AA7*((LOG(AA7))/LOG(2)))) ->  | AD7: =N7 -> 11 | AE7: =COUNTIF(L21:L27,AD7) -> 0 | AF7: =AE7/(AG4-AE8) -> 0 | AG7: =IF(AF7=0,0,(AF7*((LOG(AF7))/LOG(2)))) -> 0 | AI7: =N7 -> 11 | AJ7: =COUNTIF(L28:L34,AI7) -> 0 | AK7: =AJ7/(AL4-AJ8) ->  | AL7: =IF(AK7=0,0,(AK7*((LOG(AK7))/LOG(2)))) ->  | AN7: =N7 -> 11 | AO7: =COUNTIF(L35:L41,AN7) -> 0 | AP7: =AO7/(AQ4-AO8) -> 0 | AQ7: =IF(AP7=0,0,(AP7*((LOG(AP7))/LOG(2)))) -> 0 | AS7: =N7 -> 11 | AT7: =COUNTIF(L42:L48,AS7) -> 0 | AU7: =AT7/(AV4-AT8) ->  | AV7: =IF(AU7=0,0,(AU7*((LOG(AU7))/LOG(2)))) -> 
A8: 11 | B8: 102 | C8: 21 | D8: 109 | K8: 0 | L8: 12 | N8: 12 | O8: =COUNTIF($L$7:$L$500,N8) -> 40 | P8: =O8/$Q$4 -> 0.9523809524 | Q8: =IF(P8=0,0,(P8*((LOG(P8))/LOG(2)))) -> -0.06703745513 | T8: =N8 -> 12 | U8: =COUNTIF(L7:L13,T8) -> 7 | Y8: =N8 -> 12 | Z8: =COUNTIF(L14:L20,Y8) -> 7 | AD8: =N8 -> 12 | AE8: =COUNTIF(L21:L27,AD8) -> 6 | AI8: =N8 -> 12 | AJ8: =COUNTIF(L28:L34,AI8) -> 7 | AN8: =N8 -> 12 | AO8: =COUNTIF(L35:L41,AN8) -> 6 | AS8: =N8 -> 12 | AT8: =COUNTIF(L42:L48,AS8) -> 7
A9: 11 | B9: 196 | C9: 21 | D9: 201 | K9: 0 | L9: 12 | N9: 21 | O9: =COUNTIF($L$7:$L$500,N9) -> 0 | P9: =O9/$Q$4 -> 0 | Q9: =IF(P9=0,0,(P9*((LOG(P9))/LOG(2)))) -> 0 | T9: =N9 -> 21 | U9: =COUNTIF(L7:L13,T9) -> 0 | V9: =U9/(W4-U8) ->  | W9: =IF(V9=0,0,(V9*((LOG(V9))/LOG(2)))) ->  | Y9: =N9 -> 21 | Z9: =COUNTIF(L14:L20,Y9) -> 0 | AA9: =Z9/(AB4-Z8) ->  | AB9: =IF(AA9=0,0,(AA9*((LOG(AA9))/LOG(2)))) ->  | AD9: =N9 -> 21 | AE9: =COUNTIF(L21:L27,AD9) -> 0 | AF9: =AE9/(AG4-AE8) -> 0 | AG9: =IF(AF9=0,0,(AF9*((LOG(AF9))/LOG(2)))) -> 0 | AI9: =N9 -> 21 | AJ9: =COUNTIF(L28:L34,AI9) -> 0 | AK9: =AJ9/(AL4-AJ8) ->  | AL9: =IF(AK9=0,0,(AK9*((LOG(AK9))/LOG(2)))) ->  | AN9: =N9 -> 21 | AO9: =COUNTIF(L35:L41,AN9) -> 0 | AP9: =AO9/(AQ4-AO8) -> 0 | AQ9: =IF(AP9=0,0,(AP9*((LOG(AP9))/LOG(2)))) -> 0 | AS9: =N9 -> 21 | AT9: =COUNTIF(L42:L48,AS9) -> 0 | AU9: =AT9/(AV4-AT8) ->  | AV9: =IF(AU9=0,0,(AU9*((LOG(AU9))/LOG(2)))) -> 
A10: 11 | B10: 286 | C10: 21 | D10: 293 | K10: 0 | L10: 12 | N10: 22 | O10: =COUNTIF($L$7:$L$500,N10) -> 2 | P10: =O10/$Q$4 -> 0.04761904762 | Q10: =IF(P10=0,0,(P10*((LOG(P10))/LOG(2)))) -> -0.2091579725 | T10: =N10 -> 22 | U10: =COUNTIF(L7:L13,T10) -> 0 | V10: =U10/(W4-U8) ->  | W10: =IF(V10=0,0,(V10*((LOG(V10))/LOG(2)))) ->  | Y10: =N10 -> 22 | Z10: =COUNTIF(L14:L20,Y10) -> 0 | AA10: =Z10/(AB4-Z8) ->  | AB10: =IF(AA10=0,0,(AA10*((LOG(AA10))/LOG(2)))) ->  | AD10: =N10 -> 22 | AE10: =COUNTIF(L21:L27,AD10) -> 1 | AF10: =AE10/(AG4-AE8) -> 1 | AG10: =IF(AF10=0,0,(AF10*((LOG(AF10))/LOG(2)))) -> 0 | AI10: =N10 -> 22 | AJ10: =COUNTIF(L28:L34,AI10) -> 0 | AK10: =AJ10/(AL4-AJ8) ->  | AL10: =IF(AK10=0,0,(AK10*((LOG(AK10))/LOG(2)))) ->  | AN10: =N10 -> 22 | AO10: =COUNTIF(L35:L41,AN10) -> 1 | AP10: =AO10/(AQ4-AO8) -> 1 | AQ10: =IF(AP10=0,0,(AP10*((LOG(AP10))/LOG(2)))) -> 0 | AS10: =N10 -> 22 | AT10: =COUNTIF(L42:L48,AS10) -> 0 | AU10: =AT10/(AV4-AT8) ->  | AV10: =IF(AU10=0,0,(AU10*((LOG(AU10))/LOG(2)))) -> 
A11: 11 | B11: 380 | C11: 21 | D11: 387 | K11: 0 | L11: 12 | T11: =N11 -> 0 | U11: =COUNTIF(L7:L13,T11) -> 0 | V11: =U11/(W4-U8) ->  | W11: =IF(V11=0,0,(V11*((LOG(V11))/LOG(2)))) ->  | Y11: =N11 -> 0 | Z11: =COUNTIF(L14:L20,Y11) -> 0 | AA11: =Z11/(AB4-Z8) ->  | AB11: =IF(AA11=0,0,(AA11*((LOG(AA11))/LOG(2)))) ->  | AD11: =N11 -> 0 | AE11: =COUNTIF(L21:L27,AD11) -> 0 | AF11: =AE11/(AG4-AE8) -> 0 | AG11: =IF(AF11=0,0,(AF11*((LOG(AF11))/LOG(2)))) -> 0 | AI11: =N11 -> 0 | AJ11: =COUNTIF(L28:L34,AI11) -> 0 | AK11: =AJ11/(AL4-AJ8) ->  | AL11: =IF(AK11=0,0,(AK11*((LOG(AK11))/LOG(2)))) ->  | AN11: =N11 -> 0 | AO11: =COUNTIF(L35:L41,AN11) -> 0 | AP11: =AO11/(AQ4-AO8) -> 0 | AQ11: =IF(AP11=0,0,(AP11*((LOG(AP11))/LOG(2)))) -> 0 | AS11: =N11 -> 0 | AT11: =COUNTIF(L42:L48,AS11) -> 0 | AU11: =AT11/(AV4-AT8) ->  | AV11: =IF(AU11=0,0,(AU11*((LOG(AU11))/LOG(2)))) -> 
A12: 11 | B12: 475 | C12: 21 | D12: 480 | K12: 0 | L12: 12 | T12: =N12 -> 0 | U12: =COUNTIF(L7:L13,T12) -> 0 | V12: =U12/(W4-U8) ->  | W12: =IF(V12=0,0,(V12*((LOG(V12))/LOG(2)))) ->  | Y12: =N12 -> 0 | Z12: =COUNTIF(L14:L20,Y12) -> 0 | AA12: =Z12/(AB4-Z8) ->  | AB12: =IF(AA12=0,0,(AA12*((LOG(AA12))/LOG(2)))) ->  | AD12: =N12 -> 0 | AE12: =COUNTIF(L21:L27,AD12) -> 0 | AF12: =AE12/(AG4-AE8) -> 0 | AG12: =IF(AF12=0,0,(AF12*((LOG(AF12))/LOG(2)))) -> 0 | AI12: =N12 -> 0 | AJ12: =COUNTIF(L28:L34,AI12) -> 0 | AK12: =AJ12/(AL4-AJ8) ->  | AL12: =IF(AK12=0,0,(AK12*((LOG(AK12))/LOG(2)))) ->  | AN12: =N12 -> 0 | AO12: =COUNTIF(L35:L41,AN12) -> 0 | AP12: =AO12/(AQ4-AO8) -> 0 | AQ12: =IF(AP12=0,0,(AP12*((LOG(AP12))/LOG(2)))) -> 0 | AS12: =N12 -> 0 | AT12: =COUNTIF(L42:L48,AS12) -> 0 | AU12: =AT12/(AV4-AT8) ->  | AV12: =IF(AU12=0,0,(AU12*((LOG(AU12))/LOG(2)))) -> 
A13: 11 | B13: 567 | C13: 21 | D13: 572 | K13: 0 | L13: 12 | T13: =N13 -> 0 | U13: =COUNTIF(L7:L13,T13) -> 0 | V13: =U13/(W4-U8) ->  | W13: =IF(V13=0,0,(V13*((LOG(V13))/LOG(2)))) ->  | Y13: =N13 -> 0 | Z13: =COUNTIF(L14:L20,Y13) -> 0 | AA13: =Z13/(AB4-Z8) ->  | AB13: =IF(AA13=0,0,(AA13*((LOG(AA13))/LOG(2)))) ->  | AD13: =N13 -> 0 | AE13: =COUNTIF(L21:L27,AD13) -> 0 | AF13: =AE13/(AG4-AE8) -> 0 | AG13: =IF(AF13=0,0,(AF13*((LOG(AF13))/LOG(2)))) -> 0 | AI13: =N13 -> 0 | AJ13: =COUNTIF(L28:L34,AI13) -> 0 | AK13: =AJ13/(AL4-AJ8) ->  | AL13: =IF(AK13=0,0,(AK13*((LOG(AK13))/LOG(2)))) ->  | AN13: =N13 -> 0 | AO13: =COUNTIF(L35:L41,AN13) -> 0 | AP13: =AO13/(AQ4-AO8) -> 0 | AQ13: =IF(AP13=0,0,(AP13*((LOG(AP13))/LOG(2)))) -> 0 | AS13: =N13 -> 0 | AT13: =COUNTIF(L42:L48,AS13) -> 0 | AU13: =AT13/(AV4-AT8) ->  | AV13: =IF(AU13=0,0,(AU13*((LOG(AU13))/LOG(2)))) -> 
A14: 11 | B14: 660 | C14: 21 | D14: 667 | K14: 0 | L14: 12 | T14: =N14 -> 0 | U14: =COUNTIF(L7:L13,T14) -> 0 | V14: =U14/(W4-U8) ->  | W14: =IF(V14=0,0,(V14*((LOG(V14))/LOG(2)))) ->  | Y14: =N14 -> 0 | Z14: =COUNTIF(L14:L20,Y14) -> 0 | AA14: =Z14/(AB4-Z8) ->  | AB14: =IF(AA14=0,0,(AA14*((LOG(AA14))/LOG(2)))) ->  | AD14: =N14 -> 0 | AE14: =COUNTIF(L21:L27,AD14) -> 0 | AF14: =AE14/(AG4-AE8) -> 0 | AG14: =IF(AF14=0,0,(AF14*((LOG(AF14))/LOG(2)))) -> 0 | AI14: =N14 -> 0 | AJ14: =COUNTIF(L28:L34,AI14) -> 0 | AK14: =AJ14/(AL4-AJ8) ->  | AL14: =IF(AK14=0,0,(AK14*((LOG(AK14))/LOG(2)))) ->  | AN14: =N14 -> 0 | AO14: =COUNTIF(L35:L41,AN14) -> 0 | AP14: =AO14/(AQ4-AO8) -> 0 | AQ14: =IF(AP14=0,0,(AP14*((LOG(AP14))/LOG(2)))) -> 0 | AS14: =N14 -> 0 | AT14: =COUNTIF(L42:L48,AS14) -> 0 | AU14: =AT14/(AV4-AT8) ->  | AV14: =IF(AU14=0,0,(AU14*((LOG(AU14))/LOG(2)))) -> 
A15: 11 | B15: 754 | C15: 21 | D15: 758 | K15: 0 | L15: 12 | P15: =SUM(P7:P14) -> 1 | Q15: =-SUM(Q7:Q14) -> 0.2761954276 | V15: =SUM(V7:V14) ->  | W15: =-SUM(W7:W14) ->  | AA15: =SUM(AA7:AA14) ->  | AB15: =-SUM(AB7:AB14) ->  | AF15: =SUM(AF7:AF14) -> 1 | AG15: =-SUM(AG7:AG14) -> 0 | AK15: =SUM(AK7:AK14) ->  | AL15: =-SUM(AL7:AL14) ->  | AP15: =SUM(AP7:AP14) -> 1 | AQ15: =-SUM(AQ7:AQ14) -> 0 | AU15: =SUM(AU7:AU14) ->  | AV15: =-SUM(AV7:AV14) -> 
A16: 11 | B16: 845 | C16: 21 | D16: 850 | K16: 0 | L16: 12 | P16: U= | Q16: =Q15/(LOG(Q4)/LOG(2)) -> 0.05122017233 | V16: U1= | W16: =W15/(LOG(W4)/LOG(2)) ->  | AA16: U2= | AB16: =AB15/(LOG(AB4)/LOG(2)) ->  | AF16: U3= | AG16: =AG15/(LOG(AG4)/LOG(2)) -> 0 | AK16: U4= | AL16: =AL15/(LOG(AL4)/LOG(2)) ->  | AP16: U5= | AQ16: =AQ15/(LOG(AQ4)/LOG(2)) -> 0 | AU16: U6= | AV16: =AV15/(LOG(AV4)/LOG(2)) -> 
A17: 11 | B17: 938 | C17: 21 | D17: 943 | K17: 0 | L17: 12
A18: 11 | B18: 1030 | C18: 21 | D18: 1037 | K18: 0 | L18: 12
A19: 11 | B19: 1124 | C19: 21 | D19: 1131 | K19: 0 | L19: 12 | N19: Total Target Seq
A20: 11 | B20: 1218 | C20: 21 | D20: 1223 | K20: 0 | L20: 12 | N20: =COUNTIF(L7:L48,G3) -> 40 | P20: 7 | Q20: 7 | R20: 7 | S20: 7 | T20: 7 | U20: 7
A21: 11 | B21: 1310 | C21: 21 | D21: 1315 | K21: 0 | L21: 12 | P21: % of reinforcement given in 6 equal intervals based on number of trials
A22: 11 | B22: 1403 | C22: 21 | D22: 1408 | K22: 0 | L22: 12 | P22: %_1 | Q22: %_2 | R22: %_3 | S22: %_4 | T22: %_5 | U22: %_6
A23: 11 | B23: 1494 | C23: 21 | D23: 1501 | K23: 0 | L23: 12 | O23: target sequence | P23: =$G$3 -> 12 | Q23: =$G$3 -> 12 | R23: =$G$3 -> 12 | S23: =$G$3 -> 12 | T23: =$G$3 -> 12 | U23: =$G$3 -> 12
A24: 11 | B24: 1591 | C24: 21 | D24: 1599 | K24: 0 | L24: 12 | O24: total reinforcement | P24: =U8 -> 7 | Q24: =Z8 -> 7 | R24: =AE8 -> 6 | S24: =AJ8 -> 7 | T24: =AO8 -> 6 | U24: =AT8 -> 7
A25: 22 | B25: 1695 | C25: 23 | D25: 1716 | K25: 0 | L25: 22 | O25: % target
A26: 11 | B26: 1814 | C26: 21 | D26: 1819 | K26: 0 | L26: 12 | O26: CCRF
A27: 11 | B27: 1905 | C27: 21 | D27: 1912 | K27: 0 | L27: 12 | O27: % CCRf
A28: 11 | B28: 1996 | C28: 21 | D28: 2004 | K28: 0 | L28: 12 | O28: average response rate | P28: =D13/P20 -> 81.71428571 | Q28: =(D20-D13)/Q20 -> 93 | R28: =(D27-D20)/R20 -> 98.42857143 | S28: =(D34-D27)/S20 -> 92.57142857 | T28: =(D41-D34)/T20 -> 104 | U28: =(D48-D41)/U20 -> 94.28571429
A29: 11 | B29: 2092 | C29: 21 | D29: 2097 | K29: 0 | L29: 12
A30: 11 | B30: 2182 | C30: 21 | D30: 2189 | K30: 0 | L30: 12
A31: 11 | B31: 2274 | C31: 21 | D31: 2280 | K31: 0 | L31: 12
A32: 11 | B32: 2368 | C32: 21 | D32: 2375 | K32: 0 | L32: 12
A33: 11 | B33: 2461 | C33: 21 | D33: 2468 | K33: 0 | L33: 12
A34: 11 | B34: 2555 | C34: 21 | D34: 2560 | K34: 0 | L34: 12
A35: 11 | B35: 2649 | C35: 21 | D35: 2656 | K35: 0 | L35: 12
A36: 11 | B36: 2742 | C36: 21 | D36: 2747 | K36: 0 | L36: 12
A37: 11 | B37: 2836 | C37: 21 | D37: 2844 | K37: 0 | L37: 12
A38: 11 | B38: 2930 | C38: 21 | D38: 2937 | K38: 0 | L38: 12
A39: 22 | B39: 3032 | C39: 23 | D39: 3084 | K39: 0 | L39: 22
A40: 11 | B40: 3181 | C40: 21 | D40: 3188 | K40: 0 | L40: 12
A41: 11 | B41: 3281 | C41: 21 | D41: 3288 | K41: 0 | L41: 12
A42: 11 | B42: 3375 | C42: 21 | D42: 3382 | K42: 0 | L42: 12
A43: 11 | B43: 3467 | C43: 21 | D43: 3472 | K43: 0 | L43: 12
A44: 11 | B44: 3558 | C44: 21 | D44: 3565 | K44: 0 | L44: 12
A45: 11 | B45: 3657 | C45: 21 | D45: 3664 | K45: 0 | L45: 12
A46: 11 | B46: 3750 | C46: 21 | D46: 3757 | K46: 0 | L46: 12
A47: 11 | B47: 3844 | C47: 21 | D47: 3851 | K47: 0 | L47: 12
A48: 11 | B48: 3940 | C48: 21 | D48: 3948 | K48: 1 | L48: 12

Sheet !L826830.052
A1: Report for:!L826830.052
A2: Date: | B2: <date>
A3: Hen: | B3: <hen> | F3: Correct Sequence | G3: =Start!J2 -> 12 | P3: Total Sequences in Data | Q3: =4994-COUNTBLANK(L7:L5000) -> 41 | V3: Total Sequences in Block Data | W3: =COUNTA(L7:L13) -> 7 | AA3: Total Sequences in Block Data | AB3: =COUNTA(L14:L20) -> 7 | AF3: Total Sequences in Block Data | AG3: =COUNTA(L21:L26) -> 6 | AK3: Total Sequences in Block Data | AL3: =COUNTA(L27:L33) -> 7 | AP3: Total Sequences in Block Data | AQ3: =COUNTA(L34:L40) -> 7 | AU3: Total Sequences in Block Data | AV3: =COUNTA(L41:L47) -> 7
P4: Total Sequences in Summary | Q4: =SUM(O7:O14) -> 41 | V4: Total Sequences in Block Summary | W4: =SUM(U7:U14) -> 7 | AA4: Total Sequences in Block Summary | AB4: =SUM(Z7:Z14) -> 7 | AF4: Total Sequences in Block Summary | AG4: =SUM(AE7:AE14) -> 6 | AK4: Total Sequences in Block Summary | AL4: =SUM(AJ7:AJ14) -> 7 | AP4: Total Sequences in Block Summary | AQ4: =SUM(AO7:AO14) -> 7 | AU4: Total Sequences in Block Summary | AV4: =SUM(AT7:AT14) -> 7
T5: Block 1 | Y5: Block 2 | AD5: Block 3 | AI5: Block 4 | AN5: Block 5 | AS5: Block 6
A6: Sequence Component 1 | B6: Time 1 | C6: Sequence Component 2 | D6: Time 2 | E6: Sequence Component 3 | F6: Time 3 | G6: Sequence Component 4 | H6: Time 4 | I6: Sequence Component 5 | J6: Time 5 | K6: Correct? 0=No 1=Yes | L6: Sequence | N6: Frequency | P6: Relative Frequency | Q6: Variability | T6: Frequency | V6: Relative Frequency | W6: Variability | Y6: Frequency | AA6: Relative Frequency | AB6: Variability | AD6: Frequency | AF6: Relative Frequency | AG6: Variability | AI6: Frequency | AK6: Relative Frequency | AL6: Variability | AN6: Frequency | AP6: Relative Frequency | AQ6: Variability | AS6: Frequency | AU6: Relative Frequency | AV6: Variability
A7: 11 | B7: 7 | C7: 21 | D7: 25 | K7: 0 | L7: 12 | N7: 11 | O7: =COUNTIF($L$7:$L$500,N7) -> 0 | P7: =O7/$Q$4 -> 0 | Q7: =IF(P7=0,0,(P7*((LOG(P7))/LOG(2)))) -> 0 | T7: =N7 -> 11 | U7: =COUNTIF(L7:L13,T7) -> 0 | V7: =U7/(W4-U8) ->  | W7: =IF(V7=0,0,(V7*((LOG(V7))/LOG(2)))) ->  | Y7: =N7 -> 11 | Z7: =COUNTIF(L14:L20,Y7) -> 0 | AA7: =Z7/(AB4-Z8) ->  | AB7: =IF(AA7=0,0,(AA7*((LOG(AA7))/LOG(2)))) ->  | AD7: =N7 -> 11 | AE7: =COUNTIF(L21:L26,AD7) -> 0 | AF7: =AE7/(AG4-AE8) -> 0 | AG7: =IF(AF7=0,0,(AF7*((LOG(AF7))/LOG(2)))) -> 0 | AI7: =N7 -> 11 | AJ7: =COUNTIF(L27:L33,AI7) -> 0 | AK7: =AJ7/(AL4-AJ8) ->  | AL7: =IF(AK7=0,0,(AK7*((LOG(AK7))/LOG(2)))) ->  | AN7: =N7 -> 11 | AO7: =COUNTIF(L34:L40,AN7) -> 0 | AP7: =AO7/(AQ4-AO8) ->  | AQ7: =IF(AP7=0,0,(AP7*((LOG(AP7))/LOG(2)))) ->  | AS7: =N7 -> 11 | AT7: =COUNTIF(L41:L47,AS7) -> 0 | AU7: =AT7/(AV4-AT8) ->  | AV7: =IF(AU7=0,0,(AU7*((LOG(AU7))/LOG(2)))) -> 
A8: 11 | B8: 119 | C8: 21 | D8: 127 | K8: 0 | L8: 12 | N8: 12 | O8: =COUNTIF($L$7:$L$500,N8) -> 40 | P8: =O8/$Q$4 -> 0.9756097561 | Q8: =IF(P8=0,0,(P8*((LOG(P8))/LOG(2)))) -> -0.03475503388 | T8: =N8 -> 12 | U8: =COUNTIF(L7:L13,T8) -> 7 | Y8: =N8 -> 12 | Z8: =COUNTIF(L14:L20,Y8) -> 7 | AD8: =N8 -> 12 | AE8: =COUNTIF(L21:L26,AD8) -> 5 | AI8: =N8 -> 12 | AJ8: =COUNTIF(L27:L33,AI8) -> 7 | AN8: =N8 -> 12 | AO8: =COUNTIF(L34:L40,AN8) -> 7 | AS8: =N8 -> 12 | AT8: =COUNTIF(L41:L47,AS8) -> 7
A9: 11 | B9: 221 | C9: 21 | D9: 229 | K9: 0 | L9: 12 | N9: 21 | O9: =COUNTIF($L$7:$L$500,N9) -> 0 | P9: =O9/$Q$4 -> 0 | Q9: =IF(P9=0,0,(P9*((LOG(P9))/LOG(2)))) -> 0 | T9: =N9 -> 21 | U9: =COUNTIF(L7:L13,T9) -> 0 | V9: =U9/(W4-U8) ->  | W9: =IF(V9=0,0,(V9*((LOG(V9))/LOG(2)))) ->  | Y9: =N9 -> 21 | Z9: =COUNTIF(L14:L20,Y9) -> 0 | AA9: =Z9/(AB4-Z8) ->  | AB9: =IF(AA9=0,0,(AA9*((LOG(AA9))/LOG(2)))) ->  | AD9: =N9 -> 21 | AE9: =COUNTIF(L21:L26,AD9) -> 0 | AF9: =AE9/(AG4-AE8) -> 0 | AG9: =IF(AF9=0,0,(AF9*((LOG(AF9))/LOG(2)))) -> 0 | AI9: =N9 -> 21 | AJ9: =COUNTIF(L27:L33,AI9) -> 0 | AK9: =AJ9/(AL4-AJ8) ->  | AL9: =IF(AK9=0,0,(AK9*((LOG(AK9))/LOG(2)))) ->  | AN9: =N9 -> 21 | AO9: =COUNTIF(L34:L40,AN9) -> 0 | AP9: =AO9/(AQ4-AO8) ->  | AQ9: =IF(AP9=0,0,(AP9*((LOG(AP9))/LOG(2)))) ->  | AS9: =N9 -> 21 | AT9: =COUNTIF(L41:L47,AS9) -> 0 | AU9: =AT9/(AV4-AT8) ->  | AV9: =IF(AU9=0,0,(AU9*((LOG(AU9))/LOG(2)))) -> 
A10: 11 | B10: 320 | C10: 21 | D10: 328 | K10: 0 | L10: 12 | N10: 22 | O10: =COUNTIF($L$7:$L$500,N10) -> 1 | P10: =O10/$Q$4 -> 0.0243902439 | Q10: =IF(P10=0,0,(P10*((LOG(P10))/LOG(2)))) -> -0.1306720001 | T10: =N10 -> 22 | U10: =COUNTIF(L7:L13,T10) -> 0 | V10: =U10/(W4-U8) ->  | W10: =IF(V10=0,0,(V10*((LOG(V10))/LOG(2)))) ->  | Y10: =N10 -> 22 | Z10: =COUNTIF(L14:L20,Y10) -> 0 | AA10: =Z10/(AB4-Z8) ->  | AB10: =IF(AA10=0,0,(AA10*((LOG(AA10))/LOG(2)))) ->  | AD10: =N10 -> 22 | AE10: =COUNTIF(L21:L26,AD10) -> 1 | AF10: =AE10/(AG4-AE8) -> 1 | AG10: =IF(AF10=0,0,(AF10*((LOG(AF10))/LOG(2)))) -> 0 | AI10: =N10 -> 22 | AJ10: =COUNTIF(L27:L33,AI10) -> 0 | AK10: =AJ10/(AL4-AJ8) ->  | AL10: =IF(AK10=0,0,(AK10*((LOG(AK10))/LOG(2)))) ->  | AN10: =N10 -> 22 | AO10: =COUNTIF(L34:L40,AN10) -> 0 | AP10: =AO10/(AQ4-AO8) ->  | AQ10: =IF(AP10=0,0,(AP10*((LOG(AP10))/LOG(2)))) ->  | AS10: =N10 -> 22 | AT10: =COUNTIF(L41:L47,AS10) -> 0 | AU10: =AT10/(AV4-AT8) ->  | AV10: =IF(AU10=0,0,(AU10*((LOG(AU10))/LOG(2)))) -> 
A11: 11 | B11: 413 | C11: 21 | D11: 421 | K11: 0 | L11: 12 | T11: =N11 -> 0 | U11: =COUNTIF(L7:L13,T11) -> 0 | V11: =U11/(W4-U8) ->  | W11: =IF(V11=0,0,(V11*((LOG(V11))/LOG(2)))) ->  | Y11: =N11 -> 0 | Z11: =COUNTIF(L14:L20,Y11) -> 0 | AA11: =Z11/(AB4-Z8) ->  | AB11: =IF(AA11=0,0,(AA11*((LOG(AA11))/LOG(2)))) ->  | AD11: =N11 -> 0 | AE11: =COUNTIF(L21:L26,AD11) -> 0 | AF11: =AE11/(AG4-AE8) -> 0 | AG11: =IF(AF11=0,0,(AF11*((LOG(AF11))/LOG(2)))) -> 0 | AI11: =N11 -> 0 | AJ11: =COUNTIF(L27:L33,AI11) -> 0 | AK11: =AJ11/(AL4-AJ8) ->  | AL11: =IF(AK11=0,0,(AK11*((LOG(AK11))/LOG(2)))) ->  | AN11: =N11 -> 0 | AO11: =COUNTIF(L34:L40,AN11) -> 0 | AP11: =AO11/(AQ4-AO8) ->  | AQ11: =IF(AP11=0,0,(AP11*((LOG(AP11))/LOG(2)))) ->  | AS11: =N11 -> 0 | AT11: =COUNTIF(L41:L47,AS11) -> 0 | AU11: =AT11/(AV4-AT8) ->  | AV11: =IF(AU11=0,0,(AU11*((LOG(AU11))/LOG(2)))) -> 
A12: 11 | B12: 508 | C12: 21 | D12: 516 | K12: 0 | L12: 12 | T12: =N12 -> 0 | U12: =COUNTIF(L7:L13,T12) -> 0 | V12: =U12/(W4-U8) ->  | W12: =IF(V12=0,0,(V12*((LOG(V12))/LOG(2)))) ->  | Y12: =N12 -> 0 | Z12: =COUNTIF(L14:L20,Y12) -> 0 | AA12: =Z12/(AB4-Z8) ->  | AB12: =IF(AA12=0,0,(AA12*((LOG(AA12))/LOG(2)))) ->  | AD12: =N12 -> 0 | AE12: =COUNTIF(L21:L26,AD12) -> 0 | AF12: =AE12/(AG4-AE8) -> 0 | AG12: =IF(AF12=0,0,(AF12*((LOG(AF12))/LOG(2)))) -> 0 | AI12: =N12 -> 0 | AJ12: =COUNTIF(L27:L33,AI12) -> 0 | AK12: =AJ12/(AL4-AJ8) ->  | AL12: =IF(AK12=0,0,(AK12*((LOG(AK12))/LOG(2)))) ->  | AN12: =N12 -> 0 | AO12: =COUNTIF(L34:L40,AN12) -> 0 | AP12: =AO12/(AQ4-AO8) ->  | AQ12: =IF(AP12=0,0,(AP12*((LOG(AP12))/LOG(2)))) ->  | AS12: =N12 -> 0 | AT12: =COUNTIF(L41:L47,AS12) -> 0 | AU12: =AT12/(AV4-AT8) ->  | AV12: =IF(AU12=0,0,(AU12*((LOG(AU12))/LOG(2)))) -> 
A13: 11 | B13: 605 | C13: 21 | D13: 614 | K13: 0 | L13: 12 | T13: =N13 -> 0 | U13: =COUNTIF(L7:L13,T13) -> 0 | V13: =U13/(W4-U8) ->  | W13: =IF(V13=0,0,(V13*((LOG(V13))/LOG(2)))) ->  | Y13: =N13 -> 0 | Z13: =COUNTIF(L14:L20,Y13) -> 0 | AA13: =Z13/(AB4-Z8) ->  | AB13: =IF(AA13=0,0,(AA13*((LOG(AA13))/LOG(2)))) ->  | AD13: =N13 -> 0 | AE13: =COUNTIF(L21:L26,AD13) -> 0 | AF13: =AE13/(AG4-AE8) -> 0 | AG13: =IF(AF13=0,0,(AF13*((LOG(AF13))/LOG(2)))) -> 0 | AI13: =N13 -> 0 | AJ13: =COUNTIF(L27:L33,AI13) -> 0 | AK13: =AJ13/(AL4-AJ8) ->  | AL13: =IF(AK13=0,0,(AK13*((LOG(AK13))/LOG(2)))) ->  | AN13: =N13 -> 0 | AO13: =COUNTIF(L34:L40,AN13) -> 0 | AP13: =AO13/(AQ4-AO8) ->  | AQ13: =IF(AP13=0,0,(AP13*((LOG(AP13))/LOG(2)))) ->  | AS13: =N13 -> 0 | AT13: =COUNTIF(L41:L47,AS13) -> 0 | AU13: =AT13/(AV4-AT8) ->  | AV13: =IF(AU13=0,0,(AU13*((LOG(AU13))/LOG(2)))) -> 
A14: 11 | B14: 703 | C14: 21 | D14: 710 | K14: 0 | L14: 12 | T14: =N14 -> 0 | U14: =COUNTIF(L7:L13,T14) -> 0 | V14: =U14/(W4-U8) ->  | W14: =IF(V14=0,0,(V14*((LOG(V14))/LOG(2)))) ->  | Y14: =N14 -> 0 | Z14: =COUNTIF(L14:L20,Y14) -> 0 | AA14: =Z14/(AB4-Z8) ->  | AB14: =IF(AA14=0,0,(AA14*((LOG(AA14))/LOG(2)))) ->  | AD14: =N14 -> 0 | AE14: =COUNTIF(L21:L26,AD14) -> 0 | AF14: =AE14/(AG4-AE8) -> 0 | AG14: =IF(AF14=0,0,(AF14*((LOG(AF14))/LOG(2)))) -> 0 | AI14: =N14 -> 0 | AJ14: =COUNTIF(L27:L33,AI14) -> 0 | AK14: =AJ14/(AL4-AJ8) ->  | AL14: =IF(AK14=0,0,(AK14*((LOG(AK14))/LOG(2)))) ->  | AN14: =N14 -> 0 | AO14: =COUNTIF(L34:L40,AN14) -> 0 | AP14: =AO14/(AQ4-AO8) ->  | AQ14: =IF(AP14=0,0,(AP14*((LOG(AP14))/LOG(2)))) ->  | AS14: =N14 -> 0 | AT14: =COUNTIF(L41:L47,AS14) -> 0 | AU14: =AT14/(AV4-AT8) ->  | AV14: =IF(AU14=0,0,(AU14*((LOG(AU14))/LOG(2)))) -> 
A15: 11 | B15: 794 | C15: 21 | D15: 801 | K15: 0 | L15: 12 | P15: =SUM(P7:P14) -> 1 | Q15: =-SUM(Q7:Q14) -> 0.165427034 | V15: =SUM(V7:V14) ->  | W15: =-SUM(W7:W14) ->  | AA15: =SUM(AA7:AA14) ->  | AB15: =-SUM(AB7:AB14) ->  | AF15: =SUM(AF7:AF14) -> 1 | AG15: =-SUM(AG7:AG14) -> 0 | AK15: =SUM(AK7:AK14) ->  | AL15: =-SUM(AL7:AL14) ->  | AP15: =SUM(AP7:AP14) ->  | AQ15: =-SUM(AQ7:AQ14) ->  | AU15: =SUM(AU7:AU14) ->  | AV15: =-SUM(AV7:AV14) -> 
A16: 11 | B16: 890 | C16: 21 | D16: 897 | K16: 0 | L16: 12 | P16: U= | Q16: =Q15/(LOG(Q4)/LOG(2)) -> 0.03087735478 | V16: U1= | W16: =W15/(LOG(W4)/LOG(2)) ->  | AA16: U2= | AB16: =AB15/(LOG(AB4)/LOG(2)) ->  | AF16: U3= | AG16: =AG15/(LOG(AG4)/LOG(2)) -> 0 | AK16: U4= | AL16: =AL15/(LOG(AL4)/LOG(2)) ->  | AP16: U5= | AQ16: =AQ15/(LOG(AQ4)/LOG(2)) ->  | AU16: U6= | AV16: =AV15/(LOG(AV4)/LOG(2)) -> 
A17: 11 | B17: 982 | C17: 21 | D17: 988 | K17: 0 | L17: 12
A18: 11 | B18: 1076 | C18: 21 | D18: 1083 | K18: 0 | L18: 12
A19: 11 | B19: 1171 | C19: 21 | D19: 1176 | K19: 0 | L19: 12 | N19: Total Target Seq
A20: 11 | B20: 1259 | C20: 21 | D20: 1266 | K20: 0 | L20: 12 | N20: =COUNTIF(L7:L47,G3) -> 40 | P20: 7 | Q20: 7 | R20: 6 | S20: 7 | T20: 7 | U20: 7
A21: 11 | B21: 1354 | C21: 21 | D21: 1362 | K21: 0 | L21: 12 | P21: % of reinforcement given in 6 equal intervals based on number of trials
A22: 11 | B22: 1449 | C22: 21 | D22: 1457 | K22: 0 | L22: 12 | P22: %_1 | Q22: %_2 | R22: %_3 | S22: %_4 | T22: %_5 | U22: %_6
A23: 22 | B23: 1553 | C23: 23 | D23: 1575 | K23: 0 | L23: 22 | O23: target sequence | P23: =$G$3 -> 12 | Q23: =$G$3 -> 12 | R23: =$G$3 -> 12 | S23: =$G$3 -> 12 | T23: =$G$3 -> 12 | U23: =$G$3 -> 12
A24: 11 | B24: 1674 | C24: 21 | D24: 1679 | K24: 0 | L24: 12 | O24: total reinforcement | P24: =U8 -> 7 | Q24: =Z8 -> 7 | R24: =AE8 -> 5 | S24: =AJ8 -> 7 | T24: =AO8 -> 7 | U24: =AT8 -> 7
A25: 11 | B25: 1766 | C25: 21 | D25: 1772 | K25: 0 | L25: 12 | O25: % target
A26: 11 | B26: 1859 | C26: 21 | D26: 1866 | K26: 0 | L26: 12 | O26: CCRF
A27: 11 | B27: 1954 | C27: 21 | D27: 1961 | K27: 0 | L27: 12 | O27: % CCRf
A28: 11 | B28: 2050 | C28: 21 | D28: 2059 | K28: 0 | L28: 12 | O28: average response rate | P28: =D13/P20 -> 87.71428571 | Q28: =(D20-D13)/Q20 -> 93.14285714 | R28: =(D26-D20)/R20 -> 100 | S28: =(D33-D26)/S20 -> 94.71428571 | T28: =(D40-D33)/T20 -> 95.28571429 | U28: =(D47-D40)/U20 -> 98.57142857
A29: 11 | B29: 2144 | C29: 21 | D29: 2152 | K29: 0 | L29: 12
A30: 11 | B30: 2237 | C30: 21 | D30: 2245 | K30: 0 | L30: 12
A31: 11 | B31: 2331 | C31: 21 | D31: 2338 | K31: 0 | L31: 12
A32: 11 | B32: 2426 | C32: 21 | D32: 2432 | K32: 0 | L32: 12
A33: 11 | B33: 2522 | C33: 21 | D33: 2529 | K33: 0 | L33: 12
A34: 11 | B34: 2617 | C34: 21 | D34: 2624 | K34: 0 | L34: 12
A35: 11 | B35: 2712 | C35: 21 | D35: 2720 | K35: 0 | L35: 12
A36: 11 | B36: 2808 | C36: 21 | D36: 2815 | K36: 0 | L36: 12
A37: 11 | B37: 2902 | C37: 21 | D37: 2908 | K37: 0 | L37: 12
A38: 11 | B38: 2994 | C38: 21 | D38: 3001 | K38: 0 | L38: 12
A39: 11 | B39: 3092 | C39: 21 | D39: 3100 | K39: 0 | L39: 12
A40: 11 | B40: 3188 | C40: 21 | D40: 3196 | K40: 0 | L40: 12
A41: 11 | B41: 3281 | C41: 21 | D41: 3288 | K41: 0 | L41: 12
A42: 11 | B42: 3378 | C42: 21 | D42: 3386 | K42: 0 | L42: 12
A43: 11 | B43: 3483 | C43: 21 | D43: 3493 | K43: 0 | L43: 12
A44: 11 | B44: 3580 | C44: 21 | D44: 3587 | K44: 0 | L44: 12
A45: 11 | B45: 3673 | C45: 21 | D45: 3680 | K45: 0 | L45: 12
A46: 11 | B46: 3770 | C46: 21 | D46: 3779 | K46: 0 | L46: 12
A47: 11 | B47: 3878 | C47: 21 | D47: 3886 | K47: 1 | L47: 12

Sheet !L829A10.052
A1: Report for:!L829A10.052
A2: Date: | B2: <date>
A3: Hen: | B3: <hen> | F3: Correct Sequence | G3: =Start!J2 -> 12 | P3: Total Sequences in Data | Q3: =4994-COUNTBLANK(L7:L5000) -> 43 | V3: Total Sequences in Block Data | W3: =COUNTA(L7:L13) -> 7 | AA3: Total Sequences in Block Data | AB3: =COUNTA(L14:L20) -> 7 | AF3: Total Sequences in Block Data | AG3: =COUNTA(L21:L28) -> 8 | AK3: Total Sequences in Block Data | AL3: =COUNTA(L29:L35) -> 7 | AP3: Total Sequences in Block Data | AQ3: =COUNTA(L36:L42) -> 7 | AU3: Total Sequences in Block Data | AV3: =COUNTA(L43:L49) -> 7
P4: Total Sequences in Summary | Q4: =SUM(O7:O14) -> 43 | V4: Total Sequences in Block Summary | W4: =SUM(U7:U14) -> 7 | AA4: Total Sequences in Block Summary | AB4: =SUM(Z7:Z14) -> 7 | AF4: Total Sequences in Block Summary | AG4: =SUM(AE7:AE14) -> 8 | AK4: Total Sequences in Block Summary | AL4: =SUM(AJ7:AJ14) -> 7 | AP4: Total Sequences in Block Summary | AQ4: =SUM(AO7:AO14) -> 7 | AU4: Total Sequences in Block Summary | AV4: =SUM(AT7:AT14) -> 7
T5: Block 1 | Y5: Block 2 | AD5: Block 3 | AI5: Block 4 | AN5: Block 5 | AS5: Block 6
A6: Sequence Component 1 | B6: Time 1 | C6: Sequence Component 2 | D6: Time 2 | E6: Sequence Component 3 | F6: Time 3 | G6: Sequence Component 4 | H6: Time 4 | I6: Sequence Component 5 | J6: Time 5 | K6: Correct? 0=No 1=Yes | L6: Sequence | N6: Frequency | P6: Relative Frequency | Q6: Variability | T6: Frequency | V6: Relative Frequency | W6: Variability | Y6: Frequency | AA6: Relative Frequency | AB6: Variability | AD6: Frequency | AF6: Relative Frequency | AG6: Variability | AI6: Frequency | AK6: Relative Frequency | AL6: Variability | AN6: Frequency | AP6: Relative Frequency | AQ6: Variability | AS6: Frequency | AU6: Relative Frequency | AV6: Variability
A7: 11 | B7: 7 | C7: 12 | D7: 14 | K7: 0 | L7: 11 | N7: 11 | O7: =COUNTIF($L$7:$L$500,N7) -> 1 | P7: =O7/$Q$4 -> 0.02325581395 | Q7: =IF(P7=0,0,(P7*((LOG(P7))/LOG(2)))) -> -0.1261922036 | T7: =N7 -> 11 | U7: =COUNTIF(L7:L13,T7) -> 1 | V7: =U7/(W4-U8) -> 1 | W7: =IF(V7=0,0,(V7*((LOG(V7))/LOG(2)))) -> 0 | Y7: =N7 -> 11 | Z7: =COUNTIF(L14:L20,Y7) -> 0 | AA7: =Z7/(AB4-Z8) -> 0 | AB7: =IF(AA7=0,0,(AA7*((LOG(AA7))/LOG(2)))) -> 0 | AD7: =N7 -> 11 | AE7: =COUNTIF(L21:L28,AD7) -> 0 | AF7: =AE7/(AG4-AE8) ->  | AG7: =IF(AF7=0,0,(AF7*((LOG(AF7))/LOG(2)))) ->  | AI7: =N7 -> 11 | AJ7: =COUNTIF(L29:L35,AI7) -> 0 | AK7: =AJ7/(AL4-AJ8) ->  | AL7: =IF(AK7=0,0,(AK7*((LOG(AK7))/LOG(2)))) ->  | AN7: =N7 -> 11 | AO7: =COUNTIF(L36:L42,AN7) -> 0 | AP7: =AO7/(AQ4-AO8) -> 0 | AQ7: =IF(AP7=0,0,(AP7*((LOG(AP7))/LOG(2)))) -> 0 | AS7: =N7 -> 11 | AT7: =COUNTIF(L43:L49,AS7) -> 0 | AU7: =AT7/(AV4-AT8) ->  | AV7: =IF(AU7=0,0,(AU7*((LOG(AU7))/LOG(2)))) -> 
A8: 11 | B8: 112 | C8: 21 | D8: 120 | K8: 0 | L8: 12 | N8: 12 | O8: =COUNTIF($L$7:$L$500,N8) -> 40 | P8: =O8/$Q$4 -> 0.9302325581 | Q8: =IF(P8=0,0,(P8*((LOG(P8))/LOG(2)))) -> -0.09705735797 | T8: =N8 -> 12 | U8: =COUNTIF(L7:L13,T8) -> 6 | Y8: =N8 -> 12 | Z8: =COUNTIF(L14:L20,Y8) -> 6 | AD8: =N8 -> 12 | AE8: =COUNTIF(L21:L28,AD8) -> 8 | AI8: =N8 -> 12 | AJ8: =COUNTIF(L29:L35,AI8) -> 7 | AN8: =N8 -> 12 | AO8: =COUNTIF(L36:L42,AN8) -> 6 | AS8: =N8 -> 12 | AT8: =COUNTIF(L43:L49,AS8) -> 7
A9: 11 | B9: 208 | C9: 21 | D9: 216 | K9: 0 | L9: 12 | N9: 21 | O9: =COUNTIF($L$7:$L$500,N9) -> 1 | P9: =O9/$Q$4 -> 0.02325581395 | Q9: =IF(P9=0,0,(P9*((LOG(P9))/LOG(2)))) -> -0.1261922036 | T9: =N9 -> 21 | U9: =COUNTIF(L7:L13,T9) -> 0 | V9: =U9/(W4-U8) -> 0 | W9: =IF(V9=0,0,(V9*((LOG(V9))/LOG(2)))) -> 0 | Y9: =N9 -> 21 | Z9: =COUNTIF(L14:L20,Y9) -> 0 | AA9: =Z9/(AB4-Z8) -> 0 | AB9: =IF(AA9=0,0,(AA9*((LOG(AA9))/LOG(2)))) -> 0 | AD9: =N9 -> 21 | AE9: =COUNTIF(L21:L28,AD9) -> 0 | AF9: =AE9/(AG4-AE8) ->  | AG9: =IF(AF9=0,0,(AF9*((LOG(AF9))/LOG(2)))) ->  | AI9: =N9 -> 21 | AJ9: =COUNTIF(L29:L35,AI9) -> 0 | AK9: =AJ9/(AL4-AJ8) ->  | AL9: =IF(AK9=0,0,(AK9*((LOG(AK9))/LOG(2)))) ->  | AN9: =N9 -> 21 | AO9: =COUNTIF(L36:L42,AN9) -> 1 | AP9: =AO9/(AQ4-AO8) -> 1 | AQ9: =IF(AP9=0,0,(AP9*((LOG(AP9))/LOG(2)))) -> 0 | AS9: =N9 -> 21 | AT9: =COUNTIF(L43:L49,AS9) -> 0 | AU9: =AT9/(AV4-AT8) ->  | AV9: =IF(AU9=0,0,(AU9*((LOG(AU9))/LOG(2)))) -> 
A10: 11 | B10: 303 | C10: 21 | D10: 313 | K10: 0 | L10: 12 | N10: 22 | O10: =COUNTIF($L$7:$L$500,N10) -> 1 | P10: =O10/$Q$4 -> 0.02325581395 | Q10: =IF(P10=0,0,(P10*((LOG(P10))/LOG(2)))) -> -0.1261922036 | T10: =N10 -> 22 | U10: =COUNTIF(L7:L13,T10) -> 0 | V10: =U10/(W4-U8) -> 0 | W10: =IF(V10=0,0,(V10*((LOG(V10))/LOG(2)))) -> 0 | Y10: =N10 -> 22 | Z10: =COUNTIF(L14:L20,Y10) -> 1 | AA10: =Z10/(AB4-Z8) -> 1 | AB10: =IF(AA10=0,0,(AA10*((LOG(AA10))/LOG(2)))) -> 0 | AD10: =N10 -> 22 | AE10: =COUNTIF(L21:L28,AD10) -> 0 | AF10: =AE10/(AG4-AE8) ->  | AG10: =IF(AF10=0,0,(AF10*((LOG(AF10))/LOG(2)))) ->  | AI10: =N10 -> 22 | AJ10: =COUNTIF(L29:L35,AI10) -> 0 | AK10: =AJ10/(AL4-AJ8) ->  | AL10: =IF(AK10=0,0,(AK10*((LOG(AK10))/LOG(2)))) ->  | AN10: =N10 -> 22 | AO10: =COUNTIF(L36:L42,AN10) -> 0 | AP10: =AO10/(AQ4-AO8) -> 0 | AQ10: =IF(AP10=0,0,(AP10*((LOG(AP10))/LOG(2)))) -> 0 | AS10: =N10 -> 22 | AT10: =COUNTIF(L43:L49,AS10) -> 0 | AU10: =AT10/(AV4-AT8) ->  | AV10: =IF(AU10=0,0,(AU10*((LOG(AU10))/LOG(2)))) -> 
A11: 11 | B11: 402 | C11: 21 | D11: 409 | K11: 0 | L11: 12 | T11: =N11 -> 0 | U11: =COUNTIF(L7:L13,T11) -> 0 | V11: =U11/(W4-U8) -> 0 | W11: =IF(V11=0,0,(V11*((LOG(V11))/LOG(2)))) -> 0 | Y11: =N11 -> 0 | Z11: =COUNTIF(L14:L20,Y11) -> 0 | AA11: =Z11/(AB4-Z8) -> 0 | AB11: =IF(AA11=0,0,(AA11*((LOG(AA11))/LOG(2)))) -> 0 | AD11: =N11 -> 0 | AE11: =COUNTIF(L21:L28,AD11) -> 0 | AF11: =AE11/(AG4-AE8) ->  | AG11: =IF(AF11=0,0,(AF11*((LOG(AF11))/LOG(2)))) ->  | AI11: =N11 -> 0 | AJ11: =COUNTIF(L29:L35,AI11) -> 0 | AK11: =AJ11/(AL4-AJ8) ->  | AL11: =IF(AK11=0,0,(AK11*((LOG(AK11))/LOG(2)))) ->  | AN11: =N11 -> 0 | AO11: =COUNTIF(L36:L42,AN11) -> 0 | AP11: =AO11/(AQ4-AO8) -> 0 | AQ11: =IF(AP11=0,0,(AP11*((LOG(AP11))/LOG(2)))) -> 0 | AS11: =N11 -> 0 | AT11: =COUNTIF(L43:L49,AS11) -> 0 | AU11: =AT11/(AV4-AT8) ->  | AV11: =IF(AU11=0,0,(AU11*((LOG(AU11))/LOG(2)))) -> 
A12: 11 | B12: 495 | C12: 21 | D12: 502 | K12: 0 | L12: 12 | T12: =N12 -> 0 | U12: =COUNTIF(L7:L13,T12) -> 0 | V12: =U12/(W4-U8) -> 0 | W12: =IF(V12=0,0,(V12*((LOG(V12))/LOG(2)))) -> 0 | Y12: =N12 -> 0 | Z12: =COUNTIF(L14:L20,Y12) -> 0 | AA12: =Z12/(AB4-Z8) -> 0 | AB12: =IF(AA12=0,0,(AA12*((LOG(AA12))/LOG(2)))) -> 0 | AD12: =N12 -> 0 | AE12: =COUNTIF(L21:L28,AD12) -> 0 | AF12: =AE12/(AG4-AE8) ->  | AG12: =IF(AF12=0,0,(AF12*((LOG(AF12))/LOG(2)))) ->  | AI12: =N12 -> 0 | AJ12: =COUNTIF(L29:L35,AI12) -> 0 | AK12: =AJ12/(AL4-AJ8) ->  | AL12: =IF(AK12=0,0,(AK12*((LOG(AK12))/LOG(2)))) ->  | AN12: =N12 -> 0 | AO12: =COUNTIF(L36:L42,AN12) -> 0 | AP12: =AO12/(AQ4-AO8) -> 0 | AQ12: =IF(AP12=0,0,(AP12*((LOG(AP12))/LOG(2)))) -> 0 | AS12: =N12 -> 0 | AT12: =COUNTIF(L43:L49,AS12) -> 0 | AU12: =AT12/(AV4-AT8) ->  | AV12: =IF(AU12=0,0,(AU12*((LOG(AU12))/LOG(2)))) -> 
A13: 11 | B13: 587 | C13: 21 | D13: 594 | K13: 0 | L13: 12 | T13: =N13 -> 0 | U13: =COUNTIF(L7:L13,T13) -> 0 | V13: =U13/(W4-U8) -> 0 | W13: =IF(V13=0,0,(V13*((LOG(V13))/LOG(2)))) -> 0 | Y13: =N13 -> 0 | Z13: =COUNTIF(L14:L20,Y13) -> 0 | AA13: =Z13/(AB4-Z8) -> 0 | AB13: =IF(AA13=0,0,(AA13*((LOG(AA13))/LOG(2)))) -> 0 | AD13: =N13 -> 0 | AE13: =COUNTIF(L21:L28,AD13) -> 0 | AF13: =AE13/(AG4-AE8) ->  | AG13: =IF(AF13=0,0,(AF13*((LOG(AF13))/LOG(2)))) ->  | AI13: =N13 -> 0 | AJ13: =COUNTIF(L29:L35,AI13) -> 0 | AK13: =AJ13/(AL4-AJ8) ->  | AL13: =IF(AK13=0,0,(AK13*((LOG(AK13))/LOG(2)))) ->  | AN13: =N13 -> 0 | AO13: =COUNTIF(L36:L42,AN13) -> 0 | AP13: =AO13/(AQ4-AO8) -> 0 | AQ13: =IF(AP13=0,0,(AP13*((LOG(AP13))/LOG(2)))) -> 0 | AS13: =N13 -> 0 | AT13: =COUNTIF(L43:L49,AS13) -> 0 | AU13: =AT13/(AV4-AT8) ->  | AV13: =IF(AU13=0,0,(AU13*((LOG(AU13))/LOG(2)))) -> 
A14: 11 | B14: 680 | C14: 21 | D14: 687 | K14: 0 | L14: 12 | T14: =N14 -> 0 | U14: =COUNTIF(L7:L13,T14) -> 0 | V14: =U14/(W4-U8) -> 0 | W14: =IF(V14=0,0,(V14*((LOG(V14))/LOG(2)))) -> 0 | Y14: =N14 -> 0 | Z14: =COUNTIF(L14:L20,Y14) -> 0 | AA14: =Z14/(AB4-Z8) -> 0 | AB14: =IF(AA14=0,0,(AA14*((LOG(AA14))/LOG(2)))) -> 0 | AD14: =N14 -> 0 | AE14: =COUNTIF(L21:L28,AD14) -> 0 | AF14: =AE14/(AG4-AE8) ->  | AG14: =IF(AF14=0,0,(AF14*((LOG(AF14))/LOG(2)))) ->  | AI14: =N14 -> 0 | AJ14: =COUNTIF(L29:L35,AI14) -> 0 | AK14: =AJ14/(AL4-AJ8) ->  | AL14: =IF(AK14=0,0,(AK14*((LOG(AK14))/LOG(2)))) ->  | AN14: =N14 -> 0 | AO14: =COUNTIF(L36:L42,AN14) -> 0 | AP14: =AO14/(AQ4-AO8) -> 0 | AQ14: =IF(AP14=0,0,(AP14*((LOG(AP14))/LOG(2)))) -> 0 | AS14: =N14 -> 0 | AT14: =COUNTIF(L43:L49,AS14) -> 0 | AU14: =AT14/(AV4-AT8) ->  | AV14: =IF(AU14=0,0,(AU14*((LOG(AU14))/LOG(2)))) -> 
A15: 11 | B15: 782 | C15: 21 | D15: 790 | K15: 0 | L15: 12 | P15: =SUM(P7:P14) -> 1 | Q15: =-SUM(Q7:Q14) -> 0.4756339688 | V15: =SUM(V7:V14) -> 1 | W15: =-SUM(W7:W14) -> 0 | AA15: =SUM(AA7:AA14) -> 1 | AB15: =-SUM(AB7:AB14) -> 0 | AF15: =SUM(AF7:AF14) ->  | AG15: =-SUM(AG7:AG14) ->  | AK15: =SUM(AK7:AK14) ->  | AL15: =-SUM(AL7:AL14) ->  | AP15: =SUM(AP7:AP14) -> 1 | AQ15: =-SUM(AQ7:AQ14) -> 0 | AU15: =SUM(AU7:AU14) ->  | AV15: =-SUM(AV7:AV14) -> 
A16: 11 | B16: 873 | C16: 21 | D16: 881 | K16: 0 | L16: 12 | P16: U= | Q16: =Q15/(LOG(Q4)/LOG(2)) -> 0.08765402911 | V16: U1= | W16: =W15/(LOG(W4)/LOG(2)) -> 0 | AA16: U2= | AB16: =AB15/(LOG(AB4)/LOG(2)) -> 0 | AF16: U3= | AG16: =AG15/(LOG(AG4)/LOG(2)) ->  | AK16: U4= | AL16: =AL15/(LOG(AL4)/LOG(2)) ->  | AP16: U5= | AQ16: =AQ15/(LOG(AQ4)/LOG(2)) -> 0 | AU16: U6= | AV16: =AV15/(LOG(AV4)/LOG(2)) -> 
A17: 11 | B17: 967 | C17: 21 | D17: 975 | K17: 0 | L17: 12
A18: 22 | B18: 1071 | C18: 23 | D18: 1128 | K18: 0 | L18: 22
A19: 11 | B19: 1225 | C19: 21 | D19: 1232 | K19: 0 | L19: 12 | N19: Total Target Seq
A20: 11 | B20: 1321 | C20: 21 | D20: 1329 | K20: 0 | L20: 12 | N20: =COUNTIF(L7:L49,G3) -> 40 | P20: 7 | Q20: 7 | R20: 8 | S20: 7 | T20: 7 | U20: 7
A21: 11 | B21: 1417 | C21: 21 | D21: 1424 | K21: 0 | L21: 12 | P21: % of reinforcement given in 6 equal intervals based on number of trials
A22: 11 | B22: 1511 | C22: 21 | D22: 1518 | K22: 0 | L22: 12 | P22: %_1 | Q22: %_2 | R22: %_3 | S22: %_4 | T22: %_5 | U22: %_6
A23: 11 | B23: 1604 | C23: 21 | D23: 1612 | K23: 0 | L23: 12 | O23: target sequence | P23: =$G$3 -> 12 | Q23: =$G$3 -> 12 | R23: =$G$3 -> 12 | S23: =$G$3 -> 12 | T23: =$G$3 -> 12 | U23: =$G$3 -> 12
A24: 11 | B24: 1697 | C24: 21 | D24: 1704 | K24: 0 | L24: 12 | O24: total reinforcement | P24: =U8 -> 6 | Q24: =Z8 -> 6 | R24: =AE8 -> 8 | S24: =AJ8 -> 7 | T24: =AO8 -> 6 | U24: =AT8 -> 7
A25: 11 | B25: 1794 | C25: 21 | D25: 1802 | K25: 0 | L25: 12 | O25: % target
A26: 11 | B26: 1888 | C26: 21 | D26: 1896 | K26: 0 | L26: 12 | O26: CCRF
A27: 11 | B27: 1982 | C27: 21 | D27: 1990 | K27: 0 | L27: 12 | O27: % CCRf
A28: 11 | B28: 2077 | C28: 21 | D28: 2084 | K28: 0 | L28: 12 | O28: average response rate | P28: =D13/P20 -> 84.85714286 | Q28: =(D20-D13)/Q20 -> 105 | R28: =(D28-D20)/R20 -> 94.375 | S28: =(D35-D28)/S20 -> 94.85714286 | T28: =(D42-D35)/T20 -> 99.42857143 | U28: =(D49-D42)/U20 -> 95
A29: 11 | B29: 2170 | C29: 21 | D29: 2179 | K29: 0 | L29: 12
A30: 11 | B30: 2271 | C30: 21 | D30: 2278 | K30: 0 | L30: 12
A31: 11 | B31: 2365 | C31: 21 | D31: 2373 | K31: 0 | L31: 12
A32: 11 | B32: 2460 | C32: 21 | D32: 2467 | K32: 0 | L32: 12
A33: 11 | B33: 2552 | C33: 21 | D33: 2560 | K33: 0 | L33: 12
A34: 11 | B34: 2646 | C34: 21 | D34: 2653 | K34: 0 | L34: 12
A35: 11 | B35: 2739 | C35: 21 | D35: 2748 | K35: 0 | L35: 12
A36: 11 | B36: 2834 | C36: 21 | D36: 2841 | K36: 0 | L36: 12
A37: 22 | B37: 2946 | C37: 14 | D37: 2957 | K37: 0 | L37: 21
A38: 11 | B38: 3054 | C38: 21 | D38: 3062 | K38: 0 | L38: 12
A39: 11 | B39: 3149 | C39: 21 | D39: 3157 | K39: 0 | L39: 12
A40: 11 | B40: 3242 | C40: 21 | D40: 3250 | K40: 0 | L40: 12
A41: 11 | B41: 3337 | C41: 21 | D41: 3345 | K41: 0 | L41: 12
A42: 11 | B42: 3435 | C42: 21 | D42: 3444 | K42: 0 | L42: 12
A43: 11 | B43: 3531 | C43: 21 | D43: 3538 | K43: 0 | L43: 12
A44: 11 | B44: 3626 | C44: 21 | D44: 3631 | K44: 0 | L44: 12
A45: 11 | B45: 3727 | C45: 21 | D45: 3734 | K45: 0 | L45: 12
A46: 11 | B46: 3821 | C46: 21 | D46: 3829 | K46: 0 | L46: 12
A47: 11 | B47: 3914 | C47: 21 | D47: 3922 | K47: 0 | L47: 12
A48: 11 | B48: 4009 | C48: 21 | D48: 4017 | K48: 0 | L48: 12
A49: 11 | B49: 4101 | C49: 21 | D49: 4109 | K49: 1 | L49: 12

Sheet !L830910.052
A1: Report for:!L830910.052
A2: Date: | B2: <date>
A3: Hen: | B3: <hen> | F3: Correct Sequence | G3: =Start!J2 -> 12 | P3: Total Sequences in Data | Q3: =4994-COUNTBLANK(L7:L5000) -> 41 | V3: Total Sequences in Block Data | W3: =COUNTA(L7:L13) -> 7 | AA3: Total Sequences in Block Data | AB3: =COUNTA(L14:L20) -> 7 | AF3: Total Sequences in Block Data | AG3: =COUNTA(L21:L26) -> 6 | AK3: Total Sequences in Block Data | AL3: =COUNTA(L27:L33) -> 7 | AP3: Total Sequences in Block Data | AQ3: =COUNTA(L34:L40) -> 7 | AU3: Total Sequences in Block Data | AV3: =COUNTA(L41:L47) -> 7
P4: Total Sequences in Summary | Q4: =SUM(O7:O14) -> 41 | V4: Total Sequences in Block Summary | W4: =SUM(U7:U14) -> 7 | AA4: Total Sequences in Block Summary | AB4: =SUM(Z7:Z14) -> 7 | AF4: Total Sequences in Block Summary | AG4: =SUM(AE7:AE14) -> 6 | AK4: Total Sequences in Block Summary | AL4: =SUM(AJ7:AJ14) -> 7 | AP4: Total Sequences in Block Summary | AQ4: =SUM(AO7:AO14) -> 7 | AU4: Total Sequences in Block Summary | AV4: =SUM(AT7:AT14) -> 7
T5: Block 1 | Y5: Block 2 | AD5: Block 3 | AI5: Block 4 | AN5: Block 5 | AS5: Block 6
A6: Sequence Component 1 | B6: Time 1 | C6: Sequence Component 2 | D6: Time 2 | E6: Sequence Component 3 | F6: Time 3 | G6: Sequence Component 4 | H6: Time 4 | I6: Sequence Component 5 | J6: Time 5 | K6: Correct? 0=No 1=Yes | L6: Sequence | N6: Frequency | P6: Relative Frequency | Q6: Variability | T6: Frequency | V6: Relative Frequency | W6: Variability | Y6: Frequency | AA6: Relative Frequency | AB6: Variability | AD6: Frequency | AF6: Relative Frequency | AG6: Variability | AI6: Frequency | AK6: Relative Frequency | AL6: Variability | AN6: Frequency | AP6: Relative Frequency | AQ6: Variability | AS6: Frequency | AU6: Relative Frequency | AV6: Variability
A7: 11 | B7: 9 | C7: 21 | D7: 15 | K7: 0 | L7: 12 | N7: 11 | O7: =COUNTIF($L$7:$L$500,N7) -> 1 | P7: =O7/$Q$4 -> 0.0243902439 | Q7: =IF(P7=0,0,(P7*((LOG(P7))/LOG(2)))) -> -0.1306720001 | T7: =N7 -> 11 | U7: =COUNTIF(L7:L13,T7) -> 1 | V7: =U7/(W4-U8) -> 1 | W7: =IF(V7=0,0,(V7*((LOG(V7))/LOG(2)))) -> 0 | Y7: =N7 -> 11 | Z7: =COUNTIF(L14:L20,Y7) -> 0 | AA7: =Z7/(AB4-Z8) ->  | AB7: =IF(AA7=0,0,(AA7*((LOG(AA7))/LOG(2)))) ->  | AD7: =N7 -> 11 | AE7: =COUNTIF(L21:L26,AD7) -> 0 | AF7: =AE7/(AG4-AE8) ->  | AG7: =IF(AF7=0,0,(AF7*((LOG(AF7))/LOG(2)))) ->  | AI7: =N7 -> 11 | AJ7: =COUNTIF(L27:L33,AI7) -> 0 | AK7: =AJ7/(AL4-AJ8) ->  | AL7: =IF(AK7=0,0,(AK7*((LOG(AK7))/LOG(2)))) ->  | AN7: =N7 -> 11 | AO7: =COUNTIF(L34:L40,AN7) -> 0 | AP7: =AO7/(AQ4-AO8) ->  | AQ7: =IF(AP7=0,0,(AP7*((LOG(AP7))/LOG(2)))) ->  | AS7: =N7 -> 11 | AT7: =COUNTIF(L41:L47,AS7) -> 0 | AU7: =AT7/(AV4-AT8) ->  | AV7: =IF(AU7=0,0,(AU7*((LOG(AU7))/LOG(2)))) -> 
A8: 11 | B8: 106 | C8: 21 | D8: 114 | K8: 0 | L8: 12 | N8: 12 | O8: =COUNTIF($L$7:$L$500,N8) -> 40 | P8: =O8/$Q$4 -> 0.9756097561 | Q8: =IF(P8=0,0,(P8*((LOG(P8))/LOG(2)))) -> -0.03475503388 | T8: =N8 -> 12 | U8: =COUNTIF(L7:L13,T8) -> 6 | Y8: =N8 -> 12 | Z8: =COUNTIF(L14:L20,Y8) -> 7 | AD8: =N8 -> 12 | AE8: =COUNTIF(L21:L26,AD8) -> 6 | AI8: =N8 -> 12 | AJ8: =COUNTIF(L27:L33,AI8) -> 7 | AN8: =N8 -> 12 | AO8: =COUNTIF(L34:L40,AN8) -> 7 | AS8: =N8 -> 12 | AT8: =COUNTIF(L41:L47,AS8) -> 7
A9: 11 | B9: 202 | C9: 21 | D9: 207 | K9: 0 | L9: 12 | N9: 21 | O9: =COUNTIF($L$7:$L$500,N9) -> 0 | P9: =O9/$Q$4 -> 0 | Q9: =IF(P9=0,0,(P9*((LOG(P9))/LOG(2)))) -> 0 | T9: =N9 -> 21 | U9: =COUNTIF(L7:L13,T9) -> 0 | V9: =U9/(W4-U8) -> 0 | W9: =IF(V9=0,0,(V9*((LOG(V9))/LOG(2)))) -> 0 | Y9: =N9 -> 21 | Z9: =COUNTIF(L14:L20,Y9) -> 0 | AA9: =Z9/(AB4-Z8) ->  | AB9: =IF(AA9=0,0,(AA9*((LOG(AA9))/LOG(2)))) ->  | AD9: =N9 -> 21 | AE9: =COUNTIF(L21:L26,AD9) -> 0 | AF9: =AE9/(AG4-AE8) ->  | AG9: =IF(AF9=0,0,(AF9*((LOG(AF9))/LOG(2)))) ->  | AI9: =N9 -> 21 | AJ9: =COUNTIF(L27:L33,AI9) -> 0 | AK9: =AJ9/(AL4-AJ8) ->  | AL9: =IF(AK9=0,0,(AK9*((LOG(AK9))/LOG(2)))) ->  | AN9: =N9 -> 21 | AO9: =COUNTIF(L34:L40,AN9) -> 0 | AP9: =AO9/(AQ4-AO8) ->  | AQ9: =IF(AP9=0,0,(AP9*((LOG(AP9))/LOG(2)))) ->  | AS9: =N9 -> 21 | AT9: =COUNTIF(L41:L47,AS9) -> 0 | AU9: =AT9/(AV4-AT8) ->  | AV9: =IF(AU9=0,0,(AU9*((LOG(AU9))/LOG(2)))) -> 
